Workbook

Sheet UEF11
A1: MINISTERE DE L’ENSEIGNEMENT SUPERIEUR ET DE LA RECHERCHE SCIENTIFIQUE
A2: UNIVERSITE ABDELHAMID IBN BADIS MOSTAGANEM | D2: جامعــة عبد الحميد ابن باديس مستغانم
A3: FACULTE DES SCIENCES EXACTES ET DE L’INFORMATIQUE | D3: كلية العلوم الدقيقة و الأعلام الألي
A4: DEPARTEMENT DE MATHEMATIQUES ET INFORMATIQUE | D4: قسم الرياضيات و الأعلام الألي
A5: Première Année - Mathématiques et Informatique
A6: PV du 1ier Semestre-2015/2016
A7: UEF11
D8: Ana1 | G8: ALg1 | J8: Algo | M8: UEF11 | N8: Crédit | O8: Session
D9: Note | E9: Crédit | F9: Sess | G9: ALg1 | H9: Crédit | I9: Sess | J9: Algo | K9: Crédit | L9: Sess
A10: 1 | B10: ABBABSA | C10: RAHMA | D10: =[1]Feuil1!K10 -> 16.53333333 | E10: =[1]Feuil1!L10 -> 6 | F10: =[1]Feuil1!M10 -> 1 | G10: =[2]Feuil1!K10 -> 12.86666667 | H10: =[2]Feuil1!L10 -> 5 | I10: =[2]Feuil1!M10 -> 1 | J10: =[3]Feuil1!K10 -> 17.66666667 | K10: =[3]Feuil1!L10 -> 6 | L10: =[3]Feuil1!M10 -> 6 | M10: =(D10*4+G10*2+J10*4)/10 -> 16.25333333 | N10: =IF(M10>=10,17,E10+H10+K10) -> 17 | O10: =IF(AND(F10="1", I10="1", L10="1"),"1","2") -> 2
A11: 2 | B11: ABBAS | C11: AHMED | D11: =[1]Feuil1!K11 -> 11.53333333 | E11: =[1]Feuil1!L11 -> 6 | F11: =[1]Feuil1!M11 -> 2 | G11: =[2]Feuil1!K11 -> 11.25 | H11: =[2]Feuil1!L11 -> 5 | I11: =[2]Feuil1!M11 -> 2 | J11: =[3]Feuil1!K11 -> 9.316666667 | K11: =[3]Feuil1!L11 -> 0 | L11: =[3]Feuil1!M11 -> 0 | M11: 10.59 | N11: =IF(M11>=10,17,E11+H11+K11) -> 17 | O11: 2
A12: 3 | B12: ABBES | C12: GHOZLENE | D12: =[1]Feuil1!K12 -> 12.51666667 | E12: =[1]Feuil1!L12 -> 6 | F12: =[1]Feuil1!M12 -> 2 | G12: =[2]Feuil1!K12 -> 10.2 | H12: =[2]Feuil1!L12 -> 5 | I12: =[2]Feuil1!M12 -> 1 | J12: =[3]Feuil1!K12 -> 8.533333333 | K12: =[3]Feuil1!L12 -> 0 | L12: =[3]Feuil1!M12 -> 0 | M12: 10.46 | N12: 17 | O12: 2
A13: 4 | B13: ABBES | C13: MOHAMED EL AMINE | D13: =[1]Feuil1!K13 -> 15.46666667 | E13: =[1]Feuil1!L13 -> 6 | F13: =[1]Feuil1!M13 -> 1 | G13: =[2]Feuil1!K13 -> 14 | H13: =[2]Feuil1!L13 -> 5 | I13: =[2]Feuil1!M13 -> 1 | J13: =[3]Feuil1!K13 -> 2 | K13: =[3]Feuil1!L13 -> 0 | L13: =[3]Feuil1!M13 -> 0 | M13: 9.786666667 | N13: 11 | O13: 2
A14: 5 | B14: ABBOU | C14: FATIHA | D14: =[1]Feuil1!K14 -> 11.23333333 | E14: =[1]Feuil1!L14 -> 6 | F14: =[1]Feuil1!M14 -> 2 | G14: =[2]Feuil1!K14 -> 10.93333333 | H14: =[2]Feuil1!L14 -> 5 | I14: =[2]Feuil1!M14 -> 1 | J14: =[3]Feuil1!K14 -> 7.633333333 | K14: =[3]Feuil1!L14 -> 0 | L14: =[3]Feuil1!M14 -> 0 | M14: 9.733333333 | N14: 11 | O14: 2
A15: 6 | B15: ABBOUD | C15: SALIHA | D15: =[1]Feuil1!K15 -> 10.91666667 | E15: =[1]Feuil1!L15 -> 6 | F15: =[1]Feuil1!M15 -> 1 | G15: =[2]Feuil1!K15 -> 13.73333333 | H15: =[2]Feuil1!L15 -> 5 | I15: =[2]Feuil1!M15 -> 1 | J15: =[3]Feuil1!K15 -> 0 | K15: =[3]Feuil1!L15 -> 0 | L15: =[3]Feuil1!M15 -> 0 | M15: 7.113333333 | N15: 11 | O15: 2
A16: 7 | B16: ABDELLAOUI | C16: NADIA | D16: =[1]Feuil1!K16 -> 5.95 | E16: =[1]Feuil1!L16 -> 0 | F16: =[1]Feuil1!M16 -> 1 | G16: =[2]Feuil1!K16 -> 12.2 | H16: =[2]Feuil1!L16 -> 5 | I16: =[2]Feuil1!M16 -> 2 | J16: =[3]Feuil1!K16 -> 6.4 | K16: =[3]Feuil1!L16 -> 0 | L16: =[3]Feuil1!M16 -> 0 | M16: 7.38 | N16: 5 | O16: 2
A17: 8 | B17: ABDELNEBI | C17: AMIRA | D17: =[1]Feuil1!K17 -> 10.18333333 | E17: =[1]Feuil1!L17 -> 6 | F17: =[1]Feuil1!M17 -> 1 | G17: =[2]Feuil1!K17 -> 14.1 | H17: =[2]Feuil1!L17 -> 5 | I17: =[2]Feuil1!M17 -> 1 | J17: =[3]Feuil1!K17 -> 13.15 | K17: =[3]Feuil1!L17 -> 6 | L17: =[3]Feuil1!M17 -> 6 | M17: 12.15333333 | N17: 17 | O17: 2
A18: 9 | B18: ABDELOUHAB | C18: NEDJWA ZAHRA | D18: =[1]Feuil1!K18 -> 16.43333333 | E18: =[1]Feuil1!L18 -> 6 | F18: =[1]Feuil1!M18 -> 1 | G18: =[2]Feuil1!K18 -> 12.35 | H18: =[2]Feuil1!L18 -> 5 | I18: =[2]Feuil1!M18 -> 1 | J18: =[3]Feuil1!K18 -> 0 | K18: =[3]Feuil1!L18 -> 0 | L18: =[3]Feuil1!M18 -> 0 | M18: 9.043333333 | N18: 11 | O18: 2
A19: 10 | B19: ABDOUNI | C19: AMIN | D19: =[1]Feuil1!K19 -> 10.5 | E19: =[1]Feuil1!L19 -> 6 | F19: =[1]Feuil1!M19 -> 1 | G19: =[2]Feuil1!K19 -> 14.66666667 | H19: =[2]Feuil1!L19 -> 5 | I19: =[2]Feuil1!M19 -> 1 | J19: =[3]Feuil1!K19 -> 12.08333333 | K19: =[3]Feuil1!L19 -> 6 | L19: =[3]Feuil1!M19 -> 6 | M19: 11.96666667 | N19: 17 | O19: 2
A20: 11 | B20: ABEID | C20: ZOHRA | D20: =[1]Feuil1!K20 -> 14.43333333 | E20: =[1]Feuil1!L20 -> 6 | F20: =[1]Feuil1!M20 -> 2 | G20: =[2]Feuil1!K20 -> 10.25 | H20: =[2]Feuil1!L20 -> 5 | I20: =[2]Feuil1!M20 -> 1 | J20: =[3]Feuil1!K20 -> 0 | K20: =[3]Feuil1!L20 -> 0 | L20: =[3]Feuil1!M20 -> 0 | M20: 7.823333333 | N20: 11 | O20: 2
A21: 12 | B21: ACHOUR | C21: ABDENOUR | D21: =[1]Feuil1!K21 -> 7.6 | E21: =[1]Feuil1!L21 -> 0 | F21: =[1]Feuil1!M21 -> 2 | G21: =[2]Feuil1!K21 -> 10.9 | H21: =[2]Feuil1!L21 -> 5 | I21: =[2]Feuil1!M21 -> 1 | J21: =[3]Feuil1!K21 -> 9.966666667 | K21: =[3]Feuil1!L21 -> 0 | L21: =[3]Feuil1!M21 -> 0 | M21: 9.206666667 | N21: 5 | O21: 2
A22: 13 | B22: ADDA | C22: ABDERRAHIM | D22: =[1]Feuil1!K22 -> 12.53333333 | E22: =[1]Feuil1!L22 -> 6 | F22: =[1]Feuil1!M22 -> 1 | G22: =[2]Feuil1!K22 -> 11.4 | H22: =[2]Feuil1!L22 -> 5 | I22: =[2]Feuil1!M22 -> 1 | J22: =[3]Feuil1!K22 -> 0 | K22: =[3]Feuil1!L22 -> 0 | L22: =[3]Feuil1!M22 -> 0 | M22: 7.293333333 | N22: 11 | O22: 2
A23: 14 | B23: ADDA | C23: HOUSSAM | D23: =[1]Feuil1!K23 -> 6.933333333 | E23: =[1]Feuil1!L23 -> 0 | F23: =[1]Feuil1!M23 -> 2 | G23: =[2]Feuil1!K23 -> 5.866666667 | H23: =[2]Feuil1!L23 -> 0 | I23: =[2]Feuil1!M23 -> 2 | J23: =[3]Feuil1!K23 -> 5.983333333 | K23: =[3]Feuil1!L23 -> 0 | L23: =[3]Feuil1!M23 -> 0 | M23: 6.34 | N23: 0 | O23: 2
A24: 15 | B24: ADDA | C24: SAID | D24: =[1]Feuil1!K24 -> 12.06666667 | E24: =[1]Feuil1!L24 -> 6 | F24: =[1]Feuil1!M24 -> 2 | G24: =[2]Feuil1!K24 -> 11.83333333 | H24: =[2]Feuil1!L24 -> 5 | I24: =[2]Feuil1!M24 -> 1 | J24: =[3]Feuil1!K24 -> 7.283333333 | K24: =[3]Feuil1!L24 -> 0 | L24: =[3]Feuil1!M24 -> 0 | M24: 10.10666667 | N24: 17 | O24: 2
A25: 16 | B25: AGBOUBI | C25: M'HAMED YASSINE | D25: =[1]Feuil1!K25 -> 13.2 | E25: =[1]Feuil1!L25 -> 6 | F25: =[1]Feuil1!M25 -> 2 | G25: =[2]Feuil1!K25 -> 8.516666667 | H25: =[2]Feuil1!L25 -> 0 | I25: =[2]Feuil1!M25 -> 1 | J25: =[3]Feuil1!K25 -> 9.1 | K25: =[3]Feuil1!L25 -> 0 | L25: =[3]Feuil1!M25 -> 0 | M25: 10.62333333 | N25: 17 | O25: 2
A26: 17 | B26: AHMED BACHA | C26: BILAL | D26: =[1]Feuil1!K26 -> 14.61666667 | E26: =[1]Feuil1!L26 -> 6 | F26: =[1]Feuil1!M26 -> 1 | G26: =[2]Feuil1!K26 -> 0 | H26: =[2]Feuil1!L26 -> 0 | I26: =[2]Feuil1!M26 -> 1 | J26: =[3]Feuil1!K26 -> 0 | K26: =[3]Feuil1!L26 -> 0 | L26: =[3]Feuil1!M26 -> 0 | M26: 5.846666667 | N26: 6 | O26: 2
A27: 18 | B27: AHMED KHODJA | C27: SOUMIA | D27: =[1]Feuil1!K27 -> 8.2 | E27: =[1]Feuil1!L27 -> 0 | F27: =[1]Feuil1!M27 -> 1 | G27: =[2]Feuil1!K27 -> 7.616666667 | H27: =[2]Feuil1!L27 -> 0 | I27: =[2]Feuil1!M27 -> 1 | J27: =[3]Feuil1!K27 -> 7.783333333 | K27: =[3]Feuil1!L27 -> 0 | L27: =[3]Feuil1!M27 -> 0 | M27: 7.916666667 | N27: 0 | O27: 2
A28: 19 | B28: AIMOUCH | C28: ABDESSAMED | D28: =[1]Feuil1!K28 -> 5.883333333 | E28: =[1]Feuil1!L28 -> 0 | F28: =[1]Feuil1!M28 -> 1 | G28: =[2]Feuil1!K28 -> 8.366666667 | H28: =[2]Feuil1!L28 -> 0 | I28: =[2]Feuil1!M28 -> 2 | J28: =[3]Feuil1!K28 -> 7.316666667 | K28: =[3]Feuil1!L28 -> 0 | L28: =[3]Feuil1!M28 -> 0 | M28: 6.953333333 | N28: 0 | O28: 2
A29: 20 | B29: AIMOUCH | C29: BADRA | D29: =[1]Feuil1!K29 -> 7.966666667 | E29: =[1]Feuil1!L29 -> 0 | F29: =[1]Feuil1!M29 -> 1 | G29: =[2]Feuil1!K29 -> 11.53333333 | H29: =[2]Feuil1!L29 -> 5 | I29: =[2]Feuil1!M29 -> 1 | J29: =[3]Feuil1!K29 -> 7.6 | K29: =[3]Feuil1!L29 -> 0 | L29: =[3]Feuil1!M29 -> 0 | M29: 8.533333333 | N29: 5 | O29: 2
A30: 21 | B30: AISSA | C30: SIHEM | D30: =[1]Feuil1!K30 -> 0 | E30: =[1]Feuil1!L30 -> 0 | F30: =[1]Feuil1!M30 -> 1 | G30: =[2]Feuil1!K30 -> 0 | H30: =[2]Feuil1!L30 -> 0 | I30: =[2]Feuil1!M30 -> 1 | J30: =[3]Feuil1!K30 -> 0 | K30: =[3]Feuil1!L30 -> 0 | L30: =[3]Feuil1!M30 -> 0 | M30: 0 | N30: 0 | O30: 2
A31: 22 | B31: AISSAT | C31: ABDERRAHMANE KADDOUR | D31: =[1]Feuil1!K31 -> 9.483333333 | E31: =[1]Feuil1!L31 -> 0 | F31: =[1]Feuil1!M31 -> 1 | G31: =[2]Feuil1!K31 -> 10.43333333 | H31: =[2]Feuil1!L31 -> 5 | I31: =[2]Feuil1!M31 -> 1 | J31: =[3]Feuil1!K31 -> 12.65 | K31: =[3]Feuil1!L31 -> 6 | L31: =[3]Feuil1!M31 -> 6 | M31: 10.94 | N31: 17 | O31: 2
A32: 23 | B32: AIT OUALI | C32: LINDA | D32: =[1]Feuil1!K32 -> 7.566666667 | E32: =[1]Feuil1!L32 -> 0 | F32: =[1]Feuil1!M32 -> 1 | G32: =[2]Feuil1!K32 -> 9.283333333 | H32: =[2]Feuil1!L32 -> 0 | I32: =[2]Feuil1!M32 -> 1 | J32: =[3]Feuil1!K32 -> 6.666666667 | K32: =[3]Feuil1!L32 -> 0 | L32: =[3]Feuil1!M32 -> 0 | M32: 7.55 | N32: 0 | O32: 2
A33: 24 | B33: AKROUM | C33: YOUCEF | D33: =[1]Feuil1!K33 -> 8.7 | E33: =[1]Feuil1!L33 -> 0 | F33: =[1]Feuil1!M33 -> 1 | G33: =[2]Feuil1!K33 -> 10.6 | H33: =[2]Feuil1!L33 -> 5 | I33: =[2]Feuil1!M33 -> 1 | J33: =[3]Feuil1!K33 -> 8.7 | K33: =[3]Feuil1!L33 -> 0 | L33: =[3]Feuil1!M33 -> 0 | M33: 9.08 | N33: 5 | O33: 2
A34: 25 | B34: ALLOUCH | C34: NADIA | D34: =[1]Feuil1!K34 -> 9.333333333 | E34: =[1]Feuil1!L34 -> 0 | F34: =[1]Feuil1!M34 -> 1 | G34: =[2]Feuil1!K34 -> 11.96666667 | H34: =[2]Feuil1!L34 -> 5 | I34: =[2]Feuil1!M34 -> 1 | J34: =[3]Feuil1!K34 -> 9.383333333 | K34: =[3]Feuil1!L34 -> 0 | L34: =[3]Feuil1!M34 -> 0 | M34: 9.88 | N34: 5 | O34: 2
A35: 26 | B35: AMAIRI | C35: CHAIMAA | D35: =[1]Feuil1!K35 -> 9.483333333 | E35: =[1]Feuil1!L35 -> 0 | F35: =[1]Feuil1!M35 -> 1 | G35: =[2]Feuil1!K35 -> 6.533333333 | H35: =[2]Feuil1!L35 -> 0 | I35: =[2]Feuil1!M35 -> 1 | J35: =[3]Feuil1!K35 -> 9.083333333 | K35: =[3]Feuil1!L35 -> 0 | L35: =[3]Feuil1!M35 -> 0 | M35: 8.733333333 | N35: 0 | O35: 2
A36: 27 | B36: AMMAR | C36: DJAMEL EDDINE | D36: =[1]Feuil1!K36 -> 0 | E36: =[1]Feuil1!L36 -> 0 | F36: =[1]Feuil1!M36 -> 1 | G36: =[2]Feuil1!K36 -> 0 | H36: =[2]Feuil1!L36 -> 0 | I36: =[2]Feuil1!M36 -> 1 | J36: =[3]Feuil1!K36 -> 0 | K36: =[3]Feuil1!L36 -> 0 | L36: =[3]Feuil1!M36 -> 0 | M36: 0 | N36: 0 | O36: 2
A37: 28 | B37: AMMAR | C37: MANAL | D37: =[1]Feuil1!K37 -> 5.816666667 | E37: =[1]Feuil1!L37 -> 0 | F37: =[1]Feuil1!M37 -> 1 | G37: =[2]Feuil1!K37 -> 10.03333333 | H37: =[2]Feuil1!L37 -> 5 | I37: =[2]Feuil1!M37 -> 1 | J37: =[3]Feuil1!K37 -> 9.166666667 | K37: =[3]Feuil1!L37 -> 0 | L37: =[3]Feuil1!M37 -> 0 | M37: 8 | N37: 5 | O37: 2
A38: 29 | B38: AMRANE | C38: AHMED | D38: =[1]Feuil1!K38 -> 11.36666667 | E38: =[1]Feuil1!L38 -> 6 | F38: =[1]Feuil1!M38 -> 1 | G38: =[2]Feuil1!K38 -> 12.38333333 | H38: =[2]Feuil1!L38 -> 5 | I38: =[2]Feuil1!M38 -> 1 | J38: =[3]Feuil1!K38 -> 15.2 | K38: =[3]Feuil1!L38 -> 6 | L38: =[3]Feuil1!M38 -> 6 | M38: 13.10333333 | N38: 17 | O38: 2
A39: 30 | B39: AMRANE | C39: HAFIDHA | D39: =[1]Feuil1!K39 -> 9.066666667 | E39: =[1]Feuil1!L39 -> 0 | F39: =[1]Feuil1!M39 -> 1 | G39: =[2]Feuil1!K39 -> 7.75 | H39: =[2]Feuil1!L39 -> 0 | I39: =[2]Feuil1!M39 -> 2 | J39: =[3]Feuil1!K39 -> 7.533333333 | K39: =[3]Feuil1!L39 -> 0 | L39: =[3]Feuil1!M39 -> 0 | M39: 8.19 | N39: 0 | O39: 2
A40: 31 | B40: AMRAOUI | C40: SOUFYANE | D40: =[1]Feuil1!K40 -> 7.7 | E40: =[1]Feuil1!L40 -> 0 | F40: =[1]Feuil1!M40 -> 1 | G40: =[2]Feuil1!K40 -> 6.366666667 | H40: =[2]Feuil1!L40 -> 0 | I40: =[2]Feuil1!M40 -> 1 | J40: =[3]Feuil1!K40 -> 7.733333333 | K40: =[3]Feuil1!L40 -> 0 | L40: =[3]Feuil1!M40 -> 0 | M40: 7.446666667 | N40: 0 | O40: 2
A41: 32 | B41: AMROUCHE | C41: NOURA | D41: =[1]Feuil1!K41 -> 9.083333333 | E41: =[1]Feuil1!L41 -> 0 | F41: =[1]Feuil1!M41 -> 1 | G41: =[2]Feuil1!K41 -> 8.633333333 | H41: =[2]Feuil1!L41 -> 0 | I41: =[2]Feuil1!M41 -> 2 | J41: =[3]Feuil1!K41 -> 8.15 | K41: =[3]Feuil1!L41 -> 0 | L41: =[3]Feuil1!M41 -> 0 | M41: 8.62 | N41: 0 | O41: 2
A42: 33 | B42: AOUAICHIA | C42: HANANE | D42: =[1]Feuil1!K42 -> 12.03333333 | E42: =[1]Feuil1!L42 -> 6 | F42: =[1]Feuil1!M42 -> 1 | G42: =[2]Feuil1!K42 -> 12.9 | H42: =[2]Feuil1!L42 -> 5 | I42: =[2]Feuil1!M42 -> 1 | J42: =[3]Feuil1!K42 -> 11.03333333 | K42: =[3]Feuil1!L42 -> 6 | L42: =[3]Feuil1!M42 -> 6 | M42: 11.80666667 | N42: 17 | O42: 2
A43: 34 | B43: ARAB | C43: NOUREDDINE | D43: =[1]Feuil1!K43 -> 0 | E43: =[1]Feuil1!L43 -> 0 | F43: =[1]Feuil1!M43 -> 1 | G43: =[2]Feuil1!K43 -> 0 | H43: =[2]Feuil1!L43 -> 0 | I43: =[2]Feuil1!M43 -> 1 | J43: =[3]Feuil1!K43 -> 0 | K43: =[3]Feuil1!L43 -> 0 | L43: =[3]Feuil1!M43 -> 0 | M43: 0 | N43: 0 | O43: 2
A44: 35 | B44: ATMANI | C44: FATIHA | D44: =[1]Feuil1!K44 -> 11.76666667 | E44: =[1]Feuil1!L44 -> 6 | F44: =[1]Feuil1!M44 -> 1 | G44: =[2]Feuil1!K44 -> 12.03333333 | H44: =[2]Feuil1!L44 -> 5 | I44: =[2]Feuil1!M44 -> 1 | J44: =[3]Feuil1!K44 -> 11.5 | K44: =[3]Feuil1!L44 -> 6 | L44: =[3]Feuil1!M44 -> 6 | M44: 11.71333333 | N44: 17 | O44: 2
A45: 36 | B45: AUODJ | C45: LARBI | D45: =[1]Feuil1!K45 -> 10.7 | E45: =[1]Feuil1!L45 -> 6 | F45: =[1]Feuil1!M45 -> 1 | G45: =[2]Feuil1!K45 -> 4.8 | H45: =[2]Feuil1!L45 -> 0 | I45: =[2]Feuil1!M45 -> 1 | J45: =[3]Feuil1!K45 -> 8.216666667 | K45: =[3]Feuil1!L45 -> 0 | L45: =[3]Feuil1!M45 -> 0 | M45: 8.526666667 | N45: 6 | O45: 2
A46: 37 | B46: AYAD | C46: NADJET | D46: =[1]Feuil1!K46 -> 10.2 | E46: =[1]Feuil1!L46 -> 6 | F46: =[1]Feuil1!M46 -> 1 | G46: =[2]Feuil1!K46 -> 11.7 | H46: =[2]Feuil1!L46 -> 5 | I46: =[2]Feuil1!M46 -> 1 | J46: =[3]Feuil1!K46 -> 9.383333333 | K46: =[3]Feuil1!L46 -> 0 | L46: =[3]Feuil1!M46 -> 0 | M46: 10.17333333 | N46: 17 | O46: 2
A47: 38 | B47: AZIL | C47: HALIMA | D47: =[1]Feuil1!K47 -> 11.95 | E47: =[1]Feuil1!L47 -> 6 | F47: =[1]Feuil1!M47 -> 1 | G47: =[2]Feuil1!K47 -> 11.55 | H47: =[2]Feuil1!L47 -> 5 | I47: =[2]Feuil1!M47 -> 1 | J47: =[3]Feuil1!K47 -> 9.833333333 | K47: =[3]Feuil1!L47 -> 0 | L47: =[3]Feuil1!M47 -> 0 | M47: 11.02333333 | N47: 17 | O47: 2
A48: 39 | B48: AZIRIA | C48: BILAL | D48: =[1]Feuil1!K48 -> 3.066666667 | E48: =[1]Feuil1!L48 -> 0 | F48: =[1]Feuil1!M48 -> 1 | G48: =[2]Feuil1!K48 -> 6.933333333 | H48: =[2]Feuil1!L48 -> 0 | I48: =[2]Feuil1!M48 -> 2 | J48: =[3]Feuil1!K48 -> 6.75 | K48: =[3]Feuil1!L48 -> 0 | L48: =[3]Feuil1!M48 -> 0 | M48: 5.313333333 | N48: 0 | O48: 2
A49: 40 | B49: BAALI | C49: NOR ELHOUDA | D49: =[1]Feuil1!K49 -> 5.366666667 | E49: =[1]Feuil1!L49 -> 0 | F49: =[1]Feuil1!M49 -> 1 | G49: =[2]Feuil1!K49 -> 5.4 | H49: =[2]Feuil1!L49 -> 0 | I49: =[2]Feuil1!M49 -> 1 | J49: =[3]Feuil1!K49 -> 11.21666667 | K49: =[3]Feuil1!L49 -> 6 | L49: =[3]Feuil1!M49 -> 6 | M49: 7.713333333 | N49: 6 | O49: 2
A50: 41 | B50: BAALI | C50: ZOULIKHA | D50: =[1]Feuil1!K50 -> 11.88333333 | E50: =[1]Feuil1!L50 -> 6 | F50: =[1]Feuil1!M50 -> 1 | G50: =[2]Feuil1!K50 -> 10.16666667 | H50: =[2]Feuil1!L50 -> 5 | I50: =[2]Feuil1!M50 -> 1 | J50: =[3]Feuil1!K50 -> 10.96666667 | K50: =[3]Feuil1!L50 -> 6 | L50: =[3]Feuil1!M50 -> 6 | M50: 11.17333333 | N50: 17 | O50: 2
A51: 42 | B51: BACHIR BEY | C51: ABDELHAMID | D51: =[1]Feuil1!K51 -> 3.55 | E51: =[1]Feuil1!L51 -> 0 | F51: =[1]Feuil1!M51 -> 1 | G51: =[2]Feuil1!K51 -> 5.733333333 | H51: =[2]Feuil1!L51 -> 0 | I51: =[2]Feuil1!M51 -> 1 | J51: =[3]Feuil1!K51 -> 6.733333333 | K51: =[3]Feuil1!L51 -> 0 | L51: =[3]Feuil1!M51 -> 0 | M51: 5.26 | N51: 0 | O51: 2
A52: 43 | B52: BAGHDOUD | C52: ASMAE | D52: =[1]Feuil1!K52 -> 8.216666667 | E52: =[1]Feuil1!L52 -> 0 | F52: =[1]Feuil1!M52 -> 1 | G52: =[2]Feuil1!K52 -> 10.05 | H52: =[2]Feuil1!L52 -> 5 | I52: =[2]Feuil1!M52 -> 1 | J52: =[3]Feuil1!K52 -> 9.083333333 | K52: =[3]Feuil1!L52 -> 0 | L52: =[3]Feuil1!M52 -> 0 | M52: 8.93 | N52: 5 | O52: 2
A53: 44 | B53: BAHLOUL | C53: MOHAMED AMINE | D53: =[1]Feuil1!K53 -> 6.666666667 | E53: =[1]Feuil1!L53 -> 0 | F53: =[1]Feuil1!M53 -> 1 | G53: =[2]Feuil1!K53 -> 7.3 | H53: =[2]Feuil1!L53 -> 0 | I53: =[2]Feuil1!M53 -> 1 | J53: =[3]Feuil1!K53 -> 12.56666667 | K53: =[3]Feuil1!L53 -> 6 | L53: =[3]Feuil1!M53 -> 6 | M53: 9.153333333 | N53: 6 | O53: 2
A54: 45 | B54: BAININE | C54: SID AHMED | D54: =[1]Feuil1!K54 -> 12.4 | E54: =[1]Feuil1!L54 -> 6 | F54: =[1]Feuil1!M54 -> 1 | G54: =[2]Feuil1!K54 -> 14.38333333 | H54: =[2]Feuil1!L54 -> 5 | I54: =[2]Feuil1!M54 -> 1 | J54: =[3]Feuil1!K54 -> 17.4 | K54: =[3]Feuil1!L54 -> 6 | L54: =[3]Feuil1!M54 -> 6 | M54: 14.79666667 | N54: 17 | O54: 2
A55: 46 | B55: BAKIR | C55: MOHAMMED | D55: =[1]Feuil1!K55 -> 0.5333333333 | E55: =[1]Feuil1!L55 -> 0 | F55: =[1]Feuil1!M55 -> 1 | G55: =[2]Feuil1!K55 -> 0 | H55: =[2]Feuil1!L55 -> 0 | I55: =[2]Feuil1!M55 -> 1 | J55: =[3]Feuil1!K55 -> 1.333333333 | K55: =[3]Feuil1!L55 -> 0 | L55: =[3]Feuil1!M55 -> 0 | M55: 0.7466666667 | N55: 0 | O55: 2
A56: 47 | B56: BARDAD | C56: NASSIBA | D56: =[1]Feuil1!K56 -> 4.4 | E56: =[1]Feuil1!L56 -> 0 | F56: =[1]Feuil1!M56 -> 1 | G56: =[2]Feuil1!K56 -> 0 | H56: =[2]Feuil1!L56 -> 0 | I56: =[2]Feuil1!M56 -> 1 | J56: =[3]Feuil1!K56 -> 0 | K56: =[3]Feuil1!L56 -> 0 | L56: =[3]Feuil1!M56 -> 0 | M56: 1.76 | N56: 0 | O56: 2
A57: 48 | B57: BARDAD | C57: NAZHA | D57: =[1]Feuil1!K57 -> 8 | E57: =[1]Feuil1!L57 -> 0 | F57: =[1]Feuil1!M57 -> 1 | G57: =[2]Feuil1!K57 -> 9.3 | H57: =[2]Feuil1!L57 -> 0 | I57: =[2]Feuil1!M57 -> 2 | J57: =[3]Feuil1!K57 -> 7.55 | K57: =[3]Feuil1!L57 -> 0 | L57: =[3]Feuil1!M57 -> 0 | M57: 8.08 | N57: 0 | O57: 2
A58: 49 | B58: BARKAT | C58: NASSIMA | D58: =[1]Feuil1!K58 -> 10.15 | E58: =[1]Feuil1!L58 -> 6 | F58: =[1]Feuil1!M58 -> 1 | G58: =[2]Feuil1!K58 -> 11.51666667 | H58: =[2]Feuil1!L58 -> 5 | I58: =[2]Feuil1!M58 -> 1 | J58: =[3]Feuil1!K58 -> 10.66666667 | K58: =[3]Feuil1!L58 -> 6 | L58: =[3]Feuil1!M58 -> 6 | M58: 10.63 | N58: 17 | O58: 2
A59: 50 | B59: BEGUELOUL | C59: AZZEDINE | D59: =[1]Feuil1!K59 -> 9.4 | E59: =[1]Feuil1!L59 -> 0 | F59: =[1]Feuil1!M59 -> 1 | G59: =[2]Feuil1!K59 -> 13.1 | H59: =[2]Feuil1!L59 -> 5 | I59: =[2]Feuil1!M59 -> 1 | J59: =[3]Feuil1!K59 -> 7.95 | K59: =[3]Feuil1!L59 -> 0 | L59: =[3]Feuil1!M59 -> 0 | M59: 9.56 | N59: 5 | O59: 2
A60: 51 | B60: BEHLOUL | C60: ARBIA | D60: =[1]Feuil1!K60 -> 8.016666667 | E60: =[1]Feuil1!L60 -> 0 | F60: =[1]Feuil1!M60 -> 1 | G60: =[2]Feuil1!K60 -> 8.633333333 | H60: =[2]Feuil1!L60 -> 0 | I60: =[2]Feuil1!M60 -> 2 | J60: =[3]Feuil1!K60 -> 8.533333333 | K60: =[3]Feuil1!L60 -> 0 | L60: =[3]Feuil1!M60 -> 0 | M60: 8.346666667 | N60: 0 | O60: 2
A61: 52 | B61: BEKADDOR BENATIA | C61: ABDALLAH | D61: =[1]Feuil1!K61 -> 6.9 | E61: =[1]Feuil1!L61 -> 0 | F61: =[1]Feuil1!M61 -> 1 | G61: =[2]Feuil1!K61 -> 5.066666667 | H61: =[2]Feuil1!L61 -> 0 | I61: =[2]Feuil1!M61 -> 1 | J61: =[3]Feuil1!K61 -> 6.866666667 | K61: =[3]Feuil1!L61 -> 0 | L61: =[3]Feuil1!M61 -> 0 | M61: 6.52 | N61: 0 | O61: 2
A62: 53 | B62: BEKADDOUR | C62: FATIMA | D62: =[1]Feuil1!K62 -> 12.8 | E62: =[1]Feuil1!L62 -> 6 | F62: =[1]Feuil1!M62 -> 1 | G62: =[2]Feuil1!K62 -> 12.5 | H62: =[2]Feuil1!L62 -> 5 | I62: =[2]Feuil1!M62 -> 1 | J62: =[3]Feuil1!K62 -> 10.85 | K62: =[3]Feuil1!L62 -> 6 | L62: =[3]Feuil1!M62 -> 6 | M62: 11.96 | N62: 17 | O62: 2
A63: 54 | B63: BEKKA | C63: HOUCINE | D63: =[1]Feuil1!K63 -> 9.533333333 | E63: =[1]Feuil1!L63 -> 0 | F63: =[1]Feuil1!M63 -> 1 | G63: =[2]Feuil1!K63 -> 8.383333333 | H63: =[2]Feuil1!L63 -> 0 | I63: =[2]Feuil1!M63 -> 1 | J63: =[3]Feuil1!K63 -> 7.716666667 | K63: =[3]Feuil1!L63 -> 0 | L63: =[3]Feuil1!M63 -> 0 | M63: 8.576666667 | N63: 0 | O63: 2
A64: 55 | B64: BELABBES | C64: FAISAL | D64: =[1]Feuil1!K64 -> 8.5 | E64: =[1]Feuil1!L64 -> 0 | F64: =[1]Feuil1!M64 -> 1 | G64: =[2]Feuil1!K64 -> 7.666666667 | H64: =[2]Feuil1!L64 -> 0 | I64: =[2]Feuil1!M64 -> 1 | J64: =[3]Feuil1!K64 -> 5.366666667 | K64: =[3]Feuil1!L64 -> 0 | L64: =[3]Feuil1!M64 -> 0 | M64: 7.08 | N64: 0 | O64: 2
A65: 56 | B65: BELACEL | C65: M'HAMMED | D65: =[1]Feuil1!K65 -> 6.133333333 | E65: =[1]Feuil1!L65 -> 0 | F65: =[1]Feuil1!M65 -> 1 | G65: =[2]Feuil1!K65 -> 1.2 | H65: =[2]Feuil1!L65 -> 0 | I65: =[2]Feuil1!M65 -> 2 | J65: =[3]Feuil1!K65 -> 6.75 | K65: =[3]Feuil1!L65 -> 0 | L65: =[3]Feuil1!M65 -> 0 | M65: 5.393333333 | N65: 0 | O65: 2
A66: 57 | B66: BELACEL | C66: MOHAMED ELAMINE | D66: =[1]Feuil1!K66 -> 0 | E66: =[1]Feuil1!L66 -> 0 | F66: =[1]Feuil1!M66 -> 1 | G66: =[2]Feuil1!K66 -> 8.966666667 | H66: =[2]Feuil1!L66 -> 0 | I66: =[2]Feuil1!M66 -> 1 | J66: =[3]Feuil1!K66 -> 1.066666667 | K66: =[3]Feuil1!L66 -> 0 | L66: =[3]Feuil1!M66 -> 0 | M66: 2.22 | N66: 0 | O66: 2
A67: 58 | B67: BELADJAL | C67: SAMIA | D67: =[1]Feuil1!K67 -> 9.566666667 | E67: =[1]Feuil1!L67 -> 0 | F67: =[1]Feuil1!M67 -> 1 | G67: =[2]Feuil1!K67 -> 12.3 | H67: =[2]Feuil1!L67 -> 5 | I67: =[2]Feuil1!M67 -> 1 | J67: =[3]Feuil1!K67 -> 12.78333333 | K67: =[3]Feuil1!L67 -> 6 | L67: =[3]Feuil1!M67 -> 6 | M67: 11.4 | N67: 17 | O67: 2
A68: 59 | B68: BELADJEL | C68: MOHAMED EL AMINE | D68: =[1]Feuil1!K68 -> 4.3 | E68: =[1]Feuil1!L68 -> 0 | F68: =[1]Feuil1!M68 -> 1 | G68: =[2]Feuil1!K68 -> 3.8 | H68: =[2]Feuil1!L68 -> 0 | I68: =[2]Feuil1!M68 -> 2 | J68: =[3]Feuil1!K68 -> 6.6 | K68: =[3]Feuil1!L68 -> 0 | L68: =[3]Feuil1!M68 -> 0 | M68: 5.12 | N68: 0 | O68: 2
A69: 60 | B69: BELAHOUEL | C69: BEDRA BATOUL | D69: =[1]Feuil1!K69 -> 6.916666667 | E69: =[1]Feuil1!L69 -> 0 | F69: =[1]Feuil1!M69 -> 1 | G69: =[2]Feuil1!K69 -> 10 | H69: =[2]Feuil1!L69 -> 5 | I69: =[2]Feuil1!M69 -> 1 | J69: =[3]Feuil1!K69 -> 9.833333333 | K69: =[3]Feuil1!L69 -> 0 | L69: =[3]Feuil1!M69 -> 0 | M69: 8.7 | N69: 5 | O69: 2
A70: 61 | B70: BELAHSENE | C70: SIHAM | D70: =[1]Feuil1!K70 -> 0 | E70: =[1]Feuil1!L70 -> 0 | F70: =[1]Feuil1!M70 -> 1 | G70: =[2]Feuil1!K70 -> 0 | H70: =[2]Feuil1!L70 -> 0 | I70: =[2]Feuil1!M70 -> 1 | J70: =[3]Feuil1!K70 -> 0 | K70: =[3]Feuil1!L70 -> 0 | L70: =[3]Feuil1!M70 -> 0 | M70: 0 | N70: 0 | O70: 2
A71: 62 | B71: BELAID | C71: ROKAYA | D71: =[1]Feuil1!K71 -> 11.2 | E71: =[1]Feuil1!L71 -> 6 | F71: =[1]Feuil1!M71 -> 1 | G71: =[2]Feuil1!K71 -> 11.93333333 | H71: =[2]Feuil1!L71 -> 5 | I71: =[2]Feuil1!M71 -> 1 | J71: =[3]Feuil1!K71 -> 12.26666667 | K71: =[3]Feuil1!L71 -> 6 | L71: =[3]Feuil1!M71 -> 6 | M71: 11.77333333 | N71: 17 | O71: 2
A72: 63 | B72: BELAID | C72: YASSEMINA | D72: =[1]Feuil1!K72 -> 0 | E72: =[1]Feuil1!L72 -> 0 | F72: =[1]Feuil1!M72 -> 1 | G72: =[2]Feuil1!K72 -> 0 | H72: =[2]Feuil1!L72 -> 0 | I72: =[2]Feuil1!M72 -> 1 | J72: =[3]Feuil1!K72 -> 0 | K72: =[3]Feuil1!L72 -> 0 | L72: =[3]Feuil1!M72 -> 0 | M72: 0 | N72: 0 | O72: 2
A73: 64 | B73: BELALIA | C73: MOSTAFA | D73: =[1]Feuil1!K73 -> 6.383333333 | E73: =[1]Feuil1!L73 -> 0 | F73: =[1]Feuil1!M73 -> 1 | G73: =[2]Feuil1!K73 -> 8.916666667 | H73: =[2]Feuil1!L73 -> 0 | I73: =[2]Feuil1!M73 -> 2 | J73: =[3]Feuil1!K73 -> 7.966666667 | K73: =[3]Feuil1!L73 -> 0 | L73: =[3]Feuil1!M73 -> 0 | M73: 7.523333333 | N73: 0 | O73: 2
A74: 65 | B74: BELAOUEDJ | C74: MANSOURIA | D74: =[1]Feuil1!K74 -> 7.15 | E74: =[1]Feuil1!L74 -> 0 | F74: =[1]Feuil1!M74 -> 1 | G74: =[2]Feuil1!K74 -> 12.58333333 | H74: =[2]Feuil1!L74 -> 5 | I74: =[2]Feuil1!M74 -> 1 | J74: =[3]Feuil1!K74 -> 9.283333333 | K74: =[3]Feuil1!L74 -> 0 | L74: =[3]Feuil1!M74 -> 0 | M74: 9.09 | N74: 5 | O74: 2
A75: 66 | B75: BELARBI | C75: MOHAMED YASSIN | D75: =[1]Feuil1!K75 -> 6.966666667 | E75: =[1]Feuil1!L75 -> 0 | F75: =[1]Feuil1!M75 -> 1 | G75: =[2]Feuil1!K75 -> 8.466666667 | H75: =[2]Feuil1!L75 -> 0 | I75: =[2]Feuil1!M75 -> 1 | J75: =[3]Feuil1!K75 -> 9.333333333 | K75: =[3]Feuil1!L75 -> 0 | L75: =[3]Feuil1!M75 -> 0 | M75: 8.213333333 | N75: =IF(M75>=10,17,E75+H75+K75) -> 0 | O75: 2
A76: 67 | B76: BELEH | C76: MERIEM | D76: =[1]Feuil1!K76 -> 10.21666667 | E76: =[1]Feuil1!L76 -> 6 | F76: =[1]Feuil1!M76 -> 1 | G76: =[2]Feuil1!K76 -> 10.73333333 | H76: =[2]Feuil1!L76 -> 5 | I76: =[2]Feuil1!M76 -> 1 | J76: =[3]Feuil1!K76 -> 8.716666667 | K76: =[3]Feuil1!L76 -> 0 | L76: =[3]Feuil1!M76 -> 0 | M76: 9.72 | N76: 11 | O76: 2
A77: 68 | B77: BELHACHEMIA | C77: MOHAMMED IBRAHIM | D77: =[1]Feuil1!K77 -> 12.4 | E77: =[1]Feuil1!L77 -> 6 | F77: =[1]Feuil1!M77 -> 1 | G77: =[2]Feuil1!K77 -> 11.4 | H77: =[2]Feuil1!L77 -> 5 | I77: =[2]Feuil1!M77 -> 1 | J77: =[3]Feuil1!K77 -> 9.966666667 | K77: =[3]Feuil1!L77 -> 0 | L77: =[3]Feuil1!M77 -> 0 | M77: 11.22666667 | N77: 17 | O77: 2
A78: 69 | B78: BELHAMITI | C78: MERIEM MANSOURIA | D78: =[1]Feuil1!K78 -> 14.66666667 | E78: =[1]Feuil1!L78 -> 6 | F78: =[1]Feuil1!M78 -> 1 | G78: =[2]Feuil1!K78 -> 15.43333333 | H78: =[2]Feuil1!L78 -> 5 | I78: =[2]Feuil1!M78 -> 1 | J78: =[3]Feuil1!K78 -> 16.41666667 | K78: =[3]Feuil1!L78 -> 6 | L78: =[3]Feuil1!M78 -> 6 | M78: 15.52 | N78: 17 | O78: 2
A79: 70 | B79: BELKACEM | C79: IBRAHIM | D79: =[1]Feuil1!K79 -> 5.433333333 | E79: =[1]Feuil1!L79 -> 0 | F79: =[1]Feuil1!M79 -> 1 | G79: =[2]Feuil1!K79 -> 7.1 | H79: =[2]Feuil1!L79 -> 0 | I79: =[2]Feuil1!M79 -> 1 | J79: =[3]Feuil1!K79 -> 5.4 | K79: =[3]Feuil1!L79 -> 0 | L79: =[3]Feuil1!M79 -> 0 | M79: 5.753333333 | N79: 0 | O79: 2
A80: 71 | B80: BELKACEMI | C80: LARBI | D80: =[1]Feuil1!K80 -> 7.666666667 | E80: =[1]Feuil1!L80 -> 0 | F80: =[1]Feuil1!M80 -> 1 | G80: =[2]Feuil1!K80 -> 6.516666667 | H80: =[2]Feuil1!L80 -> 0 | I80: =[2]Feuil1!M80 -> 1 | J80: =[3]Feuil1!K80 -> 6.816666667 | K80: =[3]Feuil1!L80 -> 0 | L80: =[3]Feuil1!M80 -> 0 | M80: 7.096666667 | N80: 0 | O80: 2
A81: 72 | B81: BELKAID | C81: RADIA | D81: =[1]Feuil1!K81 -> 15.06666667 | E81: =[1]Feuil1!L81 -> 6 | F81: =[1]Feuil1!M81 -> 1 | G81: =[2]Feuil1!K81 -> 15.31666667 | H81: =[2]Feuil1!L81 -> 5 | I81: =[2]Feuil1!M81 -> 1 | J81: =[3]Feuil1!K81 -> 15.35 | K81: =[3]Feuil1!L81 -> 6 | L81: =[3]Feuil1!M81 -> 6 | M81: 15.23 | N81: 17 | O81: 2
A82: 73 | B82: BELKAIOUS | C82: HAYET | D82: =[1]Feuil1!K82 -> 5.35 | E82: =[1]Feuil1!L82 -> 0 | F82: =[1]Feuil1!M82 -> 1 | G82: =[2]Feuil1!K82 -> 7.133333333 | H82: =[2]Feuil1!L82 -> 0 | I82: =[2]Feuil1!M82 -> 2 | J82: =[3]Feuil1!K82 -> 8.65 | K82: =[3]Feuil1!L82 -> 0 | L82: =[3]Feuil1!M82 -> 0 | M82: 7.026666667 | N82: 0 | O82: 2
A83: 74 | B83: BELKARROUB | C83: NOUR EL HOUDA | D83: =[1]Feuil1!K83 -> 8.45 | E83: =[1]Feuil1!L83 -> 0 | F83: =[1]Feuil1!M83 -> 1 | G83: =[2]Feuil1!K83 -> 9.45 | H83: =[2]Feuil1!L83 -> 0 | I83: =[2]Feuil1!M83 -> 2 | J83: =[3]Feuil1!K83 -> 7.433333333 | K83: =[3]Feuil1!L83 -> 0 | L83: =[3]Feuil1!M83 -> 0 | M83: 8.243333333 | N83: 0 | O83: 2
A84: 75 | B84: BELMADANI | C84: NAIMA | D84: =[1]Feuil1!K84 -> 7.65 | E84: =[1]Feuil1!L84 -> 0 | F84: =[1]Feuil1!M84 -> 1 | G84: =[2]Feuil1!K84 -> 4.7 | H84: =[2]Feuil1!L84 -> 0 | I84: =[2]Feuil1!M84 -> 2 | J84: =[3]Feuil1!K84 -> 5.633333333 | K84: =[3]Feuil1!L84 -> 0 | L84: =[3]Feuil1!M84 -> 0 | M84: 6.253333333 | N84: 0 | O84: 2
A85: 76 | B85: BELMADI | C85: AHMED | D85: =[1]Feuil1!K85 -> 0 | E85: =[1]Feuil1!L85 -> 0 | F85: =[1]Feuil1!M85 -> 1 | G85: =[2]Feuil1!K85 -> 0 | H85: =[2]Feuil1!L85 -> 0 | I85: =[2]Feuil1!M85 -> 1 | J85: =[3]Feuil1!K85 -> 0 | K85: =[3]Feuil1!L85 -> 0 | L85: =[3]Feuil1!M85 -> 0 | M85: 0 | N85: 0 | O85: 2
A86: 77 | B86: BELMOKHTAR | C86: ABDELKADER | D86: =[1]Feuil1!K86 -> 0 | E86: =[1]Feuil1!L86 -> 0 | F86: =[1]Feuil1!M86 -> 1 | G86: =[2]Feuil1!K86 -> 0 | H86: =[2]Feuil1!L86 -> 0 | I86: =[2]Feuil1!M86 -> 1 | J86: =[3]Feuil1!K86 -> 0 | K86: =[3]Feuil1!L86 -> 0 | L86: =[3]Feuil1!M86 -> 0 | M86: 0 | N86: 0 | O86: 2
A87: 78 | B87: BELOUASSOUASSI | C87: BOUBAKR | D87: =[1]Feuil1!K87 -> 0 | E87: =[1]Feuil1!L87 -> 0 | F87: =[1]Feuil1!M87 -> 1 | G87: =[2]Feuil1!K87 -> 0 | H87: =[2]Feuil1!L87 -> 0 | I87: =[2]Feuil1!M87 -> 1 | J87: =[3]Feuil1!K87 -> 0 | K87: =[3]Feuil1!L87 -> 0 | L87: =[3]Feuil1!M87 -> 0 | M87: 0 | N87: 0 | O87: 2
A88: 79 | B88: BELOUFA | C88: YASSER | D88: =[1]Feuil1!K88 -> 0 | E88: =[1]Feuil1!L88 -> 0 | F88: =[1]Feuil1!M88 -> 1 | G88: =[2]Feuil1!K88 -> 0 | H88: =[2]Feuil1!L88 -> 0 | I88: =[2]Feuil1!M88 -> 1 | J88: =[3]Feuil1!K88 -> 0 | K88: =[3]Feuil1!L88 -> 0 | L88: =[3]Feuil1!M88 -> 0 | M88: 0 | N88: 0 | O88: 2
A89: 80 | B89: BEN SOUKHAL | C89: HALIMA | D89: =[1]Feuil1!K89 -> 8.05 | E89: =[1]Feuil1!L89 -> 0 | F89: =[1]Feuil1!M89 -> 1 | G89: =[2]Feuil1!K89 -> 9.583333333 | H89: =[2]Feuil1!L89 -> 0 | I89: =[2]Feuil1!M89 -> 2 | J89: =[3]Feuil1!K89 -> 9.066666667 | K89: =[3]Feuil1!L89 -> 0 | L89: =[3]Feuil1!M89 -> 0 | M89: 8.763333333 | N89: 0 | O89: 2
A90: 81 | B90: BENACHOUR | C90: HAMZA | D90: =[1]Feuil1!K90 -> 14.23333333 | E90: =[1]Feuil1!L90 -> 6 | F90: =[1]Feuil1!M90 -> 1 | G90: =[2]Feuil1!K90 -> 16.16666667 | H90: =[2]Feuil1!L90 -> 5 | I90: =[2]Feuil1!M90 -> 1 | J90: =[3]Feuil1!K90 -> 7.133333333 | K90: =[3]Feuil1!L90 -> 0 | L90: =[3]Feuil1!M90 -> 0 | M90: 11.78 | N90: 17 | O90: 2
A91: 82 | B91: BENADDA | C91: YAMINA | D91: =[1]Feuil1!K91 -> 9.983333333 | E91: =[1]Feuil1!L91 -> 0 | F91: =[1]Feuil1!M91 -> 1 | G91: =[2]Feuil1!K91 -> 12.91666667 | H91: =[2]Feuil1!L91 -> 5 | I91: =[2]Feuil1!M91 -> 1 | J91: =[3]Feuil1!K91 -> 11 | K91: =[3]Feuil1!L91 -> 6 | L91: =[3]Feuil1!M91 -> 6 | M91: 10.97666667 | N91: 17 | O91: 2
A92: 83 | B92: BENAICHA | C92: AMEL | D92: =[1]Feuil1!K92 -> 10.68333333 | E92: =[1]Feuil1!L92 -> 6 | F92: =[1]Feuil1!M92 -> 1 | G92: =[2]Feuil1!K92 -> 8 | H92: =[2]Feuil1!L92 -> 0 | I92: =[2]Feuil1!M92 -> 1 | J92: =[3]Feuil1!K92 -> 8.35 | K92: =[3]Feuil1!L92 -> 0 | L92: =[3]Feuil1!M92 -> 0 | M92: 9.213333333 | N92: 6 | O92: 2
A93: 84 | B93: BENAICHA | C93: WAFAA | D93: =[1]Feuil1!K93 -> 3 | E93: =[1]Feuil1!L93 -> 0 | F93: =[1]Feuil1!M93 -> 1 | G93: =[2]Feuil1!K93 -> 4.2 | H93: =[2]Feuil1!L93 -> 0 | I93: =[2]Feuil1!M93 -> 1 | J93: =[3]Feuil1!K93 -> 11.25 | K93: =[3]Feuil1!L93 -> 6 | L93: =[3]Feuil1!M93 -> 6 | M93: 6.54 | N93: 6 | O93: 2
A94: 85 | B94: BENAMAR | C94: ISMAIL | D94: =[1]Feuil1!K94 -> 0 | E94: =[1]Feuil1!L94 -> 0 | F94: =[1]Feuil1!M94 -> 1 | G94: =[2]Feuil1!K94 -> 0 | H94: =[2]Feuil1!L94 -> 0 | I94: =[2]Feuil1!M94 -> 1 | J94: =[3]Feuil1!K94 -> 0 | K94: =[3]Feuil1!L94 -> 0 | L94: =[3]Feuil1!M94 -> 0 | M94: 0 | N94: 0 | O94: 2
A95: 86 | B95: BENAMAR | C95: KHEIRA | D95: =[1]Feuil1!K95 -> 7.683333333 | E95: =[1]Feuil1!L95 -> 0 | F95: =[1]Feuil1!M95 -> 1 | G95: =[2]Feuil1!K95 -> 7.683333333 | H95: =[2]Feuil1!L95 -> 0 | I95: =[2]Feuil1!M95 -> 2 | J95: =[3]Feuil1!K95 -> 9.75 | K95: =[3]Feuil1!L95 -> 0 | L95: =[3]Feuil1!M95 -> 0 | M95: 8.51 | N95: 0 | O95: 2
A96: 87 | B96: BENANTEUR | C96: HADJ MUSTAFA | D96: =[1]Feuil1!K96 -> 0 | E96: =[1]Feuil1!L96 -> 0 | F96: =[1]Feuil1!M96 -> 1 | G96: =[2]Feuil1!K96 -> 0 | H96: =[2]Feuil1!L96 -> 0 | I96: =[2]Feuil1!M96 -> 1 | J96: =[3]Feuil1!K96 -> 0 | K96: =[3]Feuil1!L96 -> 0 | L96: =[3]Feuil1!M96 -> 0 | M96: 0 | N96: 0 | O96: 2
A97: 88 | B97: BENAOUDA | C97: YASSINE | D97: =[1]Feuil1!K97 -> 7.45 | E97: =[1]Feuil1!L97 -> 0 | F97: =[1]Feuil1!M97 -> 1 | G97: =[2]Feuil1!K97 -> 7.333333333 | H97: =[2]Feuil1!L97 -> 0 | I97: =[2]Feuil1!M97 -> 2 | J97: =[3]Feuil1!K97 -> 10.76666667 | K97: =[3]Feuil1!L97 -> 6 | L97: =[3]Feuil1!M97 -> 6 | M97: 8.753333333 | N97: 6 | O97: 2
A98: 89 | B98: BENAOUDA | C98: ZAKARIA | D98: =[1]Feuil1!K98 -> 9.333333333 | E98: =[1]Feuil1!L98 -> 0 | F98: =[1]Feuil1!M98 -> 1 | G98: =[2]Feuil1!K98 -> 6.06 | H98: =[2]Feuil1!L98 -> 0 | I98: =[2]Feuil1!M98 -> 1 | J98: =[3]Feuil1!K98 -> 11.06666667 | K98: =[3]Feuil1!L98 -> 6 | L98: =[3]Feuil1!M98 -> 6 | M98: 9.372 | N98: 6 | O98: 2
A99: 90 | B99: BENATTIA | C99: CHAIMA | D99: =[1]Feuil1!K99 -> 10.53333333 | E99: =[1]Feuil1!L99 -> 6 | F99: =[1]Feuil1!M99 -> 1 | G99: =[2]Feuil1!K99 -> 12.41666667 | H99: =[2]Feuil1!L99 -> 5 | I99: =[2]Feuil1!M99 -> 1 | J99: =[3]Feuil1!K99 -> 13.4 | K99: =[3]Feuil1!L99 -> 6 | L99: =[3]Feuil1!M99 -> 6 | M99: 12.05666667 | N99: 17 | O99: 2
A100: 91 | B100: BENAYED | C100: SARAH | D100: =[1]Feuil1!K100 -> 10.08333333 | E100: =[1]Feuil1!L100 -> 6 | F100: =[1]Feuil1!M100 -> 1 | G100: =[2]Feuil1!K100 -> 11.41666667 | H100: =[2]Feuil1!L100 -> 5 | I100: =[2]Feuil1!M100 -> 1 | J100: =[3]Feuil1!K100 -> 7.183333333 | K100: =[3]Feuil1!L100 -> 0 | L100: =[3]Feuil1!M100 -> 0 | M100: 9.19 | N100: 11 | O100: 2
A101: 92 | B101: BENBACHIR | C101: HAMZA | D101: =[1]Feuil1!K101 -> 8.733333333 | E101: =[1]Feuil1!L101 -> 0 | F101: =[1]Feuil1!M101 -> 1 | G101: =[2]Feuil1!K101 -> 11.45 | H101: =[2]Feuil1!L101 -> 5 | I101: =[2]Feuil1!M101 -> 1 | J101: =[3]Feuil1!K101 -> 7.55 | K101: =[3]Feuil1!L101 -> 0 | L101: =[3]Feuil1!M101 -> 0 | M101: 8.803333333 | N101: 5 | O101: 2
A102: 93 | B102: BENBERNOU | C102: YASSER | D102: =[1]Feuil1!K102 -> 10.61666667 | E102: =[1]Feuil1!L102 -> 6 | F102: =[1]Feuil1!M102 -> 1 | G102: =[2]Feuil1!K102 -> 9.483333333 | H102: =[2]Feuil1!L102 -> 0 | I102: =[2]Feuil1!M102 -> 1 | J102: =[3]Feuil1!K102 -> 11.3 | K102: =[3]Feuil1!L102 -> 6 | L102: =[3]Feuil1!M102 -> 6 | M102: 10.66333333 | N102: 17 | O102: 2
A103: 94 | B103: BENCHAIB | C103: FADELA | D103: =[1]Feuil1!K103 -> 11.21666667 | E103: =[1]Feuil1!L103 -> 6 | F103: =[1]Feuil1!M103 -> 1 | G103: =[2]Feuil1!K103 -> 10.08333333 | H103: =[2]Feuil1!L103 -> 5 | I103: =[2]Feuil1!M103 -> 1 | J103: =[3]Feuil1!K103 -> 8.316666667 | K103: =[3]Feuil1!L103 -> 0 | L103: =[3]Feuil1!M103 -> 0 | M103: 9.83 | N103: 11 | O103: 2
A104: 95 | B104: BENCHAMANI | C104: REKAIA | D104: =[1]Feuil1!K104 -> 7.966666667 | E104: =[1]Feuil1!L104 -> 0 | F104: =[1]Feuil1!M104 -> 1 | G104: =[2]Feuil1!K104 -> 9.133333333 | H104: =[2]Feuil1!L104 -> 0 | I104: =[2]Feuil1!M104 -> 1 | J104: =[3]Feuil1!K104 -> 9.083333333 | K104: =[3]Feuil1!L104 -> 0 | L104: =[3]Feuil1!M104 -> 0 | M104: 8.646666667 | N104: 0 | O104: 2
A105: 96 | B105: BENCHEHIDA | C105: ABDELHEQ | D105: =[1]Feuil1!K105 -> 6.483333333 | E105: =[1]Feuil1!L105 -> 0 | F105: =[1]Feuil1!M105 -> 1 | G105: =[2]Feuil1!K105 -> 10.01666667 | H105: =[2]Feuil1!L105 -> 5 | I105: =[2]Feuil1!M105 -> 1 | J105: =[3]Feuil1!K105 -> 7.933333333 | K105: =[3]Feuil1!L105 -> 0 | L105: =[3]Feuil1!M105 -> 0 | M105: 7.77 | N105: 5 | O105: 2
A106: 97 | B106: BENCHENNI | C106: MERIEM | D106: =[1]Feuil1!K106 -> 0 | E106: =[1]Feuil1!L106 -> 0 | F106: =[1]Feuil1!M106 -> 1 | G106: =[2]Feuil1!K106 -> 0 | H106: =[2]Feuil1!L106 -> 0 | I106: =[2]Feuil1!M106 -> 1 | J106: =[3]Feuil1!K106 -> 0 | K106: =[3]Feuil1!L106 -> 0 | L106: =[3]Feuil1!M106 -> 0 | M106: 0 | N106: 0 | O106: 2
A107: 98 | B107: BENCHERIF | C107: AHMED | D107: =[1]Feuil1!K107 -> 3.6 | E107: =[1]Feuil1!L107 -> 0 | F107: =[1]Feuil1!M107 -> 1 | G107: =[2]Feuil1!K107 -> 6.3 | H107: =[2]Feuil1!L107 -> 0 | I107: =[2]Feuil1!M107 -> 1 | J107: =[3]Feuil1!K107 -> 4.866666667 | K107: =[3]Feuil1!L107 -> 0 | L107: =[3]Feuil1!M107 -> 0 | M107: 4.646666667 | N107: 0 | O107: 2
A108: 99 | B108: BENCHOHRA | C108: KHEIRA | D108: =[1]Feuil1!K108 -> 8.533333333 | E108: =[1]Feuil1!L108 -> 0 | F108: =[1]Feuil1!M108 -> 1 | G108: =[2]Feuil1!K108 -> 10.1 | H108: =[2]Feuil1!L108 -> 5 | I108: =[2]Feuil1!M108 -> 1 | J108: =[3]Feuil1!K108 -> 9.75 | K108: =[3]Feuil1!L108 -> 0 | L108: =[3]Feuil1!M108 -> 0 | M108: 9.333333333 | N108: 5 | O108: 2
A109: 100 | B109: BENDANI | C109: MUSTAPHA | D109: =[1]Feuil1!K109 -> 6.633333333 | E109: =[1]Feuil1!L109 -> 0 | F109: =[1]Feuil1!M109 -> 1 | G109: =[2]Feuil1!K109 -> 10.46666667 | H109: =[2]Feuil1!L109 -> 5 | I109: =[2]Feuil1!M109 -> 1 | J109: =[3]Feuil1!K109 -> 7.45 | K109: =[3]Feuil1!L109 -> 0 | L109: =[3]Feuil1!M109 -> 0 | M109: 7.726666667 | N109: 5 | O109: 2
A110: 101 | B110: BENDJELLOUL | C110: NOUREDDINE | D110: =[1]Feuil1!K110 -> 7.733333333 | E110: =[1]Feuil1!L110 -> 0 | F110: =[1]Feuil1!M110 -> 1 | G110: =[2]Feuil1!K110 -> 8.933333333 | H110: =[2]Feuil1!L110 -> 0 | I110: =[2]Feuil1!M110 -> 1 | J110: =[3]Feuil1!K110 -> 9.1 | K110: =[3]Feuil1!L110 -> 0 | L110: =[3]Feuil1!M110 -> 0 | M110: 8.52 | N110: 0 | O110: 2
A111: 102 | B111: BENFICHOUH | C111: ABDELHALIM | D111: =[1]Feuil1!K111 -> 0 | E111: =[1]Feuil1!L111 -> 0 | F111: =[1]Feuil1!M111 -> 1 | G111: =[2]Feuil1!K111 -> 0 | H111: =[2]Feuil1!L111 -> 0 | I111: =[2]Feuil1!M111 -> 1 | J111: =[3]Feuil1!K111 -> 0 | K111: =[3]Feuil1!L111 -> 0 | L111: =[3]Feuil1!M111 -> 0 | M111: 0 | N111: 0 | O111: 2
A112: 103 | B112: BENGATTAT | C112: HADJ ALI | D112: =[1]Feuil1!K112 -> 11.23333333 | E112: =[1]Feuil1!L112 -> 6 | F112: =[1]Feuil1!M112 -> 1 | G112: =[2]Feuil1!K112 -> 12.9 | H112: =[2]Feuil1!L112 -> 5 | I112: =[2]Feuil1!M112 -> 1 | J112: =[3]Feuil1!K112 -> 11.31666667 | K112: =[3]Feuil1!L112 -> 6 | L112: =[3]Feuil1!M112 -> 6 | M112: 11.6 | N112: 17 | O112: 2
A113: 104 | B113: BENGUETTAT | C113: WAFAE | D113: =[1]Feuil1!K113 -> 8.333333333 | E113: =[1]Feuil1!L113 -> 0 | F113: =[1]Feuil1!M113 -> 1 | G113: =[2]Feuil1!K113 -> 10.28333333 | H113: =[2]Feuil1!L113 -> 5 | I113: =[2]Feuil1!M113 -> 1 | J113: =[3]Feuil1!K113 -> 16.55 | K113: =[3]Feuil1!L113 -> 6 | L113: =[3]Feuil1!M113 -> 6 | M113: 12.01 | N113: 17 | O113: 2
A114: 105 | B114: BENGUIRECHE | C114: HAFSA | D114: =[1]Feuil1!K114 -> 8.333333333 | E114: =[1]Feuil1!L114 -> 0 | F114: =[1]Feuil1!M114 -> 1 | G114: =[2]Feuil1!K114 -> 10.13333333 | H114: =[2]Feuil1!L114 -> 5 | I114: =[2]Feuil1!M114 -> 1 | J114: =[3]Feuil1!K114 -> 9.1 | K114: =[3]Feuil1!L114 -> 0 | L114: =[3]Feuil1!M114 -> 0 | M114: 9 | N114: 5 | O114: 2
A115: 106 | B115: BENHADDOUCHE | C115: FATIMA ZOHRA ROMEISSA | D115: =[1]Feuil1!K115 -> 8.033333333 | E115: =[1]Feuil1!L115 -> 0 | F115: =[1]Feuil1!M115 -> 1 | G115: =[2]Feuil1!K115 -> 10.65 | H115: =[2]Feuil1!L115 -> 5 | I115: =[2]Feuil1!M115 -> 1 | J115: =[3]Feuil1!K115 -> 10.7 | K115: =[3]Feuil1!L115 -> 6 | L115: =[3]Feuil1!M115 -> 6 | M115: 9.623333333 | N115: 11 | O115: 2
A116: 107 | B116: BENHALIMA | C116: MOUNIR | D116: =[1]Feuil1!K116 -> 6.633333333 | E116: =[1]Feuil1!L116 -> 0 | F116: =[1]Feuil1!M116 -> 1 | G116: =[2]Feuil1!K116 -> 8.483333333 | H116: =[2]Feuil1!L116 -> 0 | I116: =[2]Feuil1!M116 -> 1 | J116: =[3]Feuil1!K116 -> 15.23333333 | K116: =[3]Feuil1!L116 -> 6 | L116: =[3]Feuil1!M116 -> 6 | M116: 10.44333333 | N116: 17 | O116: 2
A117: 108 | B117: BENHALIMA | C117: NACERA | D117: =[1]Feuil1!K117 -> 7.65 | E117: =[1]Feuil1!L117 -> 0 | F117: =[1]Feuil1!M117 -> 1 | G117: =[2]Feuil1!K117 -> 10.56666667 | H117: =[2]Feuil1!L117 -> 5 | I117: =[2]Feuil1!M117 -> 1 | J117: =[3]Feuil1!K117 -> 9.033333333 | K117: =[3]Feuil1!L117 -> 0 | L117: =[3]Feuil1!M117 -> 0 | M117: 8.786666667 | N117: 5 | O117: 2
A118: 109 | B118: BENHARIRA | C118: KOUIDER | D118: =[1]Feuil1!K118 -> 0 | E118: =[1]Feuil1!L118 -> 0 | F118: =[1]Feuil1!M118 -> 1 | G118: =[2]Feuil1!K118 -> 0 | H118: =[2]Feuil1!L118 -> 0 | I118: =[2]Feuil1!M118 -> 1 | J118: =[3]Feuil1!K118 -> 0 | K118: =[3]Feuil1!L118 -> 0 | L118: =[3]Feuil1!M118 -> 0 | M118: 0 | N118: 0 | O118: 2
A119: 110 | B119: BENHARRAT | C119: NOUR EL HOUDA | D119: =[1]Feuil1!K119 -> 9.35 | E119: =[1]Feuil1!L119 -> 0 | F119: =[1]Feuil1!M119 -> 1 | G119: =[2]Feuil1!K119 -> 10.55 | H119: =[2]Feuil1!L119 -> 5 | I119: =[2]Feuil1!M119 -> 1 | J119: =[3]Feuil1!K119 -> 11.43333333 | K119: =[3]Feuil1!L119 -> 6 | L119: =[3]Feuil1!M119 -> 6 | M119: 10.42333333 | N119: 17 | O119: 2
A120: 111 | B120: BENKAHLA | C120: CHAHRAZED | D120: =[1]Feuil1!K120 -> 6.333333333 | E120: =[1]Feuil1!L120 -> 0 | F120: =[1]Feuil1!M120 -> 1 | G120: =[2]Feuil1!K120 -> 9.366666667 | H120: =[2]Feuil1!L120 -> 0 | I120: =[2]Feuil1!M120 -> 1 | J120: =[3]Feuil1!K120 -> 11.05 | K120: =[3]Feuil1!L120 -> 6 | L120: =[3]Feuil1!M120 -> 6 | M120: 8.826666667 | N120: 6 | O120: 2
A121: 112 | B121: BENKEDADRA | C121: KHADIDJA | D121: =[1]Feuil1!K121 -> 10.86666667 | E121: =[1]Feuil1!L121 -> 6 | F121: =[1]Feuil1!M121 -> 1 | G121: =[2]Feuil1!K121 -> 12.9 | H121: =[2]Feuil1!L121 -> 5 | I121: =[2]Feuil1!M121 -> 1 | J121: =[3]Feuil1!K121 -> 14.5 | K121: =[3]Feuil1!L121 -> 6 | L121: =[3]Feuil1!M121 -> 6 | M121: 12.72666667 | N121: 17 | O121: 2
A122: 113 | B122: BENKEDADRA | C122: MOHAMED | D122: =[1]Feuil1!K122 -> 10.66666667 | E122: =[1]Feuil1!L122 -> 6 | F122: =[1]Feuil1!M122 -> 1 | G122: =[2]Feuil1!K122 -> 11.28333333 | H122: =[2]Feuil1!L122 -> 5 | I122: =[2]Feuil1!M122 -> 1 | J122: =[3]Feuil1!K122 -> 16.86666667 | K122: =[3]Feuil1!L122 -> 6 | L122: =[3]Feuil1!M122 -> 6 | M122: 13.27 | N122: 17 | O122: 2
A123: 114 | B123: BENKHELIFA | C123: KAMEL | D123: =[1]Feuil1!K123 -> 8.233333333 | E123: =[1]Feuil1!L123 -> 0 | F123: =[1]Feuil1!M123 -> 1 | G123: =[2]Feuil1!K123 -> 8.133333333 | H123: =[2]Feuil1!L123 -> 0 | I123: =[2]Feuil1!M123 -> 2 | J123: =[3]Feuil1!K123 -> 10.21666667 | K123: =[3]Feuil1!L123 -> 6 | L123: =[3]Feuil1!M123 -> 6 | M123: 9.006666667 | N123: 6 | O123: 2
A124: 115 | B124: BENKHELIFA | C124: SAAD | D124: =[1]Feuil1!K124 -> 8.483333333 | E124: =[1]Feuil1!L124 -> 0 | F124: =[1]Feuil1!M124 -> 1 | G124: =[2]Feuil1!K124 -> 8.066666667 | H124: =[2]Feuil1!L124 -> 0 | I124: =[2]Feuil1!M124 -> 1 | J124: =[3]Feuil1!K124 -> 12.21666667 | K124: =[3]Feuil1!L124 -> 6 | L124: =[3]Feuil1!M124 -> 6 | M124: 9.893333333 | N124: 6 | O124: 2
A125: 116 | B125: BENKORECH | C125: ABEDNNOUR | D125: =[1]Feuil1!K125 -> 16.53333333 | E125: =[1]Feuil1!L125 -> 6 | F125: =[1]Feuil1!M125 -> 1 | G125: =[2]Feuil1!K125 -> 12.66666667 | H125: =[2]Feuil1!L125 -> 5 | I125: =[2]Feuil1!M125 -> 1 | J125: =[3]Feuil1!K125 -> 9.816666667 | K125: =[3]Feuil1!L125 -> 0 | L125: =[3]Feuil1!M125 -> 0 | M125: 13.07333333 | N125: 17 | O125: 2
A126: 117 | B126: BENKORRECHE | C126: MOHAMED EL AMINE | D126: =[1]Feuil1!K126 -> 9.533333333 | E126: =[1]Feuil1!L126 -> 0 | F126: =[1]Feuil1!M126 -> 1 | G126: =[2]Feuil1!K126 -> 12.83333333 | H126: =[2]Feuil1!L126 -> 5 | I126: =[2]Feuil1!M126 -> 1 | J126: =[3]Feuil1!K126 -> 12.68333333 | K126: =[3]Feuil1!L126 -> 6 | L126: =[3]Feuil1!M126 -> 6 | M126: 11.45333333 | N126: 17 | O126: 2
A127: 118 | B127: BENLAKEHAL | C127: MOHAMED REDHA | D127: =[1]Feuil1!K127 -> 10.23333333 | E127: =[1]Feuil1!L127 -> 6 | F127: =[1]Feuil1!M127 -> 1 | G127: =[2]Feuil1!K127 -> 4.533333333 | H127: =[2]Feuil1!L127 -> 0 | I127: =[2]Feuil1!M127 -> 1 | J127: =[3]Feuil1!K127 -> 15.76666667 | K127: =[3]Feuil1!L127 -> 6 | L127: =[3]Feuil1!M127 -> 6 | M127: 11.30666667 | N127: 17 | O127: 2
A128: 119 | B128: BENNAMA | C128: HOCINE | D128: =[1]Feuil1!K128 -> 4.933333333 | E128: =[1]Feuil1!L128 -> 0 | F128: =[1]Feuil1!M128 -> 1 | G128: =[2]Feuil1!K128 -> 0 | H128: =[2]Feuil1!L128 -> 0 | I128: =[2]Feuil1!M128 -> 1 | J128: =[3]Feuil1!K128 -> 1.333333333 | K128: =[3]Feuil1!L128 -> 0 | L128: =[3]Feuil1!M128 -> 0 | M128: 2.506666667 | N128: 0 | O128: 2
A129: 120 | B129: BENNECEUR | C129: FATIHA | D129: =[1]Feuil1!K129 -> 14.96666667 | E129: =[1]Feuil1!L129 -> 6 | F129: =[1]Feuil1!M129 -> 1 | G129: =[2]Feuil1!K129 -> 13.18333333 | H129: =[2]Feuil1!L129 -> 5 | I129: =[2]Feuil1!M129 -> 1 | J129: =[3]Feuil1!K129 -> 15.4 | K129: =[3]Feuil1!L129 -> 6 | L129: =[3]Feuil1!M129 -> 6 | M129: 14.78333333 | N129: 17 | O129: 2
A130: 121 | B130: BENOTSMANE | C130: CHAIMAE | D130: =[1]Feuil1!K130 -> 8.266666667 | E130: =[1]Feuil1!L130 -> 0 | F130: =[1]Feuil1!M130 -> 1 | G130: =[2]Feuil1!K130 -> 12.53333333 | H130: =[2]Feuil1!L130 -> 5 | I130: =[2]Feuil1!M130 -> 1 | J130: =[3]Feuil1!K130 -> 7.8 | K130: =[3]Feuil1!L130 -> 0 | L130: =[3]Feuil1!M130 -> 0 | M130: 8.933333333 | N130: 5 | O130: 2
A131: 122 | B131: BENOUALI | C131: MOHAMED BOUASRIA | D131: =[1]Feuil1!K131 -> 0 | E131: =[1]Feuil1!L131 -> 0 | F131: =[1]Feuil1!M131 -> 1 | G131: =[2]Feuil1!K131 -> 0 | H131: =[2]Feuil1!L131 -> 0 | I131: =[2]Feuil1!M131 -> 1 | J131: =[3]Feuil1!K131 -> 0 | K131: =[3]Feuil1!L131 -> 0 | L131: =[3]Feuil1!M131 -> 0 | M131: 0 | N131: 0 | O131: 2
A132: 123 | B132: BENOUALI | C132: ZOHRA | D132: =[1]Feuil1!K132 -> 6.3 | E132: =[1]Feuil1!L132 -> 0 | F132: =[1]Feuil1!M132 -> 1 | G132: =[2]Feuil1!K132 -> 6.366666667 | H132: =[2]Feuil1!L132 -> 0 | I132: =[2]Feuil1!M132 -> 2 | J132: =[3]Feuil1!K132 -> 6.55 | K132: =[3]Feuil1!L132 -> 0 | L132: =[3]Feuil1!M132 -> 0 | M132: 6.413333333 | N132: 0 | O132: 2
A133: 124 | B133: BENSAADIA | C133: NABIL | D133: =[1]Feuil1!K133 -> 0 | E133: =[1]Feuil1!L133 -> 0 | F133: =[1]Feuil1!M133 -> 1 | G133: =[2]Feuil1!K133 -> 0 | H133: =[2]Feuil1!L133 -> 0 | I133: =[2]Feuil1!M133 -> 1 | J133: =[3]Feuil1!K133 -> 0.4666666667 | K133: =[3]Feuil1!L133 -> 0 | L133: =[3]Feuil1!M133 -> 0 | M133: 0.1866666667 | N133: 0 | O133: 2
A134: 125 | B134: BENSALAH | C134: ATIKA MANSOURIA | D134: =[1]Feuil1!K134 -> 8.266666667 | E134: =[1]Feuil1!L134 -> 0 | F134: =[1]Feuil1!M134 -> 1 | G134: =[2]Feuil1!K134 -> 9.65 | H134: =[2]Feuil1!L134 -> 0 | I134: =[2]Feuil1!M134 -> 1 | J134: =[3]Feuil1!K134 -> 13.08333333 | K134: =[3]Feuil1!L134 -> 6 | L134: =[3]Feuil1!M134 -> 6 | M134: 10.47 | N134: 17 | O134: 2
A135: 126 | B135: BENSALEM | C135: ABDELKADER | D135: =[1]Feuil1!K135 -> 3.366666667 | E135: =[1]Feuil1!L135 -> 0 | F135: =[1]Feuil1!M135 -> 1 | G135: =[2]Feuil1!K135 -> 1.65 | H135: =[2]Feuil1!L135 -> 0 | I135: =[2]Feuil1!M135 -> 1 | J135: =[3]Feuil1!K135 -> 6.8 | K135: =[3]Feuil1!L135 -> 0 | L135: =[3]Feuil1!M135 -> 0 | M135: 4.396666667 | N135: 0 | O135: 2
A136: 127 | B136: BENTAMRA | C136: HADJIRA | D136: =[1]Feuil1!K136 -> 7.633333333 | E136: =[1]Feuil1!L136 -> 0 | F136: =[1]Feuil1!M136 -> 1 | G136: =[2]Feuil1!K136 -> 10.55 | H136: =[2]Feuil1!L136 -> 5 | I136: =[2]Feuil1!M136 -> 1 | J136: =[3]Feuil1!K136 -> 10.51666667 | K136: =[3]Feuil1!L136 -> 6 | L136: =[3]Feuil1!M136 -> 6 | M136: 9.37 | N136: 11 | O136: 2
A137: 128 | B137: BENTAMRA | C137: KARIMA | D137: =[1]Feuil1!K137 -> 9.35 | E137: =[1]Feuil1!L137 -> 0 | F137: =[1]Feuil1!M137 -> 1 | G137: =[2]Feuil1!K137 -> 8.583333333 | H137: =[2]Feuil1!L137 -> 0 | I137: =[2]Feuil1!M137 -> 1 | J137: =[3]Feuil1!K137 -> 11.11666667 | K137: =[3]Feuil1!L137 -> 6 | L137: =[3]Feuil1!M137 -> 6 | M137: 9.903333333 | N137: 6 | O137: 2
A138: 129 | B138: BENYOUCEF | C138: KAWTHAR | D138: =[1]Feuil1!K138 -> 8.033333333 | E138: =[1]Feuil1!L138 -> 0 | F138: =[1]Feuil1!M138 -> 1 | G138: =[2]Feuil1!K138 -> 6.72 | H138: =[2]Feuil1!L138 -> 0 | I138: =[2]Feuil1!M138 -> 1 | J138: =[3]Feuil1!K138 -> 9.733333333 | K138: =[3]Feuil1!L138 -> 0 | L138: =[3]Feuil1!M138 -> 0 | M138: 8.450666667 | N138: 0 | O138: 2
A139: 130 | B139: BENZIADI | C139: AMINE | D139: =[1]Feuil1!K139 -> 5.766666667 | E139: =[1]Feuil1!L139 -> 0 | F139: =[1]Feuil1!M139 -> 1 | G139: =[2]Feuil1!K139 -> 5.233333333 | H139: =[2]Feuil1!L139 -> 0 | I139: =[2]Feuil1!M139 -> 1 | J139: =[3]Feuil1!K139 -> 7.666666667 | K139: =[3]Feuil1!L139 -> 0 | L139: =[3]Feuil1!M139 -> 0 | M139: 6.42 | N139: =IF(M139>=10,17,E139+H139+K139) -> 0 | O139: 2
A140: 131 | B140: BERRAS | C140: FATIMA ZOHRA | D140: =[1]Feuil1!K140 -> 12.23333333 | E140: =[1]Feuil1!L140 -> 6 | F140: =[1]Feuil1!M140 -> 1 | G140: =[2]Feuil1!K140 -> 11.28333333 | H140: =[2]Feuil1!L140 -> 5 | I140: =[2]Feuil1!M140 -> 1 | J140: =[3]Feuil1!K140 -> 9.416666667 | K140: =[3]Feuil1!L140 -> 0 | L140: =[3]Feuil1!M140 -> 0 | M140: 10.91666667 | N140: 17 | O140: 2
A141: 132 | B141: BERROUACHEDI | C141: ABDELHAK | D141: =[1]Feuil1!K141 -> 8.466666667 | E141: =[1]Feuil1!L141 -> 0 | F141: =[1]Feuil1!M141 -> 1 | G141: =[2]Feuil1!K141 -> 11.28333333 | H141: =[2]Feuil1!L141 -> 5 | I141: =[2]Feuil1!M141 -> 1 | J141: =[3]Feuil1!K141 -> 12.98333333 | K141: =[3]Feuil1!L141 -> 6 | L141: =[3]Feuil1!M141 -> 6 | M141: 10.83666667 | N141: 17 | O141: 2
A142: 133 | B142: BESSAAD | C142: MOULAI | D142: =[1]Feuil1!K142 -> 9.266666667 | E142: =[1]Feuil1!L142 -> 0 | F142: =[1]Feuil1!M142 -> 1 | G142: =[2]Feuil1!K142 -> 11.7 | H142: =[2]Feuil1!L142 -> 5 | I142: =[2]Feuil1!M142 -> 1 | J142: =[3]Feuil1!K142 -> 9.133333333 | K142: =[3]Feuil1!L142 -> 0 | L142: =[3]Feuil1!M142 -> 0 | M142: 9.7 | N142: 5 | O142: 2
A143: 134 | B143: BESSAFI | C143: FATIMA ZOHRA | D143: =[1]Feuil1!K143 -> 0 | E143: =[1]Feuil1!L143 -> 0 | F143: =[1]Feuil1!M143 -> 1 | G143: =[2]Feuil1!K143 -> 0 | H143: =[2]Feuil1!L143 -> 0 | I143: =[2]Feuil1!M143 -> 1 | J143: =[3]Feuil1!K143 -> 0 | K143: =[3]Feuil1!L143 -> 0 | L143: =[3]Feuil1!M143 -> 0 | M143: 0 | N143: 0 | O143: 2
A144: 135 | B144: BESSAYEH | C144: IMEN | D144: =[1]Feuil1!K144 -> 0 | E144: =[1]Feuil1!L144 -> 0 | F144: =[1]Feuil1!M144 -> 1 | G144: =[2]Feuil1!K144 -> 0 | H144: =[2]Feuil1!L144 -> 0 | I144: =[2]Feuil1!M144 -> 1 | J144: =[3]Feuil1!K144 -> 0 | K144: =[3]Feuil1!L144 -> 0 | L144: =[3]Feuil1!M144 -> 0 | M144: 0 | N144: 0 | O144: 2
A145: 136 | B145: BESSEDIK | C145: IBTISSEM NAIMA | D145: =[1]Feuil1!K145 -> 7.466666667 | E145: =[1]Feuil1!L145 -> 0 | F145: =[1]Feuil1!M145 -> 1 | G145: =[2]Feuil1!K145 -> 7.833333333 | H145: =[2]Feuil1!L145 -> 0 | I145: =[2]Feuil1!M145 -> 2 | J145: =[3]Feuil1!K145 -> 10.63333333 | K145: =[3]Feuil1!L145 -> 6 | L145: =[3]Feuil1!M145 -> 6 | M145: 8.806666667 | N145: 6 | O145: 2
A146: 137 | B146: BESSEDIK | C146: ZAKARIA ABDERRAHMANE | D146: =[1]Feuil1!K146 -> 10.85 | E146: =[1]Feuil1!L146 -> 6 | F146: =[1]Feuil1!M146 -> 1 | G146: =[2]Feuil1!K146 -> 11.33333333 | H146: =[2]Feuil1!L146 -> 5 | I146: =[2]Feuil1!M146 -> 1 | J146: =[3]Feuil1!K146 -> 7.916666667 | K146: =[3]Feuil1!L146 -> 0 | L146: =[3]Feuil1!M146 -> 0 | M146: 9.773333333 | N146: 11 | O146: 2
A147: 138 | B147: BESSEGHIR | C147: FERIEL | D147: =[1]Feuil1!K147 -> 10.16666667 | E147: =[1]Feuil1!L147 -> 6 | F147: =[1]Feuil1!M147 -> 1 | G147: =[2]Feuil1!K147 -> 11.11666667 | H147: =[2]Feuil1!L147 -> 5 | I147: =[2]Feuil1!M147 -> 1 | J147: =[3]Feuil1!K147 -> 9.933333333 | K147: =[3]Feuil1!L147 -> 0 | L147: =[3]Feuil1!M147 -> 0 | M147: 10.26333333 | N147: 17 | O147: 2
A148: 139 | B148: BETTAHAR | C148: TALHA | D148: =[1]Feuil1!K148 -> 8.45 | E148: =[1]Feuil1!L148 -> 0 | F148: =[1]Feuil1!M148 -> 1 | G148: =[2]Feuil1!K148 -> 8.7 | H148: =[2]Feuil1!L148 -> 0 | I148: =[2]Feuil1!M148 -> 1 | J148: =[3]Feuil1!K148 -> 7.366666667 | K148: =[3]Feuil1!L148 -> 0 | L148: =[3]Feuil1!M148 -> 0 | M148: 8.066666667 | N148: 0 | O148: 2
A149: 140 | B149: BEZZAIM | C149: HOURIA | D149: =[1]Feuil1!K149 -> 8.216666667 | E149: =[1]Feuil1!L149 -> 0 | F149: =[1]Feuil1!M149 -> 1 | G149: =[2]Feuil1!K149 -> 11.33333333 | H149: =[2]Feuil1!L149 -> 5 | I149: =[2]Feuil1!M149 -> 1 | J149: =[3]Feuil1!K149 -> 8.183333333 | K149: =[3]Feuil1!L149 -> 0 | L149: =[3]Feuil1!M149 -> 0 | M149: 8.826666667 | N149: 5 | O149: 2
A150: 141 | B150: BOKHARI | C150: CHEMS EDDINE ISMAIL | D150: =[1]Feuil1!K150 -> 9.15 | E150: =[1]Feuil1!L150 -> 0 | F150: =[1]Feuil1!M150 -> 1 | G150: =[2]Feuil1!K150 -> 10.18333333 | H150: =[2]Feuil1!L150 -> 5 | I150: =[2]Feuil1!M150 -> 1 | J150: =[3]Feuil1!K150 -> 10.83333333 | K150: =[3]Feuil1!L150 -> 6 | L150: =[3]Feuil1!M150 -> 6 | M150: 10.03 | N150: 17 | O150: 2
A151: 142 | B151: BORANE | C151: MOHAMED | D151: =[1]Feuil1!K151 -> 0 | E151: =[1]Feuil1!L151 -> 0 | F151: =[1]Feuil1!M151 -> 1 | G151: =[2]Feuil1!K151 -> 0 | H151: =[2]Feuil1!L151 -> 0 | I151: =[2]Feuil1!M151 -> 1 | J151: =[3]Feuil1!K151 -> 0 | K151: =[3]Feuil1!L151 -> 0 | L151: =[3]Feuil1!M151 -> 0 | M151: 0 | N151: 0 | O151: 2
A152: 143 | B152: BOUADJMI | C152: AICHA | D152: =[1]Feuil1!K152 -> 0 | E152: =[1]Feuil1!L152 -> 0 | F152: =[1]Feuil1!M152 -> 1 | G152: =[2]Feuil1!K152 -> 0 | H152: =[2]Feuil1!L152 -> 0 | I152: =[2]Feuil1!M152 -> 1 | J152: =[3]Feuil1!K152 -> 0 | K152: =[3]Feuil1!L152 -> 0 | L152: =[3]Feuil1!M152 -> 0 | M152: 0 | N152: 0 | O152: 2
A153: 144 | B153: BOUAFIA | C153: HOUSSINE | D153: =[1]Feuil1!K153 -> 0 | E153: =[1]Feuil1!L153 -> 0 | F153: =[1]Feuil1!M153 -> 1 | G153: =[2]Feuil1!K153 -> 0 | H153: =[2]Feuil1!L153 -> 0 | I153: =[2]Feuil1!M153 -> 1 | J153: =[3]Feuil1!K153 -> 0 | K153: =[3]Feuil1!L153 -> 0 | L153: =[3]Feuil1!M153 -> 0 | M153: 0 | N153: 0 | O153: 2
A154: 145 | B154: BOUALEM | C154: AMIRA | D154: =[1]Feuil1!K154 -> 0 | E154: =[1]Feuil1!L154 -> 0 | F154: =[1]Feuil1!M154 -> 1 | G154: =[2]Feuil1!K154 -> 0 | H154: =[2]Feuil1!L154 -> 0 | I154: =[2]Feuil1!M154 -> 1 | J154: =[3]Feuil1!K154 -> 0 | K154: =[3]Feuil1!L154 -> 0 | L154: =[3]Feuil1!M154 -> 0 | M154: 0 | N154: 0 | O154: 2
A155: 146 | B155: BOUATTOU | C155: YEMNA | D155: =[1]Feuil1!K155 -> 8.35 | E155: =[1]Feuil1!L155 -> 0 | F155: =[1]Feuil1!M155 -> 1 | G155: =[2]Feuil1!K155 -> 8.1 | H155: =[2]Feuil1!L155 -> 0 | I155: =[2]Feuil1!M155 -> 2 | J155: =[3]Feuil1!K155 -> 10.81666667 | K155: =[3]Feuil1!L155 -> 6 | L155: =[3]Feuil1!M155 -> 6 | M155: 9.286666667 | N155: 6 | O155: 2
A156: 147 | B156: BOUBEKEUR | C156: MAROUA AMEL | D156: =[1]Feuil1!K156 -> 11.91666667 | E156: =[1]Feuil1!L156 -> 6 | F156: =[1]Feuil1!M156 -> 1 | G156: =[2]Feuil1!K156 -> 14.63333333 | H156: =[2]Feuil1!L156 -> 5 | I156: =[2]Feuil1!M156 -> 1 | J156: =[3]Feuil1!K156 -> 10.13333333 | K156: =[3]Feuil1!L156 -> 6 | L156: =[3]Feuil1!M156 -> 6 | M156: 11.74666667 | N156: 17 | O156: 2
A157: 148 | B157: BOUCEDRA | C157: NADA | D157: =[1]Feuil1!K157 -> 7.566666667 | E157: =[1]Feuil1!L157 -> 0 | F157: =[1]Feuil1!M157 -> 1 | G157: =[2]Feuil1!K157 -> 10.7 | H157: =[2]Feuil1!L157 -> 5 | I157: =[2]Feuil1!M157 -> 1 | J157: =[3]Feuil1!K157 -> 8.216666667 | K157: =[3]Feuil1!L157 -> 0 | L157: =[3]Feuil1!M157 -> 0 | M157: 8.453333333 | N157: 5 | O157: 2
A158: 149 | B158: BOUCHAMA | C158: HEITHEM | D158: =[1]Feuil1!K158 -> 0 | E158: =[1]Feuil1!L158 -> 0 | F158: =[1]Feuil1!M158 -> 1 | G158: =[2]Feuil1!K158 -> 0 | H158: =[2]Feuil1!L158 -> 0 | I158: =[2]Feuil1!M158 -> 1 | J158: =[3]Feuil1!K158 -> 0 | K158: =[3]Feuil1!L158 -> 0 | L158: =[3]Feuil1!M158 -> 0 | M158: 0 | N158: 0 | O158: 2
A159: 150 | B159: BOUDIA | C159: NADIA | D159: =[1]Feuil1!K159 -> 12.53333333 | E159: =[1]Feuil1!L159 -> 6 | F159: =[1]Feuil1!M159 -> 1 | G159: =[2]Feuil1!K159 -> 14.41666667 | H159: =[2]Feuil1!L159 -> 5 | I159: =[2]Feuil1!M159 -> 1 | J159: =[3]Feuil1!K159 -> 12.26666667 | K159: =[3]Feuil1!L159 -> 6 | L159: =[3]Feuil1!M159 -> 6 | M159: 12.80333333 | N159: 17 | O159: 2
A160: 151 | B160: BOUDRAF | C160: MOHAMED | D160: =[1]Feuil1!K160 -> 0 | E160: =[1]Feuil1!L160 -> 0 | F160: =[1]Feuil1!M160 -> 1 | G160: =[2]Feuil1!K160 -> 0 | H160: =[2]Feuil1!L160 -> 0 | I160: =[2]Feuil1!M160 -> 1 | J160: =[3]Feuil1!K160 -> 0 | K160: =[3]Feuil1!L160 -> 0 | L160: =[3]Feuil1!M160 -> 0 | M160: 0 | N160: 0 | O160: 2
A161: 152 | B161: BOUHADEF | C161: ASMAA | D161: =[1]Feuil1!K161 -> 7.6 | E161: =[1]Feuil1!L161 -> 0 | F161: =[1]Feuil1!M161 -> 1 | G161: =[2]Feuil1!K161 -> 9.333333333 | H161: =[2]Feuil1!L161 -> 0 | I161: =[2]Feuil1!M161 -> 2 | J161: =[3]Feuil1!K161 -> 6.75 | K161: =[3]Feuil1!L161 -> 0 | L161: =[3]Feuil1!M161 -> 0 | M161: 7.606666667 | N161: 0 | O161: 2
A162: 153 | B162: BOUHALI | C162: NACER | D162: =[1]Feuil1!K162 -> 6.433333333 | E162: =[1]Feuil1!L162 -> 0 | F162: =[1]Feuil1!M162 -> 1 | G162: =[2]Feuil1!K162 -> 5.866666667 | H162: =[2]Feuil1!L162 -> 0 | I162: =[2]Feuil1!M162 -> 1 | J162: =[3]Feuil1!K162 -> 5.85 | K162: =[3]Feuil1!L162 -> 0 | L162: =[3]Feuil1!M162 -> 0 | M162: 6.086666667 | N162: 0 | O162: 2
A163: 154 | B163: BOUHALLALENE | C163: MOHAMED ABDEL HAFID | D163: =[1]Feuil1!K163 -> 9.016666667 | E163: =[1]Feuil1!L163 -> 0 | F163: =[1]Feuil1!M163 -> 1 | G163: =[2]Feuil1!K163 -> 10.38333333 | H163: =[2]Feuil1!L163 -> 5 | I163: =[2]Feuil1!M163 -> 1 | J163: =[3]Feuil1!K163 -> 10.4 | K163: =[3]Feuil1!L163 -> 6 | L163: =[3]Feuil1!M163 -> 6 | M163: 9.843333333 | N163: 11 | O163: 2
A164: 155 | B164: BOUHALOUFA | C164: MOHAMED AMINE | D164: =[1]Feuil1!K164 -> 5.1 | E164: =[1]Feuil1!L164 -> 0 | F164: =[1]Feuil1!M164 -> 1 | G164: =[2]Feuil1!K164 -> 6.633333333 | H164: =[2]Feuil1!L164 -> 0 | I164: =[2]Feuil1!M164 -> 2 | J164: =[3]Feuil1!K164 -> 5.75 | K164: =[3]Feuil1!L164 -> 0 | L164: =[3]Feuil1!M164 -> 0 | M164: 5.666666667 | N164: 0 | O164: 2
A165: 156 | B165: BOUICH | C165: MOHAMED | D165: =[1]Feuil1!K165 -> 0 | E165: =[1]Feuil1!L165 -> 0 | F165: =[1]Feuil1!M165 -> 1 | G165: =[2]Feuil1!K165 -> 0 | H165: =[2]Feuil1!L165 -> 0 | I165: =[2]Feuil1!M165 -> 1 | J165: =[3]Feuil1!K165 -> 0 | K165: =[3]Feuil1!L165 -> 0 | L165: =[3]Feuil1!M165 -> 0 | M165: 0 | N165: 0 | O165: 2
A166: 157 | B166: BOUKEFFA | C166: ABDELHAMID | D166: =[1]Feuil1!K166 -> 0 | E166: =[1]Feuil1!L166 -> 0 | F166: =[1]Feuil1!M166 -> 1 | G166: =[2]Feuil1!K166 -> 0 | H166: =[2]Feuil1!L166 -> 0 | I166: =[2]Feuil1!M166 -> 1 | J166: =[3]Feuil1!K166 -> 0 | K166: =[3]Feuil1!L166 -> 0 | L166: =[3]Feuil1!M166 -> 0 | M166: 0 | N166: 0 | O166: 2
A167: 158 | B167: BOUKHARI | C167: MADIHA | D167: =[1]Feuil1!K167 -> 5.466666667 | E167: =[1]Feuil1!L167 -> 0 | F167: =[1]Feuil1!M167 -> 1 | G167: =[2]Feuil1!K167 -> 10.1 | H167: =[2]Feuil1!L167 -> 5 | I167: =[2]Feuil1!M167 -> 1 | J167: =[3]Feuil1!K167 -> 9.05 | K167: =[3]Feuil1!L167 -> 0 | L167: =[3]Feuil1!M167 -> 0 | M167: 7.826666667 | N167: 5 | O167: 2
A168: 159 | B168: BOUKHELIF | C168: MHAMED | D168: =[1]Feuil1!K168 -> 11.91666667 | E168: =[1]Feuil1!L168 -> 6 | F168: =[1]Feuil1!M168 -> 1 | G168: =[2]Feuil1!K168 -> 10.1 | H168: =[2]Feuil1!L168 -> 5 | I168: =[2]Feuil1!M168 -> 1 | J168: =[3]Feuil1!K168 -> 7.516666667 | K168: =[3]Feuil1!L168 -> 0 | L168: =[3]Feuil1!M168 -> 0 | M168: 9.793333333 | N168: 11 | O168: 2
A169: 160 | B169: BOUKHLIF | C169: MOHAMED | D169: =[1]Feuil1!K169 -> 8.466666667 | E169: =[1]Feuil1!L169 -> 0 | F169: =[1]Feuil1!M169 -> 1 | G169: =[2]Feuil1!K169 -> 0 | H169: =[2]Feuil1!L169 -> 0 | I169: =[2]Feuil1!M169 -> 1 | J169: =[3]Feuil1!K169 -> 2.016666667 | K169: =[3]Feuil1!L169 -> 0 | L169: =[3]Feuil1!M169 -> 0 | M169: 4.193333333 | N169: 0 | O169: 2
A170: 161 | B170: BOUKOULA | C170: HAFID | D170: =[1]Feuil1!K170 -> 5.933333333 | E170: =[1]Feuil1!L170 -> 0 | F170: =[1]Feuil1!M170 -> 1 | G170: =[2]Feuil1!K170 -> 6.6 | H170: =[2]Feuil1!L170 -> 0 | I170: =[2]Feuil1!M170 -> 1 | J170: =[3]Feuil1!K170 -> 6.916666667 | K170: =[3]Feuil1!L170 -> 0 | L170: =[3]Feuil1!M170 -> 0 | M170: 6.46 | N170: 0 | O170: 2
A171: 162 | B171: BOUMAZA | C171: FATIMA ZOHRA | D171: =[1]Feuil1!K171 -> 11.31666667 | E171: =[1]Feuil1!L171 -> 6 | F171: =[1]Feuil1!M171 -> 1 | G171: =[2]Feuil1!K171 -> 7.75 | H171: =[2]Feuil1!L171 -> 0 | I171: =[2]Feuil1!M171 -> 1 | J171: =[3]Feuil1!K171 -> 10.78333333 | K171: =[3]Feuil1!L171 -> 6 | L171: =[3]Feuil1!M171 -> 6 | M171: 10.39 | N171: 17 | O171: 2
A172: 163 | B172: BOUMESSAOUD | C172: SARA | D172: =[1]Feuil1!K172 -> 8.733333333 | E172: =[1]Feuil1!L172 -> 0 | F172: =[1]Feuil1!M172 -> 1 | G172: =[2]Feuil1!K172 -> 12.76666667 | H172: =[2]Feuil1!L172 -> 5 | I172: =[2]Feuil1!M172 -> 1 | J172: =[3]Feuil1!K172 -> 9.033333333 | K172: =[3]Feuil1!L172 -> 0 | L172: =[3]Feuil1!M172 -> 0 | M172: 9.66 | N172: 5 | O172: 2
A173: 164 | B173: BOUNEDJAR | C173: DJALLEL | D173: =[1]Feuil1!K173 -> 0 | E173: =[1]Feuil1!L173 -> 0 | F173: =[1]Feuil1!M173 -> 1 | G173: =[2]Feuil1!K173 -> 0 | H173: =[2]Feuil1!L173 -> 0 | I173: =[2]Feuil1!M173 -> 1 | J173: =[3]Feuil1!K173 -> 0 | K173: =[3]Feuil1!L173 -> 0 | L173: =[3]Feuil1!M173 -> 0 | M173: 0 | N173: 0 | O173: 2
A174: 165 | B174: BOURANE | C174: MOKHTAR | D174: =[1]Feuil1!K174 -> 8.783333333 | E174: =[1]Feuil1!L174 -> 0 | F174: =[1]Feuil1!M174 -> 1 | G174: =[2]Feuil1!K174 -> 8.133333333 | H174: =[2]Feuil1!L174 -> 0 | I174: =[2]Feuil1!M174 -> 2 | J174: =[3]Feuil1!K174 -> 10.88333333 | K174: =[3]Feuil1!L174 -> 6 | L174: =[3]Feuil1!M174 -> 6 | M174: 9.493333333 | N174: 6 | O174: 2
A175: 166 | B175: BOURASS | C175: AHMED | D175: =[1]Feuil1!K175 -> 7.533333333 | E175: =[1]Feuil1!L175 -> 0 | F175: =[1]Feuil1!M175 -> 1 | G175: =[2]Feuil1!K175 -> 8.3 | H175: =[2]Feuil1!L175 -> 0 | I175: =[2]Feuil1!M175 -> 1 | J175: =[3]Feuil1!K175 -> 12.96666667 | K175: =[3]Feuil1!L175 -> 6 | L175: =[3]Feuil1!M175 -> 6 | M175: 9.86 | N175: 6 | O175: 2
A176: 167 | B176: BOUROUIS | C176: ANSSAR | D176: =[1]Feuil1!K176 -> 0 | E176: =[1]Feuil1!L176 -> 0 | F176: =[1]Feuil1!M176 -> 1 | G176: =[2]Feuil1!K176 -> 0 | H176: =[2]Feuil1!L176 -> 0 | I176: =[2]Feuil1!M176 -> 1 | J176: =[3]Feuil1!K176 -> 0 | K176: =[3]Feuil1!L176 -> 0 | L176: =[3]Feuil1!M176 -> 0 | M176: 0 | N176: 0 | O176: 2
A177: 168 | B177: BOUTIBA | C177: HOUARI | D177: =[1]Feuil1!K177 -> 7.116666667 | E177: =[1]Feuil1!L177 -> 0 | F177: =[1]Feuil1!M177 -> 1 | G177: =[2]Feuil1!K177 -> 8.4 | H177: =[2]Feuil1!L177 -> 0 | I177: =[2]Feuil1!M177 -> 2 | J177: =[3]Feuil1!K177 -> 8.6 | K177: =[3]Feuil1!L177 -> 0 | L177: =[3]Feuil1!M177 -> 0 | M177: 7.966666667 | N177: 0 | O177: 2
A178: 169 | B178: BOUTOUIL | C178: ABDELMELEK | D178: =[1]Feuil1!K178 -> 5.2 | E178: =[1]Feuil1!L178 -> 0 | F178: =[1]Feuil1!M178 -> 1 | G178: =[2]Feuil1!K178 -> 6.933333333 | H178: =[2]Feuil1!L178 -> 0 | I178: =[2]Feuil1!M178 -> 2 | J178: =[3]Feuil1!K178 -> 10.53333333 | K178: =[3]Feuil1!L178 -> 6 | L178: =[3]Feuil1!M178 -> 6 | M178: 7.68 | N178: 6 | O178: 2
A179: 170 | B179: BOUYAKOUB | C179: MOKHTAR | D179: =[1]Feuil1!K179 -> 8.016666667 | E179: =[1]Feuil1!L179 -> 0 | F179: =[1]Feuil1!M179 -> 1 | G179: =[2]Feuil1!K179 -> 7.733333333 | H179: =[2]Feuil1!L179 -> 0 | I179: =[2]Feuil1!M179 -> 2 | J179: =[3]Feuil1!K179 -> 10.03333333 | K179: =[3]Feuil1!L179 -> 6 | L179: =[3]Feuil1!M179 -> 6 | M179: 8.766666667 | N179: 6 | O179: 2
A180: 171 | B180: BOUZID | C180: DJOHAR | D180: =[1]Feuil1!K180 -> 7.9 | E180: =[1]Feuil1!L180 -> 0 | F180: =[1]Feuil1!M180 -> 1 | G180: =[2]Feuil1!K180 -> 6.966666667 | H180: =[2]Feuil1!L180 -> 0 | I180: =[2]Feuil1!M180 -> 2 | J180: =[3]Feuil1!K180 -> 8.633333333 | K180: =[3]Feuil1!L180 -> 0 | L180: =[3]Feuil1!M180 -> 0 | M180: 8.006666667 | N180: 0 | O180: 2
A181: 172 | B181: BOUZID | C181: HADJA YAMINA | D181: =[1]Feuil1!K181 -> 7.116666667 | E181: =[1]Feuil1!L181 -> 0 | F181: =[1]Feuil1!M181 -> 1 | G181: =[2]Feuil1!K181 -> 10.2 | H181: =[2]Feuil1!L181 -> 5 | I181: =[2]Feuil1!M181 -> 1 | J181: =[3]Feuil1!K181 -> 8.783333333 | K181: =[3]Feuil1!L181 -> 0 | L181: =[3]Feuil1!M181 -> 0 | M181: 8.4 | N181: 5 | O181: 2
A182: 173 | B182: BRAHIMI | C182: NAIMA | D182: =[1]Feuil1!K182 -> 15.53333333 | E182: =[1]Feuil1!L182 -> 6 | F182: =[1]Feuil1!M182 -> 1 | G182: =[2]Feuil1!K182 -> 11.56666667 | H182: =[2]Feuil1!L182 -> 5 | I182: =[2]Feuil1!M182 -> 1 | J182: =[3]Feuil1!K182 -> 11.88333333 | K182: =[3]Feuil1!L182 -> 6 | L182: =[3]Feuil1!M182 -> 6 | M182: 13.28 | N182: 17 | O182: 2
A183: 174 | B183: BRAHIMI | C183: SID AHMED | D183: =[1]Feuil1!K183 -> 8.15 | E183: =[1]Feuil1!L183 -> 0 | F183: =[1]Feuil1!M183 -> 1 | G183: =[2]Feuil1!K183 -> 7.416666667 | H183: =[2]Feuil1!L183 -> 0 | I183: =[2]Feuil1!M183 -> 2 | J183: =[3]Feuil1!K183 -> 9.15 | K183: =[3]Feuil1!L183 -> 0 | L183: =[3]Feuil1!M183 -> 0 | M183: 8.403333333 | N183: 0 | O183: 2
A184: 175 | B184: BRAIK | C184: AHMED TAHAR ILYAS | D184: =[1]Feuil1!K184 -> 8.466666667 | E184: =[1]Feuil1!L184 -> 0 | F184: =[1]Feuil1!M184 -> 1 | G184: =[2]Feuil1!K184 -> 10.06666667 | H184: =[2]Feuil1!L184 -> 5 | I184: =[2]Feuil1!M184 -> 1 | J184: =[3]Feuil1!K184 -> 10.85 | K184: =[3]Feuil1!L184 -> 6 | L184: =[3]Feuil1!M184 -> 6 | M184: 9.74 | N184: 11 | O184: 2
A185: 176 | B185: BRIKI | C185: NOUR ELHOUDA | D185: =[1]Feuil1!K185 -> 10.23333333 | E185: =[1]Feuil1!L185 -> 6 | F185: =[1]Feuil1!M185 -> 1 | G185: =[2]Feuil1!K185 -> 10.91666667 | H185: =[2]Feuil1!L185 -> 5 | I185: =[2]Feuil1!M185 -> 1 | J185: =[3]Feuil1!K185 -> 8.55 | K185: =[3]Feuil1!L185 -> 0 | L185: =[3]Feuil1!M185 -> 0 | M185: 9.696666667 | N185: 11 | O185: 2
A186: 177 | B186: CHACHOU | C186: MOHAMED EL AMINE | D186: =[1]Feuil1!K186 -> 0 | E186: =[1]Feuil1!L186 -> 0 | F186: =[1]Feuil1!M186 -> 1 | G186: =[2]Feuil1!K186 -> 0 | H186: =[2]Feuil1!L186 -> 0 | I186: =[2]Feuil1!M186 -> 1 | J186: =[3]Feuil1!K186 -> 0 | K186: =[3]Feuil1!L186 -> 0 | L186: =[3]Feuil1!M186 -> 0 | M186: 0 | N186: 0 | O186: 2
A187: 178 | B187: CHAIB | C187: FATIMA ZOHRA | D187: =[1]Feuil1!K187 -> 6.733333333 | E187: =[1]Feuil1!L187 -> 0 | F187: =[1]Feuil1!M187 -> 1 | G187: =[2]Feuil1!K187 -> 7.2 | H187: =[2]Feuil1!L187 -> 0 | I187: =[2]Feuil1!M187 -> 2 | J187: =[3]Feuil1!K187 -> 9.316666667 | K187: =[3]Feuil1!L187 -> 0 | L187: =[3]Feuil1!M187 -> 0 | M187: 7.86 | N187: 0 | O187: 2
A188: 179 | B188: CHAKI | C188: ABDELMADJID | D188: =[1]Feuil1!K188 -> 9.983333333 | E188: =[1]Feuil1!L188 -> 0 | F188: =[1]Feuil1!M188 -> 1 | G188: =[2]Feuil1!K188 -> 13.31666667 | H188: =[2]Feuil1!L188 -> 5 | I188: =[2]Feuil1!M188 -> 1 | J188: =[3]Feuil1!K188 -> 6.9 | K188: =[3]Feuil1!L188 -> 0 | L188: =[3]Feuil1!M188 -> 0 | M188: 9.416666667 | N188: 5 | O188: 2
A189: 180 | B189: CHAKOR | C189: KAOUTER NESRINE | D189: =[1]Feuil1!K189 -> 0 | E189: =[1]Feuil1!L189 -> 0 | F189: =[1]Feuil1!M189 -> 1 | G189: =[2]Feuil1!K189 -> 0 | H189: =[2]Feuil1!L189 -> 0 | I189: =[2]Feuil1!M189 -> 1 | J189: =[3]Feuil1!K189 -> 0 | K189: =[3]Feuil1!L189 -> 0 | L189: =[3]Feuil1!M189 -> 0 | M189: 0 | N189: 0 | O189: 2
A190: 181 | B190: CHEBOUB | C190: AMARIA | D190: =[1]Feuil1!K190 -> 0 | E190: =[1]Feuil1!L190 -> 0 | F190: =[1]Feuil1!M190 -> 1 | G190: =[2]Feuil1!K190 -> 0 | H190: =[2]Feuil1!L190 -> 0 | I190: =[2]Feuil1!M190 -> 1 | J190: =[3]Feuil1!K190 -> 0 | K190: =[3]Feuil1!L190 -> 0 | L190: =[3]Feuil1!M190 -> 0 | M190: 0 | N190: 0 | O190: 2
A191: 182 | B191: CHEMRAK | C191: SIHEM | D191: =[1]Feuil1!K191 -> 0 | E191: =[1]Feuil1!L191 -> 0 | F191: =[1]Feuil1!M191 -> 1 | G191: =[2]Feuil1!K191 -> 0 | H191: =[2]Feuil1!L191 -> 0 | I191: =[2]Feuil1!M191 -> 1 | J191: =[3]Feuil1!K191 -> 0.1333333333 | K191: =[3]Feuil1!L191 -> 0 | L191: =[3]Feuil1!M191 -> 0 | M191: 0.05333333333 | N191: 0 | O191: 2
A192: 183 | B192: CHENAFA | C192: YASSAMINE | D192: =[1]Feuil1!K192 -> 12.8 | E192: =[1]Feuil1!L192 -> 6 | F192: =[1]Feuil1!M192 -> 1 | G192: =[2]Feuil1!K192 -> 12.16666667 | H192: =[2]Feuil1!L192 -> 5 | I192: =[2]Feuil1!M192 -> 1 | J192: =[3]Feuil1!K192 -> 15.43333333 | K192: =[3]Feuil1!L192 -> 6 | L192: =[3]Feuil1!M192 -> 6 | M192: 13.72666667 | N192: 17 | O192: 2
A193: 184 | B193: CHERFI | C193: MOHAMED EL AMINE | D193: =[1]Feuil1!K193 -> 7.233333333 | E193: =[1]Feuil1!L193 -> 0 | F193: =[1]Feuil1!M193 -> 1 | G193: =[2]Feuil1!K193 -> 4.8 | H193: =[2]Feuil1!L193 -> 0 | I193: =[2]Feuil1!M193 -> 1 | J193: =[3]Feuil1!K193 -> 5.933333333 | K193: =[3]Feuil1!L193 -> 0 | L193: =[3]Feuil1!M193 -> 0 | M193: 6.226666667 | N193: 0 | O193: 2
A194: 185 | B194: CHERGUI | C194: AMIRA | D194: =[1]Feuil1!K194 -> 7.75 | E194: =[1]Feuil1!L194 -> 0 | F194: =[1]Feuil1!M194 -> 1 | G194: =[2]Feuil1!K194 -> 7.733333333 | H194: =[2]Feuil1!L194 -> 0 | I194: =[2]Feuil1!M194 -> 2 | J194: =[3]Feuil1!K194 -> 7.45 | K194: =[3]Feuil1!L194 -> 0 | L194: =[3]Feuil1!M194 -> 0 | M194: 7.626666667 | N194: 0 | O194: 2
A195: 186 | B195: CHEURFAOUI | C195: NAWEL | D195: =[1]Feuil1!K195 -> 8.533333333 | E195: =[1]Feuil1!L195 -> 0 | F195: =[1]Feuil1!M195 -> 1 | G195: =[2]Feuil1!K195 -> 10.1 | H195: =[2]Feuil1!L195 -> 5 | I195: =[2]Feuil1!M195 -> 1 | J195: =[3]Feuil1!K195 -> 5.816666667 | K195: =[3]Feuil1!L195 -> 0 | L195: =[3]Feuil1!M195 -> 0 | M195: 7.76 | N195: 5 | O195: 2
A196: 187 | B196: CHIBANI | C196: ABDELKADER | D196: =[1]Feuil1!K196 -> 13.2 | E196: =[1]Feuil1!L196 -> 6 | F196: =[1]Feuil1!M196 -> 1 | G196: =[2]Feuil1!K196 -> 13.83333333 | H196: =[2]Feuil1!L196 -> 5 | I196: =[2]Feuil1!M196 -> 1 | J196: =[3]Feuil1!K196 -> 12.63333333 | K196: =[3]Feuil1!L196 -> 6 | L196: =[3]Feuil1!M196 -> 6 | M196: 13.1 | N196: 17 | O196: 2
A197: 188 | B197: CHIKHAOUI | C197: NOUREDDINE | D197: =[1]Feuil1!K197 -> 2.8 | E197: =[1]Feuil1!L197 -> 0 | F197: =[1]Feuil1!M197 -> 1 | G197: =[2]Feuil1!K197 -> 3.466666667 | H197: =[2]Feuil1!L197 -> 0 | I197: =[2]Feuil1!M197 -> 1 | J197: =[3]Feuil1!K197 -> 3.95 | K197: =[3]Feuil1!L197 -> 0 | L197: =[3]Feuil1!M197 -> 0 | M197: 3.393333333 | N197: 0 | O197: 2
A198: 189 | B198: DAHMANE | C198: OUSSAMA | D198: =[1]Feuil1!K198 -> 8.016666667 | E198: =[1]Feuil1!L198 -> 0 | F198: =[1]Feuil1!M198 -> 1 | G198: =[2]Feuil1!K198 -> 11.78333333 | H198: =[2]Feuil1!L198 -> 5 | I198: =[2]Feuil1!M198 -> 1 | J198: =[3]Feuil1!K198 -> 10.8 | K198: =[3]Feuil1!L198 -> 6 | L198: =[3]Feuil1!M198 -> 6 | M198: 9.883333333 | N198: 11 | O198: 2
A199: 190 | B199: DAHMANI | C199: AICHA | D199: =[1]Feuil1!K199 -> 8.85 | E199: =[1]Feuil1!L199 -> 0 | F199: =[1]Feuil1!M199 -> 1 | G199: =[2]Feuil1!K199 -> 11.33333333 | H199: =[2]Feuil1!L199 -> 5 | I199: =[2]Feuil1!M199 -> 1 | J199: =[3]Feuil1!K199 -> 12.61666667 | K199: =[3]Feuil1!L199 -> 6 | L199: =[3]Feuil1!M199 -> 6 | M199: 10.85333333 | N199: 17 | O199: 2
A200: 191 | B200: DAHMECHE | C200: HADJER | D200: =[1]Feuil1!K200 -> 8.4 | E200: =[1]Feuil1!L200 -> 0 | F200: =[1]Feuil1!M200 -> 1 | G200: =[2]Feuil1!K200 -> 7.733333333 | H200: =[2]Feuil1!L200 -> 0 | I200: =[2]Feuil1!M200 -> 2 | J200: =[3]Feuil1!K200 -> 9.083333333 | K200: =[3]Feuil1!L200 -> 0 | L200: =[3]Feuil1!M200 -> 0 | M200: 8.54 | N200: 0 | O200: 2
... 204 more rows

Sheet UED11
A1: MINISTERE DE L’ENSEIGNEMENT SUPERIEUR ET DE LA RECHERCHE SCIENTIFIQUE
A2: UNIVERSITE ABDELHAMID IBN BADIS MOSTAGANEM | D2: جامعــة عبد الحميد ابن باديس مستغانم
A3: FACULTE DES SCIENCES EXACTES ET DE L’INFORMATIQUE | D3: كلية العلوم الدقيقة و الأعلام الألي
A4: DEPARTEMENT DE MATHEMATIQUES ET INFORMATIQUE | D4: قسم الرياضيات و الأعلام الألي
A5: Première Année - Mathématiques et Informatique
A6: PV du 1ier Semestre-2015/2016
A7: UED11
D8: Codage | G8: Electronic | J8: UED11
A9: N° | B9: Nom | C9: Prénom | D9: Note | E9: Crédit | F9: Sess | G9: Note | H9: Crédit | I9: Sess | J9: Note | K9: Crédit | L9: Session
A10: 1 | B10: ABBABSA | C10: RAHMA | D10: =[4]Feuil1!K10 -> 13.30666667 | E10: =[4]Feuil1!L10 -> 2 | F10: =[4]Feuil1!M10 -> 1 | G10: =[5]Feuil1!K10 -> 13.18666667 | H10: =[5]Feuil1!L10 -> 2 | I10: =[5]Feuil1!M10 -> 1 | J10: =(D10+G10)/2 -> 13.24666667 | K10: =IF(J10>=10,4,E10+H10) -> 4 | L10: =IF(AND(F10="1", I10="1"),"1","2") -> 1
A11: 2 | B11: ABBAS | C11: AHMED | D11: =[4]Feuil1!K11 -> 14.06666667 | E11: =[4]Feuil1!L11 -> 2 | F11: =[4]Feuil1!M11 -> 2 | G11: =[5]Feuil1!K11 -> 12.2 | H11: =[5]Feuil1!L11 -> 2 | I11: =[5]Feuil1!M11 -> 1 | J11: 13.13333333 | K11: 4 | L11: 2
A12: 3 | B12: ABBES | C12: GHOZLENE | D12: =[4]Feuil1!K12 -> 11.75 | E12: =[4]Feuil1!L12 -> 2 | F12: =[4]Feuil1!M12 -> 1 | G12: =[5]Feuil1!K12 -> 12.08333333 | H12: =[5]Feuil1!L12 -> 2 | I12: =[5]Feuil1!M12 -> 1 | J12: 11.91666667 | K12: 4 | L12: 1
A13: 4 | B13: ABBES | C13: MOHAMED EL AMINE | D13: =[4]Feuil1!K13 -> 15.26666667 | E13: =[4]Feuil1!L13 -> 2 | F13: =[4]Feuil1!M13 -> 1 | G13: =[5]Feuil1!K13 -> 11.55 | H13: =[5]Feuil1!L13 -> 2 | I13: =[5]Feuil1!M13 -> 1 | J13: 13.40833333 | K13: 4 | L13: 1
A14: 5 | B14: ABBOU | C14: FATIHA | D14: =[4]Feuil1!K14 -> 14.33333333 | E14: =[4]Feuil1!L14 -> 2 | F14: =[4]Feuil1!M14 -> 1 | G14: =[5]Feuil1!K14 -> 16.93333333 | H14: =[5]Feuil1!L14 -> 2 | I14: =[5]Feuil1!M14 -> 1 | J14: 15.63333333 | K14: 4 | L14: 1
A15: 6 | B15: ABBOUD | C15: SALIHA | D15: =[4]Feuil1!K15 -> 12.26666667 | E15: =[4]Feuil1!L15 -> 2 | F15: =[4]Feuil1!M15 -> 1 | G15: =[5]Feuil1!K15 -> 6.8 | H15: =[5]Feuil1!L15 -> 0 | I15: =[5]Feuil1!M15 -> 1 | J15: 9.533333333 | K15: 2 | L15: 1
A16: 7 | B16: ABDELLAOUI | C16: NADIA | D16: =[4]Feuil1!K16 -> 9.666666667 | E16: =[4]Feuil1!L16 -> 0 | F16: =[4]Feuil1!M16 -> 1 | G16: =[5]Feuil1!K16 -> 7.566666667 | H16: =[5]Feuil1!L16 -> 0 | I16: =[5]Feuil1!M16 -> 1 | J16: 8.616666667 | K16: 0 | L16: 1
A17: 8 | B17: ABDELNEBI | C17: AMIRA | D17: =[4]Feuil1!K17 -> 15.45 | E17: =[4]Feuil1!L17 -> 2 | F17: =[4]Feuil1!M17 -> 1 | G17: =[5]Feuil1!K17 -> 17.4 | H17: =[5]Feuil1!L17 -> 2 | I17: =[5]Feuil1!M17 -> 1 | J17: 16.425 | K17: 4 | L17: 1
A18: 9 | B18: ABDELOUHAB | C18: NEDJWA ZAHRA | D18: =[4]Feuil1!K18 -> 13.36666667 | E18: =[4]Feuil1!L18 -> 2 | F18: =[4]Feuil1!M18 -> 1 | G18: =[5]Feuil1!K18 -> 4.666666667 | H18: =[5]Feuil1!L18 -> 0 | I18: =[5]Feuil1!M18 -> 1 | J18: 9.016666667 | K18: 2 | L18: 1
A19: 10 | B19: ABDOUNI | C19: AMIN | D19: =[4]Feuil1!K19 -> 12.73333333 | E19: =[4]Feuil1!L19 -> 2 | F19: =[4]Feuil1!M19 -> 1 | G19: =[5]Feuil1!K19 -> 12.05333333 | H19: =[5]Feuil1!L19 -> 2 | I19: =[5]Feuil1!M19 -> 1 | J19: 12.39333333 | K19: 4 | L19: 1
A20: 11 | B20: ABEID | C20: ZOHRA | D20: =[4]Feuil1!K20 -> 10 | E20: =[4]Feuil1!L20 -> 2 | F20: =[4]Feuil1!M20 -> 1 | G20: =[5]Feuil1!K20 -> 12.56666667 | H20: =[5]Feuil1!L20 -> 2 | I20: =[5]Feuil1!M20 -> 2 | J20: 11.28333333 | K20: 4 | L20: 2
A21: 12 | B21: ACHOUR | C21: ABDENOUR | D21: =[4]Feuil1!K21 -> 11.73333333 | E21: =[4]Feuil1!L21 -> 2 | F21: =[4]Feuil1!M21 -> 2 | G21: =[5]Feuil1!K21 -> 16.13333333 | H21: =[5]Feuil1!L21 -> 2 | I21: =[5]Feuil1!M21 -> 1 | J21: 13.93333333 | K21: 4 | L21: 2
A22: 13 | B22: ADDA | C22: ABDERRAHIM | D22: =[4]Feuil1!K22 -> 13.13333333 | E22: =[4]Feuil1!L22 -> 2 | F22: =[4]Feuil1!M22 -> 2 | G22: =[5]Feuil1!K22 -> 7.066666667 | H22: =[5]Feuil1!L22 -> 0 | I22: =[5]Feuil1!M22 -> 1 | J22: 10.1 | K22: 4 | L22: 2
A23: 14 | B23: ADDA | C23: HOUSSAM | D23: =[4]Feuil1!K23 -> 3.5 | E23: =[4]Feuil1!L23 -> 0 | F23: =[4]Feuil1!M23 -> 1 | G23: =[5]Feuil1!K23 -> 3.933333333 | H23: =[5]Feuil1!L23 -> 0 | I23: =[5]Feuil1!M23 -> 1 | J23: 3.716666667 | K23: 0 | L23: 1
A24: 15 | B24: ADDA | C24: SAID | D24: =[4]Feuil1!K24 -> 8.3 | E24: =[4]Feuil1!L24 -> 0 | F24: =[4]Feuil1!M24 -> 1 | G24: =[5]Feuil1!K24 -> 14.83333333 | H24: =[5]Feuil1!L24 -> 2 | I24: =[5]Feuil1!M24 -> 1 | J24: 11.56666667 | K24: 4 | L24: 1
A25: 16 | B25: AGBOUBI | C25: M'HAMED YASSINE | D25: =[4]Feuil1!K25 -> 9.75 | E25: =[4]Feuil1!L25 -> 0 | F25: =[4]Feuil1!M25 -> 1 | G25: =[5]Feuil1!K25 -> 13.2 | H25: =[5]Feuil1!L25 -> 2 | I25: =[5]Feuil1!M25 -> 1 | J25: 11.475 | K25: 4 | L25: 1
A26: 17 | B26: AHMED BACHA | C26: BILAL | D26: =[4]Feuil1!K26 -> 0 | E26: =[4]Feuil1!L26 -> 0 | F26: =[4]Feuil1!M26 -> 1 | G26: =[5]Feuil1!K26 -> 0 | H26: =[5]Feuil1!L26 -> 0 | I26: =[5]Feuil1!M26 -> 1 | J26: 0 | K26: 0 | L26: 1
A27: 18 | B27: AHMED KHODJA | C27: SOUMIA | D27: =[4]Feuil1!K27 -> 10.01666667 | E27: =[4]Feuil1!L27 -> 2 | F27: =[4]Feuil1!M27 -> 1 | G27: =[5]Feuil1!K27 -> 14.93333333 | H27: =[5]Feuil1!L27 -> 2 | I27: =[5]Feuil1!M27 -> 1 | J27: 12.475 | K27: 4 | L27: 1
A28: 19 | B28: AIMOUCH | C28: ABDESSAMED | D28: =[4]Feuil1!K28 -> 8.533333333 | E28: =[4]Feuil1!L28 -> 0 | F28: =[4]Feuil1!M28 -> 1 | G28: =[5]Feuil1!K28 -> 14.9 | H28: =[5]Feuil1!L28 -> 2 | I28: =[5]Feuil1!M28 -> 1 | J28: 11.71666667 | K28: 4 | L28: 1
A29: 20 | B29: AIMOUCH | C29: BADRA | D29: =[4]Feuil1!K29 -> 12.7 | E29: =[4]Feuil1!L29 -> 2 | F29: =[4]Feuil1!M29 -> 1 | G29: =[5]Feuil1!K29 -> 17.03333333 | H29: =[5]Feuil1!L29 -> 2 | I29: =[5]Feuil1!M29 -> 1 | J29: 14.86666667 | K29: 4 | L29: 1
A30: 21 | B30: AISSA | C30: SIHEM | D30: =[4]Feuil1!K30 -> 0 | E30: =[4]Feuil1!L30 -> 0 | F30: =[4]Feuil1!M30 -> 1 | G30: =[5]Feuil1!K30 -> 6.6 | H30: =[5]Feuil1!L30 -> 0 | I30: =[5]Feuil1!M30 -> 1 | J30: 3.3 | K30: 0 | L30: 1
A31: 22 | B31: AISSAT | C31: ABDERRAHMANE KADDOUR | D31: =[4]Feuil1!K31 -> 4.916666667 | E31: =[4]Feuil1!L31 -> 0 | F31: =[4]Feuil1!M31 -> 1 | G31: =[5]Feuil1!K31 -> 11.85 | H31: =[5]Feuil1!L31 -> 2 | I31: =[5]Feuil1!M31 -> 1 | J31: 8.383333333 | K31: 2 | L31: 1
A32: 23 | B32: AIT OUALI | C32: LINDA | D32: =[4]Feuil1!K32 -> 10.65 | E32: =[4]Feuil1!L32 -> 2 | F32: =[4]Feuil1!M32 -> 1 | G32: =[5]Feuil1!K32 -> 14.9 | H32: =[5]Feuil1!L32 -> 2 | I32: =[5]Feuil1!M32 -> 1 | J32: 12.775 | K32: 4 | L32: 1
A33: 24 | B33: AKROUM | C33: YOUCEF | D33: =[4]Feuil1!K33 -> 9.866666667 | E33: =[4]Feuil1!L33 -> 0 | F33: =[4]Feuil1!M33 -> 1 | G33: =[5]Feuil1!K33 -> 8.9 | H33: =[5]Feuil1!L33 -> 0 | I33: =[5]Feuil1!M33 -> 1 | J33: 9.383333333 | K33: 0 | L33: 1
A34: 25 | B34: ALLOUCH | C34: NADIA | D34: =[4]Feuil1!K34 -> 14.25 | E34: =[4]Feuil1!L34 -> 2 | F34: =[4]Feuil1!M34 -> 1 | G34: =[5]Feuil1!K34 -> 15.11666667 | H34: =[5]Feuil1!L34 -> 2 | I34: =[5]Feuil1!M34 -> 1 | J34: 14.68333333 | K34: 4 | L34: 1
A35: 26 | B35: AMAIRI | C35: CHAIMAA | D35: =[4]Feuil1!K35 -> 11.41666667 | E35: =[4]Feuil1!L35 -> 2 | F35: =[4]Feuil1!M35 -> 1 | G35: =[5]Feuil1!K35 -> 9.866666667 | H35: =[5]Feuil1!L35 -> 0 | I35: =[5]Feuil1!M35 -> 1 | J35: 10.64166667 | K35: 4 | L35: 1
A36: 27 | B36: AMMAR | C36: DJAMEL EDDINE | D36: =[4]Feuil1!K36 -> 0 | E36: =[4]Feuil1!L36 -> 0 | F36: =[4]Feuil1!M36 -> 1 | G36: =[5]Feuil1!K36 -> 0 | H36: =[5]Feuil1!L36 -> 0 | I36: =[5]Feuil1!M36 -> 1 | J36: 0 | K36: 0 | L36: 1
A37: 28 | B37: AMMAR | C37: MANAL | D37: =[4]Feuil1!K37 -> 10.41666667 | E37: =[4]Feuil1!L37 -> 2 | F37: =[4]Feuil1!M37 -> 1 | G37: =[5]Feuil1!K37 -> 12.53333333 | H37: =[5]Feuil1!L37 -> 2 | I37: =[5]Feuil1!M37 -> 1 | J37: 11.475 | K37: 4 | L37: 1
A38: 29 | B38: AMRANE | C38: AHMED | D38: =[4]Feuil1!K38 -> 10.96666667 | E38: =[4]Feuil1!L38 -> 2 | F38: =[4]Feuil1!M38 -> 1 | G38: =[5]Feuil1!K38 -> 12.06666667 | H38: =[5]Feuil1!L38 -> 2 | I38: =[5]Feuil1!M38 -> 1 | J38: 11.51666667 | K38: 4 | L38: 1
A39: 30 | B39: AMRANE | C39: HAFIDHA | D39: =[4]Feuil1!K39 -> 9.866666667 | E39: =[4]Feuil1!L39 -> 0 | F39: =[4]Feuil1!M39 -> 1 | G39: =[5]Feuil1!K39 -> 12.25 | H39: =[5]Feuil1!L39 -> 2 | I39: =[5]Feuil1!M39 -> 1 | J39: 11.05833333 | K39: 4 | L39: 1
A40: 31 | B40: AMRAOUI | C40: SOUFYANE | D40: =[4]Feuil1!K40 -> 5.116666667 | E40: =[4]Feuil1!L40 -> 0 | F40: =[4]Feuil1!M40 -> 1 | G40: =[5]Feuil1!K40 -> 8.633333333 | H40: =[5]Feuil1!L40 -> 0 | I40: =[5]Feuil1!M40 -> 2 | J40: 6.875 | K40: 0 | L40: 2
A41: 32 | B41: AMROUCHE | C41: NOURA | D41: =[4]Feuil1!K41 -> 8.183333333 | E41: =[4]Feuil1!L41 -> 0 | F41: =[4]Feuil1!M41 -> 1 | G41: =[5]Feuil1!K41 -> 10.13333333 | H41: =[5]Feuil1!L41 -> 2 | I41: =[5]Feuil1!M41 -> 1 | J41: 9.158333333 | K41: 2 | L41: 1
A42: 33 | B42: AOUAICHIA | C42: HANANE | D42: =[4]Feuil1!K42 -> 16.76666667 | E42: =[4]Feuil1!L42 -> 2 | F42: =[4]Feuil1!M42 -> 1 | G42: =[5]Feuil1!K42 -> 15.16666667 | H42: =[5]Feuil1!L42 -> 2 | I42: =[5]Feuil1!M42 -> 1 | J42: 15.96666667 | K42: 4 | L42: 1
A43: 34 | B43: ARAB | C43: NOUREDDINE | D43: =[4]Feuil1!K43 -> 0 | E43: =[4]Feuil1!L43 -> 0 | F43: =[4]Feuil1!M43 -> 1 | G43: =[5]Feuil1!K43 -> 0 | H43: =[5]Feuil1!L43 -> 0 | I43: =[5]Feuil1!M43 -> 1 | J43: 0 | K43: 0 | L43: 1
A44: 35 | B44: ATMANI | C44: FATIHA | D44: =[4]Feuil1!K44 -> 17.05 | E44: =[4]Feuil1!L44 -> 2 | F44: =[4]Feuil1!M44 -> 1 | G44: =[5]Feuil1!K44 -> 15.4 | H44: =[5]Feuil1!L44 -> 2 | I44: =[5]Feuil1!M44 -> 1 | J44: 16.225 | K44: 4 | L44: 1
A45: 36 | B45: AUODJ | C45: LARBI | D45: =[4]Feuil1!K45 -> 11.6 | E45: =[4]Feuil1!L45 -> 2 | F45: =[4]Feuil1!M45 -> 1 | G45: =[5]Feuil1!K45 -> 6.96 | H45: =[5]Feuil1!L45 -> 0 | I45: =[5]Feuil1!M45 -> 1 | J45: 9.28 | K45: 2 | L45: 1
A46: 37 | B46: AYAD | C46: NADJET | D46: =[4]Feuil1!K46 -> 12.578 | E46: =[4]Feuil1!L46 -> 2 | F46: =[4]Feuil1!M46 -> 1 | G46: =[5]Feuil1!K46 -> 17.1 | H46: =[5]Feuil1!L46 -> 2 | I46: =[5]Feuil1!M46 -> 1 | J46: 14.839 | K46: 4 | L46: 1
A47: 38 | B47: AZIL | C47: HALIMA | D47: =[4]Feuil1!K47 -> 12.528 | E47: =[4]Feuil1!L47 -> 2 | F47: =[4]Feuil1!M47 -> 1 | G47: =[5]Feuil1!K47 -> 12.83333333 | H47: =[5]Feuil1!L47 -> 2 | I47: =[5]Feuil1!M47 -> 1 | J47: 12.68066667 | K47: 4 | L47: 1
A48: 39 | B48: AZIRIA | C48: BILAL | D48: =[4]Feuil1!K48 -> 4.95 | E48: =[4]Feuil1!L48 -> 0 | F48: =[4]Feuil1!M48 -> 1 | G48: =[5]Feuil1!K48 -> 6.733333333 | H48: =[5]Feuil1!L48 -> 0 | I48: =[5]Feuil1!M48 -> 2 | J48: 5.841666667 | K48: 0 | L48: 2
A49: 40 | B49: BAALI | C49: NOR ELHOUDA | D49: =[4]Feuil1!K49 -> 9.216666667 | E49: =[4]Feuil1!L49 -> 0 | F49: =[4]Feuil1!M49 -> 1 | G49: =[5]Feuil1!K49 -> 11.4 | H49: =[5]Feuil1!L49 -> 2 | I49: =[5]Feuil1!M49 -> 1 | J49: 10.30833333 | K49: 4 | L49: 1
A50: 41 | B50: BAALI | C50: ZOULIKHA | D50: =[4]Feuil1!K50 -> 15.48333333 | E50: =[4]Feuil1!L50 -> 2 | F50: =[4]Feuil1!M50 -> 1 | G50: =[5]Feuil1!K50 -> 13.13333333 | H50: =[5]Feuil1!L50 -> 2 | I50: =[5]Feuil1!M50 -> 1 | J50: 14.30833333 | K50: 4 | L50: 1
A51: 42 | B51: BACHIR BEY | C51: ABDELHAMID | D51: =[4]Feuil1!K51 -> 3.211333333 | E51: =[4]Feuil1!L51 -> 0 | F51: =[4]Feuil1!M51 -> 1 | G51: =[5]Feuil1!K51 -> 5.666666667 | H51: =[5]Feuil1!L51 -> 0 | I51: =[5]Feuil1!M51 -> 2 | J51: 4.439 | K51: 0 | L51: 2
A52: 43 | B52: BAGHDOUD | C52: ASMAE | D52: =[4]Feuil1!K52 -> 16.6 | E52: =[4]Feuil1!L52 -> 2 | F52: =[4]Feuil1!M52 -> 1 | G52: =[5]Feuil1!K52 -> 16.06666667 | H52: =[5]Feuil1!L52 -> 2 | I52: =[5]Feuil1!M52 -> 1 | J52: 16.33333333 | K52: 4 | L52: 1
A53: 44 | B53: BAHLOUL | C53: MOHAMED AMINE | D53: =[4]Feuil1!K53 -> 8.883333333 | E53: =[4]Feuil1!L53 -> 0 | F53: =[4]Feuil1!M53 -> 1 | G53: =[5]Feuil1!K53 -> 5.2 | H53: =[5]Feuil1!L53 -> 0 | I53: =[5]Feuil1!M53 -> 1 | J53: 7.041666667 | K53: 0 | L53: 1
A54: 45 | B54: BAININE | C54: SID AHMED | D54: =[4]Feuil1!K54 -> 17.46666667 | E54: =[4]Feuil1!L54 -> 2 | F54: =[4]Feuil1!M54 -> 1 | G54: =[5]Feuil1!K54 -> 15.13333333 | H54: =[5]Feuil1!L54 -> 2 | I54: =[5]Feuil1!M54 -> 1 | J54: 16.3 | K54: 4 | L54: 1
A55: 46 | B55: BAKIR | C55: MOHAMMED | D55: =[4]Feuil1!K55 -> 0 | E55: =[4]Feuil1!L55 -> 0 | F55: =[4]Feuil1!M55 -> 1 | G55: =[5]Feuil1!K55 -> 1.6 | H55: =[5]Feuil1!L55 -> 0 | I55: =[5]Feuil1!M55 -> 1 | J55: 0.8 | K55: 0 | L55: 1
A56: 47 | B56: BARDAD | C56: NASSIBA | D56: =[4]Feuil1!K56 -> 0 | E56: =[4]Feuil1!L56 -> 0 | F56: =[4]Feuil1!M56 -> 1 | G56: =[5]Feuil1!K56 -> 0 | H56: =[5]Feuil1!L56 -> 0 | I56: =[5]Feuil1!M56 -> 1 | J56: 0 | K56: 0 | L56: 1
A57: 48 | B57: BARDAD | C57: NAZHA | D57: =[4]Feuil1!K57 -> 12.66133333 | E57: =[4]Feuil1!L57 -> 2 | F57: =[4]Feuil1!M57 -> 1 | G57: =[5]Feuil1!K57 -> 9.933333333 | H57: =[5]Feuil1!L57 -> 0 | I57: =[5]Feuil1!M57 -> 1 | J57: 11.29733333 | K57: 4 | L57: 1
A58: 49 | B58: BARKAT | C58: NASSIMA | D58: =[4]Feuil1!K58 -> 13.15 | E58: =[4]Feuil1!L58 -> 2 | F58: =[4]Feuil1!M58 -> 1 | G58: =[5]Feuil1!K58 -> 12.93333333 | H58: =[5]Feuil1!L58 -> 2 | I58: =[5]Feuil1!M58 -> 1 | J58: 13.04166667 | K58: 4 | L58: 1
A59: 50 | B59: BEGUELOUL | C59: AZZEDINE | D59: =[4]Feuil1!K59 -> 10.93333333 | E59: =[4]Feuil1!L59 -> 2 | F59: =[4]Feuil1!M59 -> 1 | G59: =[5]Feuil1!K59 -> 12.2 | H59: =[5]Feuil1!L59 -> 2 | I59: =[5]Feuil1!M59 -> 1 | J59: 11.56666667 | K59: 4 | L59: 1
A60: 51 | B60: BEHLOUL | C60: ARBIA | D60: =[4]Feuil1!K60 -> 11.19466667 | E60: =[4]Feuil1!L60 -> 2 | F60: =[4]Feuil1!M60 -> 1 | G60: =[5]Feuil1!K60 -> 11.16666667 | H60: =[5]Feuil1!L60 -> 2 | I60: =[5]Feuil1!M60 -> 1 | J60: 11.18066667 | K60: 4 | L60: 1
A61: 52 | B61: BEKADDOR BENATIA | C61: ABDALLAH | D61: =[4]Feuil1!K61 -> 6.933333333 | E61: =[4]Feuil1!L61 -> 0 | F61: =[4]Feuil1!M61 -> 1 | G61: =[5]Feuil1!K61 -> 6.666666667 | H61: =[5]Feuil1!L61 -> 0 | I61: =[5]Feuil1!M61 -> 2 | J61: 6.8 | K61: 0 | L61: 2
A62: 53 | B62: BEKADDOUR | C62: FATIMA | D62: =[4]Feuil1!K62 -> 13.06666667 | E62: =[4]Feuil1!L62 -> 2 | F62: =[4]Feuil1!M62 -> 1 | G62: =[5]Feuil1!K62 -> 14.83333333 | H62: =[5]Feuil1!L62 -> 2 | I62: =[5]Feuil1!M62 -> 1 | J62: 13.95 | K62: 4 | L62: 1
A63: 54 | B63: BEKKA | C63: HOUCINE | D63: =[4]Feuil1!K63 -> 15.83333333 | E63: =[4]Feuil1!L63 -> 2 | F63: =[4]Feuil1!M63 -> 1 | G63: =[5]Feuil1!K63 -> 15.33333333 | H63: =[5]Feuil1!L63 -> 2 | I63: =[5]Feuil1!M63 -> 1 | J63: 15.58333333 | K63: 4 | L63: 1
A64: 55 | B64: BELABBES | C64: FAISAL | D64: =[4]Feuil1!K64 -> 6.95 | E64: =[4]Feuil1!L64 -> 0 | F64: =[4]Feuil1!M64 -> 1 | G64: =[5]Feuil1!K64 -> 8.9 | H64: =[5]Feuil1!L64 -> 0 | I64: =[5]Feuil1!M64 -> 2 | J64: 7.925 | K64: 0 | L64: 2
A65: 56 | B65: BELACEL | C65: M'HAMMED | D65: =[4]Feuil1!K65 -> 9.116666667 | E65: =[4]Feuil1!L65 -> 0 | F65: =[4]Feuil1!M65 -> 1 | G65: =[5]Feuil1!K65 -> 10.43333333 | H65: =[5]Feuil1!L65 -> 2 | I65: =[5]Feuil1!M65 -> 1 | J65: 9.775 | K65: 2 | L65: 1
A66: 57 | B66: BELACEL | C66: MOHAMED ELAMINE | D66: =[4]Feuil1!K66 -> 0 | E66: =[4]Feuil1!L66 -> 0 | F66: =[4]Feuil1!M66 -> 1 | G66: =[5]Feuil1!K66 -> 0 | H66: =[5]Feuil1!L66 -> 0 | I66: =[5]Feuil1!M66 -> 1 | J66: 0 | K66: 0 | L66: 1
A67: 58 | B67: BELADJAL | C67: SAMIA | D67: =[4]Feuil1!K67 -> 16.28333333 | E67: =[4]Feuil1!L67 -> 2 | F67: =[4]Feuil1!M67 -> 1 | G67: =[5]Feuil1!K67 -> 10.11666667 | H67: =[5]Feuil1!L67 -> 2 | I67: =[5]Feuil1!M67 -> 1 | J67: 13.2 | K67: 4 | L67: 1
A68: 59 | B68: BELADJEL | C68: MOHAMED EL AMINE | D68: =[4]Feuil1!K68 -> 3.833333333 | E68: =[4]Feuil1!L68 -> 0 | F68: =[4]Feuil1!M68 -> 1 | G68: =[5]Feuil1!K68 -> 9.266666667 | H68: =[5]Feuil1!L68 -> 0 | I68: =[5]Feuil1!M68 -> 2 | J68: 6.55 | K68: 0 | L68: 2
A69: 60 | B69: BELAHOUEL | C69: BEDRA BATOUL | D69: =[4]Feuil1!K69 -> 11.26666667 | E69: =[4]Feuil1!L69 -> 2 | F69: =[4]Feuil1!M69 -> 1 | G69: =[5]Feuil1!K69 -> 11.73333333 | H69: =[5]Feuil1!L69 -> 2 | I69: =[5]Feuil1!M69 -> 1 | J69: 11.5 | K69: 4 | L69: 1
A70: 61 | B70: BELAHSENE | C70: SIHAM | D70: =[4]Feuil1!K70 -> 0 | E70: =[4]Feuil1!L70 -> 0 | F70: =[4]Feuil1!M70 -> 1 | G70: =[5]Feuil1!K70 -> 0 | H70: =[5]Feuil1!L70 -> 0 | I70: =[5]Feuil1!M70 -> 1 | J70: 0 | K70: 0 | L70: 1
A71: 62 | B71: BELAID | C71: ROKAYA | D71: =[4]Feuil1!K71 -> 17.16666667 | E71: =[4]Feuil1!L71 -> 2 | F71: =[4]Feuil1!M71 -> 1 | G71: =[5]Feuil1!K71 -> 15.03333333 | H71: =[5]Feuil1!L71 -> 2 | I71: =[5]Feuil1!M71 -> 1 | J71: 16.1 | K71: 4 | L71: 1
A72: 63 | B72: BELAID | C72: YASSEMINA | D72: =[4]Feuil1!K72 -> 0 | E72: =[4]Feuil1!L72 -> 0 | F72: =[4]Feuil1!M72 -> 1 | G72: =[5]Feuil1!K72 -> 0 | H72: =[5]Feuil1!L72 -> 0 | I72: =[5]Feuil1!M72 -> 1 | J72: 0 | K72: 0 | L72: 1
A73: 64 | B73: BELALIA | C73: MOSTAFA | D73: =[4]Feuil1!K73 -> 11.11666667 | E73: =[4]Feuil1!L73 -> 2 | F73: =[4]Feuil1!M73 -> 1 | G73: =[5]Feuil1!K73 -> 10.26666667 | H73: =[5]Feuil1!L73 -> 2 | I73: =[5]Feuil1!M73 -> 2 | J73: 10.69166667 | K73: 4 | L73: 2
A74: 65 | B74: BELAOUEDJ | C74: MANSOURIA | D74: =[4]Feuil1!K74 -> 13.58333333 | E74: =[4]Feuil1!L74 -> 2 | F74: =[4]Feuil1!M74 -> 1 | G74: =[5]Feuil1!K74 -> 16.66666667 | H74: =[5]Feuil1!L74 -> 2 | I74: =[5]Feuil1!M74 -> 1 | J74: 15.125 | K74: 4 | L74: 1
A75: 66 | B75: BELARBI | C75: MOHAMED YASSIN | D75: =[4]Feuil1!K75 -> 12.23333333 | E75: =[4]Feuil1!L75 -> 2 | F75: =[4]Feuil1!M75 -> 1 | G75: =[5]Feuil1!K75 -> 9.533333333 | H75: =[5]Feuil1!L75 -> 0 | I75: =[5]Feuil1!M75 -> 1 | J75: 10.88333333 | K75: 4 | L75: 1
A76: 67 | B76: BELEH | C76: MERIEM | D76: =[4]Feuil1!K76 -> 13.85 | E76: =[4]Feuil1!L76 -> 2 | F76: =[4]Feuil1!M76 -> 1 | G76: =[5]Feuil1!K76 -> 12.53333333 | H76: =[5]Feuil1!L76 -> 2 | I76: =[5]Feuil1!M76 -> 1 | J76: 13.19166667 | K76: 4 | L76: 1
A77: 68 | B77: BELHACHEMIA | C77: MOHAMMED IBRAHIM | D77: =[4]Feuil1!K77 -> 12.4 | E77: =[4]Feuil1!L77 -> 2 | F77: =[4]Feuil1!M77 -> 1 | G77: =[5]Feuil1!K77 -> 12 | H77: =[5]Feuil1!L77 -> 2 | I77: =[5]Feuil1!M77 -> 1 | J77: 12.2 | K77: 4 | L77: 1
A78: 69 | B78: BELHAMITI | C78: MERIEM MANSOURIA | D78: =[4]Feuil1!K78 -> 18.35 | E78: =[4]Feuil1!L78 -> 2 | F78: =[4]Feuil1!M78 -> 1 | G78: =[5]Feuil1!K78 -> 19 | H78: =[5]Feuil1!L78 -> 2 | I78: =[5]Feuil1!M78 -> 1 | J78: 18.675 | K78: 4 | L78: 1
A79: 70 | B79: BELKACEM | C79: IBRAHIM | D79: =[4]Feuil1!K79 -> 4.833333333 | E79: =[4]Feuil1!L79 -> 0 | F79: =[4]Feuil1!M79 -> 1 | G79: =[5]Feuil1!K79 -> 8.133333333 | H79: =[5]Feuil1!L79 -> 0 | I79: =[5]Feuil1!M79 -> 1 | J79: 6.483333333 | K79: 0 | L79: 1
A80: 71 | B80: BELKACEMI | C80: LARBI | D80: =[4]Feuil1!K80 -> 5.183333333 | E80: =[4]Feuil1!L80 -> 0 | F80: =[4]Feuil1!M80 -> 1 | G80: =[5]Feuil1!K80 -> 9.766666667 | H80: =[5]Feuil1!L80 -> 0 | I80: =[5]Feuil1!M80 -> 1 | J80: 7.475 | K80: 0 | L80: 1
A81: 72 | B81: BELKAID | C81: RADIA | D81: =[4]Feuil1!K81 -> 16.1 | E81: =[4]Feuil1!L81 -> 2 | F81: =[4]Feuil1!M81 -> 1 | G81: =[5]Feuil1!K81 -> 10.73333333 | H81: =[5]Feuil1!L81 -> 2 | I81: =[5]Feuil1!M81 -> 1 | J81: 13.41666667 | K81: 4 | L81: 1
A82: 73 | B82: BELKAIOUS | C82: HAYET | D82: =[4]Feuil1!K82 -> 10.83333333 | E82: =[4]Feuil1!L82 -> 2 | F82: =[4]Feuil1!M82 -> 1 | G82: =[5]Feuil1!K82 -> 8.366666667 | H82: =[5]Feuil1!L82 -> 0 | I82: =[5]Feuil1!M82 -> 1 | J82: 9.6 | K82: 2 | L82: 1
A83: 74 | B83: BELKARROUB | C83: NOUR EL HOUDA | D83: =[4]Feuil1!K83 -> 10.61666667 | E83: =[4]Feuil1!L83 -> 2 | F83: =[4]Feuil1!M83 -> 1 | G83: =[5]Feuil1!K83 -> 12.06666667 | H83: =[5]Feuil1!L83 -> 2 | I83: =[5]Feuil1!M83 -> 1 | J83: 11.34166667 | K83: 4 | L83: 1
A84: 75 | B84: BELMADANI | C84: NAIMA | D84: =[4]Feuil1!K84 -> 17.15 | E84: =[4]Feuil1!L84 -> 2 | F84: =[4]Feuil1!M84 -> 1 | G84: =[5]Feuil1!K84 -> 14.03333333 | H84: =[5]Feuil1!L84 -> 2 | I84: =[5]Feuil1!M84 -> 1 | J84: 15.59166667 | K84: 4 | L84: 1
A85: 76 | B85: BELMADI | C85: AHMED | D85: =[4]Feuil1!K85 -> 0 | E85: =[4]Feuil1!L85 -> 0 | F85: =[4]Feuil1!M85 -> 1 | G85: =[5]Feuil1!K85 -> 0 | H85: =[5]Feuil1!L85 -> 0 | I85: =[5]Feuil1!M85 -> 1 | J85: 0 | K85: 0 | L85: 1
A86: 77 | B86: BELMOKHTAR | C86: ABDELKADER | D86: =[4]Feuil1!K86 -> 0 | E86: =[4]Feuil1!L86 -> 0 | F86: =[4]Feuil1!M86 -> 1 | G86: =[5]Feuil1!K86 -> 0 | H86: =[5]Feuil1!L86 -> 0 | I86: =[5]Feuil1!M86 -> 1 | J86: 0 | K86: 0 | L86: 1
A87: 78 | B87: BELOUASSOUASSI | C87: BOUBAKR | D87: =[4]Feuil1!K87 -> 0 | E87: =[4]Feuil1!L87 -> 0 | F87: =[4]Feuil1!M87 -> 1 | G87: =[5]Feuil1!K87 -> 0 | H87: =[5]Feuil1!L87 -> 0 | I87: =[5]Feuil1!M87 -> 1 | J87: 0 | K87: 0 | L87: 1
A88: 79 | B88: BELOUFA | C88: YASSER | D88: =[4]Feuil1!K88 -> 0 | E88: =[4]Feuil1!L88 -> 0 | F88: =[4]Feuil1!M88 -> 1 | G88: =[5]Feuil1!K88 -> 0 | H88: =[5]Feuil1!L88 -> 0 | I88: =[5]Feuil1!M88 -> 1 | J88: 0 | K88: 0 | L88: 1
A89: 80 | B89: BEN SOUKHAL | C89: HALIMA | D89: =[4]Feuil1!K89 -> 10.95 | E89: =[4]Feuil1!L89 -> 2 | F89: =[4]Feuil1!M89 -> 1 | G89: =[5]Feuil1!K89 -> 11.03333333 | H89: =[5]Feuil1!L89 -> 2 | I89: =[5]Feuil1!M89 -> 1 | J89: 10.99166667 | K89: 4 | L89: 1
A90: 81 | B90: BENACHOUR | C90: HAMZA | D90: =[4]Feuil1!K90 -> 12.33333333 | E90: =[4]Feuil1!L90 -> 2 | F90: =[4]Feuil1!M90 -> 1 | G90: =[5]Feuil1!K90 -> 11.23333333 | H90: =[5]Feuil1!L90 -> 2 | I90: =[5]Feuil1!M90 -> 1 | J90: 11.78333333 | K90: 4 | L90: 1
A91: 82 | B91: BENADDA | C91: YAMINA | D91: =[4]Feuil1!K91 -> 16.23333333 | E91: =[4]Feuil1!L91 -> 2 | F91: =[4]Feuil1!M91 -> 1 | G91: =[5]Feuil1!K91 -> 10.2 | H91: =[5]Feuil1!L91 -> 2 | I91: =[5]Feuil1!M91 -> 1 | J91: 13.21666667 | K91: 4 | L91: 1
A92: 83 | B92: BENAICHA | C92: AMEL | D92: =[4]Feuil1!K92 -> 10.76666667 | E92: =[4]Feuil1!L92 -> 2 | F92: =[4]Feuil1!M92 -> 1 | G92: =[5]Feuil1!K92 -> 10.73333333 | H92: =[5]Feuil1!L92 -> 2 | I92: =[5]Feuil1!M92 -> 1 | J92: 10.75 | K92: 4 | L92: 1
A93: 84 | B93: BENAICHA | C93: WAFAA | D93: =[4]Feuil1!K93 -> 0 | E93: =[4]Feuil1!L93 -> 0 | F93: =[4]Feuil1!M93 -> 1 | G93: =[5]Feuil1!K93 -> 12.06666667 | H93: =[5]Feuil1!L93 -> 2 | I93: =[5]Feuil1!M93 -> 2 | J93: 6.033333333 | K93: 2 | L93: 2
A94: 85 | B94: BENAMAR | C94: ISMAIL | D94: =[4]Feuil1!K94 -> 0 | E94: =[4]Feuil1!L94 -> 0 | F94: =[4]Feuil1!M94 -> 1 | G94: =[5]Feuil1!K94 -> 0 | H94: =[5]Feuil1!L94 -> 0 | I94: =[5]Feuil1!M94 -> 1 | J94: 0 | K94: 0 | L94: 1
A95: 86 | B95: BENAMAR | C95: KHEIRA | D95: =[4]Feuil1!K95 -> 10.428 | E95: =[4]Feuil1!L95 -> 2 | F95: =[4]Feuil1!M95 -> 1 | G95: =[5]Feuil1!K95 -> 10 | H95: =[5]Feuil1!L95 -> 2 | I95: =[5]Feuil1!M95 -> 1 | J95: 10.214 | K95: 4 | L95: 1
A96: 87 | B96: BENANTEUR | C96: HADJ MUSTAFA | D96: =[4]Feuil1!K96 -> 0 | E96: =[4]Feuil1!L96 -> 0 | F96: =[4]Feuil1!M96 -> 1 | G96: =[5]Feuil1!K96 -> 0 | H96: =[5]Feuil1!L96 -> 0 | I96: =[5]Feuil1!M96 -> 1 | J96: 0 | K96: 0 | L96: 1
A97: 88 | B97: BENAOUDA | C97: YASSINE | D97: =[4]Feuil1!K97 -> 9.716666667 | E97: =[4]Feuil1!L97 -> 0 | F97: =[4]Feuil1!M97 -> 1 | G97: =[5]Feuil1!K97 -> 10.56666667 | H97: =[5]Feuil1!L97 -> 2 | I97: =[5]Feuil1!M97 -> 1 | J97: 10.14166667 | K97: 4 | L97: 1
A98: 89 | B98: BENAOUDA | C98: ZAKARIA | D98: =[4]Feuil1!K98 -> 6 | E98: =[4]Feuil1!L98 -> 0 | F98: =[4]Feuil1!M98 -> 1 | G98: =[5]Feuil1!K98 -> 7.8 | H98: =[5]Feuil1!L98 -> 0 | I98: =[5]Feuil1!M98 -> 1 | J98: 6.9 | K98: 0 | L98: 1
A99: 90 | B99: BENATTIA | C99: CHAIMA | D99: =[4]Feuil1!K99 -> 16.49466667 | E99: =[4]Feuil1!L99 -> 2 | F99: =[4]Feuil1!M99 -> 1 | G99: =[5]Feuil1!K99 -> 14.53333333 | H99: =[5]Feuil1!L99 -> 2 | I99: =[5]Feuil1!M99 -> 1 | J99: 15.514 | K99: 4 | L99: 1
A100: 91 | B100: BENAYED | C100: SARAH | D100: =[4]Feuil1!K100 -> 11.44466667 | E100: =[4]Feuil1!L100 -> 2 | F100: =[4]Feuil1!M100 -> 1 | G100: =[5]Feuil1!K100 -> 9.566666667 | H100: =[5]Feuil1!L100 -> 0 | I100: =[5]Feuil1!M100 -> 1 | J100: 10.50566667 | K100: 4 | L100: 1
A101: 92 | B101: BENBACHIR | C101: HAMZA | D101: =[4]Feuil1!K101 -> 10.53333333 | E101: =[4]Feuil1!L101 -> 2 | F101: =[4]Feuil1!M101 -> 1 | G101: =[5]Feuil1!K101 -> 8.866666667 | H101: =[5]Feuil1!L101 -> 0 | I101: =[5]Feuil1!M101 -> 1 | J101: 9.7 | K101: 2 | L101: 1
A102: 93 | B102: BENBERNOU | C102: YASSER | D102: =[4]Feuil1!K102 -> 14.98333333 | E102: =[4]Feuil1!L102 -> 2 | F102: =[4]Feuil1!M102 -> 1 | G102: =[5]Feuil1!K102 -> 14.16666667 | H102: =[5]Feuil1!L102 -> 2 | I102: =[5]Feuil1!M102 -> 1 | J102: 14.575 | K102: 4 | L102: 1
A103: 94 | B103: BENCHAIB | C103: FADELA | D103: =[4]Feuil1!K103 -> 13.61133333 | E103: =[4]Feuil1!L103 -> 2 | F103: =[4]Feuil1!M103 -> 1 | G103: =[5]Feuil1!K103 -> 15.06666667 | H103: =[5]Feuil1!L103 -> 2 | I103: =[5]Feuil1!M103 -> 1 | J103: 14.339 | K103: 4 | L103: 1
A104: 95 | B104: BENCHAMANI | C104: REKAIA | D104: =[4]Feuil1!K104 -> 9.678 | E104: =[4]Feuil1!L104 -> 0 | F104: =[4]Feuil1!M104 -> 1 | G104: =[5]Feuil1!K104 -> 12.5 | H104: =[5]Feuil1!L104 -> 2 | I104: =[5]Feuil1!M104 -> 2 | J104: 11.089 | K104: 4 | L104: 2
A105: 96 | B105: BENCHEHIDA | C105: ABDELHEQ | D105: =[4]Feuil1!K105 -> 8.811333333 | E105: =[4]Feuil1!L105 -> 0 | F105: =[4]Feuil1!M105 -> 1 | G105: =[5]Feuil1!K105 -> 14.8 | H105: =[5]Feuil1!L105 -> 2 | I105: =[5]Feuil1!M105 -> 2 | J105: 11.80566667 | K105: 4 | L105: 2
A106: 97 | B106: BENCHENNI | C106: MERIEM | D106: =[4]Feuil1!K106 -> 0 | E106: =[4]Feuil1!L106 -> 0 | F106: =[4]Feuil1!M106 -> 1 | G106: =[5]Feuil1!K106 -> 0 | H106: =[5]Feuil1!L106 -> 0 | I106: =[5]Feuil1!M106 -> 1 | J106: 0 | K106: 0 | L106: 1
A107: 98 | B107: BENCHERIF | C107: AHMED | D107: =[4]Feuil1!K107 -> 5.683333333 | E107: =[4]Feuil1!L107 -> 0 | F107: =[4]Feuil1!M107 -> 1 | G107: =[5]Feuil1!K107 -> 5.833333333 | H107: =[5]Feuil1!L107 -> 0 | I107: =[5]Feuil1!M107 -> 1 | J107: 5.758333333 | K107: 0 | L107: 1
A108: 99 | B108: BENCHOHRA | C108: KHEIRA | D108: =[4]Feuil1!K108 -> 7.35 | E108: =[4]Feuil1!L108 -> 0 | F108: =[4]Feuil1!M108 -> 1 | G108: =[5]Feuil1!K108 -> 8.4 | H108: =[5]Feuil1!L108 -> 0 | I108: =[5]Feuil1!M108 -> 1 | J108: 7.875 | K108: 0 | L108: 1
A109: 100 | B109: BENDANI | C109: MUSTAPHA | D109: =[4]Feuil1!K109 -> 16.85 | E109: =[4]Feuil1!L109 -> 2 | F109: =[4]Feuil1!M109 -> 1 | G109: =[5]Feuil1!K109 -> 11 | H109: =[5]Feuil1!L109 -> 2 | I109: =[5]Feuil1!M109 -> 1 | J109: 13.925 | K109: 4 | L109: 1
A110: 101 | B110: BENDJELLOUL | C110: NOUREDDINE | D110: =[4]Feuil1!K110 -> 10.61133333 | E110: =[4]Feuil1!L110 -> 2 | F110: =[4]Feuil1!M110 -> 1 | G110: =[5]Feuil1!K110 -> 12.86666667 | H110: =[5]Feuil1!L110 -> 2 | I110: =[5]Feuil1!M110 -> 1 | J110: 11.739 | K110: 4 | L110: 1
A111: 102 | B111: BENFICHOUH | C111: ABDELHALIM | D111: =[4]Feuil1!K111 -> 0 | E111: =[4]Feuil1!L111 -> 0 | F111: =[4]Feuil1!M111 -> 1 | G111: =[5]Feuil1!K111 -> 0 | H111: =[5]Feuil1!L111 -> 0 | I111: =[5]Feuil1!M111 -> 1 | J111: 0 | K111: 0 | L111: 1
A112: 103 | B112: BENGATTAT | C112: HADJ ALI | D112: =[4]Feuil1!K112 -> 13.05 | E112: =[4]Feuil1!L112 -> 2 | F112: =[4]Feuil1!M112 -> 1 | G112: =[5]Feuil1!K112 -> 11.8 | H112: =[5]Feuil1!L112 -> 2 | I112: =[5]Feuil1!M112 -> 1 | J112: 12.425 | K112: 4 | L112: 1
A113: 104 | B113: BENGUETTAT | C113: WAFAE | D113: =[4]Feuil1!K113 -> 11.86133333 | E113: =[4]Feuil1!L113 -> 2 | F113: =[4]Feuil1!M113 -> 1 | G113: =[5]Feuil1!K113 -> 12.56666667 | H113: =[5]Feuil1!L113 -> 2 | I113: =[5]Feuil1!M113 -> 1 | J113: 12.214 | K113: 4 | L113: 1
A114: 105 | B114: BENGUIRECHE | C114: HAFSA | D114: =[4]Feuil1!K114 -> 12.35 | E114: =[4]Feuil1!L114 -> 2 | F114: =[4]Feuil1!M114 -> 1 | G114: =[5]Feuil1!K114 -> 11.66666667 | H114: =[5]Feuil1!L114 -> 2 | I114: =[5]Feuil1!M114 -> 1 | J114: 12.00833333 | K114: 4 | L114: 1
A115: 106 | B115: BENHADDOUCHE | C115: FATIMA ZOHRA ROMEISSA | D115: =[4]Feuil1!K115 -> 10.14466667 | E115: =[4]Feuil1!L115 -> 2 | F115: =[4]Feuil1!M115 -> 1 | G115: =[5]Feuil1!K115 -> 9.933333333 | H115: =[5]Feuil1!L115 -> 0 | I115: =[5]Feuil1!M115 -> 1 | J115: 10.039 | K115: 4 | L115: 1
A116: 107 | B116: BENHALIMA | C116: MOUNIR | D116: =[4]Feuil1!K116 -> 13.94466667 | E116: =[4]Feuil1!L116 -> 2 | F116: =[4]Feuil1!M116 -> 1 | G116: =[5]Feuil1!K116 -> 8.833333333 | H116: =[5]Feuil1!L116 -> 0 | I116: =[5]Feuil1!M116 -> 1 | J116: 11.389 | K116: 4 | L116: 1
A117: 108 | B117: BENHALIMA | C117: NACERA | D117: =[4]Feuil1!K117 -> 15.21133333 | E117: =[4]Feuil1!L117 -> 2 | F117: =[4]Feuil1!M117 -> 1 | G117: =[5]Feuil1!K117 -> 15.16666667 | H117: =[5]Feuil1!L117 -> 2 | I117: =[5]Feuil1!M117 -> 1 | J117: 15.189 | K117: 4 | L117: 1
A118: 109 | B118: BENHARIRA | C118: KOUIDER | D118: =[4]Feuil1!K118 -> 0 | E118: =[4]Feuil1!L118 -> 0 | F118: =[4]Feuil1!M118 -> 1 | G118: =[5]Feuil1!K118 -> 0 | H118: =[5]Feuil1!L118 -> 0 | I118: =[5]Feuil1!M118 -> 1 | J118: 0 | K118: 0 | L118: 1
A119: 110 | B119: BENHARRAT | C119: NOUR EL HOUDA | D119: =[4]Feuil1!K119 -> 16.56666667 | E119: =[4]Feuil1!L119 -> 2 | F119: =[4]Feuil1!M119 -> 1 | G119: =[5]Feuil1!K119 -> 13.33333333 | H119: =[5]Feuil1!L119 -> 2 | I119: =[5]Feuil1!M119 -> 1 | J119: 14.95 | K119: 4 | L119: 1
A120: 111 | B120: BENKAHLA | C120: CHAHRAZED | D120: =[4]Feuil1!K120 -> 10.4 | E120: =[4]Feuil1!L120 -> 2 | F120: =[4]Feuil1!M120 -> 1 | G120: =[5]Feuil1!K120 -> 10.1 | H120: =[5]Feuil1!L120 -> 2 | I120: =[5]Feuil1!M120 -> 1 | J120: 10.25 | K120: 4 | L120: 1
A121: 112 | B121: BENKEDADRA | C121: KHADIDJA | D121: =[4]Feuil1!K121 -> 15.43333333 | E121: =[4]Feuil1!L121 -> 2 | F121: =[4]Feuil1!M121 -> 1 | G121: =[5]Feuil1!K121 -> 17.5 | H121: =[5]Feuil1!L121 -> 2 | I121: =[5]Feuil1!M121 -> 1 | J121: 16.46666667 | K121: 4 | L121: 1
A122: 113 | B122: BENKEDADRA | C122: MOHAMED | D122: =[4]Feuil1!K122 -> 15.96666667 | E122: =[4]Feuil1!L122 -> 2 | F122: =[4]Feuil1!M122 -> 1 | G122: =[5]Feuil1!K122 -> 12.56666667 | H122: =[5]Feuil1!L122 -> 2 | I122: =[5]Feuil1!M122 -> 1 | J122: 14.26666667 | K122: 4 | L122: 1
A123: 114 | B123: BENKHELIFA | C123: KAMEL | D123: =[4]Feuil1!K123 -> 9.166666667 | E123: =[4]Feuil1!L123 -> 0 | F123: =[4]Feuil1!M123 -> 1 | G123: =[5]Feuil1!K123 -> 10.26666667 | H123: =[5]Feuil1!L123 -> 2 | I123: =[5]Feuil1!M123 -> 1 | J123: 9.716666667 | K123: 2 | L123: 1
A124: 115 | B124: BENKHELIFA | C124: SAAD | D124: =[4]Feuil1!K124 -> 10.63333333 | E124: =[4]Feuil1!L124 -> 2 | F124: =[4]Feuil1!M124 -> 1 | G124: =[5]Feuil1!K124 -> 7.133333333 | H124: =[5]Feuil1!L124 -> 0 | I124: =[5]Feuil1!M124 -> 2 | J124: 8.883333333 | K124: 2 | L124: 2
A125: 116 | B125: BENKORECH | C125: ABEDNNOUR | D125: =[4]Feuil1!K125 -> 17.8 | E125: =[4]Feuil1!L125 -> 2 | F125: =[4]Feuil1!M125 -> 1 | G125: =[5]Feuil1!K125 -> 11.03333333 | H125: =[5]Feuil1!L125 -> 2 | I125: =[5]Feuil1!M125 -> 1 | J125: 14.41666667 | K125: 4 | L125: 1
A126: 117 | B126: BENKORRECHE | C126: MOHAMED EL AMINE | D126: =[4]Feuil1!K126 -> 11.58333333 | E126: =[4]Feuil1!L126 -> 2 | F126: =[4]Feuil1!M126 -> 1 | G126: =[5]Feuil1!K126 -> 8.066666667 | H126: =[5]Feuil1!L126 -> 0 | I126: =[5]Feuil1!M126 -> 1 | J126: 9.825 | K126: 2 | L126: 1
A127: 118 | B127: BENLAKEHAL | C127: MOHAMED REDHA | D127: =[4]Feuil1!K127 -> 11.86666667 | E127: =[4]Feuil1!L127 -> 2 | F127: =[4]Feuil1!M127 -> 1 | G127: =[5]Feuil1!K127 -> 10.36666667 | H127: =[5]Feuil1!L127 -> 2 | I127: =[5]Feuil1!M127 -> 1 | J127: 11.11666667 | K127: 4 | L127: 1
A128: 119 | B128: BENNAMA | C128: HOCINE | D128: =[4]Feuil1!K128 -> 0 | E128: =[4]Feuil1!L128 -> 0 | F128: =[4]Feuil1!M128 -> 1 | G128: =[5]Feuil1!K128 -> 2.933333333 | H128: =[5]Feuil1!L128 -> 0 | I128: =[5]Feuil1!M128 -> 1 | J128: 1.466666667 | K128: 0 | L128: 1
A129: 120 | B129: BENNECEUR | C129: FATIHA | D129: =[4]Feuil1!K129 -> 16.58333333 | E129: =[4]Feuil1!L129 -> 2 | F129: =[4]Feuil1!M129 -> 1 | G129: =[5]Feuil1!K129 -> 15.4 | H129: =[5]Feuil1!L129 -> 2 | I129: =[5]Feuil1!M129 -> 1 | J129: 15.99166667 | K129: 4 | L129: 1
A130: 121 | B130: BENOTSMANE | C130: CHAIMAE | D130: =[4]Feuil1!K130 -> 14.98333333 | E130: =[4]Feuil1!L130 -> 2 | F130: =[4]Feuil1!M130 -> 1 | G130: =[5]Feuil1!K130 -> 14 | H130: =[5]Feuil1!L130 -> 2 | I130: =[5]Feuil1!M130 -> 1 | J130: 14.49166667 | K130: 4 | L130: 1
A131: 122 | B131: BENOUALI | C131: MOHAMED BOUASRIA | D131: =[4]Feuil1!K131 -> 0 | E131: =[4]Feuil1!L131 -> 0 | F131: =[4]Feuil1!M131 -> 1 | G131: =[5]Feuil1!K131 -> 0 | H131: =[5]Feuil1!L131 -> 0 | I131: =[5]Feuil1!M131 -> 1 | J131: 0 | K131: 0 | L131: 1
A132: 123 | B132: BENOUALI | C132: ZOHRA | D132: =[4]Feuil1!K132 -> 8.761333333 | E132: =[4]Feuil1!L132 -> 0 | F132: =[4]Feuil1!M132 -> 1 | G132: =[5]Feuil1!K132 -> 5.85 | H132: =[5]Feuil1!L132 -> 0 | I132: =[5]Feuil1!M132 -> 2 | J132: 7.305666667 | K132: 0 | L132: 2
A133: 124 | B133: BENSAADIA | C133: NABIL | D133: =[4]Feuil1!K133 -> 0 | E133: =[4]Feuil1!L133 -> 0 | F133: =[4]Feuil1!M133 -> 1 | G133: =[5]Feuil1!K133 -> 0 | H133: =[5]Feuil1!L133 -> 0 | I133: =[5]Feuil1!M133 -> 1 | J133: 0 | K133: 0 | L133: 1
A134: 125 | B134: BENSALAH | C134: ATIKA MANSOURIA | D134: =[4]Feuil1!K134 -> 17.28333333 | E134: =[4]Feuil1!L134 -> 2 | F134: =[4]Feuil1!M134 -> 1 | G134: =[5]Feuil1!K134 -> 14.96666667 | H134: =[5]Feuil1!L134 -> 2 | I134: =[5]Feuil1!M134 -> 1 | J134: 16.125 | K134: 4 | L134: 1
A135: 126 | B135: BENSALEM | C135: ABDELKADER | D135: =[4]Feuil1!K135 -> 5.466666667 | E135: =[4]Feuil1!L135 -> 0 | F135: =[4]Feuil1!M135 -> 1 | G135: =[5]Feuil1!K135 -> 7.666666667 | H135: =[5]Feuil1!L135 -> 0 | I135: =[5]Feuil1!M135 -> 1 | J135: 6.566666667 | K135: 0 | L135: 1
A136: 127 | B136: BENTAMRA | C136: HADJIRA | D136: =[4]Feuil1!K136 -> 13.28333333 | E136: =[4]Feuil1!L136 -> 2 | F136: =[4]Feuil1!M136 -> 1 | G136: =[5]Feuil1!K136 -> 12.9 | H136: =[5]Feuil1!L136 -> 2 | I136: =[5]Feuil1!M136 -> 1 | J136: 13.09166667 | K136: 4 | L136: 1
A137: 128 | B137: BENTAMRA | C137: KARIMA | D137: =[4]Feuil1!K137 -> 12.66666667 | E137: =[4]Feuil1!L137 -> 2 | F137: =[4]Feuil1!M137 -> 1 | G137: =[5]Feuil1!K137 -> 11.96666667 | H137: =[5]Feuil1!L137 -> 2 | I137: =[5]Feuil1!M137 -> 1 | J137: 12.31666667 | K137: 4 | L137: 1
A138: 129 | B138: BENYOUCEF | C138: KAWTHAR | D138: =[4]Feuil1!K138 -> 5.97 | E138: =[4]Feuil1!L138 -> 0 | F138: =[4]Feuil1!M138 -> 1 | G138: =[5]Feuil1!K138 -> 6.9 | H138: =[5]Feuil1!L138 -> 0 | I138: =[5]Feuil1!M138 -> 1 | J138: 6.435 | K138: 0 | L138: 1
A139: 130 | B139: BENZIADI | C139: AMINE | D139: =[4]Feuil1!K139 -> 6.083333333 | E139: =[4]Feuil1!L139 -> 0 | F139: =[4]Feuil1!M139 -> 1 | G139: =[5]Feuil1!K139 -> 8.066666667 | H139: =[5]Feuil1!L139 -> 0 | I139: =[5]Feuil1!M139 -> 2 | J139: 7.075 | K139: 0 | L139: 2
A140: 131 | B140: BERRAS | C140: FATIMA ZOHRA | D140: =[4]Feuil1!K140 -> 14.46666667 | E140: =[4]Feuil1!L140 -> 2 | F140: =[4]Feuil1!M140 -> 1 | G140: =[5]Feuil1!K140 -> 15.96666667 | H140: =[5]Feuil1!L140 -> 2 | I140: =[5]Feuil1!M140 -> 1 | J140: 15.21666667 | K140: 4 | L140: 1
A141: 132 | B141: BERROUACHEDI | C141: ABDELHAK | D141: =[4]Feuil1!K141 -> 6.3 | E141: =[4]Feuil1!L141 -> 0 | F141: =[4]Feuil1!M141 -> 1 | G141: =[5]Feuil1!K141 -> 11.73333333 | H141: =[5]Feuil1!L141 -> 2 | I141: =[5]Feuil1!M141 -> 1 | J141: 9.016666667 | K141: 2 | L141: 1
A142: 133 | B142: BESSAAD | C142: MOULAI | D142: =[4]Feuil1!K142 -> 13.96666667 | E142: =[4]Feuil1!L142 -> 2 | F142: =[4]Feuil1!M142 -> 1 | G142: =[5]Feuil1!K142 -> 11.1 | H142: =[5]Feuil1!L142 -> 2 | I142: =[5]Feuil1!M142 -> 1 | J142: 12.53333333 | K142: 4 | L142: 1
A143: 134 | B143: BESSAFI | C143: FATIMA ZOHRA | D143: =[4]Feuil1!K143 -> 0 | E143: =[4]Feuil1!L143 -> 0 | F143: =[4]Feuil1!M143 -> 1 | G143: =[5]Feuil1!K143 -> 0 | H143: =[5]Feuil1!L143 -> 0 | I143: =[5]Feuil1!M143 -> 1 | J143: 0 | K143: 0 | L143: 1
A144: 135 | B144: BESSAYEH | C144: IMEN | D144: =[4]Feuil1!K144 -> 0 | E144: =[4]Feuil1!L144 -> 0 | F144: =[4]Feuil1!M144 -> 1 | G144: =[5]Feuil1!K144 -> 0 | H144: =[5]Feuil1!L144 -> 0 | I144: =[5]Feuil1!M144 -> 1 | J144: 0 | K144: 0 | L144: 1
A145: 136 | B145: BESSEDIK | C145: IBTISSEM NAIMA | D145: =[4]Feuil1!K145 -> 12.16666667 | E145: =[4]Feuil1!L145 -> 2 | F145: =[4]Feuil1!M145 -> 1 | G145: =[5]Feuil1!K145 -> 10.83333333 | H145: =[5]Feuil1!L145 -> 2 | I145: =[5]Feuil1!M145 -> 1 | J145: 11.5 | K145: 4 | L145: 1
A146: 137 | B146: BESSEDIK | C146: ZAKARIA ABDERRAHMANE | D146: =[4]Feuil1!K146 -> 10.81666667 | E146: =[4]Feuil1!L146 -> 2 | F146: =[4]Feuil1!M146 -> 1 | G146: =[5]Feuil1!K146 -> 10.93333333 | H146: =[5]Feuil1!L146 -> 2 | I146: =[5]Feuil1!M146 -> 1 | J146: 10.875 | K146: 4 | L146: 1
A147: 138 | B147: BESSEGHIR | C147: FERIEL | D147: =[4]Feuil1!K147 -> 12.81666667 | E147: =[4]Feuil1!L147 -> 2 | F147: =[4]Feuil1!M147 -> 1 | G147: =[5]Feuil1!K147 -> 10.9 | H147: =[5]Feuil1!L147 -> 2 | I147: =[5]Feuil1!M147 -> 1 | J147: 11.85833333 | K147: 4 | L147: 1
A148: 139 | B148: BETTAHAR | C148: TALHA | D148: =[4]Feuil1!K148 -> 8.1 | E148: =[4]Feuil1!L148 -> 0 | F148: =[4]Feuil1!M148 -> 1 | G148: =[5]Feuil1!K148 -> 9.133333333 | H148: =[5]Feuil1!L148 -> 0 | I148: =[5]Feuil1!M148 -> 2 | J148: 8.616666667 | K148: 0 | L148: 2
A149: 140 | B149: BEZZAIM | C149: HOURIA | D149: =[4]Feuil1!K149 -> 9.833333333 | E149: =[4]Feuil1!L149 -> 0 | F149: =[4]Feuil1!M149 -> 1 | G149: =[5]Feuil1!K149 -> 12.3 | H149: =[5]Feuil1!L149 -> 2 | I149: =[5]Feuil1!M149 -> 1 | J149: 11.06666667 | K149: 4 | L149: 1
A150: 141 | B150: BOKHARI | C150: CHEMS EDDINE ISMAIL | D150: =[4]Feuil1!K150 -> 7.75 | E150: =[4]Feuil1!L150 -> 0 | F150: =[4]Feuil1!M150 -> 1 | G150: =[5]Feuil1!K150 -> 13.36666667 | H150: =[5]Feuil1!L150 -> 2 | I150: =[5]Feuil1!M150 -> 1 | J150: 10.55833333 | K150: 4 | L150: 1
A151: 142 | B151: BORANE | C151: MOHAMED | D151: =[4]Feuil1!K151 -> 0 | E151: =[4]Feuil1!L151 -> 0 | F151: =[4]Feuil1!M151 -> 1 | G151: =[5]Feuil1!K151 -> 0 | H151: =[5]Feuil1!L151 -> 0 | I151: =[5]Feuil1!M151 -> 1 | J151: 0 | K151: 0 | L151: 1
A152: 143 | B152: BOUADJMI | C152: AICHA | D152: =[4]Feuil1!K152 -> 0 | E152: =[4]Feuil1!L152 -> 0 | F152: =[4]Feuil1!M152 -> 1 | G152: =[5]Feuil1!K152 -> 0 | H152: =[5]Feuil1!L152 -> 0 | I152: =[5]Feuil1!M152 -> 1 | J152: 0 | K152: 0 | L152: 1
A153: 144 | B153: BOUAFIA | C153: HOUSSINE | D153: =[4]Feuil1!K153 -> 0 | E153: =[4]Feuil1!L153 -> 0 | F153: =[4]Feuil1!M153 -> 1 | G153: =[5]Feuil1!K153 -> 0 | H153: =[5]Feuil1!L153 -> 0 | I153: =[5]Feuil1!M153 -> 1 | J153: 0 | K153: 0 | L153: 1
A154: 145 | B154: BOUALEM | C154: AMIRA | D154: =[4]Feuil1!K154 -> 0 | E154: =[4]Feuil1!L154 -> 0 | F154: =[4]Feuil1!M154 -> 1 | G154: =[5]Feuil1!K154 -> 0 | H154: =[5]Feuil1!L154 -> 0 | I154: =[5]Feuil1!M154 -> 1 | J154: 0 | K154: 0 | L154: 1
A155: 146 | B155: BOUATTOU | C155: YEMNA | D155: =[4]Feuil1!K155 -> 12.35 | E155: =[4]Feuil1!L155 -> 2 | F155: =[4]Feuil1!M155 -> 1 | G155: =[5]Feuil1!K155 -> 13.63333333 | H155: =[5]Feuil1!L155 -> 2 | I155: =[5]Feuil1!M155 -> 1 | J155: 12.99166667 | K155: 4 | L155: 1
A156: 147 | B156: BOUBEKEUR | C156: MAROUA AMEL | D156: =[4]Feuil1!K156 -> 17.2 | E156: =[4]Feuil1!L156 -> 2 | F156: =[4]Feuil1!M156 -> 1 | G156: =[5]Feuil1!K156 -> 14.6 | H156: =[5]Feuil1!L156 -> 2 | I156: =[5]Feuil1!M156 -> 1 | J156: 15.9 | K156: 4 | L156: 1
A157: 148 | B157: BOUCEDRA | C157: NADA | D157: =[4]Feuil1!K157 -> 9.633333333 | E157: =[4]Feuil1!L157 -> 0 | F157: =[4]Feuil1!M157 -> 1 | G157: =[5]Feuil1!K157 -> 11.66666667 | H157: =[5]Feuil1!L157 -> 2 | I157: =[5]Feuil1!M157 -> 1 | J157: 10.65 | K157: 4 | L157: 1
A158: 149 | B158: BOUCHAMA | C158: HEITHEM | D158: =[4]Feuil1!K158 -> 0 | E158: =[4]Feuil1!L158 -> 0 | F158: =[4]Feuil1!M158 -> 1 | G158: =[5]Feuil1!K158 -> 0 | H158: =[5]Feuil1!L158 -> 0 | I158: =[5]Feuil1!M158 -> 1 | J158: 0 | K158: 0 | L158: 1
A159: 150 | B159: BOUDIA | C159: NADIA | D159: =[4]Feuil1!K159 -> 12.25 | E159: =[4]Feuil1!L159 -> 2 | F159: =[4]Feuil1!M159 -> 1 | G159: =[5]Feuil1!K159 -> 15.86666667 | H159: =[5]Feuil1!L159 -> 2 | I159: =[5]Feuil1!M159 -> 1 | J159: 14.05833333 | K159: 4 | L159: 1
A160: 151 | B160: BOUDRAF | C160: MOHAMED | D160: =[4]Feuil1!K160 -> 0 | E160: =[4]Feuil1!L160 -> 0 | F160: =[4]Feuil1!M160 -> 1 | G160: =[5]Feuil1!K160 -> 0 | H160: =[5]Feuil1!L160 -> 0 | I160: =[5]Feuil1!M160 -> 1 | J160: 0 | K160: 0 | L160: 1
A161: 152 | B161: BOUHADEF | C161: ASMAA | D161: =[4]Feuil1!K161 -> 12.5 | E161: =[4]Feuil1!L161 -> 2 | F161: =[4]Feuil1!M161 -> 1 | G161: =[5]Feuil1!K161 -> 10.43333333 | H161: =[5]Feuil1!L161 -> 2 | I161: =[5]Feuil1!M161 -> 1 | J161: 11.46666667 | K161: 4 | L161: 1
A162: 153 | B162: BOUHALI | C162: NACER | D162: =[4]Feuil1!K162 -> 4.533333333 | E162: =[4]Feuil1!L162 -> 0 | F162: =[4]Feuil1!M162 -> 1 | G162: =[5]Feuil1!K162 -> 7.266666667 | H162: =[5]Feuil1!L162 -> 0 | I162: =[5]Feuil1!M162 -> 1 | J162: 5.9 | K162: 0 | L162: 1
A163: 154 | B163: BOUHALLALENE | C163: MOHAMED ABDEL HAFID | D163: =[4]Feuil1!K163 -> 9.866666667 | E163: =[4]Feuil1!L163 -> 0 | F163: =[4]Feuil1!M163 -> 1 | G163: =[5]Feuil1!K163 -> 9.2 | H163: =[5]Feuil1!L163 -> 0 | I163: =[5]Feuil1!M163 -> 1 | J163: 9.533333333 | K163: 0 | L163: 1
A164: 155 | B164: BOUHALOUFA | C164: MOHAMED AMINE | D164: =[4]Feuil1!K164 -> 7 | E164: =[4]Feuil1!L164 -> 0 | F164: =[4]Feuil1!M164 -> 1 | G164: =[5]Feuil1!K164 -> 7.266666667 | H164: =[5]Feuil1!L164 -> 0 | I164: =[5]Feuil1!M164 -> 2 | J164: 7.133333333 | K164: 0 | L164: 2
A165: 156 | B165: BOUICH | C165: MOHAMED | D165: =[4]Feuil1!K165 -> 0 | E165: =[4]Feuil1!L165 -> 0 | F165: =[4]Feuil1!M165 -> 1 | G165: =[5]Feuil1!K165 -> 0 | H165: =[5]Feuil1!L165 -> 0 | I165: =[5]Feuil1!M165 -> 1 | J165: 0 | K165: 0 | L165: 1
A166: 157 | B166: BOUKEFFA | C166: ABDELHAMID | D166: =[4]Feuil1!K166 -> 0 | E166: =[4]Feuil1!L166 -> 0 | F166: =[4]Feuil1!M166 -> 1 | G166: =[5]Feuil1!K166 -> 0 | H166: =[5]Feuil1!L166 -> 0 | I166: =[5]Feuil1!M166 -> 1 | J166: 0 | K166: 0 | L166: 1
A167: 158 | B167: BOUKHARI | C167: MADIHA | D167: =[4]Feuil1!K167 -> 15.65 | E167: =[4]Feuil1!L167 -> 2 | F167: =[4]Feuil1!M167 -> 1 | G167: =[5]Feuil1!K167 -> 14.03333333 | H167: =[5]Feuil1!L167 -> 2 | I167: =[5]Feuil1!M167 -> 1 | J167: 14.84166667 | K167: 4 | L167: 1
A168: 159 | B168: BOUKHELIF | C168: MHAMED | D168: =[4]Feuil1!K168 -> 12.05 | E168: =[4]Feuil1!L168 -> 2 | F168: =[4]Feuil1!M168 -> 1 | G168: =[5]Feuil1!K168 -> 11.66666667 | H168: =[5]Feuil1!L168 -> 2 | I168: =[5]Feuil1!M168 -> 1 | J168: 11.85833333 | K168: 4 | L168: 1
A169: 160 | B169: BOUKHLIF | C169: MOHAMED | D169: =[4]Feuil1!K169 -> 2.583333333 | E169: =[4]Feuil1!L169 -> 0 | F169: =[4]Feuil1!M169 -> 1 | G169: =[5]Feuil1!K169 -> 3.866666667 | H169: =[5]Feuil1!L169 -> 0 | I169: =[5]Feuil1!M169 -> 1 | J169: 3.225 | K169: 0 | L169: 1
A170: 161 | B170: BOUKOULA | C170: HAFID | D170: =[4]Feuil1!K170 -> 3.85 | E170: =[4]Feuil1!L170 -> 0 | F170: =[4]Feuil1!M170 -> 1 | G170: =[5]Feuil1!K170 -> 6.266666667 | H170: =[5]Feuil1!L170 -> 0 | I170: =[5]Feuil1!M170 -> 1 | J170: 5.058333333 | K170: 0 | L170: 1
A171: 162 | B171: BOUMAZA | C171: FATIMA ZOHRA | D171: =[4]Feuil1!K171 -> 15.828 | E171: =[4]Feuil1!L171 -> 2 | F171: =[4]Feuil1!M171 -> 1 | G171: =[5]Feuil1!K171 -> 6.36 | H171: =[5]Feuil1!L171 -> 0 | I171: =[5]Feuil1!M171 -> 1 | J171: 11.094 | K171: 4 | L171: 1
A172: 163 | B172: BOUMESSAOUD | C172: SARA | D172: =[4]Feuil1!K172 -> 16.7 | E172: =[4]Feuil1!L172 -> 2 | F172: =[4]Feuil1!M172 -> 1 | G172: =[5]Feuil1!K172 -> 13.16666667 | H172: =[5]Feuil1!L172 -> 2 | I172: =[5]Feuil1!M172 -> 1 | J172: 14.93333333 | K172: 4 | L172: 1
A173: 164 | B173: BOUNEDJAR | C173: DJALLEL | D173: =[4]Feuil1!K173 -> 0 | E173: =[4]Feuil1!L173 -> 0 | F173: =[4]Feuil1!M173 -> 1 | G173: =[5]Feuil1!K173 -> 0 | H173: =[5]Feuil1!L173 -> 0 | I173: =[5]Feuil1!M173 -> 1 | J173: 0 | K173: 0 | L173: 1
A174: 165 | B174: BOURANE | C174: MOKHTAR | D174: =[4]Feuil1!K174 -> 10.75 | E174: =[4]Feuil1!L174 -> 2 | F174: =[4]Feuil1!M174 -> 1 | G174: =[5]Feuil1!K174 -> 12.56666667 | H174: =[5]Feuil1!L174 -> 2 | I174: =[5]Feuil1!M174 -> 1 | J174: 11.65833333 | K174: 4 | L174: 1
A175: 166 | B175: BOURASS | C175: AHMED | D175: =[4]Feuil1!K175 -> 12.31133333 | E175: =[4]Feuil1!L175 -> 2 | F175: =[4]Feuil1!M175 -> 1 | G175: =[5]Feuil1!K175 -> 14.6 | H175: =[5]Feuil1!L175 -> 2 | I175: =[5]Feuil1!M175 -> 1 | J175: 13.45566667 | K175: 4 | L175: 1
A176: 167 | B176: BOUROUIS | C176: ANSSAR | D176: =[4]Feuil1!K176 -> 0 | E176: =[4]Feuil1!L176 -> 0 | F176: =[4]Feuil1!M176 -> 1 | G176: =[5]Feuil1!K176 -> 0 | H176: =[5]Feuil1!L176 -> 0 | I176: =[5]Feuil1!M176 -> 1 | J176: 0 | K176: 0 | L176: 1
A177: 168 | B177: BOUTIBA | C177: HOUARI | D177: =[4]Feuil1!K177 -> 9.594666667 | E177: =[4]Feuil1!L177 -> 0 | F177: =[4]Feuil1!M177 -> 1 | G177: =[5]Feuil1!K177 -> 9.8 | H177: =[5]Feuil1!L177 -> 0 | I177: =[5]Feuil1!M177 -> 2 | J177: 9.697333333 | K177: 0 | L177: 2
A178: 169 | B178: BOUTOUIL | C178: ABDELMELEK | D178: =[4]Feuil1!K178 -> 11.15 | E178: =[4]Feuil1!L178 -> 2 | F178: =[4]Feuil1!M178 -> 1 | G178: =[5]Feuil1!K178 -> 12.66666667 | H178: =[5]Feuil1!L178 -> 2 | I178: =[5]Feuil1!M178 -> 1 | J178: 11.90833333 | K178: 4 | L178: 1
A179: 170 | B179: BOUYAKOUB | C179: MOKHTAR | D179: =[4]Feuil1!K179 -> 15.9 | E179: =[4]Feuil1!L179 -> 2 | F179: =[4]Feuil1!M179 -> 1 | G179: =[5]Feuil1!K179 -> 14.23333333 | H179: =[5]Feuil1!L179 -> 2 | I179: =[5]Feuil1!M179 -> 1 | J179: 15.06666667 | K179: 4 | L179: 1
A180: 171 | B180: BOUZID | C180: DJOHAR | D180: =[4]Feuil1!K180 -> 10.3 | E180: =[4]Feuil1!L180 -> 2 | F180: =[4]Feuil1!M180 -> 1 | G180: =[5]Feuil1!K180 -> 10.86666667 | H180: =[5]Feuil1!L180 -> 2 | I180: =[5]Feuil1!M180 -> 2 | J180: 10.58333333 | K180: 4 | L180: 2
A181: 172 | B181: BOUZID | C181: HADJA YAMINA | D181: =[4]Feuil1!K181 -> 12.66666667 | E181: =[4]Feuil1!L181 -> 2 | F181: =[4]Feuil1!M181 -> 1 | G181: =[5]Feuil1!K181 -> 13.46666667 | H181: =[5]Feuil1!L181 -> 2 | I181: =[5]Feuil1!M181 -> 1 | J181: 13.06666667 | K181: 4 | L181: 1
A182: 173 | B182: BRAHIMI | C182: NAIMA | D182: =[4]Feuil1!K182 -> 15.51666667 | E182: =[4]Feuil1!L182 -> 2 | F182: =[4]Feuil1!M182 -> 1 | G182: =[5]Feuil1!K182 -> 17.6 | H182: =[5]Feuil1!L182 -> 2 | I182: =[5]Feuil1!M182 -> 1 | J182: 16.55833333 | K182: 4 | L182: 1
A183: 174 | B183: BRAHIMI | C183: SID AHMED | D183: =[4]Feuil1!K183 -> 3.216666667 | E183: =[4]Feuil1!L183 -> 0 | F183: =[4]Feuil1!M183 -> 1 | G183: =[5]Feuil1!K183 -> 8.266666667 | H183: =[5]Feuil1!L183 -> 0 | I183: =[5]Feuil1!M183 -> 2 | J183: 5.741666667 | K183: 0 | L183: 2
A184: 175 | B184: BRAIK | C184: AHMED TAHAR ILYAS | D184: =[4]Feuil1!K184 -> 6.083333333 | E184: =[4]Feuil1!L184 -> 0 | F184: =[4]Feuil1!M184 -> 1 | G184: =[5]Feuil1!K184 -> 8.933333333 | H184: =[5]Feuil1!L184 -> 0 | I184: =[5]Feuil1!M184 -> 1 | J184: 7.508333333 | K184: 0 | L184: 1
A185: 176 | B185: BRIKI | C185: NOUR ELHOUDA | D185: =[4]Feuil1!K185 -> 16.66666667 | E185: =[4]Feuil1!L185 -> 2 | F185: =[4]Feuil1!M185 -> 1 | G185: =[5]Feuil1!K185 -> 15.8 | H185: =[5]Feuil1!L185 -> 2 | I185: =[5]Feuil1!M185 -> 1 | J185: 16.23333333 | K185: 4 | L185: 1
A186: 177 | B186: CHACHOU | C186: MOHAMED EL AMINE | D186: =[4]Feuil1!K186 -> 0 | E186: =[4]Feuil1!L186 -> 0 | F186: =[4]Feuil1!M186 -> 1 | G186: =[5]Feuil1!K186 -> 0 | H186: =[5]Feuil1!L186 -> 0 | I186: =[5]Feuil1!M186 -> 1 | J186: 0 | K186: 0 | L186: 1
A187: 178 | B187: CHAIB | C187: FATIMA ZOHRA | D187: =[4]Feuil1!K187 -> 13.5 | E187: =[4]Feuil1!L187 -> 2 | F187: =[4]Feuil1!M187 -> 1 | G187: =[5]Feuil1!K187 -> 11.46666667 | H187: =[5]Feuil1!L187 -> 2 | I187: =[5]Feuil1!M187 -> 1 | J187: 12.48333333 | K187: 4 | L187: 1
A188: 179 | B188: CHAKI | C188: ABDELMADJID | D188: =[4]Feuil1!K188 -> 14.9 | E188: =[4]Feuil1!L188 -> 2 | F188: =[4]Feuil1!M188 -> 1 | G188: =[5]Feuil1!K188 -> 13.63333333 | H188: =[5]Feuil1!L188 -> 2 | I188: =[5]Feuil1!M188 -> 1 | J188: 14.26666667 | K188: 4 | L188: 1
A189: 180 | B189: CHAKOR | C189: KAOUTER NESRINE | D189: =[4]Feuil1!K189 -> 0 | E189: =[4]Feuil1!L189 -> 0 | F189: =[4]Feuil1!M189 -> 1 | G189: =[5]Feuil1!K189 -> 0 | H189: =[5]Feuil1!L189 -> 0 | I189: =[5]Feuil1!M189 -> 1 | J189: 0 | K189: 0 | L189: 1
A190: 181 | B190: CHEBOUB | C190: AMARIA | D190: =[4]Feuil1!K190 -> 0 | E190: =[4]Feuil1!L190 -> 0 | F190: =[4]Feuil1!M190 -> 1 | G190: =[5]Feuil1!K190 -> 6.8 | H190: =[5]Feuil1!L190 -> 0 | I190: =[5]Feuil1!M190 -> 1 | J190: 3.4 | K190: 0 | L190: 1
A191: 182 | B191: CHEMRAK | C191: SIHEM | D191: =[4]Feuil1!K191 -> 0 | E191: =[4]Feuil1!L191 -> 0 | F191: =[4]Feuil1!M191 -> 1 | G191: =[5]Feuil1!K191 -> 1.466666667 | H191: =[5]Feuil1!L191 -> 0 | I191: =[5]Feuil1!M191 -> 1 | J191: 0.7333333333 | K191: 0 | L191: 1
A192: 183 | B192: CHENAFA | C192: YASSAMINE | D192: =[4]Feuil1!K192 -> 14.66133333 | E192: =[4]Feuil1!L192 -> 2 | F192: =[4]Feuil1!M192 -> 1 | G192: =[5]Feuil1!K192 -> 13.43333333 | H192: =[5]Feuil1!L192 -> 2 | I192: =[5]Feuil1!M192 -> 1 | J192: 14.04733333 | K192: 4 | L192: 1
A193: 184 | B193: CHERFI | C193: MOHAMED EL AMINE | D193: =[4]Feuil1!K193 -> 10.83333333 | E193: =[4]Feuil1!L193 -> 2 | F193: =[4]Feuil1!M193 -> 1 | G193: =[5]Feuil1!K193 -> 8.266666667 | H193: =[5]Feuil1!L193 -> 0 | I193: =[5]Feuil1!M193 -> 2 | J193: 9.55 | K193: 2 | L193: 2
A194: 185 | B194: CHERGUI | C194: AMIRA | D194: =[4]Feuil1!K194 -> 10.41666667 | E194: =[4]Feuil1!L194 -> 2 | F194: =[4]Feuil1!M194 -> 1 | G194: =[5]Feuil1!K194 -> 13.4 | H194: =[5]Feuil1!L194 -> 2 | I194: =[5]Feuil1!M194 -> 1 | J194: 11.90833333 | K194: 4 | L194: 1
A195: 186 | B195: CHEURFAOUI | C195: NAWEL | D195: =[4]Feuil1!K195 -> 7.233333333 | E195: =[4]Feuil1!L195 -> 0 | F195: =[4]Feuil1!M195 -> 1 | G195: =[5]Feuil1!K195 -> 10.63333333 | H195: =[5]Feuil1!L195 -> 2 | I195: =[5]Feuil1!M195 -> 1 | J195: 8.933333333 | K195: 2 | L195: 1
A196: 187 | B196: CHIBANI | C196: ABDELKADER | D196: =[4]Feuil1!K196 -> 15.21666667 | E196: =[4]Feuil1!L196 -> 2 | F196: =[4]Feuil1!M196 -> 1 | G196: =[5]Feuil1!K196 -> 13.03333333 | H196: =[5]Feuil1!L196 -> 2 | I196: =[5]Feuil1!M196 -> 1 | J196: 14.125 | K196: 4 | L196: 1
A197: 188 | B197: CHIKHAOUI | C197: NOUREDDINE | D197: =[4]Feuil1!K197 -> 5.383333333 | E197: =[4]Feuil1!L197 -> 0 | F197: =[4]Feuil1!M197 -> 1 | G197: =[5]Feuil1!K197 -> 6.533333333 | H197: =[5]Feuil1!L197 -> 0 | I197: =[5]Feuil1!M197 -> 1 | J197: 5.958333333 | K197: 0 | L197: 1
A198: 189 | B198: DAHMANE | C198: OUSSAMA | D198: =[4]Feuil1!K198 -> 15.26666667 | E198: =[4]Feuil1!L198 -> 2 | F198: =[4]Feuil1!M198 -> 1 | G198: =[5]Feuil1!K198 -> 12.76666667 | H198: =[5]Feuil1!L198 -> 2 | I198: =[5]Feuil1!M198 -> 1 | J198: 14.01666667 | K198: 4 | L198: 1
A199: 190 | B199: DAHMANI | C199: AICHA | D199: =[4]Feuil1!K199 -> 13.46666667 | E199: =[4]Feuil1!L199 -> 2 | F199: =[4]Feuil1!M199 -> 1 | G199: =[5]Feuil1!K199 -> 15 | H199: =[5]Feuil1!L199 -> 2 | I199: =[5]Feuil1!M199 -> 1 | J199: 14.23333333 | K199: 4 | L199: 1
A200: 191 | B200: DAHMECHE | C200: HADJER | D200: =[4]Feuil1!K200 -> 8.466666667 | E200: =[4]Feuil1!L200 -> 0 | F200: =[4]Feuil1!M200 -> 1 | G200: =[5]Feuil1!K200 -> 12.1 | H200: =[5]Feuil1!L200 -> 2 | I200: =[5]Feuil1!M200 -> 1 | J200: 10.28333333 | K200: 4 | L200: 1
... 204 more rows

Sheet UEM11
A1: MINISTERE DE L’ENSEIGNEMENT SUPERIEUR ET DE LA RECHERCHE SCIENTIFIQUE
A2: UNIVERSITE ABDELHAMID IBN BADIS MOSTAGANEM | D2: جامعــة عبد الحميد ابن باديس مستغانم
A3: FACULTE DES SCIENCES EXACTES ET DE L’INFORMATIQUE | D3: كلية العلوم الدقيقة و الأعلام الألي
A4: DEPARTEMENT DE MATHEMATIQUES ET INFORMATIQUE | D4: قسم الرياضيات و الأعلام الألي
A5: Première Année - Mathématiques et Informatique
A6: PV du 1ier Semestre-2015/2016
A7: UEM11
D8: Francais | G8: TP-Bur | J8: UEM11
A9: N° | B9: Nom | C9: Prénom | D9: Note | E9: Crédit | F9: Sess | G9: Note | H9: Crédit | I9: Sess | J9: Note | K9: Crédit | L9: Session
A10: 1 | B10: ABBABSA | C10: RAHMA | D10: =[6]Feuil1!G10 -> 2 | E10: =[6]Feuil1!H10 -> 0 | F10: =[6]Feuil1!I10 -> 1 | G10: =[7]Feuil1!K10 -> 13.46666667 | H10: =[7]Feuil1!L10 -> 3 | I10: =[7]Feuil1!M10 -> 1 | J10: =(D10+G10)/2 -> 7.733333333 | K10: =IF(J10>=10,7,E10+H10) -> 3 | L10: =IF(AND(F10="1",I10="1"),"1","2") -> 1
A11: 2 | B11: ABBAS | C11: AHMED | D11: =[6]Feuil1!G11 -> 18 | E11: =[6]Feuil1!H11 -> 4 | F11: =[6]Feuil1!I11 -> 1 | G11: =[7]Feuil1!K11 -> 15.45 | H11: =[7]Feuil1!L11 -> 3 | I11: =[7]Feuil1!M11 -> 1 | J11: =(D11+G11)/2 -> 16.725 | K11: =IF(J11>=10,7,E11+H11) -> 7 | L11: =IF(AND(F11="1",I11="1"),"1","2") -> 1
A12: 3 | B12: ABBES | C12: GHOZLENE | D12: =[6]Feuil1!G12 -> 16 | E12: =[6]Feuil1!H12 -> 4 | F12: =[6]Feuil1!I12 -> 1 | G12: =[7]Feuil1!K12 -> 12.6 | H12: =[7]Feuil1!L12 -> 3 | I12: =[7]Feuil1!M12 -> 1 | J12: 14.3 | K12: 7 | L12: 1
A13: 4 | B13: ABBES | C13: MOHAMED EL AMINE | D13: =[6]Feuil1!G13 -> 0 | E13: =[6]Feuil1!H13 -> 0 | F13: =[6]Feuil1!I13 -> 1 | G13: =[7]Feuil1!K13 -> 14.06666667 | H13: =[7]Feuil1!L13 -> 3 | I13: =[7]Feuil1!M13 -> 1 | J13: 7.033333333 | K13: 3 | L13: 1
A14: 5 | B14: ABBOU | C14: FATIHA | D14: =[6]Feuil1!G14 -> 17 | E14: =[6]Feuil1!H14 -> 4 | F14: =[6]Feuil1!I14 -> 1 | G14: =[7]Feuil1!K14 -> 13.26666667 | H14: =[7]Feuil1!L14 -> 3 | I14: =[7]Feuil1!M14 -> 1 | J14: 15.13333333 | K14: 7 | L14: 1
A15: 6 | B15: ABBOUD | C15: SALIHA | D15: =[6]Feuil1!G15 -> 0 | E15: =[6]Feuil1!H15 -> 0 | F15: =[6]Feuil1!I15 -> 1 | G15: =[7]Feuil1!K15 -> 12.9 | H15: =[7]Feuil1!L15 -> 3 | I15: =[7]Feuil1!M15 -> 1 | J15: 6.45 | K15: 3 | L15: 1
A16: 7 | B16: ABDELLAOUI | C16: NADIA | D16: =[6]Feuil1!G16 -> 0 | E16: =[6]Feuil1!H16 -> 0 | F16: =[6]Feuil1!I16 -> 1 | G16: =[7]Feuil1!K16 -> 12.23333333 | H16: =[7]Feuil1!L16 -> 3 | I16: =[7]Feuil1!M16 -> 1 | J16: 6.116666667 | K16: 3 | L16: 1
A17: 8 | B17: ABDELNEBI | C17: AMIRA | D17: =[6]Feuil1!G17 -> 17 | E17: =[6]Feuil1!H17 -> 4 | F17: =[6]Feuil1!I17 -> 1 | G17: =[7]Feuil1!K17 -> 19.46666667 | H17: =[7]Feuil1!L17 -> 3 | I17: =[7]Feuil1!M17 -> 1 | J17: 18.23333333 | K17: 7 | L17: 1
A18: 9 | B18: ABDELOUHAB | C18: NEDJWA ZAHRA | D18: =[6]Feuil1!G18 -> 0 | E18: =[6]Feuil1!H18 -> 0 | F18: =[6]Feuil1!I18 -> 1 | G18: =[7]Feuil1!K18 -> 13.43333333 | H18: =[7]Feuil1!L18 -> 3 | I18: =[7]Feuil1!M18 -> 1 | J18: 6.716666667 | K18: 3 | L18: 1
A19: 10 | B19: ABDOUNI | C19: AMIN | D19: =[6]Feuil1!G19 -> 15 | E19: =[6]Feuil1!H19 -> 4 | F19: =[6]Feuil1!I19 -> 1 | G19: =[7]Feuil1!K19 -> 13.16666667 | H19: =[7]Feuil1!L19 -> 3 | I19: =[7]Feuil1!M19 -> 1 | J19: 14.08333333 | K19: 7 | L19: 1
A20: 11 | B20: ABEID | C20: ZOHRA | D20: =[6]Feuil1!G20 -> 0 | E20: =[6]Feuil1!H20 -> 0 | F20: =[6]Feuil1!I20 -> 1 | G20: =[7]Feuil1!K20 -> 15.88333333 | H20: =[7]Feuil1!L20 -> 3 | I20: =[7]Feuil1!M20 -> 1 | J20: 7.941666667 | K20: 3 | L20: 1
A21: 12 | B21: ACHOUR | C21: ABDENOUR | D21: =[6]Feuil1!G21 -> 17 | E21: =[6]Feuil1!H21 -> 4 | F21: =[6]Feuil1!I21 -> 1 | G21: =[7]Feuil1!K21 -> 16.26666667 | H21: =[7]Feuil1!L21 -> 3 | I21: =[7]Feuil1!M21 -> 1 | J21: 16.63333333 | K21: 7 | L21: 1
A22: 13 | B22: ADDA | C22: ABDERRAHIM | D22: =[6]Feuil1!G22 -> 0 | E22: =[6]Feuil1!H22 -> 0 | F22: =[6]Feuil1!I22 -> 1 | G22: =[7]Feuil1!K22 -> 11.33333333 | H22: =[7]Feuil1!L22 -> 3 | I22: =[7]Feuil1!M22 -> 1 | J22: 5.666666667 | K22: 3 | L22: 1
A23: 14 | B23: ADDA | C23: HOUSSAM | D23: =[6]Feuil1!G23 -> 11 | E23: =[6]Feuil1!H23 -> 4 | F23: =[6]Feuil1!I23 -> 1 | G23: =[7]Feuil1!K23 -> 15.51666667 | H23: =[7]Feuil1!L23 -> 3 | I23: =[7]Feuil1!M23 -> 1 | J23: 13.25833333 | K23: 7 | L23: 1
A24: 15 | B24: ADDA | C24: SAID | D24: =[6]Feuil1!G24 -> 0 | E24: =[6]Feuil1!H24 -> 0 | F24: =[6]Feuil1!I24 -> 1 | G24: =[7]Feuil1!K24 -> 15.66666667 | H24: =[7]Feuil1!L24 -> 3 | I24: =[7]Feuil1!M24 -> 1 | J24: 7.833333333 | K24: 3 | L24: 1
A25: 16 | B25: AGBOUBI | C25: M'HAMED YASSINE | D25: =[6]Feuil1!G25 -> 15 | E25: =[6]Feuil1!H25 -> 4 | F25: =[6]Feuil1!I25 -> 1 | G25: =[7]Feuil1!K25 -> 14.9 | H25: =[7]Feuil1!L25 -> 3 | I25: =[7]Feuil1!M25 -> 1 | J25: 14.95 | K25: 7 | L25: 1
A26: 17 | B26: AHMED BACHA | C26: BILAL | D26: =[6]Feuil1!G26 -> 0 | E26: =[6]Feuil1!H26 -> 0 | F26: =[6]Feuil1!I26 -> 1 | G26: =[7]Feuil1!K26 -> 0 | H26: =[7]Feuil1!L26 -> 0 | I26: =[7]Feuil1!M26 -> 1 | J26: 0 | K26: 0 | L26: 1
A27: 18 | B27: AHMED KHODJA | C27: SOUMIA | D27: =[6]Feuil1!G27 -> 17 | E27: =[6]Feuil1!H27 -> 4 | F27: =[6]Feuil1!I27 -> 1 | G27: =[7]Feuil1!K27 -> 14.53333333 | H27: =[7]Feuil1!L27 -> 3 | I27: =[7]Feuil1!M27 -> 1 | J27: 15.76666667 | K27: 7 | L27: 1
A28: 19 | B28: AIMOUCH | C28: ABDESSAMED | D28: =[6]Feuil1!G28 -> 15 | E28: =[6]Feuil1!H28 -> 4 | F28: =[6]Feuil1!I28 -> 1 | G28: =[7]Feuil1!K28 -> 16.6 | H28: =[7]Feuil1!L28 -> 3 | I28: =[7]Feuil1!M28 -> 1 | J28: 15.8 | K28: 7 | L28: 1
A29: 20 | B29: AIMOUCH | C29: BADRA | D29: =[6]Feuil1!G29 -> 18 | E29: =[6]Feuil1!H29 -> 4 | F29: =[6]Feuil1!I29 -> 1 | G29: =[7]Feuil1!K29 -> 12.4 | H29: =[7]Feuil1!L29 -> 3 | I29: =[7]Feuil1!M29 -> 1 | J29: 15.2 | K29: 7 | L29: 1
A30: 21 | B30: AISSA | C30: SIHEM | D30: =[6]Feuil1!G30 -> 0 | E30: =[6]Feuil1!H30 -> 0 | F30: =[6]Feuil1!I30 -> 1 | G30: =[7]Feuil1!K30 -> 0 | H30: =[7]Feuil1!L30 -> 0 | I30: =[7]Feuil1!M30 -> 1 | J30: 0 | K30: 0 | L30: 1
A31: 22 | B31: AISSAT | C31: ABDERRAHMANE KADDOUR | D31: =[6]Feuil1!G31 -> 13 | E31: =[6]Feuil1!H31 -> 4 | F31: =[6]Feuil1!I31 -> 1 | G31: =[7]Feuil1!K31 -> 17.8 | H31: =[7]Feuil1!L31 -> 3 | I31: =[7]Feuil1!M31 -> 1 | J31: 15.4 | K31: 7 | L31: 1
A32: 23 | B32: AIT OUALI | C32: LINDA | D32: =[6]Feuil1!G32 -> 16 | E32: =[6]Feuil1!H32 -> 4 | F32: =[6]Feuil1!I32 -> 1 | G32: =[7]Feuil1!K32 -> 14 | H32: =[7]Feuil1!L32 -> 3 | I32: =[7]Feuil1!M32 -> 1 | J32: 15 | K32: 7 | L32: 1
A33: 24 | B33: AKROUM | C33: YOUCEF | D33: =[6]Feuil1!G33 -> 17 | E33: =[6]Feuil1!H33 -> 4 | F33: =[6]Feuil1!I33 -> 1 | G33: =[7]Feuil1!K33 -> 19.86666667 | H33: =[7]Feuil1!L33 -> 3 | I33: =[7]Feuil1!M33 -> 1 | J33: 18.43333333 | K33: 7 | L33: 1
A34: 25 | B34: ALLOUCH | C34: NADIA | D34: =[6]Feuil1!G34 -> 16 | E34: =[6]Feuil1!H34 -> 4 | F34: =[6]Feuil1!I34 -> 1 | G34: =[7]Feuil1!K34 -> 14.6 | H34: =[7]Feuil1!L34 -> 3 | I34: =[7]Feuil1!M34 -> 1 | J34: 15.3 | K34: 7 | L34: 1
A35: 26 | B35: AMAIRI | C35: CHAIMAA | D35: =[6]Feuil1!G35 -> 16 | E35: =[6]Feuil1!H35 -> 4 | F35: =[6]Feuil1!I35 -> 1 | G35: =[7]Feuil1!K35 -> 14.6 | H35: =[7]Feuil1!L35 -> 3 | I35: =[7]Feuil1!M35 -> 1 | J35: 15.3 | K35: 7 | L35: 1
A36: 27 | B36: AMMAR | C36: DJAMEL EDDINE | D36: =[6]Feuil1!G36 -> 0 | E36: =[6]Feuil1!H36 -> 0 | F36: =[6]Feuil1!I36 -> 1 | G36: =[7]Feuil1!K36 -> 0 | H36: =[7]Feuil1!L36 -> 0 | I36: =[7]Feuil1!M36 -> 1 | J36: 0 | K36: 0 | L36: 1
A37: 28 | B37: AMMAR | C37: MANAL | D37: =[6]Feuil1!G37 -> 17 | E37: =[6]Feuil1!H37 -> 4 | F37: =[6]Feuil1!I37 -> 1 | G37: =[7]Feuil1!K37 -> 17.13333333 | H37: =[7]Feuil1!L37 -> 3 | I37: =[7]Feuil1!M37 -> 1 | J37: 17.06666667 | K37: 7 | L37: 1
A38: 29 | B38: AMRANE | C38: AHMED | D38: =[6]Feuil1!G38 -> 10 | E38: =[6]Feuil1!H38 -> 4 | F38: =[6]Feuil1!I38 -> 1 | G38: =[7]Feuil1!K38 -> 14.96666667 | H38: =[7]Feuil1!L38 -> 3 | I38: =[7]Feuil1!M38 -> 1 | J38: 12.48333333 | K38: 7 | L38: 1
A39: 30 | B39: AMRANE | C39: HAFIDHA | D39: =[6]Feuil1!G39 -> 17 | E39: =[6]Feuil1!H39 -> 4 | F39: =[6]Feuil1!I39 -> 1 | G39: =[7]Feuil1!K39 -> 8.866666667 | H39: =[7]Feuil1!L39 -> 0 | I39: =[7]Feuil1!M39 -> 2 | J39: 12.93333333 | K39: 7 | L39: 2
A40: 31 | B40: AMRAOUI | C40: SOUFYANE | D40: =[6]Feuil1!G40 -> 17 | E40: =[6]Feuil1!H40 -> 4 | F40: =[6]Feuil1!I40 -> 1 | G40: =[7]Feuil1!K40 -> 16.8 | H40: =[7]Feuil1!L40 -> 3 | I40: =[7]Feuil1!M40 -> 1 | J40: 16.9 | K40: 7 | L40: 1
A41: 32 | B41: AMROUCHE | C41: NOURA | D41: =[6]Feuil1!G41 -> 14 | E41: =[6]Feuil1!H41 -> 4 | F41: =[6]Feuil1!I41 -> 1 | G41: =[7]Feuil1!K41 -> 9.566666667 | H41: =[7]Feuil1!L41 -> 0 | I41: =[7]Feuil1!M41 -> 2 | J41: 11.78333333 | K41: 7 | L41: 2
A42: 33 | B42: AOUAICHIA | C42: HANANE | D42: =[6]Feuil1!G42 -> 18 | E42: =[6]Feuil1!H42 -> 4 | F42: =[6]Feuil1!I42 -> 1 | G42: =[7]Feuil1!K42 -> 11.26666667 | H42: =[7]Feuil1!L42 -> 3 | I42: =[7]Feuil1!M42 -> 1 | J42: 14.63333333 | K42: 7 | L42: 1
A43: 34 | B43: ARAB | C43: NOUREDDINE | D43: =[6]Feuil1!G43 -> 0 | E43: =[6]Feuil1!H43 -> 0 | F43: =[6]Feuil1!I43 -> 1 | G43: =[7]Feuil1!K43 -> 0 | H43: =[7]Feuil1!L43 -> 0 | I43: =[7]Feuil1!M43 -> 1 | J43: 0 | K43: 0 | L43: 1
A44: 35 | B44: ATMANI | C44: FATIHA | D44: =[6]Feuil1!G44 -> 16 | E44: =[6]Feuil1!H44 -> 4 | F44: =[6]Feuil1!I44 -> 1 | G44: =[7]Feuil1!K44 -> 14.53333333 | H44: =[7]Feuil1!L44 -> 3 | I44: =[7]Feuil1!M44 -> 1 | J44: 15.26666667 | K44: 7 | L44: 1
A45: 36 | B45: AUODJ | C45: LARBI | D45: =[6]Feuil1!G45 -> 15 | E45: =[6]Feuil1!H45 -> 4 | F45: =[6]Feuil1!I45 -> 1 | G45: =[7]Feuil1!K45 -> 7.8 | H45: =[7]Feuil1!L45 -> 0 | I45: =[7]Feuil1!M45 -> 1 | J45: 11.4 | K45: 7 | L45: 1
A46: 37 | B46: AYAD | C46: NADJET | D46: =[6]Feuil1!G46 -> 16 | E46: =[6]Feuil1!H46 -> 4 | F46: =[6]Feuil1!I46 -> 1 | G46: =[7]Feuil1!K46 -> 6.066666667 | H46: =[7]Feuil1!L46 -> 0 | I46: =[7]Feuil1!M46 -> 1 | J46: 11.03333333 | K46: 7 | L46: 1
A47: 38 | B47: AZIL | C47: HALIMA | D47: =[6]Feuil1!G47 -> 18 | E47: =[6]Feuil1!H47 -> 4 | F47: =[6]Feuil1!I47 -> 1 | G47: =[7]Feuil1!K47 -> 14.46666667 | H47: =[7]Feuil1!L47 -> 3 | I47: =[7]Feuil1!M47 -> 1 | J47: 16.23333333 | K47: 7 | L47: 1
A48: 39 | B48: AZIRIA | C48: BILAL | D48: =[6]Feuil1!G48 -> 8 | E48: =[6]Feuil1!H48 -> 0 | F48: =[6]Feuil1!I48 -> 2 | G48: =[7]Feuil1!K48 -> 10.2 | H48: =[7]Feuil1!L48 -> 3 | I48: =[7]Feuil1!M48 -> 1 | J48: 9.1 | K48: 3 | L48: 2
A49: 40 | B49: BAALI | C49: NOR ELHOUDA | D49: =[6]Feuil1!G49 -> 15.4 | E49: =[6]Feuil1!H49 -> 4 | F49: =[6]Feuil1!I49 -> 1 | G49: =[7]Feuil1!K49 -> 10.2 | H49: =[7]Feuil1!L49 -> 3 | I49: =[7]Feuil1!M49 -> 1 | J49: 12.8 | K49: 7 | L49: 1
A50: 41 | B50: BAALI | C50: ZOULIKHA | D50: =[6]Feuil1!G50 -> 18 | E50: =[6]Feuil1!H50 -> 4 | F50: =[6]Feuil1!I50 -> 1 | G50: =[7]Feuil1!K50 -> 9.766666667 | H50: =[7]Feuil1!L50 -> 0 | I50: =[7]Feuil1!M50 -> 1 | J50: 13.88333333 | K50: 7 | L50: 1
A51: 42 | B51: BACHIR BEY | C51: ABDELHAMID | D51: =[6]Feuil1!G51 -> 18 | E51: =[6]Feuil1!H51 -> 4 | F51: =[6]Feuil1!I51 -> 1 | G51: =[7]Feuil1!K51 -> 14.6 | H51: =[7]Feuil1!L51 -> 3 | I51: =[7]Feuil1!M51 -> 1 | J51: 16.3 | K51: 7 | L51: 1
A52: 43 | B52: BAGHDOUD | C52: ASMAE | D52: =[6]Feuil1!G52 -> 15 | E52: =[6]Feuil1!H52 -> 4 | F52: =[6]Feuil1!I52 -> 1 | G52: =[7]Feuil1!K52 -> 15.06666667 | H52: =[7]Feuil1!L52 -> 3 | I52: =[7]Feuil1!M52 -> 1 | J52: 15.03333333 | K52: 7 | L52: 1
A53: 44 | B53: BAHLOUL | C53: MOHAMED AMINE | D53: =[6]Feuil1!G53 -> 18 | E53: =[6]Feuil1!H53 -> 4 | F53: =[6]Feuil1!I53 -> 1 | G53: =[7]Feuil1!K53 -> 16.6 | H53: =[7]Feuil1!L53 -> 3 | I53: =[7]Feuil1!M53 -> 1 | J53: 17.3 | K53: 7 | L53: 1
A54: 45 | B54: BAININE | C54: SID AHMED | D54: =[6]Feuil1!G54 -> 18 | E54: =[6]Feuil1!H54 -> 4 | F54: =[6]Feuil1!I54 -> 1 | G54: =[7]Feuil1!K54 -> 17.26666667 | H54: =[7]Feuil1!L54 -> 3 | I54: =[7]Feuil1!M54 -> 1 | J54: 17.63333333 | K54: 7 | L54: 1
A55: 46 | B55: BAKIR | C55: MOHAMMED | D55: =[6]Feuil1!G55 -> 0 | E55: =[6]Feuil1!H55 -> 0 | F55: =[6]Feuil1!I55 -> 1 | G55: =[7]Feuil1!K55 -> 4.533333333 | H55: =[7]Feuil1!L55 -> 0 | I55: =[7]Feuil1!M55 -> 1 | J55: 2.266666667 | K55: 0 | L55: 1
A56: 47 | B56: BARDAD | C56: NASSIBA | D56: =[6]Feuil1!G56 -> 0 | E56: =[6]Feuil1!H56 -> 0 | F56: =[6]Feuil1!I56 -> 1 | G56: =[7]Feuil1!K56 -> 0 | H56: =[7]Feuil1!L56 -> 0 | I56: =[7]Feuil1!M56 -> 1 | J56: 0 | K56: 0 | L56: 1
A57: 48 | B57: BARDAD | C57: NAZHA | D57: =[6]Feuil1!G57 -> 18 | E57: =[6]Feuil1!H57 -> 4 | F57: =[6]Feuil1!I57 -> 1 | G57: =[7]Feuil1!K57 -> 10.66666667 | H57: =[7]Feuil1!L57 -> 3 | I57: =[7]Feuil1!M57 -> 1 | J57: 14.33333333 | K57: 7 | L57: 1
A58: 49 | B58: BARKAT | C58: NASSIMA | D58: =[6]Feuil1!G58 -> 17 | E58: =[6]Feuil1!H58 -> 4 | F58: =[6]Feuil1!I58 -> 1 | G58: =[7]Feuil1!K58 -> 18.66666667 | H58: =[7]Feuil1!L58 -> 3 | I58: =[7]Feuil1!M58 -> 1 | J58: 17.83333333 | K58: 7 | L58: 1
A59: 50 | B59: BEGUELOUL | C59: AZZEDINE | D59: =[6]Feuil1!G59 -> 15 | E59: =[6]Feuil1!H59 -> 4 | F59: =[6]Feuil1!I59 -> 1 | G59: =[7]Feuil1!K59 -> 12.53333333 | H59: =[7]Feuil1!L59 -> 3 | I59: =[7]Feuil1!M59 -> 1 | J59: 13.76666667 | K59: 7 | L59: 1
A60: 51 | B60: BEHLOUL | C60: ARBIA | D60: =[6]Feuil1!G60 -> 15 | E60: =[6]Feuil1!H60 -> 4 | F60: =[6]Feuil1!I60 -> 1 | G60: =[7]Feuil1!K60 -> 8.8 | H60: =[7]Feuil1!L60 -> 0 | I60: =[7]Feuil1!M60 -> 1 | J60: 11.9 | K60: 7 | L60: 1
A61: 52 | B61: BEKADDOR BENATIA | C61: ABDALLAH | D61: =[6]Feuil1!G61 -> 17 | E61: =[6]Feuil1!H61 -> 4 | F61: =[6]Feuil1!I61 -> 1 | G61: =[7]Feuil1!K61 -> 11.76666667 | H61: =[7]Feuil1!L61 -> 3 | I61: =[7]Feuil1!M61 -> 2 | J61: 14.38333333 | K61: 7 | L61: 2
A62: 53 | B62: BEKADDOUR | C62: FATIMA | D62: =[6]Feuil1!G62 -> 18 | E62: =[6]Feuil1!H62 -> 4 | F62: =[6]Feuil1!I62 -> 1 | G62: =[7]Feuil1!K62 -> 13.71666667 | H62: =[7]Feuil1!L62 -> 3 | I62: =[7]Feuil1!M62 -> 1 | J62: 15.85833333 | K62: 7 | L62: 1
A63: 54 | B63: BEKKA | C63: HOUCINE | D63: =[6]Feuil1!G63 -> 16 | E63: =[6]Feuil1!H63 -> 4 | F63: =[6]Feuil1!I63 -> 1 | G63: =[7]Feuil1!K63 -> 9.566666667 | H63: =[7]Feuil1!L63 -> 0 | I63: =[7]Feuil1!M63 -> 1 | J63: 12.78333333 | K63: 7 | L63: 1
A64: 55 | B64: BELABBES | C64: FAISAL | D64: =[6]Feuil1!G64 -> 18 | E64: =[6]Feuil1!H64 -> 4 | F64: =[6]Feuil1!I64 -> 1 | G64: =[7]Feuil1!K64 -> 8.833333333 | H64: =[7]Feuil1!L64 -> 0 | I64: =[7]Feuil1!M64 -> 2 | J64: 13.41666667 | K64: 7 | L64: 2
A65: 56 | B65: BELACEL | C65: M'HAMMED | D65: =[6]Feuil1!G65 -> 14 | E65: =[6]Feuil1!H65 -> 4 | F65: =[6]Feuil1!I65 -> 1 | G65: =[7]Feuil1!K65 -> 10.8 | H65: =[7]Feuil1!L65 -> 3 | I65: =[7]Feuil1!M65 -> 2 | J65: 12.4 | K65: 7 | L65: 2
A66: 57 | B66: BELACEL | C66: MOHAMED ELAMINE | D66: =[6]Feuil1!G66 -> 0 | E66: =[6]Feuil1!H66 -> 0 | F66: =[6]Feuil1!I66 -> 1 | G66: =[7]Feuil1!K66 -> 0 | H66: =[7]Feuil1!L66 -> 0 | I66: =[7]Feuil1!M66 -> 1 | J66: 0 | K66: 0 | L66: 1
A67: 58 | B67: BELADJAL | C67: SAMIA | D67: =[6]Feuil1!G67 -> 14 | E67: =[6]Feuil1!H67 -> 4 | F67: =[6]Feuil1!I67 -> 1 | G67: =[7]Feuil1!K67 -> 12.26666667 | H67: =[7]Feuil1!L67 -> 3 | I67: =[7]Feuil1!M67 -> 1 | J67: 13.13333333 | K67: 7 | L67: 1
A68: 59 | B68: BELADJEL | C68: MOHAMED EL AMINE | D68: =[6]Feuil1!G68 -> 8 | E68: =[6]Feuil1!H68 -> 0 | F68: =[6]Feuil1!I68 -> 1 | G68: =[7]Feuil1!K68 -> 3.866666667 | H68: =[7]Feuil1!L68 -> 0 | I68: =[7]Feuil1!M68 -> 2 | J68: 5.933333333 | K68: 0 | L68: 2
A69: 60 | B69: BELAHOUEL | C69: BEDRA BATOUL | D69: =[6]Feuil1!G69 -> 17 | E69: =[6]Feuil1!H69 -> 4 | F69: =[6]Feuil1!I69 -> 1 | G69: =[7]Feuil1!K69 -> 17 | H69: =[7]Feuil1!L69 -> 3 | I69: =[7]Feuil1!M69 -> 1 | J69: 17 | K69: 7 | L69: 1
A70: 61 | B70: BELAHSENE | C70: SIHAM | D70: =[6]Feuil1!G70 -> 0 | E70: =[6]Feuil1!H70 -> 0 | F70: =[6]Feuil1!I70 -> 1 | G70: =[7]Feuil1!K70 -> 0 | H70: =[7]Feuil1!L70 -> 0 | I70: =[7]Feuil1!M70 -> 1 | J70: 0 | K70: 0 | L70: 1
A71: 62 | B71: BELAID | C71: ROKAYA | D71: =[6]Feuil1!G71 -> 17 | E71: =[6]Feuil1!H71 -> 4 | F71: =[6]Feuil1!I71 -> 1 | G71: =[7]Feuil1!K71 -> 17.46666667 | H71: =[7]Feuil1!L71 -> 3 | I71: =[7]Feuil1!M71 -> 1 | J71: 17.23333333 | K71: 7 | L71: 1
A72: 63 | B72: BELAID | C72: YASSEMINA | D72: =[6]Feuil1!G72 -> 0 | E72: =[6]Feuil1!H72 -> 0 | F72: =[6]Feuil1!I72 -> 1 | G72: =[7]Feuil1!K72 -> 0 | H72: =[7]Feuil1!L72 -> 0 | I72: =[7]Feuil1!M72 -> 1 | J72: 0 | K72: 0 | L72: 1
A73: 64 | B73: BELALIA | C73: MOSTAFA | D73: =[6]Feuil1!G73 -> 14 | E73: =[6]Feuil1!H73 -> 4 | F73: =[6]Feuil1!I73 -> 1 | G73: =[7]Feuil1!K73 -> 12.16666667 | H73: =[7]Feuil1!L73 -> 3 | I73: =[7]Feuil1!M73 -> 2 | J73: 13.08333333 | K73: 7 | L73: 2
A74: 65 | B74: BELAOUEDJ | C74: MANSOURIA | D74: =[6]Feuil1!G74 -> 14 | E74: =[6]Feuil1!H74 -> 4 | F74: =[6]Feuil1!I74 -> 1 | G74: =[7]Feuil1!K74 -> 14.5 | H74: =[7]Feuil1!L74 -> 3 | I74: =[7]Feuil1!M74 -> 1 | J74: 14.25 | K74: 7 | L74: 1
A75: 66 | B75: BELARBI | C75: MOHAMED YASSIN | D75: =[6]Feuil1!G75 -> 18 | E75: =[6]Feuil1!H75 -> 4 | F75: =[6]Feuil1!I75 -> 1 | G75: =[7]Feuil1!K75 -> 15.83333333 | H75: =[7]Feuil1!L75 -> 3 | I75: =[7]Feuil1!M75 -> 1 | J75: =(D75+G75)/2 -> 16.91666667 | K75: =IF(J75>=10,7,E75+H75) -> 7 | L75: =IF(AND(F75="1",I75="1"),"1","2") -> 1
A76: 67 | B76: BELEH | C76: MERIEM | D76: =[6]Feuil1!G76 -> 17 | E76: =[6]Feuil1!H76 -> 4 | F76: =[6]Feuil1!I76 -> 1 | G76: =[7]Feuil1!K76 -> 13.78333333 | H76: =[7]Feuil1!L76 -> 3 | I76: =[7]Feuil1!M76 -> 1 | J76: 15.39166667 | K76: 7 | L76: 1
A77: 68 | B77: BELHACHEMIA | C77: MOHAMMED IBRAHIM | D77: =[6]Feuil1!G77 -> 17 | E77: =[6]Feuil1!H77 -> 4 | F77: =[6]Feuil1!I77 -> 1 | G77: =[7]Feuil1!K77 -> 14.53333333 | H77: =[7]Feuil1!L77 -> 3 | I77: =[7]Feuil1!M77 -> 1 | J77: 15.76666667 | K77: 7 | L77: 1
A78: 69 | B78: BELHAMITI | C78: MERIEM MANSOURIA | D78: =[6]Feuil1!G78 -> 18 | E78: =[6]Feuil1!H78 -> 4 | F78: =[6]Feuil1!I78 -> 1 | G78: =[7]Feuil1!K78 -> 18.93333333 | H78: =[7]Feuil1!L78 -> 3 | I78: =[7]Feuil1!M78 -> 1 | J78: 18.46666667 | K78: 7 | L78: 1
A79: 70 | B79: BELKACEM | C79: IBRAHIM | D79: =[6]Feuil1!G79 -> 0 | E79: =[6]Feuil1!H79 -> 0 | F79: =[6]Feuil1!I79 -> 1 | G79: =[7]Feuil1!K79 -> 13.8 | H79: =[7]Feuil1!L79 -> 3 | I79: =[7]Feuil1!M79 -> 1 | J79: 6.9 | K79: 3 | L79: 1
A80: 71 | B80: BELKACEMI | C80: LARBI | D80: =[6]Feuil1!G80 -> 0 | E80: =[6]Feuil1!H80 -> 0 | F80: =[6]Feuil1!I80 -> 1 | G80: =[7]Feuil1!K80 -> 9.166666667 | H80: =[7]Feuil1!L80 -> 0 | I80: =[7]Feuil1!M80 -> 1 | J80: 4.583333333 | K80: 0 | L80: 1
A81: 72 | B81: BELKAID | C81: RADIA | D81: =[6]Feuil1!G81 -> 19 | E81: =[6]Feuil1!H81 -> 4 | F81: =[6]Feuil1!I81 -> 1 | G81: =[7]Feuil1!K81 -> 15.6 | H81: =[7]Feuil1!L81 -> 3 | I81: =[7]Feuil1!M81 -> 1 | J81: 17.3 | K81: 7 | L81: 1
A82: 73 | B82: BELKAIOUS | C82: HAYET | D82: =[6]Feuil1!G82 -> 17 | E82: =[6]Feuil1!H82 -> 4 | F82: =[6]Feuil1!I82 -> 1 | G82: =[7]Feuil1!K82 -> 12.66666667 | H82: =[7]Feuil1!L82 -> 3 | I82: =[7]Feuil1!M82 -> 1 | J82: 14.83333333 | K82: 7 | L82: 1
A83: 74 | B83: BELKARROUB | C83: NOUR EL HOUDA | D83: =[6]Feuil1!G83 -> 18 | E83: =[6]Feuil1!H83 -> 4 | F83: =[6]Feuil1!I83 -> 1 | G83: =[7]Feuil1!K83 -> 14.16666667 | H83: =[7]Feuil1!L83 -> 3 | I83: =[7]Feuil1!M83 -> 1 | J83: 16.08333333 | K83: 7 | L83: 1
A84: 75 | B84: BELMADANI | C84: NAIMA | D84: =[6]Feuil1!G84 -> 0 | E84: =[6]Feuil1!H84 -> 0 | F84: =[6]Feuil1!I84 -> 1 | G84: =[7]Feuil1!K84 -> 7.8 | H84: =[7]Feuil1!L84 -> 0 | I84: =[7]Feuil1!M84 -> 1 | J84: 3.9 | K84: 0 | L84: 1
A85: 76 | B85: BELMADI | C85: AHMED | D85: =[6]Feuil1!G85 -> 0 | E85: =[6]Feuil1!H85 -> 0 | F85: =[6]Feuil1!I85 -> 1 | G85: =[7]Feuil1!K85 -> 0 | H85: =[7]Feuil1!L85 -> 0 | I85: =[7]Feuil1!M85 -> 1 | J85: 0 | K85: 0 | L85: 1
A86: 77 | B86: BELMOKHTAR | C86: ABDELKADER | D86: =[6]Feuil1!G86 -> 0 | E86: =[6]Feuil1!H86 -> 0 | F86: =[6]Feuil1!I86 -> 1 | G86: =[7]Feuil1!K86 -> 0 | H86: =[7]Feuil1!L86 -> 0 | I86: =[7]Feuil1!M86 -> 1 | J86: 0 | K86: 0 | L86: 1
A87: 78 | B87: BELOUASSOUASSI | C87: BOUBAKR | D87: =[6]Feuil1!G87 -> 0 | E87: =[6]Feuil1!H87 -> 0 | F87: =[6]Feuil1!I87 -> 1 | G87: =[7]Feuil1!K87 -> 0 | H87: =[7]Feuil1!L87 -> 0 | I87: =[7]Feuil1!M87 -> 1 | J87: 0 | K87: 0 | L87: 1
A88: 79 | B88: BELOUFA | C88: YASSER | D88: =[6]Feuil1!G88 -> 0 | E88: =[6]Feuil1!H88 -> 0 | F88: =[6]Feuil1!I88 -> 1 | G88: =[7]Feuil1!K88 -> 0 | H88: =[7]Feuil1!L88 -> 0 | I88: =[7]Feuil1!M88 -> 1 | J88: 0 | K88: 0 | L88: 1
A89: 80 | B89: BEN SOUKHAL | C89: HALIMA | D89: =[6]Feuil1!G89 -> 10 | E89: =[6]Feuil1!H89 -> 4 | F89: =[6]Feuil1!I89 -> 1 | G89: =[7]Feuil1!K89 -> 12.26666667 | H89: =[7]Feuil1!L89 -> 3 | I89: =[7]Feuil1!M89 -> 1 | J89: 11.13333333 | K89: 7 | L89: 1
A90: 81 | B90: BENACHOUR | C90: HAMZA | D90: =[6]Feuil1!G90 -> 17 | E90: =[6]Feuil1!H90 -> 4 | F90: =[6]Feuil1!I90 -> 1 | G90: =[7]Feuil1!K90 -> 17.73333333 | H90: =[7]Feuil1!L90 -> 3 | I90: =[7]Feuil1!M90 -> 1 | J90: 17.36666667 | K90: 7 | L90: 1
A91: 82 | B91: BENADDA | C91: YAMINA | D91: =[6]Feuil1!G91 -> 17 | E91: =[6]Feuil1!H91 -> 4 | F91: =[6]Feuil1!I91 -> 1 | G91: =[7]Feuil1!K91 -> 17.6 | H91: =[7]Feuil1!L91 -> 3 | I91: =[7]Feuil1!M91 -> 1 | J91: 17.3 | K91: 7 | L91: 1
A92: 83 | B92: BENAICHA | C92: AMEL | D92: =[6]Feuil1!G92 -> 16 | E92: =[6]Feuil1!H92 -> 4 | F92: =[6]Feuil1!I92 -> 1 | G92: =[7]Feuil1!K92 -> 13.63333333 | H92: =[7]Feuil1!L92 -> 3 | I92: =[7]Feuil1!M92 -> 1 | J92: 14.81666667 | K92: 7 | L92: 1
A93: 84 | B93: BENAICHA | C93: WAFAA | D93: =[6]Feuil1!G93 -> 14 | E93: =[6]Feuil1!H93 -> 4 | F93: =[6]Feuil1!I93 -> 2 | G93: =[7]Feuil1!K93 -> 10.76666667 | H93: =[7]Feuil1!L93 -> 3 | I93: =[7]Feuil1!M93 -> 2 | J93: 12.38333333 | K93: 7 | L93: 2
A94: 85 | B94: BENAMAR | C94: ISMAIL | D94: =[6]Feuil1!G94 -> 17 | E94: =[6]Feuil1!H94 -> 4 | F94: =[6]Feuil1!I94 -> 1 | G94: =[7]Feuil1!K94 -> 0 | H94: =[7]Feuil1!L94 -> 0 | I94: =[7]Feuil1!M94 -> 1 | J94: 8.5 | K94: 4 | L94: 1
A95: 86 | B95: BENAMAR | C95: KHEIRA | D95: =[6]Feuil1!G95 -> 17 | E95: =[6]Feuil1!H95 -> 4 | F95: =[6]Feuil1!I95 -> 1 | G95: =[7]Feuil1!K95 -> 16.33333333 | H95: =[7]Feuil1!L95 -> 3 | I95: =[7]Feuil1!M95 -> 1 | J95: 16.66666667 | K95: 7 | L95: 1
A96: 87 | B96: BENANTEUR | C96: HADJ MUSTAFA | D96: =[6]Feuil1!G96 -> 0 | E96: =[6]Feuil1!H96 -> 0 | F96: =[6]Feuil1!I96 -> 1 | G96: =[7]Feuil1!K96 -> 0 | H96: =[7]Feuil1!L96 -> 0 | I96: =[7]Feuil1!M96 -> 1 | J96: 0 | K96: 0 | L96: 1
A97: 88 | B97: BENAOUDA | C97: YASSINE | D97: =[6]Feuil1!G97 -> 17 | E97: =[6]Feuil1!H97 -> 4 | F97: =[6]Feuil1!I97 -> 1 | G97: =[7]Feuil1!K97 -> 15.81666667 | H97: =[7]Feuil1!L97 -> 3 | I97: =[7]Feuil1!M97 -> 1 | J97: 16.40833333 | K97: 7 | L97: 1
A98: 89 | B98: BENAOUDA | C98: ZAKARIA | D98: =[6]Feuil1!G98 -> 10 | E98: =[6]Feuil1!H98 -> 4 | F98: =[6]Feuil1!I98 -> 1 | G98: =[7]Feuil1!K98 -> 10.2 | H98: =[7]Feuil1!L98 -> 3 | I98: =[7]Feuil1!M98 -> 1 | J98: 10.1 | K98: 7 | L98: 1
A99: 90 | B99: BENATTIA | C99: CHAIMA | D99: =[6]Feuil1!G99 -> 14 | E99: =[6]Feuil1!H99 -> 4 | F99: =[6]Feuil1!I99 -> 1 | G99: =[7]Feuil1!K99 -> 13.46666667 | H99: =[7]Feuil1!L99 -> 3 | I99: =[7]Feuil1!M99 -> 1 | J99: 13.73333333 | K99: 7 | L99: 1
A100: 91 | B100: BENAYED | C100: SARAH | D100: =[6]Feuil1!G100 -> 14 | E100: =[6]Feuil1!H100 -> 4 | F100: =[6]Feuil1!I100 -> 1 | G100: =[7]Feuil1!K100 -> 14.61666667 | H100: =[7]Feuil1!L100 -> 3 | I100: =[7]Feuil1!M100 -> 1 | J100: 14.30833333 | K100: 7 | L100: 1
A101: 92 | B101: BENBACHIR | C101: HAMZA | D101: =[6]Feuil1!G101 -> 17 | E101: =[6]Feuil1!H101 -> 4 | F101: =[6]Feuil1!I101 -> 1 | G101: =[7]Feuil1!K101 -> 16.48333333 | H101: =[7]Feuil1!L101 -> 3 | I101: =[7]Feuil1!M101 -> 1 | J101: 16.74166667 | K101: 7 | L101: 1
A102: 93 | B102: BENBERNOU | C102: YASSER | D102: =[6]Feuil1!G102 -> 17 | E102: =[6]Feuil1!H102 -> 4 | F102: =[6]Feuil1!I102 -> 1 | G102: =[7]Feuil1!K102 -> 16.61666667 | H102: =[7]Feuil1!L102 -> 3 | I102: =[7]Feuil1!M102 -> 1 | J102: 16.80833333 | K102: 7 | L102: 1
A103: 94 | B103: BENCHAIB | C103: FADELA | D103: =[6]Feuil1!G103 -> 16 | E103: =[6]Feuil1!H103 -> 4 | F103: =[6]Feuil1!I103 -> 1 | G103: =[7]Feuil1!K103 -> 11.06666667 | H103: =[7]Feuil1!L103 -> 3 | I103: =[7]Feuil1!M103 -> 1 | J103: 13.53333333 | K103: 7 | L103: 1
A104: 95 | B104: BENCHAMANI | C104: REKAIA | D104: =[6]Feuil1!G104 -> 15 | E104: =[6]Feuil1!H104 -> 4 | F104: =[6]Feuil1!I104 -> 1 | G104: =[7]Feuil1!K104 -> 4.133333333 | H104: =[7]Feuil1!L104 -> 0 | I104: =[7]Feuil1!M104 -> 1 | J104: 9.566666667 | K104: 4 | L104: 1
A105: 96 | B105: BENCHEHIDA | C105: ABDELHEQ | D105: =[6]Feuil1!G105 -> 14 | E105: =[6]Feuil1!H105 -> 4 | F105: =[6]Feuil1!I105 -> 1 | G105: =[7]Feuil1!K105 -> 14.51666667 | H105: =[7]Feuil1!L105 -> 3 | I105: =[7]Feuil1!M105 -> 1 | J105: 14.25833333 | K105: 7 | L105: 1
A106: 97 | B106: BENCHENNI | C106: MERIEM | D106: =[6]Feuil1!G106 -> 0 | E106: =[6]Feuil1!H106 -> 0 | F106: =[6]Feuil1!I106 -> 1 | G106: =[7]Feuil1!K106 -> 0 | H106: =[7]Feuil1!L106 -> 0 | I106: =[7]Feuil1!M106 -> 1 | J106: 0 | K106: 0 | L106: 1
A107: 98 | B107: BENCHERIF | C107: AHMED | D107: =[6]Feuil1!G107 -> 0 | E107: =[6]Feuil1!H107 -> 0 | F107: =[6]Feuil1!I107 -> 1 | G107: =[7]Feuil1!K107 -> 7.633333333 | H107: =[7]Feuil1!L107 -> 0 | I107: =[7]Feuil1!M107 -> 1 | J107: 3.816666667 | K107: 0 | L107: 1
A108: 99 | B108: BENCHOHRA | C108: KHEIRA | D108: =[6]Feuil1!G108 -> 12 | E108: =[6]Feuil1!H108 -> 4 | F108: =[6]Feuil1!I108 -> 1 | G108: =[7]Feuil1!K108 -> 8.1 | H108: =[7]Feuil1!L108 -> 0 | I108: =[7]Feuil1!M108 -> 1 | J108: 10.05 | K108: 7 | L108: 1
A109: 100 | B109: BENDANI | C109: MUSTAPHA | D109: =[6]Feuil1!G109 -> 17 | E109: =[6]Feuil1!H109 -> 4 | F109: =[6]Feuil1!I109 -> 1 | G109: =[7]Feuil1!K109 -> 14.11666667 | H109: =[7]Feuil1!L109 -> 3 | I109: =[7]Feuil1!M109 -> 1 | J109: 15.55833333 | K109: 7 | L109: 1
A110: 101 | B110: BENDJELLOUL | C110: NOUREDDINE | D110: =[6]Feuil1!G110 -> 16 | E110: =[6]Feuil1!H110 -> 4 | F110: =[6]Feuil1!I110 -> 1 | G110: =[7]Feuil1!K110 -> 16.35 | H110: =[7]Feuil1!L110 -> 3 | I110: =[7]Feuil1!M110 -> 1 | J110: 16.175 | K110: 7 | L110: 1
A111: 102 | B111: BENFICHOUH | C111: ABDELHALIM | D111: =[6]Feuil1!G111 -> 0 | E111: =[6]Feuil1!H111 -> 0 | F111: =[6]Feuil1!I111 -> 1 | G111: =[7]Feuil1!K111 -> 0 | H111: =[7]Feuil1!L111 -> 0 | I111: =[7]Feuil1!M111 -> 1 | J111: 0 | K111: 0 | L111: 1
A112: 103 | B112: BENGATTAT | C112: HADJ ALI | D112: =[6]Feuil1!G112 -> 18 | E112: =[6]Feuil1!H112 -> 4 | F112: =[6]Feuil1!I112 -> 1 | G112: =[7]Feuil1!K112 -> 16.91666667 | H112: =[7]Feuil1!L112 -> 3 | I112: =[7]Feuil1!M112 -> 1 | J112: 17.45833333 | K112: 7 | L112: 1
A113: 104 | B113: BENGUETTAT | C113: WAFAE | D113: =[6]Feuil1!G113 -> 0 | E113: =[6]Feuil1!H113 -> 0 | F113: =[6]Feuil1!I113 -> 1 | G113: =[7]Feuil1!K113 -> 17.65 | H113: =[7]Feuil1!L113 -> 3 | I113: =[7]Feuil1!M113 -> 1 | J113: 8.825 | K113: 3 | L113: 1
A114: 105 | B114: BENGUIRECHE | C114: HAFSA | D114: =[6]Feuil1!G114 -> 16 | E114: =[6]Feuil1!H114 -> 4 | F114: =[6]Feuil1!I114 -> 1 | G114: =[7]Feuil1!K114 -> 15.86666667 | H114: =[7]Feuil1!L114 -> 3 | I114: =[7]Feuil1!M114 -> 1 | J114: 15.93333333 | K114: 7 | L114: 1
A115: 106 | B115: BENHADDOUCHE | C115: FATIMA ZOHRA ROMEISSA | D115: =[6]Feuil1!G115 -> 15.5 | E115: =[6]Feuil1!H115 -> 4 | F115: =[6]Feuil1!I115 -> 1 | G115: =[7]Feuil1!K115 -> 16.01666667 | H115: =[7]Feuil1!L115 -> 3 | I115: =[7]Feuil1!M115 -> 1 | J115: 15.75833333 | K115: 7 | L115: 1
A116: 107 | B116: BENHALIMA | C116: MOUNIR | D116: =[6]Feuil1!G116 -> 18 | E116: =[6]Feuil1!H116 -> 4 | F116: =[6]Feuil1!I116 -> 1 | G116: =[7]Feuil1!K116 -> 16.91666667 | H116: =[7]Feuil1!L116 -> 3 | I116: =[7]Feuil1!M116 -> 1 | J116: 17.45833333 | K116: 7 | L116: 1
A117: 108 | B117: BENHALIMA | C117: NACERA | D117: =[6]Feuil1!G117 -> 11.5 | E117: =[6]Feuil1!H117 -> 4 | F117: =[6]Feuil1!I117 -> 1 | G117: =[7]Feuil1!K117 -> 14.96666667 | H117: =[7]Feuil1!L117 -> 3 | I117: =[7]Feuil1!M117 -> 1 | J117: 13.23333333 | K117: 7 | L117: 1
A118: 109 | B118: BENHARIRA | C118: KOUIDER | D118: =[6]Feuil1!G118 -> 0 | E118: =[6]Feuil1!H118 -> 0 | F118: =[6]Feuil1!I118 -> 1 | G118: =[7]Feuil1!K118 -> 0 | H118: =[7]Feuil1!L118 -> 0 | I118: =[7]Feuil1!M118 -> 1 | J118: 0 | K118: 0 | L118: 1
A119: 110 | B119: BENHARRAT | C119: NOUR EL HOUDA | D119: =[6]Feuil1!G119 -> 12.5 | E119: =[6]Feuil1!H119 -> 4 | F119: =[6]Feuil1!I119 -> 1 | G119: =[7]Feuil1!K119 -> 19.71666667 | H119: =[7]Feuil1!L119 -> 3 | I119: =[7]Feuil1!M119 -> 1 | J119: 16.10833333 | K119: 7 | L119: 1
A120: 111 | B120: BENKAHLA | C120: CHAHRAZED | D120: =[6]Feuil1!G120 -> 14 | E120: =[6]Feuil1!H120 -> 4 | F120: =[6]Feuil1!I120 -> 1 | G120: =[7]Feuil1!K120 -> 13.2 | H120: =[7]Feuil1!L120 -> 3 | I120: =[7]Feuil1!M120 -> 1 | J120: 13.6 | K120: 7 | L120: 1
A121: 112 | B121: BENKEDADRA | C121: KHADIDJA | D121: =[6]Feuil1!G121 -> 17 | E121: =[6]Feuil1!H121 -> 4 | F121: =[6]Feuil1!I121 -> 1 | G121: =[7]Feuil1!K121 -> 17.9 | H121: =[7]Feuil1!L121 -> 3 | I121: =[7]Feuil1!M121 -> 1 | J121: 17.45 | K121: 7 | L121: 1
A122: 113 | B122: BENKEDADRA | C122: MOHAMED | D122: =[6]Feuil1!G122 -> 14 | E122: =[6]Feuil1!H122 -> 4 | F122: =[6]Feuil1!I122 -> 1 | G122: =[7]Feuil1!K122 -> 20 | H122: =[7]Feuil1!L122 -> 3 | I122: =[7]Feuil1!M122 -> 1 | J122: 17 | K122: 7 | L122: 1
A123: 114 | B123: BENKHELIFA | C123: KAMEL | D123: =[6]Feuil1!G123 -> 17.5 | E123: =[6]Feuil1!H123 -> 4 | F123: =[6]Feuil1!I123 -> 1 | G123: =[7]Feuil1!K123 -> 17.36666667 | H123: =[7]Feuil1!L123 -> 3 | I123: =[7]Feuil1!M123 -> 1 | J123: 17.43333333 | K123: 7 | L123: 1
A124: 115 | B124: BENKHELIFA | C124: SAAD | D124: =[6]Feuil1!G124 -> 15 | E124: =[6]Feuil1!H124 -> 4 | F124: =[6]Feuil1!I124 -> 1 | G124: =[7]Feuil1!K124 -> 18.93333333 | H124: =[7]Feuil1!L124 -> 3 | I124: =[7]Feuil1!M124 -> 1 | J124: 16.96666667 | K124: 7 | L124: 1
A125: 116 | B125: BENKORECH | C125: ABEDNNOUR | D125: =[6]Feuil1!G125 -> 17 | E125: =[6]Feuil1!H125 -> 4 | F125: =[6]Feuil1!I125 -> 1 | G125: =[7]Feuil1!K125 -> 16.58333333 | H125: =[7]Feuil1!L125 -> 3 | I125: =[7]Feuil1!M125 -> 1 | J125: 16.79166667 | K125: 7 | L125: 1
A126: 117 | B126: BENKORRECHE | C126: MOHAMED EL AMINE | D126: =[6]Feuil1!G126 -> 17.5 | E126: =[6]Feuil1!H126 -> 4 | F126: =[6]Feuil1!I126 -> 1 | G126: =[7]Feuil1!K126 -> 19.7 | H126: =[7]Feuil1!L126 -> 3 | I126: =[7]Feuil1!M126 -> 1 | J126: 18.6 | K126: 7 | L126: 1
A127: 118 | B127: BENLAKEHAL | C127: MOHAMED REDHA | D127: =[6]Feuil1!G127 -> 12 | E127: =[6]Feuil1!H127 -> 4 | F127: =[6]Feuil1!I127 -> 1 | G127: =[7]Feuil1!K127 -> 8 | H127: =[7]Feuil1!L127 -> 0 | I127: =[7]Feuil1!M127 -> 1 | J127: 10 | K127: 7 | L127: 1
A128: 119 | B128: BENNAMA | C128: HOCINE | D128: =[6]Feuil1!G128 -> 0 | E128: =[6]Feuil1!H128 -> 0 | F128: =[6]Feuil1!I128 -> 1 | G128: =[7]Feuil1!K128 -> 0.5333333333 | H128: =[7]Feuil1!L128 -> 0 | I128: =[7]Feuil1!M128 -> 1 | J128: 0.2666666667 | K128: 0 | L128: 1
A129: 120 | B129: BENNECEUR | C129: FATIHA | D129: =[6]Feuil1!G129 -> 17 | E129: =[6]Feuil1!H129 -> 4 | F129: =[6]Feuil1!I129 -> 1 | G129: =[7]Feuil1!K129 -> 7.1 | H129: =[7]Feuil1!L129 -> 0 | I129: =[7]Feuil1!M129 -> 1 | J129: 12.05 | K129: 7 | L129: 1
A130: 121 | B130: BENOTSMANE | C130: CHAIMAE | D130: =[6]Feuil1!G130 -> 15 | E130: =[6]Feuil1!H130 -> 4 | F130: =[6]Feuil1!I130 -> 1 | G130: =[7]Feuil1!K130 -> 14.13333333 | H130: =[7]Feuil1!L130 -> 3 | I130: =[7]Feuil1!M130 -> 1 | J130: 14.56666667 | K130: 7 | L130: 1
A131: 122 | B131: BENOUALI | C131: MOHAMED BOUASRIA | D131: =[6]Feuil1!G131 -> 0 | E131: =[6]Feuil1!H131 -> 0 | F131: =[6]Feuil1!I131 -> 1 | G131: =[7]Feuil1!K131 -> 0 | H131: =[7]Feuil1!L131 -> 0 | I131: =[7]Feuil1!M131 -> 1 | J131: 0 | K131: 0 | L131: 1
A132: 123 | B132: BENOUALI | C132: ZOHRA | D132: =[6]Feuil1!G132 -> 17.5 | E132: =[6]Feuil1!H132 -> 4 | F132: =[6]Feuil1!I132 -> 1 | G132: =[7]Feuil1!K132 -> 11 | H132: =[7]Feuil1!L132 -> 3 | I132: =[7]Feuil1!M132 -> 1 | J132: 14.25 | K132: 7 | L132: 1
A133: 124 | B133: BENSAADIA | C133: NABIL | D133: =[6]Feuil1!G133 -> 0 | E133: =[6]Feuil1!H133 -> 0 | F133: =[6]Feuil1!I133 -> 1 | G133: =[7]Feuil1!K133 -> 0 | H133: =[7]Feuil1!L133 -> 0 | I133: =[7]Feuil1!M133 -> 1 | J133: 0 | K133: 0 | L133: 1
A134: 125 | B134: BENSALAH | C134: ATIKA MANSOURIA | D134: =[6]Feuil1!G134 -> 18.5 | E134: =[6]Feuil1!H134 -> 4 | F134: =[6]Feuil1!I134 -> 1 | G134: =[7]Feuil1!K134 -> 16.93333333 | H134: =[7]Feuil1!L134 -> 3 | I134: =[7]Feuil1!M134 -> 1 | J134: 17.71666667 | K134: 7 | L134: 1
A135: 126 | B135: BENSALEM | C135: ABDELKADER | D135: =[6]Feuil1!G135 -> 11 | E135: =[6]Feuil1!H135 -> 4 | F135: =[6]Feuil1!I135 -> 1 | G135: =[7]Feuil1!K135 -> 11.06666667 | H135: =[7]Feuil1!L135 -> 3 | I135: =[7]Feuil1!M135 -> 1 | J135: 11.03333333 | K135: 7 | L135: 1
A136: 127 | B136: BENTAMRA | C136: HADJIRA | D136: =[6]Feuil1!G136 -> 13 | E136: =[6]Feuil1!H136 -> 4 | F136: =[6]Feuil1!I136 -> 1 | G136: =[7]Feuil1!K136 -> 9.166666667 | H136: =[7]Feuil1!L136 -> 0 | I136: =[7]Feuil1!M136 -> 1 | J136: 11.08333333 | K136: 7 | L136: 1
A137: 128 | B137: BENTAMRA | C137: KARIMA | D137: =[6]Feuil1!G137 -> 13.5 | E137: =[6]Feuil1!H137 -> 4 | F137: =[6]Feuil1!I137 -> 1 | G137: =[7]Feuil1!K137 -> 15.8 | H137: =[7]Feuil1!L137 -> 3 | I137: =[7]Feuil1!M137 -> 1 | J137: 14.65 | K137: 7 | L137: 1
A138: 129 | B138: BENYOUCEF | C138: KAWTHAR | D138: =[6]Feuil1!G138 -> 12.2 | E138: =[6]Feuil1!H138 -> 4 | F138: =[6]Feuil1!I138 -> 1 | G138: =[7]Feuil1!K138 -> 8.4 | H138: =[7]Feuil1!L138 -> 0 | I138: =[7]Feuil1!M138 -> 1 | J138: 10.3 | K138: 7 | L138: 1
A139: 130 | B139: BENZIADI | C139: AMINE | D139: =[6]Feuil1!G139 -> 11 | E139: =[6]Feuil1!H139 -> 4 | F139: =[6]Feuil1!I139 -> 1 | G139: =[7]Feuil1!K139 -> 15.85 | H139: =[7]Feuil1!L139 -> 3 | I139: =[7]Feuil1!M139 -> 1 | J139: =(D139+G139)/2 -> 13.425 | K139: =IF(J139>=10,7,E139+H139) -> 7 | L139: =IF(AND(F139="1",I139="1"),"1","2") -> 1
A140: 131 | B140: BERRAS | C140: FATIMA ZOHRA | D140: =[6]Feuil1!G140 -> 15.5 | E140: =[6]Feuil1!H140 -> 4 | F140: =[6]Feuil1!I140 -> 1 | G140: =[7]Feuil1!K140 -> 19.2 | H140: =[7]Feuil1!L140 -> 3 | I140: =[7]Feuil1!M140 -> 1 | J140: 17.35 | K140: 7 | L140: 1
A141: 132 | B141: BERROUACHEDI | C141: ABDELHAK | D141: =[6]Feuil1!G141 -> 13 | E141: =[6]Feuil1!H141 -> 4 | F141: =[6]Feuil1!I141 -> 1 | G141: =[7]Feuil1!K141 -> 4.2 | H141: =[7]Feuil1!L141 -> 0 | I141: =[7]Feuil1!M141 -> 1 | J141: 8.6 | K141: 4 | L141: 1
A142: 133 | B142: BESSAAD | C142: MOULAI | D142: =[6]Feuil1!G142 -> 15.5 | E142: =[6]Feuil1!H142 -> 4 | F142: =[6]Feuil1!I142 -> 1 | G142: =[7]Feuil1!K142 -> 11.6 | H142: =[7]Feuil1!L142 -> 3 | I142: =[7]Feuil1!M142 -> 1 | J142: 13.55 | K142: 7 | L142: 1
A143: 134 | B143: BESSAFI | C143: FATIMA ZOHRA | D143: =[6]Feuil1!G143 -> 0 | E143: =[6]Feuil1!H143 -> 0 | F143: =[6]Feuil1!I143 -> 1 | G143: =[7]Feuil1!K143 -> 0 | H143: =[7]Feuil1!L143 -> 0 | I143: =[7]Feuil1!M143 -> 1 | J143: 0 | K143: 0 | L143: 1
A144: 135 | B144: BESSAYEH | C144: IMEN | D144: =[6]Feuil1!G144 -> 0 | E144: =[6]Feuil1!H144 -> 0 | F144: =[6]Feuil1!I144 -> 1 | G144: =[7]Feuil1!K144 -> 0 | H144: =[7]Feuil1!L144 -> 0 | I144: =[7]Feuil1!M144 -> 1 | J144: 0 | K144: 0 | L144: 1
A145: 136 | B145: BESSEDIK | C145: IBTISSEM NAIMA | D145: =[6]Feuil1!G145 -> 15.5 | E145: =[6]Feuil1!H145 -> 4 | F145: =[6]Feuil1!I145 -> 1 | G145: =[7]Feuil1!K145 -> 19.06666667 | H145: =[7]Feuil1!L145 -> 3 | I145: =[7]Feuil1!M145 -> 1 | J145: 17.28333333 | K145: 7 | L145: 1
A146: 137 | B146: BESSEDIK | C146: ZAKARIA ABDERRAHMANE | D146: =[6]Feuil1!G146 -> 14.5 | E146: =[6]Feuil1!H146 -> 4 | F146: =[6]Feuil1!I146 -> 1 | G146: =[7]Feuil1!K146 -> 18.93333333 | H146: =[7]Feuil1!L146 -> 3 | I146: =[7]Feuil1!M146 -> 1 | J146: 16.71666667 | K146: 7 | L146: 1
A147: 138 | B147: BESSEGHIR | C147: FERIEL | D147: =[6]Feuil1!G147 -> 15.5 | E147: =[6]Feuil1!H147 -> 4 | F147: =[6]Feuil1!I147 -> 1 | G147: =[7]Feuil1!K147 -> 17.86666667 | H147: =[7]Feuil1!L147 -> 3 | I147: =[7]Feuil1!M147 -> 1 | J147: 16.68333333 | K147: 7 | L147: 1
A148: 139 | B148: BETTAHAR | C148: TALHA | D148: =[6]Feuil1!G148 -> 14 | E148: =[6]Feuil1!H148 -> 4 | F148: =[6]Feuil1!I148 -> 1 | G148: =[7]Feuil1!K148 -> 14.8 | H148: =[7]Feuil1!L148 -> 3 | I148: =[7]Feuil1!M148 -> 1 | J148: 14.4 | K148: 7 | L148: 1
A149: 140 | B149: BEZZAIM | C149: HOURIA | D149: =[6]Feuil1!G149 -> 13 | E149: =[6]Feuil1!H149 -> 4 | F149: =[6]Feuil1!I149 -> 1 | G149: =[7]Feuil1!K149 -> 14.8 | H149: =[7]Feuil1!L149 -> 3 | I149: =[7]Feuil1!M149 -> 1 | J149: 13.9 | K149: 7 | L149: 1
A150: 141 | B150: BOKHARI | C150: CHEMS EDDINE ISMAIL | D150: =[6]Feuil1!G150 -> 17 | E150: =[6]Feuil1!H150 -> 4 | F150: =[6]Feuil1!I150 -> 1 | G150: =[7]Feuil1!K150 -> 20 | H150: =[7]Feuil1!L150 -> 3 | I150: =[7]Feuil1!M150 -> 1 | J150: 18.5 | K150: 7 | L150: 1
A151: 142 | B151: BORANE | C151: MOHAMED | D151: =[6]Feuil1!G151 -> 0 | E151: =[6]Feuil1!H151 -> 0 | F151: =[6]Feuil1!I151 -> 1 | G151: =[7]Feuil1!K151 -> 0 | H151: =[7]Feuil1!L151 -> 0 | I151: =[7]Feuil1!M151 -> 1 | J151: 0 | K151: 0 | L151: 1
A152: 143 | B152: BOUADJMI | C152: AICHA | D152: =[6]Feuil1!G152 -> 0 | E152: =[6]Feuil1!H152 -> 0 | F152: =[6]Feuil1!I152 -> 1 | G152: =[7]Feuil1!K152 -> 0 | H152: =[7]Feuil1!L152 -> 0 | I152: =[7]Feuil1!M152 -> 1 | J152: 0 | K152: 0 | L152: 1
A153: 144 | B153: BOUAFIA | C153: HOUSSINE | D153: =[6]Feuil1!G153 -> 0 | E153: =[6]Feuil1!H153 -> 0 | F153: =[6]Feuil1!I153 -> 1 | G153: =[7]Feuil1!K153 -> 0 | H153: =[7]Feuil1!L153 -> 0 | I153: =[7]Feuil1!M153 -> 1 | J153: 0 | K153: 0 | L153: 1
A154: 145 | B154: BOUALEM | C154: AMIRA | D154: =[6]Feuil1!G154 -> 0 | E154: =[6]Feuil1!H154 -> 0 | F154: =[6]Feuil1!I154 -> 1 | G154: =[7]Feuil1!K154 -> 0 | H154: =[7]Feuil1!L154 -> 0 | I154: =[7]Feuil1!M154 -> 1 | J154: 0 | K154: 0 | L154: 1
A155: 146 | B155: BOUATTOU | C155: YEMNA | D155: =[6]Feuil1!G155 -> 14 | E155: =[6]Feuil1!H155 -> 4 | F155: =[6]Feuil1!I155 -> 1 | G155: =[7]Feuil1!K155 -> 11.26666667 | H155: =[7]Feuil1!L155 -> 3 | I155: =[7]Feuil1!M155 -> 2 | J155: 12.63333333 | K155: 7 | L155: 2
A156: 147 | B156: BOUBEKEUR | C156: MAROUA AMEL | D156: =[6]Feuil1!G156 -> 10.5 | E156: =[6]Feuil1!H156 -> 4 | F156: =[6]Feuil1!I156 -> 1 | G156: =[7]Feuil1!K156 -> 12.8 | H156: =[7]Feuil1!L156 -> 3 | I156: =[7]Feuil1!M156 -> 1 | J156: 11.65 | K156: 7 | L156: 1
A157: 148 | B157: BOUCEDRA | C157: NADA | D157: =[6]Feuil1!G157 -> 19 | E157: =[6]Feuil1!H157 -> 4 | F157: =[6]Feuil1!I157 -> 1 | G157: =[7]Feuil1!K157 -> 11.76666667 | H157: =[7]Feuil1!L157 -> 3 | I157: =[7]Feuil1!M157 -> 1 | J157: 15.38333333 | K157: 7 | L157: 1
A158: 149 | B158: BOUCHAMA | C158: HEITHEM | D158: =[6]Feuil1!G158 -> 0 | E158: =[6]Feuil1!H158 -> 0 | F158: =[6]Feuil1!I158 -> 1 | G158: =[7]Feuil1!K158 -> 0 | H158: =[7]Feuil1!L158 -> 0 | I158: =[7]Feuil1!M158 -> 1 | J158: 0 | K158: 0 | L158: 1
A159: 150 | B159: BOUDIA | C159: NADIA | D159: =[6]Feuil1!G159 -> 17 | E159: =[6]Feuil1!H159 -> 4 | F159: =[6]Feuil1!I159 -> 1 | G159: =[7]Feuil1!K159 -> 11.96666667 | H159: =[7]Feuil1!L159 -> 3 | I159: =[7]Feuil1!M159 -> 1 | J159: 14.48333333 | K159: 7 | L159: 1
A160: 151 | B160: BOUDRAF | C160: MOHAMED | D160: =[6]Feuil1!G160 -> 0 | E160: =[6]Feuil1!H160 -> 0 | F160: =[6]Feuil1!I160 -> 1 | G160: =[7]Feuil1!K160 -> 0 | H160: =[7]Feuil1!L160 -> 0 | I160: =[7]Feuil1!M160 -> 1 | J160: 0 | K160: 0 | L160: 1
A161: 152 | B161: BOUHADEF | C161: ASMAA | D161: =[6]Feuil1!G161 -> 14 | E161: =[6]Feuil1!H161 -> 4 | F161: =[6]Feuil1!I161 -> 1 | G161: =[7]Feuil1!K161 -> 11.86666667 | H161: =[7]Feuil1!L161 -> 3 | I161: =[7]Feuil1!M161 -> 1 | J161: 12.93333333 | K161: 7 | L161: 1
A162: 153 | B162: BOUHALI | C162: NACER | D162: =[6]Feuil1!G162 -> 11 | E162: =[6]Feuil1!H162 -> 4 | F162: =[6]Feuil1!I162 -> 1 | G162: =[7]Feuil1!K162 -> 6.8 | H162: =[7]Feuil1!L162 -> 0 | I162: =[7]Feuil1!M162 -> 1 | J162: 8.9 | K162: 4 | L162: 1
A163: 154 | B163: BOUHALLALENE | C163: MOHAMED ABDEL HAFID | D163: =[6]Feuil1!G163 -> 18.5 | E163: =[6]Feuil1!H163 -> 4 | F163: =[6]Feuil1!I163 -> 1 | G163: =[7]Feuil1!K163 -> 17.3 | H163: =[7]Feuil1!L163 -> 3 | I163: =[7]Feuil1!M163 -> 1 | J163: 17.9 | K163: 7 | L163: 1
A164: 155 | B164: BOUHALOUFA | C164: MOHAMED AMINE | D164: =[6]Feuil1!G164 -> 12.5 | E164: =[6]Feuil1!H164 -> 4 | F164: =[6]Feuil1!I164 -> 1 | G164: =[7]Feuil1!K164 -> 15.53333333 | H164: =[7]Feuil1!L164 -> 3 | I164: =[7]Feuil1!M164 -> 1 | J164: 14.01666667 | K164: 7 | L164: 1
A165: 156 | B165: BOUICH | C165: MOHAMED | D165: =[6]Feuil1!G165 -> 0 | E165: =[6]Feuil1!H165 -> 0 | F165: =[6]Feuil1!I165 -> 1 | G165: =[7]Feuil1!K165 -> 0 | H165: =[7]Feuil1!L165 -> 0 | I165: =[7]Feuil1!M165 -> 1 | J165: 0 | K165: 0 | L165: 1
A166: 157 | B166: BOUKEFFA | C166: ABDELHAMID | D166: =[6]Feuil1!G166 -> 0 | E166: =[6]Feuil1!H166 -> 0 | F166: =[6]Feuil1!I166 -> 1 | G166: =[7]Feuil1!K166 -> 0 | H166: =[7]Feuil1!L166 -> 0 | I166: =[7]Feuil1!M166 -> 1 | J166: 0 | K166: 0 | L166: 1
A167: 158 | B167: BOUKHARI | C167: MADIHA | D167: =[6]Feuil1!G167 -> 13 | E167: =[6]Feuil1!H167 -> 4 | F167: =[6]Feuil1!I167 -> 1 | G167: =[7]Feuil1!K167 -> 12.8 | H167: =[7]Feuil1!L167 -> 3 | I167: =[7]Feuil1!M167 -> 1 | J167: 12.9 | K167: 7 | L167: 1
A168: 159 | B168: BOUKHELIF | C168: MHAMED | D168: =[6]Feuil1!G168 -> 13.5 | E168: =[6]Feuil1!H168 -> 4 | F168: =[6]Feuil1!I168 -> 1 | G168: =[7]Feuil1!K168 -> 13.21666667 | H168: =[7]Feuil1!L168 -> 3 | I168: =[7]Feuil1!M168 -> 1 | J168: 13.35833333 | K168: 7 | L168: 1
A169: 160 | B169: BOUKHLIF | C169: MOHAMED | D169: =[6]Feuil1!G169 -> 13.5 | E169: =[6]Feuil1!H169 -> 4 | F169: =[6]Feuil1!I169 -> 1 | G169: =[7]Feuil1!K169 -> 16 | H169: =[7]Feuil1!L169 -> 3 | I169: =[7]Feuil1!M169 -> 1 | J169: 14.75 | K169: 7 | L169: 1
A170: 161 | B170: BOUKOULA | C170: HAFID | D170: =[6]Feuil1!G170 -> 0 | E170: =[6]Feuil1!H170 -> 0 | F170: =[6]Feuil1!I170 -> 1 | G170: =[7]Feuil1!K170 -> 16.1 | H170: =[7]Feuil1!L170 -> 3 | I170: =[7]Feuil1!M170 -> 1 | J170: 8.05 | K170: 3 | L170: 1
A171: 162 | B171: BOUMAZA | C171: FATIMA ZOHRA | D171: =[6]Feuil1!G171 -> 12.2 | E171: =[6]Feuil1!H171 -> 4 | F171: =[6]Feuil1!I171 -> 1 | G171: =[7]Feuil1!K171 -> 6.36 | H171: =[7]Feuil1!L171 -> 0 | I171: =[7]Feuil1!M171 -> 1 | J171: 9.28 | K171: 4 | L171: 1
A172: 163 | B172: BOUMESSAOUD | C172: SARA | D172: =[6]Feuil1!G172 -> 14.5 | E172: =[6]Feuil1!H172 -> 4 | F172: =[6]Feuil1!I172 -> 1 | G172: =[7]Feuil1!K172 -> 8.333333333 | H172: =[7]Feuil1!L172 -> 0 | I172: =[7]Feuil1!M172 -> 1 | J172: 11.41666667 | K172: 7 | L172: 1
A173: 164 | B173: BOUNEDJAR | C173: DJALLEL | D173: =[6]Feuil1!G173 -> 0 | E173: =[6]Feuil1!H173 -> 0 | F173: =[6]Feuil1!I173 -> 1 | G173: =[7]Feuil1!K173 -> 0 | H173: =[7]Feuil1!L173 -> 0 | I173: =[7]Feuil1!M173 -> 1 | J173: 0 | K173: 0 | L173: 1
A174: 165 | B174: BOURANE | C174: MOKHTAR | D174: =[6]Feuil1!G174 -> 14 | E174: =[6]Feuil1!H174 -> 4 | F174: =[6]Feuil1!I174 -> 1 | G174: =[7]Feuil1!K174 -> 16.8 | H174: =[7]Feuil1!L174 -> 3 | I174: =[7]Feuil1!M174 -> 1 | J174: 15.4 | K174: 7 | L174: 1
A175: 166 | B175: BOURASS | C175: AHMED | D175: =[6]Feuil1!G175 -> 18.5 | E175: =[6]Feuil1!H175 -> 4 | F175: =[6]Feuil1!I175 -> 1 | G175: =[7]Feuil1!K175 -> 20 | H175: =[7]Feuil1!L175 -> 3 | I175: =[7]Feuil1!M175 -> 1 | J175: 19.25 | K175: 7 | L175: 1
A176: 167 | B176: BOUROUIS | C176: ANSSAR | D176: =[6]Feuil1!G176 -> 0 | E176: =[6]Feuil1!H176 -> 0 | F176: =[6]Feuil1!I176 -> 1 | G176: =[7]Feuil1!K176 -> 0 | H176: =[7]Feuil1!L176 -> 0 | I176: =[7]Feuil1!M176 -> 1 | J176: 0 | K176: 0 | L176: 1
A177: 168 | B177: BOUTIBA | C177: HOUARI | D177: =[6]Feuil1!G177 -> 12 | E177: =[6]Feuil1!H177 -> 4 | F177: =[6]Feuil1!I177 -> 1 | G177: =[7]Feuil1!K177 -> 15.98333333 | H177: =[7]Feuil1!L177 -> 3 | I177: =[7]Feuil1!M177 -> 1 | J177: 13.99166667 | K177: 7 | L177: 1
A178: 169 | B178: BOUTOUIL | C178: ABDELMELEK | D178: =[6]Feuil1!G178 -> 16 | E178: =[6]Feuil1!H178 -> 4 | F178: =[6]Feuil1!I178 -> 1 | G178: =[7]Feuil1!K178 -> 19.55 | H178: =[7]Feuil1!L178 -> 3 | I178: =[7]Feuil1!M178 -> 1 | J178: 17.775 | K178: 7 | L178: 1
A179: 170 | B179: BOUYAKOUB | C179: MOKHTAR | D179: =[6]Feuil1!G179 -> 7 | E179: =[6]Feuil1!H179 -> 0 | F179: =[6]Feuil1!I179 -> 1 | G179: =[7]Feuil1!K179 -> 13.06666667 | H179: =[7]Feuil1!L179 -> 3 | I179: =[7]Feuil1!M179 -> 1 | J179: 10.03333333 | K179: 7 | L179: 1
A180: 171 | B180: BOUZID | C180: DJOHAR | D180: =[6]Feuil1!G180 -> 18 | E180: =[6]Feuil1!H180 -> 4 | F180: =[6]Feuil1!I180 -> 1 | G180: =[7]Feuil1!K180 -> 16.4 | H180: =[7]Feuil1!L180 -> 3 | I180: =[7]Feuil1!M180 -> 1 | J180: 17.2 | K180: 7 | L180: 1
A181: 172 | B181: BOUZID | C181: HADJA YAMINA | D181: =[6]Feuil1!G181 -> 15 | E181: =[6]Feuil1!H181 -> 4 | F181: =[6]Feuil1!I181 -> 1 | G181: =[7]Feuil1!K181 -> 18.2 | H181: =[7]Feuil1!L181 -> 3 | I181: =[7]Feuil1!M181 -> 1 | J181: 16.6 | K181: 7 | L181: 1
A182: 173 | B182: BRAHIMI | C182: NAIMA | D182: =[6]Feuil1!G182 -> 16 | E182: =[6]Feuil1!H182 -> 4 | F182: =[6]Feuil1!I182 -> 1 | G182: =[7]Feuil1!K182 -> 15.93333333 | H182: =[7]Feuil1!L182 -> 3 | I182: =[7]Feuil1!M182 -> 1 | J182: 15.96666667 | K182: 7 | L182: 1
A183: 174 | B183: BRAHIMI | C183: SID AHMED | D183: =[6]Feuil1!G183 -> 18.5 | E183: =[6]Feuil1!H183 -> 4 | F183: =[6]Feuil1!I183 -> 1 | G183: =[7]Feuil1!K183 -> 16.46666667 | H183: =[7]Feuil1!L183 -> 3 | I183: =[7]Feuil1!M183 -> 1 | J183: 17.48333333 | K183: 7 | L183: 1
A184: 175 | B184: BRAIK | C184: AHMED TAHAR ILYAS | D184: =[6]Feuil1!G184 -> 17 | E184: =[6]Feuil1!H184 -> 4 | F184: =[6]Feuil1!I184 -> 1 | G184: =[7]Feuil1!K184 -> 13.46666667 | H184: =[7]Feuil1!L184 -> 3 | I184: =[7]Feuil1!M184 -> 1 | J184: 15.23333333 | K184: 7 | L184: 1
A185: 176 | B185: BRIKI | C185: NOUR ELHOUDA | D185: =[6]Feuil1!G185 -> 17 | E185: =[6]Feuil1!H185 -> 4 | F185: =[6]Feuil1!I185 -> 1 | G185: =[7]Feuil1!K185 -> 18.78333333 | H185: =[7]Feuil1!L185 -> 3 | I185: =[7]Feuil1!M185 -> 1 | J185: 17.89166667 | K185: 7 | L185: 1
A186: 177 | B186: CHACHOU | C186: MOHAMED EL AMINE | D186: =[6]Feuil1!G186 -> 0 | E186: =[6]Feuil1!H186 -> 0 | F186: =[6]Feuil1!I186 -> 1 | G186: =[7]Feuil1!K186 -> 0 | H186: =[7]Feuil1!L186 -> 0 | I186: =[7]Feuil1!M186 -> 1 | J186: 0 | K186: 0 | L186: 1
A187: 178 | B187: CHAIB | C187: FATIMA ZOHRA | D187: =[6]Feuil1!G187 -> 12.5 | E187: =[6]Feuil1!H187 -> 4 | F187: =[6]Feuil1!I187 -> 1 | G187: =[7]Feuil1!K187 -> 12.6 | H187: =[7]Feuil1!L187 -> 3 | I187: =[7]Feuil1!M187 -> 1 | J187: 12.55 | K187: 7 | L187: 1
A188: 179 | B188: CHAKI | C188: ABDELMADJID | D188: =[6]Feuil1!G188 -> 17 | E188: =[6]Feuil1!H188 -> 4 | F188: =[6]Feuil1!I188 -> 1 | G188: =[7]Feuil1!K188 -> 19.4 | H188: =[7]Feuil1!L188 -> 3 | I188: =[7]Feuil1!M188 -> 1 | J188: 18.2 | K188: 7 | L188: 1
A189: 180 | B189: CHAKOR | C189: KAOUTER NESRINE | D189: =[6]Feuil1!G189 -> 0 | E189: =[6]Feuil1!H189 -> 0 | F189: =[6]Feuil1!I189 -> 1 | G189: =[7]Feuil1!K189 -> 0 | H189: =[7]Feuil1!L189 -> 0 | I189: =[7]Feuil1!M189 -> 1 | J189: 0 | K189: 0 | L189: 1
A190: 181 | B190: CHEBOUB | C190: AMARIA | D190: =[6]Feuil1!G190 -> 0 | E190: =[6]Feuil1!H190 -> 0 | F190: =[6]Feuil1!I190 -> 1 | G190: =[7]Feuil1!K190 -> 0 | H190: =[7]Feuil1!L190 -> 0 | I190: =[7]Feuil1!M190 -> 1 | J190: 0 | K190: 0 | L190: 1
A191: 182 | B191: CHEMRAK | C191: SIHEM | D191: =[6]Feuil1!G191 -> 10.4 | E191: =[6]Feuil1!H191 -> 4 | F191: =[6]Feuil1!I191 -> 1 | G191: =[7]Feuil1!K191 -> 0 | H191: =[7]Feuil1!L191 -> 0 | I191: =[7]Feuil1!M191 -> 1 | J191: 5.2 | K191: 4 | L191: 1
A192: 183 | B192: CHENAFA | C192: YASSAMINE | D192: =[6]Feuil1!G192 -> 17 | E192: =[6]Feuil1!H192 -> 4 | F192: =[6]Feuil1!I192 -> 1 | G192: =[7]Feuil1!K192 -> 19.81666667 | H192: =[7]Feuil1!L192 -> 3 | I192: =[7]Feuil1!M192 -> 1 | J192: 18.40833333 | K192: 7 | L192: 1
A193: 184 | B193: CHERFI | C193: MOHAMED EL AMINE | D193: =[6]Feuil1!G193 -> 11 | E193: =[6]Feuil1!H193 -> 4 | F193: =[6]Feuil1!I193 -> 1 | G193: =[7]Feuil1!K193 -> 14.16666667 | H193: =[7]Feuil1!L193 -> 3 | I193: =[7]Feuil1!M193 -> 1 | J193: 12.58333333 | K193: 7 | L193: 1
A194: 185 | B194: CHERGUI | C194: AMIRA | D194: =[6]Feuil1!G194 -> 13 | E194: =[6]Feuil1!H194 -> 4 | F194: =[6]Feuil1!I194 -> 2 | G194: =[7]Feuil1!K194 -> 15.03333333 | H194: =[7]Feuil1!L194 -> 3 | I194: =[7]Feuil1!M194 -> 1 | J194: 14.01666667 | K194: 7 | L194: 2
A195: 186 | B195: CHEURFAOUI | C195: NAWEL | D195: =[6]Feuil1!G195 -> 18 | E195: =[6]Feuil1!H195 -> 4 | F195: =[6]Feuil1!I195 -> 1 | G195: =[7]Feuil1!K195 -> 16.86666667 | H195: =[7]Feuil1!L195 -> 3 | I195: =[7]Feuil1!M195 -> 1 | J195: 17.43333333 | K195: 7 | L195: 1
A196: 187 | B196: CHIBANI | C196: ABDELKADER | D196: =[6]Feuil1!G196 -> 15 | E196: =[6]Feuil1!H196 -> 4 | F196: =[6]Feuil1!I196 -> 1 | G196: =[7]Feuil1!K196 -> 18.16666667 | H196: =[7]Feuil1!L196 -> 3 | I196: =[7]Feuil1!M196 -> 1 | J196: 16.58333333 | K196: 7 | L196: 1
A197: 188 | B197: CHIKHAOUI | C197: NOUREDDINE | D197: =[6]Feuil1!G197 -> 0 | E197: =[6]Feuil1!H197 -> 0 | F197: =[6]Feuil1!I197 -> 1 | G197: =[7]Feuil1!K197 -> 5.6 | H197: =[7]Feuil1!L197 -> 0 | I197: =[7]Feuil1!M197 -> 1 | J197: 2.8 | K197: 0 | L197: 1
A198: 189 | B198: DAHMANE | C198: OUSSAMA | D198: =[6]Feuil1!G198 -> 16.5 | E198: =[6]Feuil1!H198 -> 4 | F198: =[6]Feuil1!I198 -> 1 | G198: =[7]Feuil1!K198 -> 19.4 | H198: =[7]Feuil1!L198 -> 3 | I198: =[7]Feuil1!M198 -> 1 | J198: 17.95 | K198: 7 | L198: 1
A199: 190 | B199: DAHMANI | C199: AICHA | D199: =[6]Feuil1!G199 -> 18 | E199: =[6]Feuil1!H199 -> 4 | F199: =[6]Feuil1!I199 -> 1 | G199: =[7]Feuil1!K199 -> 15.4 | H199: =[7]Feuil1!L199 -> 3 | I199: =[7]Feuil1!M199 -> 1 | J199: 16.7 | K199: 7 | L199: 1
A200: 191 | B200: DAHMECHE | C200: HADJER | D200: =[6]Feuil1!G200 -> 15 | E200: =[6]Feuil1!H200 -> 4 | F200: =[6]Feuil1!I200 -> 1 | G200: =[7]Feuil1!K200 -> 15.66666667 | H200: =[7]Feuil1!L200 -> 3 | I200: =[7]Feuil1!M200 -> 1 | J200: 15.33333333 | K200: 7 | L200: 1
... 204 more rows

Sheet UET11
A1: MINISTERE DE L’ENSEIGNEMENT SUPERIEUR ET DE LA RECHERCHE SCIENTIFIQUE
A2: UNIVERSITE ABDELHAMID IBN BADIS MOSTAGANEM | D2: جامعــة عبد الحميد ابن باديس مستغانم
A3: FACULTE DES SCIENCES EXACTES ET DE L’INFORMATIQUE | D3: كلية العلوم الدقيقة و الأعلام الألي
A4: DEPARTEMENT DE MATHEMATIQUES ET INFORMATIQUE | D4: قسم الرياضيات و الأعلام الألي
A5: Première Année - Mathématiques et Informatique
A6: PV du 1ier Semestre-2015/2016
A7: UET11
D8: Ang | G8: UET11
A9: N° | B9: Nom | C9: Prénom | D9: Note | E9: Crédit | F9: Sess | G9: Note | H9: Crédit | I9: Session
A10: 1 | B10: ABBABSA | C10: RAHMA | D10: =[8]Feuil1!K10 -> 16.06666667 | E10: =[8]Feuil1!L10 -> 2 | F10: =[8]Feuil1!M10 -> 1 | G10: =D10 -> 16.06666667 | H10: =IF(G10>=10,2,E10) -> 2 | I10: =IF(AND( F10="1"),"1","2") -> 1
A11: 2 | B11: ABBAS | C11: AHMED | D11: =[8]Feuil1!K11 -> 13.53333333 | E11: =[8]Feuil1!L11 -> 2 | F11: =[8]Feuil1!M11 -> 1 | G11: 13.53333333 | H11: 2 | I11: 1
A12: 3 | B12: ABBES | C12: GHOZLENE | D12: =[8]Feuil1!K12 -> 11.6 | E12: =[8]Feuil1!L12 -> 2 | F12: =[8]Feuil1!M12 -> 1 | G12: 11.6 | H12: 2 | I12: 1
A13: 4 | B13: ABBES | C13: MOHAMED EL AMINE | D13: =[8]Feuil1!K13 -> 0 | E13: =[8]Feuil1!L13 -> 0 | F13: =[8]Feuil1!M13 -> 1 | G13: 0 | H13: 0 | I13: 1
A14: 5 | B14: ABBOU | C14: FATIHA | D14: =[8]Feuil1!K14 -> 13.06666667 | E14: =[8]Feuil1!L14 -> 2 | F14: =[8]Feuil1!M14 -> 1 | G14: 13.06666667 | H14: 2 | I14: 1
A15: 6 | B15: ABBOUD | C15: SALIHA | D15: =[8]Feuil1!K15 -> 0 | E15: =[8]Feuil1!L15 -> 0 | F15: =[8]Feuil1!M15 -> 1 | G15: 0 | H15: 0 | I15: 1
A16: 7 | B16: ABDELLAOUI | C16: NADIA | D16: =[8]Feuil1!K16 -> 5.866666667 | E16: =[8]Feuil1!L16 -> 0 | F16: =[8]Feuil1!M16 -> 1 | G16: 5.866666667 | H16: 0 | I16: 1
A17: 8 | B17: ABDELNEBI | C17: AMIRA | D17: =[8]Feuil1!K17 -> 18.06666667 | E17: =[8]Feuil1!L17 -> 2 | F17: =[8]Feuil1!M17 -> 1 | G17: 18.06666667 | H17: 2 | I17: 1
A18: 9 | B18: ABDELOUHAB | C18: NEDJWA ZAHRA | D18: =[8]Feuil1!K18 -> 0 | E18: =[8]Feuil1!L18 -> 0 | F18: =[8]Feuil1!M18 -> 1 | G18: 0 | H18: 0 | I18: 1
A19: 10 | B19: ABDOUNI | C19: AMIN | D19: =[8]Feuil1!K19 -> 4.2 | E19: =[8]Feuil1!L19 -> 0 | F19: =[8]Feuil1!M19 -> 1 | G19: 4.2 | H19: 0 | I19: 1
A20: 11 | B20: ABEID | C20: ZOHRA | D20: =[8]Feuil1!K20 -> 0 | E20: =[8]Feuil1!L20 -> 0 | F20: =[8]Feuil1!M20 -> 1 | G20: 0 | H20: 0 | I20: 1
A21: 12 | B21: ACHOUR | C21: ABDENOUR | D21: =[8]Feuil1!K21 -> 14.53333333 | E21: =[8]Feuil1!L21 -> 2 | F21: =[8]Feuil1!M21 -> 1 | G21: 14.53333333 | H21: 2 | I21: 1
A22: 13 | B22: ADDA | C22: ABDERRAHIM | D22: =[8]Feuil1!K22 -> 0 | E22: =[8]Feuil1!L22 -> 0 | F22: =[8]Feuil1!M22 -> 1 | G22: 0 | H22: 0 | I22: 1
A23: 14 | B23: ADDA | C23: HOUSSAM | D23: =[8]Feuil1!K23 -> 6.6 | E23: =[8]Feuil1!L23 -> 0 | F23: =[8]Feuil1!M23 -> 1 | G23: 6.6 | H23: 0 | I23: 1
A24: 15 | B24: ADDA | C24: SAID | D24: =[8]Feuil1!K24 -> 0 | E24: =[8]Feuil1!L24 -> 0 | F24: =[8]Feuil1!M24 -> 1 | G24: 0 | H24: 0 | I24: 1
A25: 16 | B25: AGBOUBI | C25: M'HAMED YASSINE | D25: =[8]Feuil1!K25 -> 5.933333333 | E25: =[8]Feuil1!L25 -> 0 | F25: =[8]Feuil1!M25 -> 1 | G25: 5.933333333 | H25: 0 | I25: 1
A26: 17 | B26: AHMED BACHA | C26: BILAL | D26: =[8]Feuil1!K26 -> 0 | E26: =[8]Feuil1!L26 -> 0 | F26: =[8]Feuil1!M26 -> 1 | G26: 0 | H26: 0 | I26: 1
A27: 18 | B27: AHMED KHODJA | C27: SOUMIA | D27: =[8]Feuil1!K27 -> 15.33333333 | E27: =[8]Feuil1!L27 -> 2 | F27: =[8]Feuil1!M27 -> 1 | G27: 15.33333333 | H27: 2 | I27: 1
A28: 19 | B28: AIMOUCH | C28: ABDESSAMED | D28: =[8]Feuil1!K28 -> 11.33333333 | E28: =[8]Feuil1!L28 -> 2 | F28: =[8]Feuil1!M28 -> 1 | G28: 11.33333333 | H28: 2 | I28: 1
A29: 20 | B29: AIMOUCH | C29: BADRA | D29: =[8]Feuil1!K29 -> 15 | E29: =[8]Feuil1!L29 -> 2 | F29: =[8]Feuil1!M29 -> 1 | G29: 15 | H29: 2 | I29: 1
A30: 21 | B30: AISSA | C30: SIHEM | D30: =[8]Feuil1!K30 -> 0 | E30: =[8]Feuil1!L30 -> 0 | F30: =[8]Feuil1!M30 -> 1 | G30: 0 | H30: 0 | I30: 1
A31: 22 | B31: AISSAT | C31: ABDERRAHMANE KADDOUR | D31: =[8]Feuil1!K31 -> 14.33333333 | E31: =[8]Feuil1!L31 -> 2 | F31: =[8]Feuil1!M31 -> 1 | G31: 14.33333333 | H31: 2 | I31: 1
A32: 23 | B32: AIT OUALI | C32: LINDA | D32: =[8]Feuil1!K32 -> 13.4 | E32: =[8]Feuil1!L32 -> 2 | F32: =[8]Feuil1!M32 -> 1 | G32: 13.4 | H32: 2 | I32: 1
A33: 24 | B33: AKROUM | C33: YOUCEF | D33: =[8]Feuil1!K33 -> 13.66666667 | E33: =[8]Feuil1!L33 -> 2 | F33: =[8]Feuil1!M33 -> 1 | G33: 13.66666667 | H33: 2 | I33: 1
A34: 25 | B34: ALLOUCH | C34: NADIA | D34: =[8]Feuil1!K34 -> 10.53333333 | E34: =[8]Feuil1!L34 -> 2 | F34: =[8]Feuil1!M34 -> 1 | G34: 10.53333333 | H34: 2 | I34: 1
A35: 26 | B35: AMAIRI | C35: CHAIMAA | D35: =[8]Feuil1!K35 -> 11.06666667 | E35: =[8]Feuil1!L35 -> 2 | F35: =[8]Feuil1!M35 -> 1 | G35: 11.06666667 | H35: 2 | I35: 1
A36: 27 | B36: AMMAR | C36: DJAMEL EDDINE | D36: =[8]Feuil1!K36 -> 0 | E36: =[8]Feuil1!L36 -> 0 | F36: =[8]Feuil1!M36 -> 1 | G36: 0 | H36: 0 | I36: 1
A37: 28 | B37: AMMAR | C37: MANAL | D37: =[8]Feuil1!K37 -> 10.93333333 | E37: =[8]Feuil1!L37 -> 2 | F37: =[8]Feuil1!M37 -> 1 | G37: 10.93333333 | H37: 2 | I37: 1
A38: 29 | B38: AMRANE | C38: AHMED | D38: =[8]Feuil1!K38 -> 1.2 | E38: =[8]Feuil1!L38 -> 0 | F38: =[8]Feuil1!M38 -> 1 | G38: 1.2 | H38: 0 | I38: 1
A39: 30 | B39: AMRANE | C39: HAFIDHA | D39: =[8]Feuil1!K39 -> 15.26666667 | E39: =[8]Feuil1!L39 -> 2 | F39: =[8]Feuil1!M39 -> 1 | G39: 15.26666667 | H39: 2 | I39: 1
A40: 31 | B40: AMRAOUI | C40: SOUFYANE | D40: =[8]Feuil1!K40 -> 12.6 | E40: =[8]Feuil1!L40 -> 2 | F40: =[8]Feuil1!M40 -> 1 | G40: 12.6 | H40: 2 | I40: 1
A41: 32 | B41: AMROUCHE | C41: NOURA | D41: =[8]Feuil1!K41 -> 9.733333333 | E41: =[8]Feuil1!L41 -> 0 | F41: =[8]Feuil1!M41 -> 1 | G41: 9.733333333 | H41: 0 | I41: 1
A42: 33 | B42: AOUAICHIA | C42: HANANE | D42: =[8]Feuil1!K42 -> 13.4 | E42: =[8]Feuil1!L42 -> 2 | F42: =[8]Feuil1!M42 -> 1 | G42: 13.4 | H42: 2 | I42: 1
A43: 34 | B43: ARAB | C43: NOUREDDINE | D43: =[8]Feuil1!K43 -> 0 | E43: =[8]Feuil1!L43 -> 0 | F43: =[8]Feuil1!M43 -> 1 | G43: 0 | H43: 0 | I43: 1
A44: 35 | B44: ATMANI | C44: FATIHA | D44: =[8]Feuil1!K44 -> 12.86666667 | E44: =[8]Feuil1!L44 -> 2 | F44: =[8]Feuil1!M44 -> 1 | G44: 12.86666667 | H44: 2 | I44: 1
A45: 36 | B45: AUODJ | C45: LARBI | D45: =[8]Feuil1!K45 -> 0 | E45: =[8]Feuil1!L45 -> 0 | F45: =[8]Feuil1!M45 -> 1 | G45: 0 | H45: 0 | I45: 1
A46: 37 | B46: AYAD | C46: NADJET | D46: =[8]Feuil1!K46 -> 12.73333333 | E46: =[8]Feuil1!L46 -> 2 | F46: =[8]Feuil1!M46 -> 1 | G46: 12.73333333 | H46: 2 | I46: 1
A47: 38 | B47: AZIL | C47: HALIMA | D47: =[8]Feuil1!K47 -> 12.56666667 | E47: =[8]Feuil1!L47 -> 2 | F47: =[8]Feuil1!M47 -> 1 | G47: 12.56666667 | H47: 2 | I47: 1
A48: 39 | B48: AZIRIA | C48: BILAL | D48: =[8]Feuil1!K48 -> 9.6 | E48: =[8]Feuil1!L48 -> 0 | F48: =[8]Feuil1!M48 -> 2 | G48: 9.6 | H48: 0 | I48: 2
A49: 40 | B49: BAALI | C49: NOR ELHOUDA | D49: =[8]Feuil1!K49 -> 10.6 | E49: =[8]Feuil1!L49 -> 2 | F49: =[8]Feuil1!M49 -> 1 | G49: 10.6 | H49: 2 | I49: 1
A50: 41 | B50: BAALI | C50: ZOULIKHA | D50: =[8]Feuil1!K50 -> 13.33333333 | E50: =[8]Feuil1!L50 -> 2 | F50: =[8]Feuil1!M50 -> 1 | G50: 13.33333333 | H50: 2 | I50: 1
A51: 42 | B51: BACHIR BEY | C51: ABDELHAMID | D51: =[8]Feuil1!K51 -> 8.4 | E51: =[8]Feuil1!L51 -> 0 | F51: =[8]Feuil1!M51 -> 1 | G51: 8.4 | H51: 0 | I51: 1
A52: 43 | B52: BAGHDOUD | C52: ASMAE | D52: =[8]Feuil1!K52 -> 11.2 | E52: =[8]Feuil1!L52 -> 2 | F52: =[8]Feuil1!M52 -> 1 | G52: 11.2 | H52: 2 | I52: 1
A53: 44 | B53: BAHLOUL | C53: MOHAMED AMINE | D53: =[8]Feuil1!K53 -> 10.2 | E53: =[8]Feuil1!L53 -> 2 | F53: =[8]Feuil1!M53 -> 1 | G53: 10.2 | H53: 2 | I53: 1
A54: 45 | B54: BAININE | C54: SID AHMED | D54: =[8]Feuil1!K54 -> 15.66666667 | E54: =[8]Feuil1!L54 -> 2 | F54: =[8]Feuil1!M54 -> 1 | G54: 15.66666667 | H54: 2 | I54: 1
A55: 46 | B55: BAKIR | C55: MOHAMMED | D55: =[8]Feuil1!K55 -> 0 | E55: =[8]Feuil1!L55 -> 0 | F55: =[8]Feuil1!M55 -> 1 | G55: 0 | H55: 0 | I55: 1
A56: 47 | B56: BARDAD | C56: NASSIBA | D56: =[8]Feuil1!K56 -> 0 | E56: =[8]Feuil1!L56 -> 0 | F56: =[8]Feuil1!M56 -> 1 | G56: 0 | H56: 0 | I56: 1
A57: 48 | B57: BARDAD | C57: NAZHA | D57: =[8]Feuil1!K57 -> 13.26666667 | E57: =[8]Feuil1!L57 -> 2 | F57: =[8]Feuil1!M57 -> 1 | G57: 13.26666667 | H57: 2 | I57: 1
A58: 49 | B58: BARKAT | C58: NASSIMA | D58: =[8]Feuil1!K58 -> 14.2 | E58: =[8]Feuil1!L58 -> 2 | F58: =[8]Feuil1!M58 -> 1 | G58: 14.2 | H58: 2 | I58: 1
A59: 50 | B59: BEGUELOUL | C59: AZZEDINE | D59: =[8]Feuil1!K59 -> 6.933333333 | E59: =[8]Feuil1!L59 -> 0 | F59: =[8]Feuil1!M59 -> 1 | G59: 6.933333333 | H59: 0 | I59: 1
A60: 51 | B60: BEHLOUL | C60: ARBIA | D60: =[8]Feuil1!K60 -> 9.066666667 | E60: =[8]Feuil1!L60 -> 0 | F60: =[8]Feuil1!M60 -> 1 | G60: 9.066666667 | H60: 0 | I60: 1
A61: 52 | B61: BEKADDOR BENATIA | C61: ABDALLAH | D61: =[8]Feuil1!K61 -> 14.8 | E61: =[8]Feuil1!L61 -> 2 | F61: =[8]Feuil1!M61 -> 2 | G61: 14.8 | H61: 2 | I61: 2
A62: 53 | B62: BEKADDOUR | C62: FATIMA | D62: =[8]Feuil1!K62 -> 13.26666667 | E62: =[8]Feuil1!L62 -> 2 | F62: =[8]Feuil1!M62 -> 1 | G62: 13.26666667 | H62: 2 | I62: 1
A63: 54 | B63: BEKKA | C63: HOUCINE | D63: =[8]Feuil1!K63 -> 9.4 | E63: =[8]Feuil1!L63 -> 0 | F63: =[8]Feuil1!M63 -> 1 | G63: 9.4 | H63: 0 | I63: 1
A64: 55 | B64: BELABBES | C64: FAISAL | D64: =[8]Feuil1!K64 -> 9.666666667 | E64: =[8]Feuil1!L64 -> 0 | F64: =[8]Feuil1!M64 -> 1 | G64: 9.666666667 | H64: 0 | I64: 1
A65: 56 | B65: BELACEL | C65: M'HAMMED | D65: =[8]Feuil1!K65 -> 9.733333333 | E65: =[8]Feuil1!L65 -> 0 | F65: =[8]Feuil1!M65 -> 1 | G65: 9.733333333 | H65: 0 | I65: 1
A66: 57 | B66: BELACEL | C66: MOHAMED ELAMINE | D66: =[8]Feuil1!K66 -> 4 | E66: =[8]Feuil1!L66 -> 0 | F66: =[8]Feuil1!M66 -> 1 | G66: 4 | H66: 0 | I66: 1
A67: 58 | B67: BELADJAL | C67: SAMIA | D67: =[8]Feuil1!K67 -> 12.73333333 | E67: =[8]Feuil1!L67 -> 2 | F67: =[8]Feuil1!M67 -> 1 | G67: 12.73333333 | H67: 2 | I67: 1
A68: 59 | B68: BELADJEL | C68: MOHAMED EL AMINE | D68: =[8]Feuil1!K68 -> 6 | E68: =[8]Feuil1!L68 -> 0 | F68: =[8]Feuil1!M68 -> 1 | G68: 6 | H68: 0 | I68: 1
A69: 60 | B69: BELAHOUEL | C69: BEDRA BATOUL | D69: =[8]Feuil1!K69 -> 16.46666667 | E69: =[8]Feuil1!L69 -> 2 | F69: =[8]Feuil1!M69 -> 1 | G69: 16.46666667 | H69: 2 | I69: 1
A70: 61 | B70: BELAHSENE | C70: SIHAM | D70: =[8]Feuil1!K70 -> 0 | E70: =[8]Feuil1!L70 -> 0 | F70: =[8]Feuil1!M70 -> 1 | G70: 0 | H70: 0 | I70: 1
A71: 62 | B71: BELAID | C71: ROKAYA | D71: =[8]Feuil1!K71 -> 15.6 | E71: =[8]Feuil1!L71 -> 2 | F71: =[8]Feuil1!M71 -> 1 | G71: 15.6 | H71: 2 | I71: 1
A72: 63 | B72: BELAID | C72: YASSEMINA | D72: =[8]Feuil1!K72 -> 0 | E72: =[8]Feuil1!L72 -> 0 | F72: =[8]Feuil1!M72 -> 1 | G72: 0 | H72: 0 | I72: 1
A73: 64 | B73: BELALIA | C73: MOSTAFA | D73: =[8]Feuil1!K73 -> 10 | E73: =[8]Feuil1!L73 -> 2 | F73: =[8]Feuil1!M73 -> 1 | G73: 10 | H73: 2 | I73: 1
A74: 65 | B74: BELAOUEDJ | C74: MANSOURIA | D74: =[8]Feuil1!K74 -> 6 | E74: =[8]Feuil1!L74 -> 0 | F74: =[8]Feuil1!M74 -> 1 | G74: 6 | H74: 0 | I74: 1
A75: 66 | B75: BELARBI | C75: MOHAMED YASSIN | D75: =[8]Feuil1!K75 -> 13 | E75: =[8]Feuil1!L75 -> 2 | F75: =[8]Feuil1!M75 -> 1 | G75: 13 | H75: 2 | I75: 1
A76: 67 | B76: BELEH | C76: MERIEM | D76: =[8]Feuil1!K76 -> 13 | E76: =[8]Feuil1!L76 -> 2 | F76: =[8]Feuil1!M76 -> 1 | G76: 13 | H76: 2 | I76: 1
A77: 68 | B77: BELHACHEMIA | C77: MOHAMMED IBRAHIM | D77: =[8]Feuil1!K77 -> 12.8 | E77: =[8]Feuil1!L77 -> 2 | F77: =[8]Feuil1!M77 -> 1 | G77: 12.8 | H77: 2 | I77: 1
A78: 69 | B78: BELHAMITI | C78: MERIEM MANSOURIA | D78: =[8]Feuil1!K78 -> 14.26666667 | E78: =[8]Feuil1!L78 -> 2 | F78: =[8]Feuil1!M78 -> 1 | G78: 14.26666667 | H78: 2 | I78: 1
A79: 70 | B79: BELKACEM | C79: IBRAHIM | D79: =[8]Feuil1!K79 -> 3.333333333 | E79: =[8]Feuil1!L79 -> 0 | F79: =[8]Feuil1!M79 -> 1 | G79: 3.333333333 | H79: 0 | I79: 1
A80: 71 | B80: BELKACEMI | C80: LARBI | D80: =[8]Feuil1!K80 -> 3.333333333 | E80: =[8]Feuil1!L80 -> 0 | F80: =[8]Feuil1!M80 -> 1 | G80: 3.333333333 | H80: 0 | I80: 1
A81: 72 | B81: BELKAID | C81: RADIA | D81: =[8]Feuil1!K81 -> 16.33333333 | E81: =[8]Feuil1!L81 -> 2 | F81: =[8]Feuil1!M81 -> 1 | G81: 16.33333333 | H81: 2 | I81: 1
A82: 73 | B82: BELKAIOUS | C82: HAYET | D82: =[8]Feuil1!K82 -> 10.8 | E82: =[8]Feuil1!L82 -> 2 | F82: =[8]Feuil1!M82 -> 1 | G82: 10.8 | H82: 2 | I82: 1
A83: 74 | B83: BELKARROUB | C83: NOUR EL HOUDA | D83: =[8]Feuil1!K83 -> 9.066666667 | E83: =[8]Feuil1!L83 -> 0 | F83: =[8]Feuil1!M83 -> 1 | G83: 9.066666667 | H83: 0 | I83: 1
A84: 75 | B84: BELMADANI | C84: NAIMA | D84: =[8]Feuil1!K84 -> 4 | E84: =[8]Feuil1!L84 -> 0 | F84: =[8]Feuil1!M84 -> 1 | G84: 4 | H84: 0 | I84: 1
A85: 76 | B85: BELMADI | C85: AHMED | D85: =[8]Feuil1!K85 -> 0 | E85: =[8]Feuil1!L85 -> 0 | F85: =[8]Feuil1!M85 -> 1 | G85: 0 | H85: 0 | I85: 1
A86: 77 | B86: BELMOKHTAR | C86: ABDELKADER | D86: =[8]Feuil1!K86 -> 0 | E86: =[8]Feuil1!L86 -> 0 | F86: =[8]Feuil1!M86 -> 1 | G86: 0 | H86: 0 | I86: 1
A87: 78 | B87: BELOUASSOUASSI | C87: BOUBAKR | D87: =[8]Feuil1!K87 -> 0 | E87: =[8]Feuil1!L87 -> 0 | F87: =[8]Feuil1!M87 -> 1 | G87: 0 | H87: 0 | I87: 1
A88: 79 | B88: BELOUFA | C88: YASSER | D88: =[8]Feuil1!K88 -> 0 | E88: =[8]Feuil1!L88 -> 0 | F88: =[8]Feuil1!M88 -> 1 | G88: 0 | H88: 0 | I88: 1
A89: 80 | B89: BEN SOUKHAL | C89: HALIMA | D89: =[8]Feuil1!K89 -> 10.26666667 | E89: =[8]Feuil1!L89 -> 2 | F89: =[8]Feuil1!M89 -> 1 | G89: 10.26666667 | H89: 2 | I89: 1
A90: 81 | B90: BENACHOUR | C90: HAMZA | D90: =[8]Feuil1!K90 -> 6.6 | E90: =[8]Feuil1!L90 -> 0 | F90: =[8]Feuil1!M90 -> 1 | G90: 6.6 | H90: 0 | I90: 1
A91: 82 | B91: BENADDA | C91: YAMINA | D91: =[8]Feuil1!K91 -> 11.73333333 | E91: =[8]Feuil1!L91 -> 2 | F91: =[8]Feuil1!M91 -> 1 | G91: 11.73333333 | H91: 2 | I91: 1
A92: 83 | B92: BENAICHA | C92: AMEL | D92: =[8]Feuil1!K92 -> 6.6 | E92: =[8]Feuil1!L92 -> 0 | F92: =[8]Feuil1!M92 -> 1 | G92: 6.6 | H92: 0 | I92: 1
A93: 84 | B93: BENAICHA | C93: WAFAA | D93: =[8]Feuil1!K93 -> 6 | E93: =[8]Feuil1!L93 -> 0 | F93: =[8]Feuil1!M93 -> 1 | G93: 6 | H93: 0 | I93: 1
A94: 85 | B94: BENAMAR | C94: ISMAIL | D94: =[8]Feuil1!K94 -> 0 | E94: =[8]Feuil1!L94 -> 0 | F94: =[8]Feuil1!M94 -> 1 | G94: 0 | H94: 0 | I94: 1
A95: 86 | B95: BENAMAR | C95: KHEIRA | D95: =[8]Feuil1!K95 -> 12.33333333 | E95: =[8]Feuil1!L95 -> 2 | F95: =[8]Feuil1!M95 -> 1 | G95: 12.33333333 | H95: 2 | I95: 1
A96: 87 | B96: BENANTEUR | C96: HADJ MUSTAFA | D96: =[8]Feuil1!K96 -> 0 | E96: =[8]Feuil1!L96 -> 0 | F96: =[8]Feuil1!M96 -> 1 | G96: 0 | H96: 0 | I96: 1
A97: 88 | B97: BENAOUDA | C97: YASSINE | D97: =[8]Feuil1!K97 -> 12.6 | E97: =[8]Feuil1!L97 -> 2 | F97: =[8]Feuil1!M97 -> 1 | G97: 12.6 | H97: 2 | I97: 1
A98: 89 | B98: BENAOUDA | C98: ZAKARIA | D98: =[8]Feuil1!K98 -> 10 | E98: =[8]Feuil1!L98 -> 2 | F98: =[8]Feuil1!M98 -> 1 | G98: 10 | H98: 2 | I98: 1
A99: 90 | B99: BENATTIA | C99: CHAIMA | D99: =[8]Feuil1!K99 -> 12.2 | E99: =[8]Feuil1!L99 -> 2 | F99: =[8]Feuil1!M99 -> 1 | G99: 12.2 | H99: 2 | I99: 1
A100: 91 | B100: BENAYED | C100: SARAH | D100: =[8]Feuil1!K100 -> 13.33333333 | E100: =[8]Feuil1!L100 -> 2 | F100: =[8]Feuil1!M100 -> 1 | G100: 13.33333333 | H100: 2 | I100: 1
A101: 92 | B101: BENBACHIR | C101: HAMZA | D101: =[8]Feuil1!K101 -> 12.86666667 | E101: =[8]Feuil1!L101 -> 2 | F101: =[8]Feuil1!M101 -> 1 | G101: 12.86666667 | H101: 2 | I101: 1
A102: 93 | B102: BENBERNOU | C102: YASSER | D102: =[8]Feuil1!K102 -> 12.06666667 | E102: =[8]Feuil1!L102 -> 2 | F102: =[8]Feuil1!M102 -> 1 | G102: 12.06666667 | H102: 2 | I102: 1
A103: 94 | B103: BENCHAIB | C103: FADELA | D103: =[8]Feuil1!K103 -> 11.13333333 | E103: =[8]Feuil1!L103 -> 2 | F103: =[8]Feuil1!M103 -> 1 | G103: 11.13333333 | H103: 2 | I103: 1
A104: 95 | B104: BENCHAMANI | C104: REKAIA | D104: =[8]Feuil1!K104 -> 10.53333333 | E104: =[8]Feuil1!L104 -> 2 | F104: =[8]Feuil1!M104 -> 1 | G104: 10.53333333 | H104: 2 | I104: 1
A105: 96 | B105: BENCHEHIDA | C105: ABDELHEQ | D105: =[8]Feuil1!K105 -> 12.33333333 | E105: =[8]Feuil1!L105 -> 2 | F105: =[8]Feuil1!M105 -> 1 | G105: 12.33333333 | H105: 2 | I105: 1
A106: 97 | B106: BENCHENNI | C106: MERIEM | D106: =[8]Feuil1!K106 -> 0 | E106: =[8]Feuil1!L106 -> 0 | F106: =[8]Feuil1!M106 -> 1 | G106: 0 | H106: 0 | I106: 1
A107: 98 | B107: BENCHERIF | C107: AHMED | D107: =[8]Feuil1!K107 -> 4.4 | E107: =[8]Feuil1!L107 -> 0 | F107: =[8]Feuil1!M107 -> 1 | G107: 4.4 | H107: 0 | I107: 1
A108: 99 | B108: BENCHOHRA | C108: KHEIRA | D108: =[8]Feuil1!K108 -> 6 | E108: =[8]Feuil1!L108 -> 0 | F108: =[8]Feuil1!M108 -> 1 | G108: 6 | H108: 0 | I108: 1
A109: 100 | B109: BENDANI | C109: MUSTAPHA | D109: =[8]Feuil1!K109 -> 12.06666667 | E109: =[8]Feuil1!L109 -> 2 | F109: =[8]Feuil1!M109 -> 1 | G109: 12.06666667 | H109: 2 | I109: 1
A110: 101 | B110: BENDJELLOUL | C110: NOUREDDINE | D110: =[8]Feuil1!K110 -> 15.33333333 | E110: =[8]Feuil1!L110 -> 2 | F110: =[8]Feuil1!M110 -> 1 | G110: 15.33333333 | H110: 2 | I110: 1
A111: 102 | B111: BENFICHOUH | C111: ABDELHALIM | D111: =[8]Feuil1!K111 -> 0 | E111: =[8]Feuil1!L111 -> 0 | F111: =[8]Feuil1!M111 -> 1 | G111: 0 | H111: 0 | I111: 1
A112: 103 | B112: BENGATTAT | C112: HADJ ALI | D112: =[8]Feuil1!K112 -> 13.86666667 | E112: =[8]Feuil1!L112 -> 2 | F112: =[8]Feuil1!M112 -> 1 | G112: 13.86666667 | H112: 2 | I112: 1
A113: 104 | B113: BENGUETTAT | C113: WAFAE | D113: =[8]Feuil1!K113 -> 5.466666667 | E113: =[8]Feuil1!L113 -> 0 | F113: =[8]Feuil1!M113 -> 1 | G113: 5.466666667 | H113: 0 | I113: 1
A114: 105 | B114: BENGUIRECHE | C114: HAFSA | D114: =[8]Feuil1!K114 -> 4.933333333 | E114: =[8]Feuil1!L114 -> 0 | F114: =[8]Feuil1!M114 -> 1 | G114: 4.933333333 | H114: 0 | I114: 1
A115: 106 | B115: BENHADDOUCHE | C115: FATIMA ZOHRA ROMEISSA | D115: =[8]Feuil1!K115 -> 5.066666667 | E115: =[8]Feuil1!L115 -> 0 | F115: =[8]Feuil1!M115 -> 1 | G115: 5.066666667 | H115: 0 | I115: 1
A116: 107 | B116: BENHALIMA | C116: MOUNIR | D116: =[8]Feuil1!K116 -> 14.06666667 | E116: =[8]Feuil1!L116 -> 2 | F116: =[8]Feuil1!M116 -> 1 | G116: 14.06666667 | H116: 2 | I116: 1
A117: 108 | B117: BENHALIMA | C117: NACERA | D117: =[8]Feuil1!K117 -> 10.66666667 | E117: =[8]Feuil1!L117 -> 2 | F117: =[8]Feuil1!M117 -> 1 | G117: 10.66666667 | H117: 2 | I117: 1
A118: 109 | B118: BENHARIRA | C118: KOUIDER | D118: =[8]Feuil1!K118 -> 0 | E118: =[8]Feuil1!L118 -> 0 | F118: =[8]Feuil1!M118 -> 1 | G118: 0 | H118: 0 | I118: 1
A119: 110 | B119: BENHARRAT | C119: NOUR EL HOUDA | D119: =[8]Feuil1!K119 -> 10.53333333 | E119: =[8]Feuil1!L119 -> 2 | F119: =[8]Feuil1!M119 -> 1 | G119: 10.53333333 | H119: 2 | I119: 1
A120: 111 | B120: BENKAHLA | C120: CHAHRAZED | D120: =[8]Feuil1!K120 -> 10.66666667 | E120: =[8]Feuil1!L120 -> 2 | F120: =[8]Feuil1!M120 -> 1 | G120: 10.66666667 | H120: 2 | I120: 1
A121: 112 | B121: BENKEDADRA | C121: KHADIDJA | D121: =[8]Feuil1!K121 -> 16.9 | E121: =[8]Feuil1!L121 -> 2 | F121: =[8]Feuil1!M121 -> 1 | G121: 16.9 | H121: 2 | I121: 1
A122: 113 | B122: BENKEDADRA | C122: MOHAMED | D122: =[8]Feuil1!K122 -> 9.9 | E122: =[8]Feuil1!L122 -> 0 | F122: =[8]Feuil1!M122 -> 1 | G122: 9.9 | H122: 0 | I122: 1
A123: 114 | B123: BENKHELIFA | C123: KAMEL | D123: =[8]Feuil1!K123 -> 2.1 | E123: =[8]Feuil1!L123 -> 0 | F123: =[8]Feuil1!M123 -> 1 | G123: 2.1 | H123: 0 | I123: 1
A124: 115 | B124: BENKHELIFA | C124: SAAD | D124: =[8]Feuil1!K124 -> 7.9 | E124: =[8]Feuil1!L124 -> 0 | F124: =[8]Feuil1!M124 -> 1 | G124: 7.9 | H124: 0 | I124: 1
A125: 116 | B125: BENKORECH | C125: ABEDNNOUR | D125: =[8]Feuil1!K125 -> 12.1 | E125: =[8]Feuil1!L125 -> 2 | F125: =[8]Feuil1!M125 -> 1 | G125: 12.1 | H125: 2 | I125: 1
A126: 117 | B126: BENKORRECHE | C126: MOHAMED EL AMINE | D126: =[8]Feuil1!K126 -> 10.26666667 | E126: =[8]Feuil1!L126 -> 2 | F126: =[8]Feuil1!M126 -> 1 | G126: 10.26666667 | H126: 2 | I126: 1
A127: 118 | B127: BENLAKEHAL | C127: MOHAMED REDHA | D127: =[8]Feuil1!K127 -> 6 | E127: =[8]Feuil1!L127 -> 0 | F127: =[8]Feuil1!M127 -> 1 | G127: 6 | H127: 0 | I127: 1
A128: 119 | B128: BENNAMA | C128: HOCINE | D128: =[8]Feuil1!K128 -> 0 | E128: =[8]Feuil1!L128 -> 0 | F128: =[8]Feuil1!M128 -> 1 | G128: 0 | H128: 0 | I128: 1
A129: 120 | B129: BENNECEUR | C129: FATIHA | D129: =[8]Feuil1!K129 -> 6.6 | E129: =[8]Feuil1!L129 -> 0 | F129: =[8]Feuil1!M129 -> 1 | G129: 6.6 | H129: 0 | I129: 1
A130: 121 | B130: BENOTSMANE | C130: CHAIMAE | D130: =[8]Feuil1!K130 -> 3.6 | E130: =[8]Feuil1!L130 -> 0 | F130: =[8]Feuil1!M130 -> 1 | G130: 3.6 | H130: 0 | I130: 1
A131: 122 | B131: BENOUALI | C131: MOHAMED BOUASRIA | D131: =[8]Feuil1!K131 -> 0 | E131: =[8]Feuil1!L131 -> 0 | F131: =[8]Feuil1!M131 -> 1 | G131: 0 | H131: 0 | I131: 1
A132: 123 | B132: BENOUALI | C132: ZOHRA | D132: =[8]Feuil1!K132 -> 6 | E132: =[8]Feuil1!L132 -> 0 | F132: =[8]Feuil1!M132 -> 1 | G132: 6 | H132: 0 | I132: 1
A133: 124 | B133: BENSAADIA | C133: NABIL | D133: =[8]Feuil1!K133 -> 0 | E133: =[8]Feuil1!L133 -> 0 | F133: =[8]Feuil1!M133 -> 1 | G133: 0 | H133: 0 | I133: 1
A134: 125 | B134: BENSALAH | C134: ATIKA MANSOURIA | D134: =[8]Feuil1!K134 -> 10.53333333 | E134: =[8]Feuil1!L134 -> 2 | F134: =[8]Feuil1!M134 -> 1 | G134: 10.53333333 | H134: 2 | I134: 1
A135: 126 | B135: BENSALEM | C135: ABDELKADER | D135: =[8]Feuil1!K135 -> 9.633333333 | E135: =[8]Feuil1!L135 -> 0 | F135: =[8]Feuil1!M135 -> 1 | G135: 9.633333333 | H135: 0 | I135: 1
A136: 127 | B136: BENTAMRA | C136: HADJIRA | D136: =[8]Feuil1!K136 -> 12.9 | E136: =[8]Feuil1!L136 -> 2 | F136: =[8]Feuil1!M136 -> 1 | G136: 12.9 | H136: 2 | I136: 1
A137: 128 | B137: BENTAMRA | C137: KARIMA | D137: =[8]Feuil1!K137 -> 16.76666667 | E137: =[8]Feuil1!L137 -> 2 | F137: =[8]Feuil1!M137 -> 1 | G137: 16.76666667 | H137: 2 | I137: 1
A138: 129 | B138: BENYOUCEF | C138: KAWTHAR | D138: =[8]Feuil1!K138 -> 13.86666667 | E138: =[8]Feuil1!L138 -> 2 | F138: =[8]Feuil1!M138 -> 1 | G138: 13.86666667 | H138: 2 | I138: 1
A139: 130 | B139: BENZIADI | C139: AMINE | D139: =[8]Feuil1!K139 -> 10.4 | E139: =[8]Feuil1!L139 -> 2 | F139: =[8]Feuil1!M139 -> 1 | G139: 10.4 | H139: 2 | I139: 1
A140: 131 | B140: BERRAS | C140: FATIMA ZOHRA | D140: =[8]Feuil1!K140 -> 14.33333333 | E140: =[8]Feuil1!L140 -> 2 | F140: =[8]Feuil1!M140 -> 1 | G140: 14.33333333 | H140: 2 | I140: 1
A141: 132 | B141: BERROUACHEDI | C141: ABDELHAK | D141: =[8]Feuil1!K141 -> 2.4 | E141: =[8]Feuil1!L141 -> 0 | F141: =[8]Feuil1!M141 -> 1 | G141: 2.4 | H141: 0 | I141: 1
A142: 133 | B142: BESSAAD | C142: MOULAI | D142: =[8]Feuil1!K142 -> 9.333333333 | E142: =[8]Feuil1!L142 -> 0 | F142: =[8]Feuil1!M142 -> 1 | G142: 9.333333333 | H142: 0 | I142: 1
A143: 134 | B143: BESSAFI | C143: FATIMA ZOHRA | D143: =[8]Feuil1!K143 -> 0 | E143: =[8]Feuil1!L143 -> 0 | F143: =[8]Feuil1!M143 -> 1 | G143: 0 | H143: 0 | I143: 1
A144: 135 | B144: BESSAYEH | C144: IMEN | D144: =[8]Feuil1!K144 -> 0 | E144: =[8]Feuil1!L144 -> 0 | F144: =[8]Feuil1!M144 -> 1 | G144: 0 | H144: 0 | I144: 1
A145: 136 | B145: BESSEDIK | C145: IBTISSEM NAIMA | D145: =[8]Feuil1!K145 -> 14.26666667 | E145: =[8]Feuil1!L145 -> 2 | F145: =[8]Feuil1!M145 -> 1 | G145: 14.26666667 | H145: 2 | I145: 1
A146: 137 | B146: BESSEDIK | C146: ZAKARIA ABDERRAHMANE | D146: =[8]Feuil1!K146 -> 14.53333333 | E146: =[8]Feuil1!L146 -> 2 | F146: =[8]Feuil1!M146 -> 1 | G146: 14.53333333 | H146: 2 | I146: 1
A147: 138 | B147: BESSEGHIR | C147: FERIEL | D147: =[8]Feuil1!K147 -> 13.36666667 | E147: =[8]Feuil1!L147 -> 2 | F147: =[8]Feuil1!M147 -> 1 | G147: 13.36666667 | H147: 2 | I147: 1
A148: 139 | B148: BETTAHAR | C148: TALHA | D148: =[8]Feuil1!K148 -> 3.6 | E148: =[8]Feuil1!L148 -> 0 | F148: =[8]Feuil1!M148 -> 1 | G148: 3.6 | H148: 0 | I148: 1
A149: 140 | B149: BEZZAIM | C149: HOURIA | D149: =[8]Feuil1!K149 -> 12.4 | E149: =[8]Feuil1!L149 -> 2 | F149: =[8]Feuil1!M149 -> 1 | G149: 12.4 | H149: 2 | I149: 1
A150: 141 | B150: BOKHARI | C150: CHEMS EDDINE ISMAIL | D150: =[8]Feuil1!K150 -> 15.9 | E150: =[8]Feuil1!L150 -> 2 | F150: =[8]Feuil1!M150 -> 1 | G150: 15.9 | H150: 2 | I150: 1
A151: 142 | B151: BORANE | C151: MOHAMED | D151: =[8]Feuil1!K151 -> 6 | E151: =[8]Feuil1!L151 -> 0 | F151: =[8]Feuil1!M151 -> 1 | G151: 6 | H151: 0 | I151: 1
A152: 143 | B152: BOUADJMI | C152: AICHA | D152: =[8]Feuil1!K152 -> 0 | E152: =[8]Feuil1!L152 -> 0 | F152: =[8]Feuil1!M152 -> 1 | G152: 0 | H152: 0 | I152: 1
A153: 144 | B153: BOUAFIA | C153: HOUSSINE | D153: =[8]Feuil1!K153 -> 0 | E153: =[8]Feuil1!L153 -> 0 | F153: =[8]Feuil1!M153 -> 1 | G153: 0 | H153: 0 | I153: 1
A154: 145 | B154: BOUALEM | C154: AMIRA | D154: =[8]Feuil1!K154 -> 0 | E154: =[8]Feuil1!L154 -> 0 | F154: =[8]Feuil1!M154 -> 1 | G154: 0 | H154: 0 | I154: 1
A155: 146 | B155: BOUATTOU | C155: YEMNA | D155: =[8]Feuil1!K155 -> 11.53333333 | E155: =[8]Feuil1!L155 -> 2 | F155: =[8]Feuil1!M155 -> 1 | G155: 11.53333333 | H155: 2 | I155: 1
A156: 147 | B156: BOUBEKEUR | C156: MAROUA AMEL | D156: =[8]Feuil1!K156 -> 12.53333333 | E156: =[8]Feuil1!L156 -> 2 | F156: =[8]Feuil1!M156 -> 1 | G156: 12.53333333 | H156: 2 | I156: 1
A157: 148 | B157: BOUCEDRA | C157: NADA | D157: =[8]Feuil1!K157 -> 11.73333333 | E157: =[8]Feuil1!L157 -> 2 | F157: =[8]Feuil1!M157 -> 1 | G157: 11.73333333 | H157: 2 | I157: 1
A158: 149 | B158: BOUCHAMA | C158: HEITHEM | D158: =[8]Feuil1!K158 -> 0 | E158: =[8]Feuil1!L158 -> 0 | F158: =[8]Feuil1!M158 -> 1 | G158: 0 | H158: 0 | I158: 1
A159: 150 | B159: BOUDIA | C159: NADIA | D159: =[8]Feuil1!K159 -> 15.36666667 | E159: =[8]Feuil1!L159 -> 2 | F159: =[8]Feuil1!M159 -> 1 | G159: 15.36666667 | H159: 2 | I159: 1
A160: 151 | B160: BOUDRAF | C160: MOHAMED | D160: =[8]Feuil1!K160 -> 0 | E160: =[8]Feuil1!L160 -> 0 | F160: =[8]Feuil1!M160 -> 1 | G160: 0 | H160: 0 | I160: 1
A161: 152 | B161: BOUHADEF | C161: ASMAA | D161: =[8]Feuil1!K161 -> 12.36666667 | E161: =[8]Feuil1!L161 -> 2 | F161: =[8]Feuil1!M161 -> 1 | G161: 12.36666667 | H161: 2 | I161: 1
A162: 153 | B162: BOUHALI | C162: NACER | D162: =[8]Feuil1!K162 -> 1.8 | E162: =[8]Feuil1!L162 -> 0 | F162: =[8]Feuil1!M162 -> 1 | G162: 1.8 | H162: 0 | I162: 1
A163: 154 | B163: BOUHALLALENE | C163: MOHAMED ABDEL HAFID | D163: =[8]Feuil1!K163 -> 12.06666667 | E163: =[8]Feuil1!L163 -> 2 | F163: =[8]Feuil1!M163 -> 1 | G163: 12.06666667 | H163: 2 | I163: 1
A164: 155 | B164: BOUHALOUFA | C164: MOHAMED AMINE | D164: =[8]Feuil1!K164 -> 6 | E164: =[8]Feuil1!L164 -> 0 | F164: =[8]Feuil1!M164 -> 1 | G164: 6 | H164: 0 | I164: 1
A165: 156 | B165: BOUICH | C165: MOHAMED | D165: =[8]Feuil1!K165 -> 0 | E165: =[8]Feuil1!L165 -> 0 | F165: =[8]Feuil1!M165 -> 1 | G165: 0 | H165: 0 | I165: 1
A166: 157 | B166: BOUKEFFA | C166: ABDELHAMID | D166: =[8]Feuil1!K166 -> 0 | E166: =[8]Feuil1!L166 -> 0 | F166: =[8]Feuil1!M166 -> 1 | G166: 0 | H166: 0 | I166: 1
A167: 158 | B167: BOUKHARI | C167: MADIHA | D167: =[8]Feuil1!K167 -> 11.93333333 | E167: =[8]Feuil1!L167 -> 2 | F167: =[8]Feuil1!M167 -> 1 | G167: 11.93333333 | H167: 2 | I167: 1
A168: 159 | B168: BOUKHELIF | C168: MHAMED | D168: =[8]Feuil1!K168 -> 10.4 | E168: =[8]Feuil1!L168 -> 2 | F168: =[8]Feuil1!M168 -> 1 | G168: 10.4 | H168: 2 | I168: 1
A169: 160 | B169: BOUKHLIF | C169: MOHAMED | D169: =[8]Feuil1!K169 -> 0 | E169: =[8]Feuil1!L169 -> 0 | F169: =[8]Feuil1!M169 -> 1 | G169: 0 | H169: 0 | I169: 1
A170: 161 | B170: BOUKOULA | C170: HAFID | D170: =[8]Feuil1!K170 -> 0 | E170: =[8]Feuil1!L170 -> 0 | F170: =[8]Feuil1!M170 -> 1 | G170: 0 | H170: 0 | I170: 1
A171: 162 | B171: BOUMAZA | C171: FATIMA ZOHRA | D171: =[8]Feuil1!K171 -> 7.5 | E171: =[8]Feuil1!L171 -> 0 | F171: =[8]Feuil1!M171 -> 1 | G171: 7.5 | H171: 0 | I171: 1
A172: 163 | B172: BOUMESSAOUD | C172: SARA | D172: =[8]Feuil1!K172 -> 16.16666667 | E172: =[8]Feuil1!L172 -> 2 | F172: =[8]Feuil1!M172 -> 1 | G172: 16.16666667 | H172: 2 | I172: 1
A173: 164 | B173: BOUNEDJAR | C173: DJALLEL | D173: =[8]Feuil1!K173 -> 0 | E173: =[8]Feuil1!L173 -> 0 | F173: =[8]Feuil1!M173 -> 1 | G173: 0 | H173: 0 | I173: 1
A174: 165 | B174: BOURANE | C174: MOKHTAR | D174: =[8]Feuil1!K174 -> 15.2 | E174: =[8]Feuil1!L174 -> 2 | F174: =[8]Feuil1!M174 -> 2 | G174: 15.2 | H174: 2 | I174: 2
A175: 166 | B175: BOURASS | C175: AHMED | D175: =[8]Feuil1!K175 -> 12 | E175: =[8]Feuil1!L175 -> 2 | F175: =[8]Feuil1!M175 -> 1 | G175: 12 | H175: 2 | I175: 1
A176: 167 | B176: BOUROUIS | C176: ANSSAR | D176: =[8]Feuil1!K176 -> 0 | E176: =[8]Feuil1!L176 -> 0 | F176: =[8]Feuil1!M176 -> 1 | G176: 0 | H176: 0 | I176: 1
A177: 168 | B177: BOUTIBA | C177: HOUARI | D177: =[8]Feuil1!K177 -> 11.66666667 | E177: =[8]Feuil1!L177 -> 2 | F177: =[8]Feuil1!M177 -> 1 | G177: 11.66666667 | H177: 2 | I177: 1
A178: 169 | B178: BOUTOUIL | C178: ABDELMELEK | D178: =[8]Feuil1!K178 -> 12.06666667 | E178: =[8]Feuil1!L178 -> 2 | F178: =[8]Feuil1!M178 -> 1 | G178: 12.06666667 | H178: 2 | I178: 1
A179: 170 | B179: BOUYAKOUB | C179: MOKHTAR | D179: =[8]Feuil1!K179 -> 6.233333333 | E179: =[8]Feuil1!L179 -> 0 | F179: =[8]Feuil1!M179 -> 1 | G179: 6.233333333 | H179: 0 | I179: 1
A180: 171 | B180: BOUZID | C180: DJOHAR | D180: =[8]Feuil1!K180 -> 14.33333333 | E180: =[8]Feuil1!L180 -> 2 | F180: =[8]Feuil1!M180 -> 2 | G180: 14.33333333 | H180: 2 | I180: 2
A181: 172 | B181: BOUZID | C181: HADJA YAMINA | D181: =[8]Feuil1!K181 -> 11.86666667 | E181: =[8]Feuil1!L181 -> 2 | F181: =[8]Feuil1!M181 -> 1 | G181: 11.86666667 | H181: 2 | I181: 1
A182: 173 | B182: BRAHIMI | C182: NAIMA | D182: =[8]Feuil1!K182 -> 5.333333333 | E182: =[8]Feuil1!L182 -> 0 | F182: =[8]Feuil1!M182 -> 1 | G182: 5.333333333 | H182: 0 | I182: 1
A183: 174 | B183: BRAHIMI | C183: SID AHMED | D183: =[8]Feuil1!K183 -> 11.26666667 | E183: =[8]Feuil1!L183 -> 2 | F183: =[8]Feuil1!M183 -> 1 | G183: 11.26666667 | H183: 2 | I183: 1
A184: 175 | B184: BRAIK | C184: AHMED TAHAR ILYAS | D184: =[8]Feuil1!K184 -> 10.7 | E184: =[8]Feuil1!L184 -> 2 | F184: =[8]Feuil1!M184 -> 1 | G184: 10.7 | H184: 2 | I184: 1
A185: 176 | B185: BRIKI | C185: NOUR ELHOUDA | D185: =[8]Feuil1!K185 -> 12.7 | E185: =[8]Feuil1!L185 -> 2 | F185: =[8]Feuil1!M185 -> 1 | G185: 12.7 | H185: 2 | I185: 1
A186: 177 | B186: CHACHOU | C186: MOHAMED EL AMINE | D186: =[8]Feuil1!K186 -> 0 | E186: =[8]Feuil1!L186 -> 0 | F186: =[8]Feuil1!M186 -> 1 | G186: 0 | H186: 0 | I186: 1
A187: 178 | B187: CHAIB | C187: FATIMA ZOHRA | D187: =[8]Feuil1!K187 -> 11.93333333 | E187: =[8]Feuil1!L187 -> 2 | F187: =[8]Feuil1!M187 -> 1 | G187: 11.93333333 | H187: 2 | I187: 1
A188: 179 | B188: CHAKI | C188: ABDELMADJID | D188: =[8]Feuil1!K188 -> 15.26666667 | E188: =[8]Feuil1!L188 -> 2 | F188: =[8]Feuil1!M188 -> 1 | G188: 15.26666667 | H188: 2 | I188: 1
A189: 180 | B189: CHAKOR | C189: KAOUTER NESRINE | D189: =[8]Feuil1!K189 -> 0 | E189: =[8]Feuil1!L189 -> 0 | F189: =[8]Feuil1!M189 -> 1 | G189: 0 | H189: 0 | I189: 1
A190: 181 | B190: CHEBOUB | C190: AMARIA | D190: =[8]Feuil1!K190 -> 0 | E190: =[8]Feuil1!L190 -> 0 | F190: =[8]Feuil1!M190 -> 1 | G190: 0 | H190: 0 | I190: 1
A191: 182 | B191: CHEMRAK | C191: SIHEM | D191: =[8]Feuil1!K191 -> 0 | E191: =[8]Feuil1!L191 -> 0 | F191: =[8]Feuil1!M191 -> 1 | G191: 0 | H191: 0 | I191: 1
A192: 183 | B192: CHENAFA | C192: YASSAMINE | D192: =[8]Feuil1!K192 -> 15.03333333 | E192: =[8]Feuil1!L192 -> 2 | F192: =[8]Feuil1!M192 -> 1 | G192: 15.03333333 | H192: 2 | I192: 1
A193: 184 | B193: CHERFI | C193: MOHAMED EL AMINE | D193: =[8]Feuil1!K193 -> 9 | E193: =[8]Feuil1!L193 -> 0 | F193: =[8]Feuil1!M193 -> 2 | G193: 9 | H193: 0 | I193: 2
A194: 185 | B194: CHERGUI | C194: AMIRA | D194: =[8]Feuil1!K194 -> 11.7 | E194: =[8]Feuil1!L194 -> 2 | F194: =[8]Feuil1!M194 -> 1 | G194: 11.7 | H194: 2 | I194: 1
A195: 186 | B195: CHEURFAOUI | C195: NAWEL | D195: =[8]Feuil1!K195 -> 15.36666667 | E195: =[8]Feuil1!L195 -> 2 | F195: =[8]Feuil1!M195 -> 1 | G195: 15.36666667 | H195: 2 | I195: 1
A196: 187 | B196: CHIBANI | C196: ABDELKADER | D196: =[8]Feuil1!K196 -> 10.13333333 | E196: =[8]Feuil1!L196 -> 2 | F196: =[8]Feuil1!M196 -> 1 | G196: 10.13333333 | H196: 2 | I196: 1
A197: 188 | B197: CHIKHAOUI | C197: NOUREDDINE | D197: =[8]Feuil1!K197 -> 0 | E197: =[8]Feuil1!L197 -> 0 | F197: =[8]Feuil1!M197 -> 1 | G197: 0 | H197: 0 | I197: 1
A198: 189 | B198: DAHMANE | C198: OUSSAMA | D198: =[8]Feuil1!K198 -> 11.86666667 | E198: =[8]Feuil1!L198 -> 2 | F198: =[8]Feuil1!M198 -> 1 | G198: 11.86666667 | H198: 2 | I198: 1
A199: 190 | B199: DAHMANI | C199: AICHA | D199: =[8]Feuil1!K199 -> 17.96666667 | E199: =[8]Feuil1!L199 -> 2 | F199: =[8]Feuil1!M199 -> 1 | G199: 17.96666667 | H199: 2 | I199: 1
A200: 191 | B200: DAHMECHE | C200: HADJER | D200: =[8]Feuil1!K200 -> 13 | E200: =[8]Feuil1!L200 -> 2 | F200: =[8]Feuil1!M200 -> 1 | G200: 13 | H200: 2 | I200: 1
... 204 more rows

Sheet PV_S1
A1: MINISTERE DE L’ENSEIGNEMENT SUPERIEUR ET DE LA RECHERCHE SCIENTIFIQUE
A2: UNIVERSITE ABDELHAMID IBN BADIS MOSTAGANEM | H2: جامعــة عبد الحميد ابن باديس مستغانم
A3: FACULTE DES SCIENCES EXACTES ET DE L’INFORMATIQUE | H3: كلية العلوم الدقيقة و الأعلام الألي
A4: DEPARTEMENT DE MATHEMATIQUES ET INFORMATIQUE | H4: قسم الرياضيات و الأعلام الألي
A6: Première Année - Mathématiques et Informatique
A7: PV du 1ier Semestre-2015/2016
D8: UEF11 | G8: UEM11 | J8: UED11 | M8: UET11 | P8: Moy S1 | Q8: Créd S1 | R8: Session
A9: N° | B9: Nom | C9: Prénom | D9: Note | E9: Crédit | F9: Sess | G9: Note | H9: Crédit | I9: Sess | J9: Note | K9: Crédit | L9: Sess | M9: Note | N9: Crédit | O9: Sess
A10: 1 | B10: ABBABSA | C10: RAHMA | D10: ='UEF11'!M10 -> 16.25333333 | E10: ='UEF11'!N10 -> 17 | F10: ='UEF11'!O10 -> 2 | G10: ='UEM11'!J10 -> 7.733333333 | H10: ='UEM11'!K10 -> 3 | I10: ='UEM11'!L10 -> 1 | J10: ='UED11'!J10 -> 13.24666667 | K10: ='UED11'!K10 -> 4 | L10: ='UED11'!L10 -> 1 | M10: ='UET11'!G10 -> 16.06666667 | N10: ='UET11'!H10 -> 2 | O10: ='UET11'!I10 -> 1 | P10: =(D10*10+G10*2+J10*2+M10*1)/15 -> 14.704 | Q10: =IF(P10>=10,30,E10+H10+K10) -> 30 | R10: =IF(AND(F10="1",I10="1",L10="1",O10="1"),"1","2") -> 2
A11: 2 | B11: ABBAS | C11: AHMED | D11: ='UEF11'!M11 -> 10.59 | E11: ='UEF11'!N11 -> 17 | F11: ='UEF11'!O11 -> 2 | G11: ='UEM11'!J11 -> 16.725 | H11: ='UEM11'!K11 -> 7 | I11: ='UEM11'!L11 -> 1 | J11: ='UED11'!J11 -> 13.13333333 | K11: ='UED11'!K11 -> 4 | L11: ='UED11'!L11 -> 2 | M11: ='UET11'!G11 -> 13.53333333 | N11: ='UET11'!H11 -> 2 | O11: ='UET11'!I11 -> 1 | P11: =(D11*10+G11*2+J11*2+M11*1)/15 -> 11.94333333 | Q11: =IF(P11>=10,30,E11+H11+K11) -> 30 | R11: =IF(AND(F11="1",I11="1",L11="1",O11="1"),"1","2") -> 2
A12: 3 | B12: ABBES | C12: GHOZLENE | D12: ='UEF11'!M12 -> 10.46 | E12: ='UEF11'!N12 -> 17 | F12: ='UEF11'!O12 -> 2 | G12: ='UEM11'!J12 -> 14.3 | H12: ='UEM11'!K12 -> 7 | I12: ='UEM11'!L12 -> 1 | J12: ='UED11'!J12 -> 11.91666667 | K12: ='UED11'!K12 -> 4 | L12: ='UED11'!L12 -> 1 | M12: ='UET11'!G12 -> 11.6 | N12: ='UET11'!H12 -> 2 | O12: ='UET11'!I12 -> 1 | P12: 11.24222222 | Q12: 30 | R12: 2
A13: 4 | B13: ABBES | C13: MOHAMED EL AMINE | D13: ='UEF11'!M13 -> 9.786666667 | E13: ='UEF11'!N13 -> 11 | F13: ='UEF11'!O13 -> 2 | G13: ='UEM11'!J13 -> 7.033333333 | H13: ='UEM11'!K13 -> 3 | I13: ='UEM11'!L13 -> 1 | J13: ='UED11'!J13 -> 13.40833333 | K13: ='UED11'!K13 -> 4 | L13: ='UED11'!L13 -> 1 | M13: ='UET11'!G13 -> 0 | N13: ='UET11'!H13 -> 0 | O13: ='UET11'!I13 -> 1 | P13: 9.25 | Q13: 18 | R13: 2
A14: 5 | B14: ABBOU | C14: FATIHA | D14: ='UEF11'!M14 -> 9.733333333 | E14: ='UEF11'!N14 -> 11 | F14: ='UEF11'!O14 -> 2 | G14: ='UEM11'!J14 -> 15.13333333 | H14: ='UEM11'!K14 -> 7 | I14: ='UEM11'!L14 -> 1 | J14: ='UED11'!J14 -> 15.63333333 | K14: ='UED11'!K14 -> 4 | L14: ='UED11'!L14 -> 1 | M14: ='UET11'!G14 -> 13.06666667 | N14: ='UET11'!H14 -> 2 | O14: ='UET11'!I14 -> 1 | P14: 11.46222222 | Q14: 30 | R14: 2
A15: 6 | B15: ABBOUD | C15: SALIHA | D15: ='UEF11'!M15 -> 7.113333333 | E15: ='UEF11'!N15 -> 11 | F15: ='UEF11'!O15 -> 2 | G15: ='UEM11'!J15 -> 6.45 | H15: ='UEM11'!K15 -> 3 | I15: ='UEM11'!L15 -> 1 | J15: ='UED11'!J15 -> 9.533333333 | K15: ='UED11'!K15 -> 2 | L15: ='UED11'!L15 -> 1 | M15: ='UET11'!G15 -> 0 | N15: ='UET11'!H15 -> 0 | O15: ='UET11'!I15 -> 1 | P15: 6.873333333 | Q15: 16 | R15: 2
A16: 7 | B16: ABDELLAOUI | C16: NADIA | D16: ='UEF11'!M16 -> 7.38 | E16: ='UEF11'!N16 -> 5 | F16: ='UEF11'!O16 -> 2 | G16: ='UEM11'!J16 -> 6.116666667 | H16: ='UEM11'!K16 -> 3 | I16: ='UEM11'!L16 -> 1 | J16: ='UED11'!J16 -> 8.616666667 | K16: ='UED11'!K16 -> 0 | L16: ='UED11'!L16 -> 1 | M16: ='UET11'!G16 -> 5.866666667 | N16: ='UET11'!H16 -> 0 | O16: ='UET11'!I16 -> 1 | P16: 7.275555556 | Q16: 8 | R16: 2
A17: 8 | B17: ABDELNEBI | C17: AMIRA | D17: ='UEF11'!M17 -> 12.15333333 | E17: ='UEF11'!N17 -> 17 | F17: ='UEF11'!O17 -> 2 | G17: ='UEM11'!J17 -> 18.23333333 | H17: ='UEM11'!K17 -> 7 | I17: ='UEM11'!L17 -> 1 | J17: ='UED11'!J17 -> 16.425 | K17: ='UED11'!K17 -> 4 | L17: ='UED11'!L17 -> 1 | M17: ='UET11'!G17 -> 18.06666667 | N17: ='UET11'!H17 -> 2 | O17: ='UET11'!I17 -> 1 | P17: 13.92777778 | Q17: 30 | R17: 2
A18: 9 | B18: ABDELOUHAB | C18: NEDJWA ZAHRA | D18: ='UEF11'!M18 -> 9.043333333 | E18: ='UEF11'!N18 -> 11 | F18: ='UEF11'!O18 -> 2 | G18: ='UEM11'!J18 -> 6.716666667 | H18: ='UEM11'!K18 -> 3 | I18: ='UEM11'!L18 -> 1 | J18: ='UED11'!J18 -> 9.016666667 | K18: ='UED11'!K18 -> 2 | L18: ='UED11'!L18 -> 1 | M18: ='UET11'!G18 -> 0 | N18: ='UET11'!H18 -> 0 | O18: ='UET11'!I18 -> 1 | P18: 8.126666667 | Q18: 16 | R18: 2
A19: 10 | B19: ABDOUNI | C19: AMIN | D19: ='UEF11'!M19 -> 11.96666667 | E19: ='UEF11'!N19 -> 17 | F19: ='UEF11'!O19 -> 2 | G19: ='UEM11'!J19 -> 14.08333333 | H19: ='UEM11'!K19 -> 7 | I19: ='UEM11'!L19 -> 1 | J19: ='UED11'!J19 -> 12.39333333 | K19: ='UED11'!K19 -> 4 | L19: ='UED11'!L19 -> 1 | M19: ='UET11'!G19 -> 4.2 | N19: ='UET11'!H19 -> 0 | O19: ='UET11'!I19 -> 1 | P19: 11.788 | Q19: 30 | R19: 2
A20: 11 | B20: ABEID | C20: ZOHRA | D20: ='UEF11'!M20 -> 7.823333333 | E20: ='UEF11'!N20 -> 11 | F20: ='UEF11'!O20 -> 2 | G20: ='UEM11'!J20 -> 7.941666667 | H20: ='UEM11'!K20 -> 3 | I20: ='UEM11'!L20 -> 1 | J20: ='UED11'!J20 -> 11.28333333 | K20: ='UED11'!K20 -> 4 | L20: ='UED11'!L20 -> 2 | M20: ='UET11'!G20 -> 0 | N20: ='UET11'!H20 -> 0 | O20: ='UET11'!I20 -> 1 | P20: 7.778888889 | Q20: 18 | R20: 2
A21: 12 | B21: ACHOUR | C21: ABDENOUR | D21: ='UEF11'!M21 -> 9.206666667 | E21: ='UEF11'!N21 -> 5 | F21: ='UEF11'!O21 -> 2 | G21: ='UEM11'!J21 -> 16.63333333 | H21: ='UEM11'!K21 -> 7 | I21: ='UEM11'!L21 -> 1 | J21: ='UED11'!J21 -> 13.93333333 | K21: ='UED11'!K21 -> 4 | L21: ='UED11'!L21 -> 2 | M21: ='UET11'!G21 -> 14.53333333 | N21: ='UET11'!H21 -> 2 | O21: ='UET11'!I21 -> 1 | P21: 11.18222222 | Q21: 30 | R21: 2
A22: 13 | B22: ADDA | C22: ABDERRAHIM | D22: ='UEF11'!M22 -> 7.293333333 | E22: ='UEF11'!N22 -> 11 | F22: ='UEF11'!O22 -> 2 | G22: ='UEM11'!J22 -> 5.666666667 | H22: ='UEM11'!K22 -> 3 | I22: ='UEM11'!L22 -> 1 | J22: ='UED11'!J22 -> 10.1 | K22: ='UED11'!K22 -> 4 | L22: ='UED11'!L22 -> 2 | M22: ='UET11'!G22 -> 0 | N22: ='UET11'!H22 -> 0 | O22: ='UET11'!I22 -> 1 | P22: 6.964444444 | Q22: 18 | R22: 2
A23: 14 | B23: ADDA | C23: HOUSSAM | D23: ='UEF11'!M23 -> 6.34 | E23: ='UEF11'!N23 -> 0 | F23: ='UEF11'!O23 -> 2 | G23: ='UEM11'!J23 -> 13.25833333 | H23: ='UEM11'!K23 -> 7 | I23: ='UEM11'!L23 -> 1 | J23: ='UED11'!J23 -> 3.716666667 | K23: ='UED11'!K23 -> 0 | L23: ='UED11'!L23 -> 1 | M23: ='UET11'!G23 -> 6.6 | N23: ='UET11'!H23 -> 0 | O23: ='UET11'!I23 -> 1 | P23: 6.93 | Q23: 7 | R23: 2
A24: 15 | B24: ADDA | C24: SAID | D24: ='UEF11'!M24 -> 10.10666667 | E24: ='UEF11'!N24 -> 17 | F24: ='UEF11'!O24 -> 2 | G24: ='UEM11'!J24 -> 7.833333333 | H24: ='UEM11'!K24 -> 3 | I24: ='UEM11'!L24 -> 1 | J24: ='UED11'!J24 -> 11.56666667 | K24: ='UED11'!K24 -> 4 | L24: ='UED11'!L24 -> 1 | M24: ='UET11'!G24 -> 0 | N24: ='UET11'!H24 -> 0 | O24: ='UET11'!I24 -> 1 | P24: 9.324444444 | Q24: 24 | R24: 2
A25: 16 | B25: AGBOUBI | C25: M'HAMED YASSINE | D25: ='UEF11'!M25 -> 10.62333333 | E25: ='UEF11'!N25 -> 17 | F25: ='UEF11'!O25 -> 2 | G25: ='UEM11'!J25 -> 14.95 | H25: ='UEM11'!K25 -> 7 | I25: ='UEM11'!L25 -> 1 | J25: ='UED11'!J25 -> 11.475 | K25: ='UED11'!K25 -> 4 | L25: ='UED11'!L25 -> 1 | M25: ='UET11'!G25 -> 5.933333333 | N25: ='UET11'!H25 -> 0 | O25: ='UET11'!I25 -> 1 | P25: 11.00111111 | Q25: 30 | R25: 2
A26: 17 | B26: AHMED BACHA | C26: BILAL | D26: ='UEF11'!M26 -> 5.846666667 | E26: ='UEF11'!N26 -> 6 | F26: ='UEF11'!O26 -> 2 | G26: ='UEM11'!J26 -> 0 | H26: ='UEM11'!K26 -> 0 | I26: ='UEM11'!L26 -> 1 | J26: ='UED11'!J26 -> 0 | K26: ='UED11'!K26 -> 0 | L26: ='UED11'!L26 -> 1 | M26: ='UET11'!G26 -> 0 | N26: ='UET11'!H26 -> 0 | O26: ='UET11'!I26 -> 1 | P26: 3.897777778 | Q26: 6 | R26: 2
A27: 18 | B27: AHMED KHODJA | C27: SOUMIA | D27: ='UEF11'!M27 -> 7.916666667 | E27: ='UEF11'!N27 -> 0 | F27: ='UEF11'!O27 -> 2 | G27: ='UEM11'!J27 -> 15.76666667 | H27: ='UEM11'!K27 -> 7 | I27: ='UEM11'!L27 -> 1 | J27: ='UED11'!J27 -> 12.475 | K27: ='UED11'!K27 -> 4 | L27: ='UED11'!L27 -> 1 | M27: ='UET11'!G27 -> 15.33333333 | N27: ='UET11'!H27 -> 2 | O27: ='UET11'!I27 -> 1 | P27: 10.06555556 | Q27: 30 | R27: 2
A28: 19 | B28: AIMOUCH | C28: ABDESSAMED | D28: ='UEF11'!M28 -> 6.953333333 | E28: ='UEF11'!N28 -> 0 | F28: ='UEF11'!O28 -> 2 | G28: ='UEM11'!J28 -> 15.8 | H28: ='UEM11'!K28 -> 7 | I28: ='UEM11'!L28 -> 1 | J28: ='UED11'!J28 -> 11.71666667 | K28: ='UED11'!K28 -> 4 | L28: ='UED11'!L28 -> 1 | M28: ='UET11'!G28 -> 11.33333333 | N28: ='UET11'!H28 -> 2 | O28: ='UET11'!I28 -> 1 | P28: 9.06 | Q28: 11 | R28: 2
A29: 20 | B29: AIMOUCH | C29: BADRA | D29: ='UEF11'!M29 -> 8.533333333 | E29: ='UEF11'!N29 -> 5 | F29: ='UEF11'!O29 -> 2 | G29: ='UEM11'!J29 -> 15.2 | H29: ='UEM11'!K29 -> 7 | I29: ='UEM11'!L29 -> 1 | J29: ='UED11'!J29 -> 14.86666667 | K29: ='UED11'!K29 -> 4 | L29: ='UED11'!L29 -> 1 | M29: ='UET11'!G29 -> 15 | N29: ='UET11'!H29 -> 2 | O29: ='UET11'!I29 -> 1 | P29: 10.69777778 | Q29: 30 | R29: 2
A30: 21 | B30: AISSA | C30: SIHEM | D30: ='UEF11'!M30 -> 0 | E30: ='UEF11'!N30 -> 0 | F30: ='UEF11'!O30 -> 2 | G30: ='UEM11'!J30 -> 0 | H30: ='UEM11'!K30 -> 0 | I30: ='UEM11'!L30 -> 1 | J30: ='UED11'!J30 -> 3.3 | K30: ='UED11'!K30 -> 0 | L30: ='UED11'!L30 -> 1 | M30: ='UET11'!G30 -> 0 | N30: ='UET11'!H30 -> 0 | O30: ='UET11'!I30 -> 1 | P30: 0.44 | Q30: 0 | R30: 2
A31: 22 | B31: AISSAT | C31: ABDERRAHMANE KADDOUR | D31: ='UEF11'!M31 -> 10.94 | E31: ='UEF11'!N31 -> 17 | F31: ='UEF11'!O31 -> 2 | G31: ='UEM11'!J31 -> 15.4 | H31: ='UEM11'!K31 -> 7 | I31: ='UEM11'!L31 -> 1 | J31: ='UED11'!J31 -> 8.383333333 | K31: ='UED11'!K31 -> 2 | L31: ='UED11'!L31 -> 1 | M31: ='UET11'!G31 -> 14.33333333 | N31: ='UET11'!H31 -> 2 | O31: ='UET11'!I31 -> 1 | P31: 11.42 | Q31: 30 | R31: 2
A32: 23 | B32: AIT OUALI | C32: LINDA | D32: ='UEF11'!M32 -> 7.55 | E32: ='UEF11'!N32 -> 0 | F32: ='UEF11'!O32 -> 2 | G32: ='UEM11'!J32 -> 15 | H32: ='UEM11'!K32 -> 7 | I32: ='UEM11'!L32 -> 1 | J32: ='UED11'!J32 -> 12.775 | K32: ='UED11'!K32 -> 4 | L32: ='UED11'!L32 -> 1 | M32: ='UET11'!G32 -> 13.4 | N32: ='UET11'!H32 -> 2 | O32: ='UET11'!I32 -> 1 | P32: 9.63 | Q32: 11 | R32: 2
A33: 24 | B33: AKROUM | C33: YOUCEF | D33: ='UEF11'!M33 -> 9.08 | E33: ='UEF11'!N33 -> 5 | F33: ='UEF11'!O33 -> 2 | G33: ='UEM11'!J33 -> 18.43333333 | H33: ='UEM11'!K33 -> 7 | I33: ='UEM11'!L33 -> 1 | J33: ='UED11'!J33 -> 9.383333333 | K33: ='UED11'!K33 -> 0 | L33: ='UED11'!L33 -> 1 | M33: ='UET11'!G33 -> 13.66666667 | N33: ='UET11'!H33 -> 2 | O33: ='UET11'!I33 -> 1 | P33: 10.67333333 | Q33: 30 | R33: 2
A34: 25 | B34: ALLOUCH | C34: NADIA | D34: ='UEF11'!M34 -> 9.88 | E34: ='UEF11'!N34 -> 5 | F34: ='UEF11'!O34 -> 2 | G34: ='UEM11'!J34 -> 15.3 | H34: ='UEM11'!K34 -> 7 | I34: ='UEM11'!L34 -> 1 | J34: ='UED11'!J34 -> 14.68333333 | K34: ='UED11'!K34 -> 4 | L34: ='UED11'!L34 -> 1 | M34: ='UET11'!G34 -> 10.53333333 | N34: ='UET11'!H34 -> 2 | O34: ='UET11'!I34 -> 1 | P34: 11.28666667 | Q34: 30 | R34: 2
A35: 26 | B35: AMAIRI | C35: CHAIMAA | D35: ='UEF11'!M35 -> 8.733333333 | E35: ='UEF11'!N35 -> 0 | F35: ='UEF11'!O35 -> 2 | G35: ='UEM11'!J35 -> 15.3 | H35: ='UEM11'!K35 -> 7 | I35: ='UEM11'!L35 -> 1 | J35: ='UED11'!J35 -> 10.64166667 | K35: ='UED11'!K35 -> 4 | L35: ='UED11'!L35 -> 1 | M35: ='UET11'!G35 -> 11.06666667 | N35: ='UET11'!H35 -> 2 | O35: ='UET11'!I35 -> 1 | P35: 10.01888889 | Q35: 30 | R35: 2
A36: 27 | B36: AMMAR | C36: DJAMEL EDDINE | D36: ='UEF11'!M36 -> 0 | E36: ='UEF11'!N36 -> 0 | F36: ='UEF11'!O36 -> 2 | G36: ='UEM11'!J36 -> 0 | H36: ='UEM11'!K36 -> 0 | I36: ='UEM11'!L36 -> 1 | J36: ='UED11'!J36 -> 0 | K36: ='UED11'!K36 -> 0 | L36: ='UED11'!L36 -> 1 | M36: ='UET11'!G36 -> 0 | N36: ='UET11'!H36 -> 0 | O36: ='UET11'!I36 -> 1 | P36: 0 | Q36: 0 | R36: 2
A37: 28 | B37: AMMAR | C37: MANAL | D37: ='UEF11'!M37 -> 8 | E37: ='UEF11'!N37 -> 5 | F37: ='UEF11'!O37 -> 2 | G37: ='UEM11'!J37 -> 17.06666667 | H37: ='UEM11'!K37 -> 7 | I37: ='UEM11'!L37 -> 1 | J37: ='UED11'!J37 -> 11.475 | K37: ='UED11'!K37 -> 4 | L37: ='UED11'!L37 -> 1 | M37: ='UET11'!G37 -> 10.93333333 | N37: ='UET11'!H37 -> 2 | O37: ='UET11'!I37 -> 1 | P37: 9.867777778 | Q37: 16 | R37: 2
A38: 29 | B38: AMRANE | C38: AHMED | D38: ='UEF11'!M38 -> 13.10333333 | E38: ='UEF11'!N38 -> 17 | F38: ='UEF11'!O38 -> 2 | G38: ='UEM11'!J38 -> 12.48333333 | H38: ='UEM11'!K38 -> 7 | I38: ='UEM11'!L38 -> 1 | J38: ='UED11'!J38 -> 11.51666667 | K38: ='UED11'!K38 -> 4 | L38: ='UED11'!L38 -> 1 | M38: ='UET11'!G38 -> 1.2 | N38: ='UET11'!H38 -> 0 | O38: ='UET11'!I38 -> 1 | P38: 12.01555556 | Q38: 30 | R38: 2
A39: 30 | B39: AMRANE | C39: HAFIDHA | D39: ='UEF11'!M39 -> 8.19 | E39: ='UEF11'!N39 -> 0 | F39: ='UEF11'!O39 -> 2 | G39: ='UEM11'!J39 -> 12.93333333 | H39: ='UEM11'!K39 -> 7 | I39: ='UEM11'!L39 -> 2 | J39: ='UED11'!J39 -> 11.05833333 | K39: ='UED11'!K39 -> 4 | L39: ='UED11'!L39 -> 1 | M39: ='UET11'!G39 -> 15.26666667 | N39: ='UET11'!H39 -> 2 | O39: ='UET11'!I39 -> 1 | P39: 9.676666667 | Q39: 11 | R39: 2
A40: 31 | B40: AMRAOUI | C40: SOUFYANE | D40: ='UEF11'!M40 -> 7.446666667 | E40: ='UEF11'!N40 -> 0 | F40: ='UEF11'!O40 -> 2 | G40: ='UEM11'!J40 -> 16.9 | H40: ='UEM11'!K40 -> 7 | I40: ='UEM11'!L40 -> 1 | J40: ='UED11'!J40 -> 6.875 | K40: ='UED11'!K40 -> 0 | L40: ='UED11'!L40 -> 2 | M40: ='UET11'!G40 -> 12.6 | N40: ='UET11'!H40 -> 2 | O40: ='UET11'!I40 -> 1 | P40: 8.974444444 | Q40: 7 | R40: 2
A41: 32 | B41: AMROUCHE | C41: NOURA | D41: ='UEF11'!M41 -> 8.62 | E41: ='UEF11'!N41 -> 0 | F41: ='UEF11'!O41 -> 2 | G41: ='UEM11'!J41 -> 11.78333333 | H41: ='UEM11'!K41 -> 7 | I41: ='UEM11'!L41 -> 2 | J41: ='UED11'!J41 -> 9.158333333 | K41: ='UED11'!K41 -> 2 | L41: ='UED11'!L41 -> 1 | M41: ='UET11'!G41 -> 9.733333333 | N41: ='UET11'!H41 -> 0 | O41: ='UET11'!I41 -> 1 | P41: 9.187777778 | Q41: 9 | R41: 2
A42: 33 | B42: AOUAICHIA | C42: HANANE | D42: ='UEF11'!M42 -> 11.80666667 | E42: ='UEF11'!N42 -> 17 | F42: ='UEF11'!O42 -> 2 | G42: ='UEM11'!J42 -> 14.63333333 | H42: ='UEM11'!K42 -> 7 | I42: ='UEM11'!L42 -> 1 | J42: ='UED11'!J42 -> 15.96666667 | K42: ='UED11'!K42 -> 4 | L42: ='UED11'!L42 -> 1 | M42: ='UET11'!G42 -> 13.4 | N42: ='UET11'!H42 -> 2 | O42: ='UET11'!I42 -> 1 | P42: 12.84444444 | Q42: 30 | R42: 2
A43: 34 | B43: ARAB | C43: NOUREDDINE | D43: ='UEF11'!M43 -> 0 | E43: ='UEF11'!N43 -> 0 | F43: ='UEF11'!O43 -> 2 | G43: ='UEM11'!J43 -> 0 | H43: ='UEM11'!K43 -> 0 | I43: ='UEM11'!L43 -> 1 | J43: ='UED11'!J43 -> 0 | K43: ='UED11'!K43 -> 0 | L43: ='UED11'!L43 -> 1 | M43: ='UET11'!G43 -> 0 | N43: ='UET11'!H43 -> 0 | O43: ='UET11'!I43 -> 1 | P43: 0 | Q43: 0 | R43: 2
A44: 35 | B44: ATMANI | C44: FATIHA | D44: ='UEF11'!M44 -> 11.71333333 | E44: ='UEF11'!N44 -> 17 | F44: ='UEF11'!O44 -> 2 | G44: ='UEM11'!J44 -> 15.26666667 | H44: ='UEM11'!K44 -> 7 | I44: ='UEM11'!L44 -> 1 | J44: ='UED11'!J44 -> 16.225 | K44: ='UED11'!K44 -> 4 | L44: ='UED11'!L44 -> 1 | M44: ='UET11'!G44 -> 12.86666667 | N44: ='UET11'!H44 -> 2 | O44: ='UET11'!I44 -> 1 | P44: 12.86555556 | Q44: 30 | R44: 2
A45: 36 | B45: AUODJ | C45: LARBI | D45: ='UEF11'!M45 -> 8.526666667 | E45: ='UEF11'!N45 -> 6 | F45: ='UEF11'!O45 -> 2 | G45: ='UEM11'!J45 -> 11.4 | H45: ='UEM11'!K45 -> 7 | I45: ='UEM11'!L45 -> 1 | J45: ='UED11'!J45 -> 9.28 | K45: ='UED11'!K45 -> 2 | L45: ='UED11'!L45 -> 1 | M45: ='UET11'!G45 -> 0 | N45: ='UET11'!H45 -> 0 | O45: ='UET11'!I45 -> 1 | P45: 8.441777778 | Q45: 15 | R45: 2
A46: 37 | B46: AYAD | C46: NADJET | D46: ='UEF11'!M46 -> 10.17333333 | E46: ='UEF11'!N46 -> 17 | F46: ='UEF11'!O46 -> 2 | G46: ='UEM11'!J46 -> 11.03333333 | H46: ='UEM11'!K46 -> 7 | I46: ='UEM11'!L46 -> 1 | J46: ='UED11'!J46 -> 14.839 | K46: ='UED11'!K46 -> 4 | L46: ='UED11'!L46 -> 1 | M46: ='UET11'!G46 -> 12.73333333 | N46: ='UET11'!H46 -> 2 | O46: ='UET11'!I46 -> 1 | P46: 11.08075556 | Q46: 30 | R46: 2
A47: 38 | B47: AZIL | C47: HALIMA | D47: ='UEF11'!M47 -> 11.02333333 | E47: ='UEF11'!N47 -> 17 | F47: ='UEF11'!O47 -> 2 | G47: ='UEM11'!J47 -> 16.23333333 | H47: ='UEM11'!K47 -> 7 | I47: ='UEM11'!L47 -> 1 | J47: ='UED11'!J47 -> 12.68066667 | K47: ='UED11'!K47 -> 4 | L47: ='UED11'!L47 -> 1 | M47: ='UET11'!G47 -> 12.56666667 | N47: ='UET11'!H47 -> 2 | O47: ='UET11'!I47 -> 1 | P47: 12.04186667 | Q47: 30 | R47: 2
A48: 39 | B48: AZIRIA | C48: BILAL | D48: ='UEF11'!M48 -> 5.313333333 | E48: ='UEF11'!N48 -> 0 | F48: ='UEF11'!O48 -> 2 | G48: ='UEM11'!J48 -> 9.1 | H48: ='UEM11'!K48 -> 3 | I48: ='UEM11'!L48 -> 2 | J48: ='UED11'!J48 -> 5.841666667 | K48: ='UED11'!K48 -> 0 | L48: ='UED11'!L48 -> 2 | M48: ='UET11'!G48 -> 9.6 | N48: ='UET11'!H48 -> 0 | O48: ='UET11'!I48 -> 2 | P48: 6.174444444 | Q48: 3 | R48: 2
A49: 40 | B49: BAALI | C49: NOR ELHOUDA | D49: ='UEF11'!M49 -> 7.713333333 | E49: ='UEF11'!N49 -> 6 | F49: ='UEF11'!O49 -> 2 | G49: ='UEM11'!J49 -> 12.8 | H49: ='UEM11'!K49 -> 7 | I49: ='UEM11'!L49 -> 1 | J49: ='UED11'!J49 -> 10.30833333 | K49: ='UED11'!K49 -> 4 | L49: ='UED11'!L49 -> 1 | M49: ='UET11'!G49 -> 10.6 | N49: ='UET11'!H49 -> 2 | O49: ='UET11'!I49 -> 1 | P49: 8.93 | Q49: 17 | R49: 2
A50: 41 | B50: BAALI | C50: ZOULIKHA | D50: ='UEF11'!M50 -> 11.17333333 | E50: ='UEF11'!N50 -> 17 | F50: ='UEF11'!O50 -> 2 | G50: ='UEM11'!J50 -> 13.88333333 | H50: ='UEM11'!K50 -> 7 | I50: ='UEM11'!L50 -> 1 | J50: ='UED11'!J50 -> 14.30833333 | K50: ='UED11'!K50 -> 4 | L50: ='UED11'!L50 -> 1 | M50: ='UET11'!G50 -> 13.33333333 | N50: ='UET11'!H50 -> 2 | O50: ='UET11'!I50 -> 1 | P50: 12.09666667 | Q50: 30 | R50: 2
A51: 42 | B51: BACHIR BEY | C51: ABDELHAMID | D51: ='UEF11'!M51 -> 5.26 | E51: ='UEF11'!N51 -> 0 | F51: ='UEF11'!O51 -> 2 | G51: ='UEM11'!J51 -> 16.3 | H51: ='UEM11'!K51 -> 7 | I51: ='UEM11'!L51 -> 1 | J51: ='UED11'!J51 -> 4.439 | K51: ='UED11'!K51 -> 0 | L51: ='UED11'!L51 -> 2 | M51: ='UET11'!G51 -> 8.4 | N51: ='UET11'!H51 -> 0 | O51: ='UET11'!I51 -> 1 | P51: 6.831866667 | Q51: 7 | R51: 2
A52: 43 | B52: BAGHDOUD | C52: ASMAE | D52: ='UEF11'!M52 -> 8.93 | E52: ='UEF11'!N52 -> 5 | F52: ='UEF11'!O52 -> 2 | G52: ='UEM11'!J52 -> 15.03333333 | H52: ='UEM11'!K52 -> 7 | I52: ='UEM11'!L52 -> 1 | J52: ='UED11'!J52 -> 16.33333333 | K52: ='UED11'!K52 -> 4 | L52: ='UED11'!L52 -> 1 | M52: ='UET11'!G52 -> 11.2 | N52: ='UET11'!H52 -> 2 | O52: ='UET11'!I52 -> 1 | P52: 10.88222222 | Q52: 30 | R52: 2
A53: 44 | B53: BAHLOUL | C53: MOHAMED AMINE | D53: ='UEF11'!M53 -> 9.153333333 | E53: ='UEF11'!N53 -> 6 | F53: ='UEF11'!O53 -> 2 | G53: ='UEM11'!J53 -> 17.3 | H53: ='UEM11'!K53 -> 7 | I53: ='UEM11'!L53 -> 1 | J53: ='UED11'!J53 -> 7.041666667 | K53: ='UED11'!K53 -> 0 | L53: ='UED11'!L53 -> 1 | M53: ='UET11'!G53 -> 10.2 | N53: ='UET11'!H53 -> 2 | O53: ='UET11'!I53 -> 1 | P53: 10.02777778 | Q53: 30 | R53: 2
A54: 45 | B54: BAININE | C54: SID AHMED | D54: ='UEF11'!M54 -> 14.79666667 | E54: ='UEF11'!N54 -> 17 | F54: ='UEF11'!O54 -> 2 | G54: ='UEM11'!J54 -> 17.63333333 | H54: ='UEM11'!K54 -> 7 | I54: ='UEM11'!L54 -> 1 | J54: ='UED11'!J54 -> 16.3 | K54: ='UED11'!K54 -> 4 | L54: ='UED11'!L54 -> 1 | M54: ='UET11'!G54 -> 15.66666667 | N54: ='UET11'!H54 -> 2 | O54: ='UET11'!I54 -> 1 | P54: 15.43333333 | Q54: 30 | R54: 2
A55: 46 | B55: BAKIR | C55: MOHAMMED | D55: ='UEF11'!M55 -> 0.7466666667 | E55: ='UEF11'!N55 -> 0 | F55: ='UEF11'!O55 -> 2 | G55: ='UEM11'!J55 -> 2.266666667 | H55: ='UEM11'!K55 -> 0 | I55: ='UEM11'!L55 -> 1 | J55: ='UED11'!J55 -> 0.8 | K55: ='UED11'!K55 -> 0 | L55: ='UED11'!L55 -> 1 | M55: ='UET11'!G55 -> 0 | N55: ='UET11'!H55 -> 0 | O55: ='UET11'!I55 -> 1 | P55: 0.9066666667 | Q55: 0 | R55: 2
A56: 47 | B56: BARDAD | C56: NASSIBA | D56: ='UEF11'!M56 -> 1.76 | E56: ='UEF11'!N56 -> 0 | F56: ='UEF11'!O56 -> 2 | G56: ='UEM11'!J56 -> 0 | H56: ='UEM11'!K56 -> 0 | I56: ='UEM11'!L56 -> 1 | J56: ='UED11'!J56 -> 0 | K56: ='UED11'!K56 -> 0 | L56: ='UED11'!L56 -> 1 | M56: ='UET11'!G56 -> 0 | N56: ='UET11'!H56 -> 0 | O56: ='UET11'!I56 -> 1 | P56: 1.173333333 | Q56: 0 | R56: 2
A57: 48 | B57: BARDAD | C57: NAZHA | D57: ='UEF11'!M57 -> 8.08 | E57: ='UEF11'!N57 -> 0 | F57: ='UEF11'!O57 -> 2 | G57: ='UEM11'!J57 -> 14.33333333 | H57: ='UEM11'!K57 -> 7 | I57: ='UEM11'!L57 -> 1 | J57: ='UED11'!J57 -> 11.29733333 | K57: ='UED11'!K57 -> 4 | L57: ='UED11'!L57 -> 1 | M57: ='UET11'!G57 -> 13.26666667 | N57: ='UET11'!H57 -> 2 | O57: ='UET11'!I57 -> 1 | P57: 9.688533333 | Q57: 11 | R57: 2
A58: 49 | B58: BARKAT | C58: NASSIMA | D58: ='UEF11'!M58 -> 10.63 | E58: ='UEF11'!N58 -> 17 | F58: ='UEF11'!O58 -> 2 | G58: ='UEM11'!J58 -> 17.83333333 | H58: ='UEM11'!K58 -> 7 | I58: ='UEM11'!L58 -> 1 | J58: ='UED11'!J58 -> 13.04166667 | K58: ='UED11'!K58 -> 4 | L58: ='UED11'!L58 -> 1 | M58: ='UET11'!G58 -> 14.2 | N58: ='UET11'!H58 -> 2 | O58: ='UET11'!I58 -> 1 | P58: 12.15 | Q58: 30 | R58: 2
A59: 50 | B59: BEGUELOUL | C59: AZZEDINE | D59: ='UEF11'!M59 -> 9.56 | E59: ='UEF11'!N59 -> 5 | F59: ='UEF11'!O59 -> 2 | G59: ='UEM11'!J59 -> 13.76666667 | H59: ='UEM11'!K59 -> 7 | I59: ='UEM11'!L59 -> 1 | J59: ='UED11'!J59 -> 11.56666667 | K59: ='UED11'!K59 -> 4 | L59: ='UED11'!L59 -> 1 | M59: ='UET11'!G59 -> 6.933333333 | N59: ='UET11'!H59 -> 0 | O59: ='UET11'!I59 -> 1 | P59: 10.21333333 | Q59: 30 | R59: 2
A60: 51 | B60: BEHLOUL | C60: ARBIA | D60: ='UEF11'!M60 -> 8.346666667 | E60: ='UEF11'!N60 -> 0 | F60: ='UEF11'!O60 -> 2 | G60: ='UEM11'!J60 -> 11.9 | H60: ='UEM11'!K60 -> 7 | I60: ='UEM11'!L60 -> 1 | J60: ='UED11'!J60 -> 11.18066667 | K60: ='UED11'!K60 -> 4 | L60: ='UED11'!L60 -> 1 | M60: ='UET11'!G60 -> 9.066666667 | N60: ='UET11'!H60 -> 0 | O60: ='UET11'!I60 -> 1 | P60: 9.246311111 | Q60: 11 | R60: 2
A61: 52 | B61: BEKADDOR BENATIA | C61: ABDALLAH | D61: ='UEF11'!M61 -> 6.52 | E61: ='UEF11'!N61 -> 0 | F61: ='UEF11'!O61 -> 2 | G61: ='UEM11'!J61 -> 14.38333333 | H61: ='UEM11'!K61 -> 7 | I61: ='UEM11'!L61 -> 2 | J61: ='UED11'!J61 -> 6.8 | K61: ='UED11'!K61 -> 0 | L61: ='UED11'!L61 -> 2 | M61: ='UET11'!G61 -> 14.8 | N61: ='UET11'!H61 -> 2 | O61: ='UET11'!I61 -> 2 | P61: 8.157777778 | Q61: 7 | R61: 2
A62: 53 | B62: BEKADDOUR | C62: FATIMA | D62: ='UEF11'!M62 -> 11.96 | E62: ='UEF11'!N62 -> 17 | F62: ='UEF11'!O62 -> 2 | G62: ='UEM11'!J62 -> 15.85833333 | H62: ='UEM11'!K62 -> 7 | I62: ='UEM11'!L62 -> 1 | J62: ='UED11'!J62 -> 13.95 | K62: ='UED11'!K62 -> 4 | L62: ='UED11'!L62 -> 1 | M62: ='UET11'!G62 -> 13.26666667 | N62: ='UET11'!H62 -> 2 | O62: ='UET11'!I62 -> 1 | P62: 12.83222222 | Q62: 30 | R62: 2
A63: 54 | B63: BEKKA | C63: HOUCINE | D63: ='UEF11'!M63 -> 8.576666667 | E63: ='UEF11'!N63 -> 0 | F63: ='UEF11'!O63 -> 2 | G63: ='UEM11'!J63 -> 12.78333333 | H63: ='UEM11'!K63 -> 7 | I63: ='UEM11'!L63 -> 1 | J63: ='UED11'!J63 -> 15.58333333 | K63: ='UED11'!K63 -> 4 | L63: ='UED11'!L63 -> 1 | M63: ='UET11'!G63 -> 9.4 | N63: ='UET11'!H63 -> 0 | O63: ='UET11'!I63 -> 1 | P63: 10.12666667 | Q63: 30 | R63: 2
A64: 55 | B64: BELABBES | C64: FAISAL | D64: ='UEF11'!M64 -> 7.08 | E64: ='UEF11'!N64 -> 0 | F64: ='UEF11'!O64 -> 2 | G64: ='UEM11'!J64 -> 13.41666667 | H64: ='UEM11'!K64 -> 7 | I64: ='UEM11'!L64 -> 2 | J64: ='UED11'!J64 -> 7.925 | K64: ='UED11'!K64 -> 0 | L64: ='UED11'!L64 -> 2 | M64: ='UET11'!G64 -> 9.666666667 | N64: ='UET11'!H64 -> 0 | O64: ='UET11'!I64 -> 1 | P64: 8.21 | Q64: 7 | R64: 2
A65: 56 | B65: BELACEL | C65: M'HAMMED | D65: ='UEF11'!M65 -> 5.393333333 | E65: ='UEF11'!N65 -> 0 | F65: ='UEF11'!O65 -> 2 | G65: ='UEM11'!J65 -> 12.4 | H65: ='UEM11'!K65 -> 7 | I65: ='UEM11'!L65 -> 2 | J65: ='UED11'!J65 -> 9.775 | K65: ='UED11'!K65 -> 2 | L65: ='UED11'!L65 -> 1 | M65: ='UET11'!G65 -> 9.733333333 | N65: ='UET11'!H65 -> 0 | O65: ='UET11'!I65 -> 1 | P65: 7.201111111 | Q65: 9 | R65: 2
A66: 57 | B66: BELACEL | C66: MOHAMED ELAMINE | D66: ='UEF11'!M66 -> 2.22 | E66: ='UEF11'!N66 -> 0 | F66: ='UEF11'!O66 -> 2 | G66: ='UEM11'!J66 -> 0 | H66: ='UEM11'!K66 -> 0 | I66: ='UEM11'!L66 -> 1 | J66: ='UED11'!J66 -> 0 | K66: ='UED11'!K66 -> 0 | L66: ='UED11'!L66 -> 1 | M66: ='UET11'!G66 -> 4 | N66: ='UET11'!H66 -> 0 | O66: ='UET11'!I66 -> 1 | P66: 1.746666667 | Q66: 0 | R66: 2
A67: 58 | B67: BELADJAL | C67: SAMIA | D67: ='UEF11'!M67 -> 11.4 | E67: ='UEF11'!N67 -> 17 | F67: ='UEF11'!O67 -> 2 | G67: ='UEM11'!J67 -> 13.13333333 | H67: ='UEM11'!K67 -> 7 | I67: ='UEM11'!L67 -> 1 | J67: ='UED11'!J67 -> 13.2 | K67: ='UED11'!K67 -> 4 | L67: ='UED11'!L67 -> 1 | M67: ='UET11'!G67 -> 12.73333333 | N67: ='UET11'!H67 -> 2 | O67: ='UET11'!I67 -> 1 | P67: 11.96 | Q67: 30 | R67: 2
A68: 59 | B68: BELADJEL | C68: MOHAMED EL AMINE | D68: ='UEF11'!M68 -> 5.12 | E68: ='UEF11'!N68 -> 0 | F68: ='UEF11'!O68 -> 2 | G68: ='UEM11'!J68 -> 5.933333333 | H68: ='UEM11'!K68 -> 0 | I68: ='UEM11'!L68 -> 2 | J68: ='UED11'!J68 -> 6.55 | K68: ='UED11'!K68 -> 0 | L68: ='UED11'!L68 -> 2 | M68: ='UET11'!G68 -> 6 | N68: ='UET11'!H68 -> 0 | O68: ='UET11'!I68 -> 1 | P68: 5.477777778 | Q68: 0 | R68: 2
A69: 60 | B69: BELAHOUEL | C69: BEDRA BATOUL | D69: ='UEF11'!M69 -> 8.7 | E69: ='UEF11'!N69 -> 5 | F69: ='UEF11'!O69 -> 2 | G69: ='UEM11'!J69 -> 17 | H69: ='UEM11'!K69 -> 7 | I69: ='UEM11'!L69 -> 1 | J69: ='UED11'!J69 -> 11.5 | K69: ='UED11'!K69 -> 4 | L69: ='UED11'!L69 -> 1 | M69: ='UET11'!G69 -> 16.46666667 | N69: ='UET11'!H69 -> 2 | O69: ='UET11'!I69 -> 1 | P69: 10.69777778 | Q69: 30 | R69: 2
A70: 61 | B70: BELAHSENE | C70: SIHAM | D70: ='UEF11'!M70 -> 0 | E70: ='UEF11'!N70 -> 0 | F70: ='UEF11'!O70 -> 2 | G70: ='UEM11'!J70 -> 0 | H70: ='UEM11'!K70 -> 0 | I70: ='UEM11'!L70 -> 1 | J70: ='UED11'!J70 -> 0 | K70: ='UED11'!K70 -> 0 | L70: ='UED11'!L70 -> 1 | M70: ='UET11'!G70 -> 0 | N70: ='UET11'!H70 -> 0 | O70: ='UET11'!I70 -> 1 | P70: 0 | Q70: 0 | R70: 2
A71: 62 | B71: BELAID | C71: ROKAYA | D71: ='UEF11'!M71 -> 11.77333333 | E71: ='UEF11'!N71 -> 17 | F71: ='UEF11'!O71 -> 2 | G71: ='UEM11'!J71 -> 17.23333333 | H71: ='UEM11'!K71 -> 7 | I71: ='UEM11'!L71 -> 1 | J71: ='UED11'!J71 -> 16.1 | K71: ='UED11'!K71 -> 4 | L71: ='UED11'!L71 -> 1 | M71: ='UET11'!G71 -> 15.6 | N71: ='UET11'!H71 -> 2 | O71: ='UET11'!I71 -> 1 | P71: 13.33333333 | Q71: 30 | R71: 2
A72: 63 | B72: BELAID | C72: YASSEMINA | D72: ='UEF11'!M72 -> 0 | E72: ='UEF11'!N72 -> 0 | F72: ='UEF11'!O72 -> 2 | G72: ='UEM11'!J72 -> 0 | H72: ='UEM11'!K72 -> 0 | I72: ='UEM11'!L72 -> 1 | J72: ='UED11'!J72 -> 0 | K72: ='UED11'!K72 -> 0 | L72: ='UED11'!L72 -> 1 | M72: ='UET11'!G72 -> 0 | N72: ='UET11'!H72 -> 0 | O72: ='UET11'!I72 -> 1 | P72: 0 | Q72: 0 | R72: 2
A73: 64 | B73: BELALIA | C73: MOSTAFA | D73: ='UEF11'!M73 -> 7.523333333 | E73: ='UEF11'!N73 -> 0 | F73: ='UEF11'!O73 -> 2 | G73: ='UEM11'!J73 -> 13.08333333 | H73: ='UEM11'!K73 -> 7 | I73: ='UEM11'!L73 -> 2 | J73: ='UED11'!J73 -> 10.69166667 | K73: ='UED11'!K73 -> 4 | L73: ='UED11'!L73 -> 2 | M73: ='UET11'!G73 -> 10 | N73: ='UET11'!H73 -> 2 | O73: ='UET11'!I73 -> 1 | P73: 8.852222222 | Q73: 11 | R73: 2
A74: 65 | B74: BELAOUEDJ | C74: MANSOURIA | D74: ='UEF11'!M74 -> 9.09 | E74: ='UEF11'!N74 -> 5 | F74: ='UEF11'!O74 -> 2 | G74: ='UEM11'!J74 -> 14.25 | H74: ='UEM11'!K74 -> 7 | I74: ='UEM11'!L74 -> 1 | J74: ='UED11'!J74 -> 15.125 | K74: ='UED11'!K74 -> 4 | L74: ='UED11'!L74 -> 1 | M74: ='UET11'!G74 -> 6 | N74: ='UET11'!H74 -> 0 | O74: ='UET11'!I74 -> 1 | P74: 10.37666667 | Q74: 30 | R74: 2
A75: 66 | B75: BELARBI | C75: MOHAMED YASSIN | D75: ='UEF11'!M75 -> 8.213333333 | E75: ='UEF11'!N75 -> 0 | F75: ='UEF11'!O75 -> 2 | G75: ='UEM11'!J75 -> 16.91666667 | H75: ='UEM11'!K75 -> 7 | I75: ='UEM11'!L75 -> 1 | J75: ='UED11'!J75 -> 10.88333333 | K75: ='UED11'!K75 -> 4 | L75: ='UED11'!L75 -> 1 | M75: ='UET11'!G75 -> 13 | N75: ='UET11'!H75 -> 2 | O75: ='UET11'!I75 -> 1 | P75: =(D75*10+G75*2+J75*2+M75*1)/15 -> 10.04888889 | Q75: =IF(P75>=10,30,E75+H75+K75) -> 30 | R75: =IF(AND(F75="1",I75="1",L75="1",O75="1"),"1","2") -> 2
A76: 67 | B76: BELEH | C76: MERIEM | D76: ='UEF11'!M76 -> 9.72 | E76: ='UEF11'!N76 -> 11 | F76: ='UEF11'!O76 -> 2 | G76: ='UEM11'!J76 -> 15.39166667 | H76: ='UEM11'!K76 -> 7 | I76: ='UEM11'!L76 -> 1 | J76: ='UED11'!J76 -> 13.19166667 | K76: ='UED11'!K76 -> 4 | L76: ='UED11'!L76 -> 1 | M76: ='UET11'!G76 -> 13 | N76: ='UET11'!H76 -> 2 | O76: ='UET11'!I76 -> 1 | P76: 11.15777778 | Q76: 30 | R76: 2
A77: 68 | B77: BELHACHEMIA | C77: MOHAMMED IBRAHIM | D77: ='UEF11'!M77 -> 11.22666667 | E77: ='UEF11'!N77 -> 17 | F77: ='UEF11'!O77 -> 2 | G77: ='UEM11'!J77 -> 15.76666667 | H77: ='UEM11'!K77 -> 7 | I77: ='UEM11'!L77 -> 1 | J77: ='UED11'!J77 -> 12.2 | K77: ='UED11'!K77 -> 4 | L77: ='UED11'!L77 -> 1 | M77: ='UET11'!G77 -> 12.8 | N77: ='UET11'!H77 -> 2 | O77: ='UET11'!I77 -> 1 | P77: 12.06666667 | Q77: 30 | R77: 2
A78: 69 | B78: BELHAMITI | C78: MERIEM MANSOURIA | D78: ='UEF11'!M78 -> 15.52 | E78: ='UEF11'!N78 -> 17 | F78: ='UEF11'!O78 -> 2 | G78: ='UEM11'!J78 -> 18.46666667 | H78: ='UEM11'!K78 -> 7 | I78: ='UEM11'!L78 -> 1 | J78: ='UED11'!J78 -> 18.675 | K78: ='UED11'!K78 -> 4 | L78: ='UED11'!L78 -> 1 | M78: ='UET11'!G78 -> 14.26666667 | N78: ='UET11'!H78 -> 2 | O78: ='UET11'!I78 -> 1 | P78: 16.25 | Q78: 30 | R78: 2
A79: 70 | B79: BELKACEM | C79: IBRAHIM | D79: ='UEF11'!M79 -> 5.753333333 | E79: ='UEF11'!N79 -> 0 | F79: ='UEF11'!O79 -> 2 | G79: ='UEM11'!J79 -> 6.9 | H79: ='UEM11'!K79 -> 3 | I79: ='UEM11'!L79 -> 1 | J79: ='UED11'!J79 -> 6.483333333 | K79: ='UED11'!K79 -> 0 | L79: ='UED11'!L79 -> 1 | M79: ='UET11'!G79 -> 3.333333333 | N79: ='UET11'!H79 -> 0 | O79: ='UET11'!I79 -> 1 | P79: 5.842222222 | Q79: 3 | R79: 2
A80: 71 | B80: BELKACEMI | C80: LARBI | D80: ='UEF11'!M80 -> 7.096666667 | E80: ='UEF11'!N80 -> 0 | F80: ='UEF11'!O80 -> 2 | G80: ='UEM11'!J80 -> 4.583333333 | H80: ='UEM11'!K80 -> 0 | I80: ='UEM11'!L80 -> 1 | J80: ='UED11'!J80 -> 7.475 | K80: ='UED11'!K80 -> 0 | L80: ='UED11'!L80 -> 1 | M80: ='UET11'!G80 -> 3.333333333 | N80: ='UET11'!H80 -> 0 | O80: ='UET11'!I80 -> 1 | P80: 6.561111111 | Q80: 0 | R80: 2
A81: 72 | B81: BELKAID | C81: RADIA | D81: ='UEF11'!M81 -> 15.23 | E81: ='UEF11'!N81 -> 17 | F81: ='UEF11'!O81 -> 2 | G81: ='UEM11'!J81 -> 17.3 | H81: ='UEM11'!K81 -> 7 | I81: ='UEM11'!L81 -> 1 | J81: ='UED11'!J81 -> 13.41666667 | K81: ='UED11'!K81 -> 4 | L81: ='UED11'!L81 -> 1 | M81: ='UET11'!G81 -> 16.33333333 | N81: ='UET11'!H81 -> 2 | O81: ='UET11'!I81 -> 1 | P81: 15.33777778 | Q81: 30 | R81: 2
A82: 73 | B82: BELKAIOUS | C82: HAYET | D82: ='UEF11'!M82 -> 7.026666667 | E82: ='UEF11'!N82 -> 0 | F82: ='UEF11'!O82 -> 2 | G82: ='UEM11'!J82 -> 14.83333333 | H82: ='UEM11'!K82 -> 7 | I82: ='UEM11'!L82 -> 1 | J82: ='UED11'!J82 -> 9.6 | K82: ='UED11'!K82 -> 2 | L82: ='UED11'!L82 -> 1 | M82: ='UET11'!G82 -> 10.8 | N82: ='UET11'!H82 -> 2 | O82: ='UET11'!I82 -> 1 | P82: 8.662222222 | Q82: 9 | R82: 2
A83: 74 | B83: BELKARROUB | C83: NOUR EL HOUDA | D83: ='UEF11'!M83 -> 8.243333333 | E83: ='UEF11'!N83 -> 0 | F83: ='UEF11'!O83 -> 2 | G83: ='UEM11'!J83 -> 16.08333333 | H83: ='UEM11'!K83 -> 7 | I83: ='UEM11'!L83 -> 1 | J83: ='UED11'!J83 -> 11.34166667 | K83: ='UED11'!K83 -> 4 | L83: ='UED11'!L83 -> 1 | M83: ='UET11'!G83 -> 9.066666667 | N83: ='UET11'!H83 -> 0 | O83: ='UET11'!I83 -> 1 | P83: 9.756666667 | Q83: 11 | R83: 2
A84: 75 | B84: BELMADANI | C84: NAIMA | D84: ='UEF11'!M84 -> 6.253333333 | E84: ='UEF11'!N84 -> 0 | F84: ='UEF11'!O84 -> 2 | G84: ='UEM11'!J84 -> 3.9 | H84: ='UEM11'!K84 -> 0 | I84: ='UEM11'!L84 -> 1 | J84: ='UED11'!J84 -> 15.59166667 | K84: ='UED11'!K84 -> 4 | L84: ='UED11'!L84 -> 1 | M84: ='UET11'!G84 -> 4 | N84: ='UET11'!H84 -> 0 | O84: ='UET11'!I84 -> 1 | P84: 7.034444444 | Q84: 4 | R84: 2
A85: 76 | B85: BELMADI | C85: AHMED | D85: ='UEF11'!M85 -> 0 | E85: ='UEF11'!N85 -> 0 | F85: ='UEF11'!O85 -> 2 | G85: ='UEM11'!J85 -> 0 | H85: ='UEM11'!K85 -> 0 | I85: ='UEM11'!L85 -> 1 | J85: ='UED11'!J85 -> 0 | K85: ='UED11'!K85 -> 0 | L85: ='UED11'!L85 -> 1 | M85: ='UET11'!G85 -> 0 | N85: ='UET11'!H85 -> 0 | O85: ='UET11'!I85 -> 1 | P85: 0 | Q85: 0 | R85: 2
A86: 77 | B86: BELMOKHTAR | C86: ABDELKADER | D86: ='UEF11'!M86 -> 0 | E86: ='UEF11'!N86 -> 0 | F86: ='UEF11'!O86 -> 2 | G86: ='UEM11'!J86 -> 0 | H86: ='UEM11'!K86 -> 0 | I86: ='UEM11'!L86 -> 1 | J86: ='UED11'!J86 -> 0 | K86: ='UED11'!K86 -> 0 | L86: ='UED11'!L86 -> 1 | M86: ='UET11'!G86 -> 0 | N86: ='UET11'!H86 -> 0 | O86: ='UET11'!I86 -> 1 | P86: 0 | Q86: 0 | R86: 2
A87: 78 | B87: BELOUASSOUASSI | C87: BOUBAKR | D87: ='UEF11'!M87 -> 0 | E87: ='UEF11'!N87 -> 0 | F87: ='UEF11'!O87 -> 2 | G87: ='UEM11'!J87 -> 0 | H87: ='UEM11'!K87 -> 0 | I87: ='UEM11'!L87 -> 1 | J87: ='UED11'!J87 -> 0 | K87: ='UED11'!K87 -> 0 | L87: ='UED11'!L87 -> 1 | M87: ='UET11'!G87 -> 0 | N87: ='UET11'!H87 -> 0 | O87: ='UET11'!I87 -> 1 | P87: 0 | Q87: 0 | R87: 2
A88: 79 | B88: BELOUFA | C88: YASSER | D88: ='UEF11'!M88 -> 0 | E88: ='UEF11'!N88 -> 0 | F88: ='UEF11'!O88 -> 2 | G88: ='UEM11'!J88 -> 0 | H88: ='UEM11'!K88 -> 0 | I88: ='UEM11'!L88 -> 1 | J88: ='UED11'!J88 -> 0 | K88: ='UED11'!K88 -> 0 | L88: ='UED11'!L88 -> 1 | M88: ='UET11'!G88 -> 0 | N88: ='UET11'!H88 -> 0 | O88: ='UET11'!I88 -> 1 | P88: 0 | Q88: 0 | R88: 2
A89: 80 | B89: BEN SOUKHAL | C89: HALIMA | D89: ='UEF11'!M89 -> 8.763333333 | E89: ='UEF11'!N89 -> 0 | F89: ='UEF11'!O89 -> 2 | G89: ='UEM11'!J89 -> 11.13333333 | H89: ='UEM11'!K89 -> 7 | I89: ='UEM11'!L89 -> 1 | J89: ='UED11'!J89 -> 10.99166667 | K89: ='UED11'!K89 -> 4 | L89: ='UED11'!L89 -> 1 | M89: ='UET11'!G89 -> 10.26666667 | N89: ='UET11'!H89 -> 2 | O89: ='UET11'!I89 -> 1 | P89: 9.476666667 | Q89: 11 | R89: 2
A90: 81 | B90: BENACHOUR | C90: HAMZA | D90: ='UEF11'!M90 -> 11.78 | E90: ='UEF11'!N90 -> 17 | F90: ='UEF11'!O90 -> 2 | G90: ='UEM11'!J90 -> 17.36666667 | H90: ='UEM11'!K90 -> 7 | I90: ='UEM11'!L90 -> 1 | J90: ='UED11'!J90 -> 11.78333333 | K90: ='UED11'!K90 -> 4 | L90: ='UED11'!L90 -> 1 | M90: ='UET11'!G90 -> 6.6 | N90: ='UET11'!H90 -> 0 | O90: ='UET11'!I90 -> 1 | P90: 12.18 | Q90: 30 | R90: 2
A91: 82 | B91: BENADDA | C91: YAMINA | D91: ='UEF11'!M91 -> 10.97666667 | E91: ='UEF11'!N91 -> 17 | F91: ='UEF11'!O91 -> 2 | G91: ='UEM11'!J91 -> 17.3 | H91: ='UEM11'!K91 -> 7 | I91: ='UEM11'!L91 -> 1 | J91: ='UED11'!J91 -> 13.21666667 | K91: ='UED11'!K91 -> 4 | L91: ='UED11'!L91 -> 1 | M91: ='UET11'!G91 -> 11.73333333 | N91: ='UET11'!H91 -> 2 | O91: ='UET11'!I91 -> 1 | P91: 12.16888889 | Q91: 30 | R91: 2
A92: 83 | B92: BENAICHA | C92: AMEL | D92: ='UEF11'!M92 -> 9.213333333 | E92: ='UEF11'!N92 -> 6 | F92: ='UEF11'!O92 -> 2 | G92: ='UEM11'!J92 -> 14.81666667 | H92: ='UEM11'!K92 -> 7 | I92: ='UEM11'!L92 -> 1 | J92: ='UED11'!J92 -> 10.75 | K92: ='UED11'!K92 -> 4 | L92: ='UED11'!L92 -> 1 | M92: ='UET11'!G92 -> 6.6 | N92: ='UET11'!H92 -> 0 | O92: ='UET11'!I92 -> 1 | P92: 9.991111111 | Q92: 17 | R92: 2
A93: 84 | B93: BENAICHA | C93: WAFAA | D93: ='UEF11'!M93 -> 6.54 | E93: ='UEF11'!N93 -> 6 | F93: ='UEF11'!O93 -> 2 | G93: ='UEM11'!J93 -> 12.38333333 | H93: ='UEM11'!K93 -> 7 | I93: ='UEM11'!L93 -> 2 | J93: ='UED11'!J93 -> 6.033333333 | K93: ='UED11'!K93 -> 2 | L93: ='UED11'!L93 -> 2 | M93: ='UET11'!G93 -> 6 | N93: ='UET11'!H93 -> 0 | O93: ='UET11'!I93 -> 1 | P93: 7.215555556 | Q93: 15 | R93: 2
A94: 85 | B94: BENAMAR | C94: ISMAIL | D94: ='UEF11'!M94 -> 0 | E94: ='UEF11'!N94 -> 0 | F94: ='UEF11'!O94 -> 2 | G94: ='UEM11'!J94 -> 8.5 | H94: ='UEM11'!K94 -> 4 | I94: ='UEM11'!L94 -> 1 | J94: ='UED11'!J94 -> 0 | K94: ='UED11'!K94 -> 0 | L94: ='UED11'!L94 -> 1 | M94: ='UET11'!G94 -> 0 | N94: ='UET11'!H94 -> 0 | O94: ='UET11'!I94 -> 1 | P94: 1.133333333 | Q94: 4 | R94: 2
A95: 86 | B95: BENAMAR | C95: KHEIRA | D95: ='UEF11'!M95 -> 8.51 | E95: ='UEF11'!N95 -> 0 | F95: ='UEF11'!O95 -> 2 | G95: ='UEM11'!J95 -> 16.66666667 | H95: ='UEM11'!K95 -> 7 | I95: ='UEM11'!L95 -> 1 | J95: ='UED11'!J95 -> 10.214 | K95: ='UED11'!K95 -> 4 | L95: ='UED11'!L95 -> 1 | M95: ='UET11'!G95 -> 12.33333333 | N95: ='UET11'!H95 -> 2 | O95: ='UET11'!I95 -> 1 | P95: 10.07964444 | Q95: 30 | R95: 2
A96: 87 | B96: BENANTEUR | C96: HADJ MUSTAFA | D96: ='UEF11'!M96 -> 0 | E96: ='UEF11'!N96 -> 0 | F96: ='UEF11'!O96 -> 2 | G96: ='UEM11'!J96 -> 0 | H96: ='UEM11'!K96 -> 0 | I96: ='UEM11'!L96 -> 1 | J96: ='UED11'!J96 -> 0 | K96: ='UED11'!K96 -> 0 | L96: ='UED11'!L96 -> 1 | M96: ='UET11'!G96 -> 0 | N96: ='UET11'!H96 -> 0 | O96: ='UET11'!I96 -> 1 | P96: 0 | Q96: 0 | R96: 2
A97: 88 | B97: BENAOUDA | C97: YASSINE | D97: ='UEF11'!M97 -> 8.753333333 | E97: ='UEF11'!N97 -> 6 | F97: ='UEF11'!O97 -> 2 | G97: ='UEM11'!J97 -> 16.40833333 | H97: ='UEM11'!K97 -> 7 | I97: ='UEM11'!L97 -> 1 | J97: ='UED11'!J97 -> 10.14166667 | K97: ='UED11'!K97 -> 4 | L97: ='UED11'!L97 -> 1 | M97: ='UET11'!G97 -> 12.6 | N97: ='UET11'!H97 -> 2 | O97: ='UET11'!I97 -> 1 | P97: 10.21555556 | Q97: 30 | R97: 2
A98: 89 | B98: BENAOUDA | C98: ZAKARIA | D98: ='UEF11'!M98 -> 9.372 | E98: ='UEF11'!N98 -> 6 | F98: ='UEF11'!O98 -> 2 | G98: ='UEM11'!J98 -> 10.1 | H98: ='UEM11'!K98 -> 7 | I98: ='UEM11'!L98 -> 1 | J98: ='UED11'!J98 -> 6.9 | K98: ='UED11'!K98 -> 0 | L98: ='UED11'!L98 -> 1 | M98: ='UET11'!G98 -> 10 | N98: ='UET11'!H98 -> 2 | O98: ='UET11'!I98 -> 1 | P98: 9.181333333 | Q98: 13 | R98: 2
A99: 90 | B99: BENATTIA | C99: CHAIMA | D99: ='UEF11'!M99 -> 12.05666667 | E99: ='UEF11'!N99 -> 17 | F99: ='UEF11'!O99 -> 2 | G99: ='UEM11'!J99 -> 13.73333333 | H99: ='UEM11'!K99 -> 7 | I99: ='UEM11'!L99 -> 1 | J99: ='UED11'!J99 -> 15.514 | K99: ='UED11'!K99 -> 4 | L99: ='UED11'!L99 -> 1 | M99: ='UET11'!G99 -> 12.2 | N99: ='UET11'!H99 -> 2 | O99: ='UET11'!I99 -> 1 | P99: 12.75075556 | Q99: 30 | R99: 2
A100: 91 | B100: BENAYED | C100: SARAH | D100: ='UEF11'!M100 -> 9.19 | E100: ='UEF11'!N100 -> 11 | F100: ='UEF11'!O100 -> 2 | G100: ='UEM11'!J100 -> 14.30833333 | H100: ='UEM11'!K100 -> 7 | I100: ='UEM11'!L100 -> 1 | J100: ='UED11'!J100 -> 10.50566667 | K100: ='UED11'!K100 -> 4 | L100: ='UED11'!L100 -> 1 | M100: ='UET11'!G100 -> 13.33333333 | N100: ='UET11'!H100 -> 2 | O100: ='UET11'!I100 -> 1 | P100: 10.32408889 | Q100: 30 | R100: 2
A101: 92 | B101: BENBACHIR | C101: HAMZA | D101: ='UEF11'!M101 -> 8.803333333 | E101: ='UEF11'!N101 -> 5 | F101: ='UEF11'!O101 -> 2 | G101: ='UEM11'!J101 -> 16.74166667 | H101: ='UEM11'!K101 -> 7 | I101: ='UEM11'!L101 -> 1 | J101: ='UED11'!J101 -> 9.7 | K101: ='UED11'!K101 -> 2 | L101: ='UED11'!L101 -> 1 | M101: ='UET11'!G101 -> 12.86666667 | N101: ='UET11'!H101 -> 2 | O101: ='UET11'!I101 -> 1 | P101: 10.25222222 | Q101: 30 | R101: 2
A102: 93 | B102: BENBERNOU | C102: YASSER | D102: ='UEF11'!M102 -> 10.66333333 | E102: ='UEF11'!N102 -> 17 | F102: ='UEF11'!O102 -> 2 | G102: ='UEM11'!J102 -> 16.80833333 | H102: ='UEM11'!K102 -> 7 | I102: ='UEM11'!L102 -> 1 | J102: ='UED11'!J102 -> 14.575 | K102: ='UED11'!K102 -> 4 | L102: ='UED11'!L102 -> 1 | M102: ='UET11'!G102 -> 12.06666667 | N102: ='UET11'!H102 -> 2 | O102: ='UET11'!I102 -> 1 | P102: 12.09777778 | Q102: 30 | R102: 2
A103: 94 | B103: BENCHAIB | C103: FADELA | D103: ='UEF11'!M103 -> 9.83 | E103: ='UEF11'!N103 -> 11 | F103: ='UEF11'!O103 -> 2 | G103: ='UEM11'!J103 -> 13.53333333 | H103: ='UEM11'!K103 -> 7 | I103: ='UEM11'!L103 -> 1 | J103: ='UED11'!J103 -> 14.339 | K103: ='UED11'!K103 -> 4 | L103: ='UED11'!L103 -> 1 | M103: ='UET11'!G103 -> 11.13333333 | N103: ='UET11'!H103 -> 2 | O103: ='UET11'!I103 -> 1 | P103: 11.01186667 | Q103: 30 | R103: 2
A104: 95 | B104: BENCHAMANI | C104: REKAIA | D104: ='UEF11'!M104 -> 8.646666667 | E104: ='UEF11'!N104 -> 0 | F104: ='UEF11'!O104 -> 2 | G104: ='UEM11'!J104 -> 9.566666667 | H104: ='UEM11'!K104 -> 4 | I104: ='UEM11'!L104 -> 1 | J104: ='UED11'!J104 -> 11.089 | K104: ='UED11'!K104 -> 4 | L104: ='UED11'!L104 -> 2 | M104: ='UET11'!G104 -> 10.53333333 | N104: ='UET11'!H104 -> 2 | O104: ='UET11'!I104 -> 1 | P104: 9.220755556 | Q104: 8 | R104: 2
A105: 96 | B105: BENCHEHIDA | C105: ABDELHEQ | D105: ='UEF11'!M105 -> 7.77 | E105: ='UEF11'!N105 -> 5 | F105: ='UEF11'!O105 -> 2 | G105: ='UEM11'!J105 -> 14.25833333 | H105: ='UEM11'!K105 -> 7 | I105: ='UEM11'!L105 -> 1 | J105: ='UED11'!J105 -> 11.80566667 | K105: ='UED11'!K105 -> 4 | L105: ='UED11'!L105 -> 2 | M105: ='UET11'!G105 -> 12.33333333 | N105: ='UET11'!H105 -> 2 | O105: ='UET11'!I105 -> 1 | P105: 9.477422222 | Q105: 16 | R105: 2
A106: 97 | B106: BENCHENNI | C106: MERIEM | D106: ='UEF11'!M106 -> 0 | E106: ='UEF11'!N106 -> 0 | F106: ='UEF11'!O106 -> 2 | G106: ='UEM11'!J106 -> 0 | H106: ='UEM11'!K106 -> 0 | I106: ='UEM11'!L106 -> 1 | J106: ='UED11'!J106 -> 0 | K106: ='UED11'!K106 -> 0 | L106: ='UED11'!L106 -> 1 | M106: ='UET11'!G106 -> 0 | N106: ='UET11'!H106 -> 0 | O106: ='UET11'!I106 -> 1 | P106: 0 | Q106: 0 | R106: 2
A107: 98 | B107: BENCHERIF | C107: AHMED | D107: ='UEF11'!M107 -> 4.646666667 | E107: ='UEF11'!N107 -> 0 | F107: ='UEF11'!O107 -> 2 | G107: ='UEM11'!J107 -> 3.816666667 | H107: ='UEM11'!K107 -> 0 | I107: ='UEM11'!L107 -> 1 | J107: ='UED11'!J107 -> 5.758333333 | K107: ='UED11'!K107 -> 0 | L107: ='UED11'!L107 -> 1 | M107: ='UET11'!G107 -> 4.4 | N107: ='UET11'!H107 -> 0 | O107: ='UET11'!I107 -> 1 | P107: 4.667777778 | Q107: 0 | R107: 2
A108: 99 | B108: BENCHOHRA | C108: KHEIRA | D108: ='UEF11'!M108 -> 9.333333333 | E108: ='UEF11'!N108 -> 5 | F108: ='UEF11'!O108 -> 2 | G108: ='UEM11'!J108 -> 10.05 | H108: ='UEM11'!K108 -> 7 | I108: ='UEM11'!L108 -> 1 | J108: ='UED11'!J108 -> 7.875 | K108: ='UED11'!K108 -> 0 | L108: ='UED11'!L108 -> 1 | M108: ='UET11'!G108 -> 6 | N108: ='UET11'!H108 -> 0 | O108: ='UET11'!I108 -> 1 | P108: 9.012222222 | Q108: 12 | R108: 2
A109: 100 | B109: BENDANI | C109: MUSTAPHA | D109: ='UEF11'!M109 -> 7.726666667 | E109: ='UEF11'!N109 -> 5 | F109: ='UEF11'!O109 -> 2 | G109: ='UEM11'!J109 -> 15.55833333 | H109: ='UEM11'!K109 -> 7 | I109: ='UEM11'!L109 -> 1 | J109: ='UED11'!J109 -> 13.925 | K109: ='UED11'!K109 -> 4 | L109: ='UED11'!L109 -> 1 | M109: ='UET11'!G109 -> 12.06666667 | N109: ='UET11'!H109 -> 2 | O109: ='UET11'!I109 -> 1 | P109: 9.886666667 | Q109: 16 | R109: 2
A110: 101 | B110: BENDJELLOUL | C110: NOUREDDINE | D110: ='UEF11'!M110 -> 8.52 | E110: ='UEF11'!N110 -> 0 | F110: ='UEF11'!O110 -> 2 | G110: ='UEM11'!J110 -> 16.175 | H110: ='UEM11'!K110 -> 7 | I110: ='UEM11'!L110 -> 1 | J110: ='UED11'!J110 -> 11.739 | K110: ='UED11'!K110 -> 4 | L110: ='UED11'!L110 -> 1 | M110: ='UET11'!G110 -> 15.33333333 | N110: ='UET11'!H110 -> 2 | O110: ='UET11'!I110 -> 1 | P110: 10.42408889 | Q110: 30 | R110: 2
A111: 102 | B111: BENFICHOUH | C111: ABDELHALIM | D111: ='UEF11'!M111 -> 0 | E111: ='UEF11'!N111 -> 0 | F111: ='UEF11'!O111 -> 2 | G111: ='UEM11'!J111 -> 0 | H111: ='UEM11'!K111 -> 0 | I111: ='UEM11'!L111 -> 1 | J111: ='UED11'!J111 -> 0 | K111: ='UED11'!K111 -> 0 | L111: ='UED11'!L111 -> 1 | M111: ='UET11'!G111 -> 0 | N111: ='UET11'!H111 -> 0 | O111: ='UET11'!I111 -> 1 | P111: 0 | Q111: 0 | R111: 2
A112: 103 | B112: BENGATTAT | C112: HADJ ALI | D112: ='UEF11'!M112 -> 11.6 | E112: ='UEF11'!N112 -> 17 | F112: ='UEF11'!O112 -> 2 | G112: ='UEM11'!J112 -> 17.45833333 | H112: ='UEM11'!K112 -> 7 | I112: ='UEM11'!L112 -> 1 | J112: ='UED11'!J112 -> 12.425 | K112: ='UED11'!K112 -> 4 | L112: ='UED11'!L112 -> 1 | M112: ='UET11'!G112 -> 13.86666667 | N112: ='UET11'!H112 -> 2 | O112: ='UET11'!I112 -> 1 | P112: 12.64222222 | Q112: 30 | R112: 2
A113: 104 | B113: BENGUETTAT | C113: WAFAE | D113: ='UEF11'!M113 -> 12.01 | E113: ='UEF11'!N113 -> 17 | F113: ='UEF11'!O113 -> 2 | G113: ='UEM11'!J113 -> 8.825 | H113: ='UEM11'!K113 -> 3 | I113: ='UEM11'!L113 -> 1 | J113: ='UED11'!J113 -> 12.214 | K113: ='UED11'!K113 -> 4 | L113: ='UED11'!L113 -> 1 | M113: ='UET11'!G113 -> 5.466666667 | N113: ='UET11'!H113 -> 0 | O113: ='UET11'!I113 -> 1 | P113: 11.17631111 | Q113: 30 | R113: 2
A114: 105 | B114: BENGUIRECHE | C114: HAFSA | D114: ='UEF11'!M114 -> 9 | E114: ='UEF11'!N114 -> 5 | F114: ='UEF11'!O114 -> 2 | G114: ='UEM11'!J114 -> 15.93333333 | H114: ='UEM11'!K114 -> 7 | I114: ='UEM11'!L114 -> 1 | J114: ='UED11'!J114 -> 12.00833333 | K114: ='UED11'!K114 -> 4 | L114: ='UED11'!L114 -> 1 | M114: ='UET11'!G114 -> 4.933333333 | N114: ='UET11'!H114 -> 0 | O114: ='UET11'!I114 -> 1 | P114: 10.05444444 | Q114: 30 | R114: 2
A115: 106 | B115: BENHADDOUCHE | C115: FATIMA ZOHRA ROMEISSA | D115: ='UEF11'!M115 -> 9.623333333 | E115: ='UEF11'!N115 -> 11 | F115: ='UEF11'!O115 -> 2 | G115: ='UEM11'!J115 -> 15.75833333 | H115: ='UEM11'!K115 -> 7 | I115: ='UEM11'!L115 -> 1 | J115: ='UED11'!J115 -> 10.039 | K115: ='UED11'!K115 -> 4 | L115: ='UED11'!L115 -> 1 | M115: ='UET11'!G115 -> 5.066666667 | N115: ='UET11'!H115 -> 0 | O115: ='UET11'!I115 -> 1 | P115: 10.19297778 | Q115: 30 | R115: 2
A116: 107 | B116: BENHALIMA | C116: MOUNIR | D116: ='UEF11'!M116 -> 10.44333333 | E116: ='UEF11'!N116 -> 17 | F116: ='UEF11'!O116 -> 2 | G116: ='UEM11'!J116 -> 17.45833333 | H116: ='UEM11'!K116 -> 7 | I116: ='UEM11'!L116 -> 1 | J116: ='UED11'!J116 -> 11.389 | K116: ='UED11'!K116 -> 4 | L116: ='UED11'!L116 -> 1 | M116: ='UET11'!G116 -> 14.06666667 | N116: ='UET11'!H116 -> 2 | O116: ='UET11'!I116 -> 1 | P116: 11.74631111 | Q116: 30 | R116: 2
A117: 108 | B117: BENHALIMA | C117: NACERA | D117: ='UEF11'!M117 -> 8.786666667 | E117: ='UEF11'!N117 -> 5 | F117: ='UEF11'!O117 -> 2 | G117: ='UEM11'!J117 -> 13.23333333 | H117: ='UEM11'!K117 -> 7 | I117: ='UEM11'!L117 -> 1 | J117: ='UED11'!J117 -> 15.189 | K117: ='UED11'!K117 -> 4 | L117: ='UED11'!L117 -> 1 | M117: ='UET11'!G117 -> 10.66666667 | N117: ='UET11'!H117 -> 2 | O117: ='UET11'!I117 -> 1 | P117: 10.35853333 | Q117: 30 | R117: 2
A118: 109 | B118: BENHARIRA | C118: KOUIDER | D118: ='UEF11'!M118 -> 0 | E118: ='UEF11'!N118 -> 0 | F118: ='UEF11'!O118 -> 2 | G118: ='UEM11'!J118 -> 0 | H118: ='UEM11'!K118 -> 0 | I118: ='UEM11'!L118 -> 1 | J118: ='UED11'!J118 -> 0 | K118: ='UED11'!K118 -> 0 | L118: ='UED11'!L118 -> 1 | M118: ='UET11'!G118 -> 0 | N118: ='UET11'!H118 -> 0 | O118: ='UET11'!I118 -> 1 | P118: 0 | Q118: 0 | R118: 2
A119: 110 | B119: BENHARRAT | C119: NOUR EL HOUDA | D119: ='UEF11'!M119 -> 10.42333333 | E119: ='UEF11'!N119 -> 17 | F119: ='UEF11'!O119 -> 2 | G119: ='UEM11'!J119 -> 16.10833333 | H119: ='UEM11'!K119 -> 7 | I119: ='UEM11'!L119 -> 1 | J119: ='UED11'!J119 -> 14.95 | K119: ='UED11'!K119 -> 4 | L119: ='UED11'!L119 -> 1 | M119: ='UET11'!G119 -> 10.53333333 | N119: ='UET11'!H119 -> 2 | O119: ='UET11'!I119 -> 1 | P119: 11.79222222 | Q119: 30 | R119: 2
A120: 111 | B120: BENKAHLA | C120: CHAHRAZED | D120: ='UEF11'!M120 -> 8.826666667 | E120: ='UEF11'!N120 -> 6 | F120: ='UEF11'!O120 -> 2 | G120: ='UEM11'!J120 -> 13.6 | H120: ='UEM11'!K120 -> 7 | I120: ='UEM11'!L120 -> 1 | J120: ='UED11'!J120 -> 10.25 | K120: ='UED11'!K120 -> 4 | L120: ='UED11'!L120 -> 1 | M120: ='UET11'!G120 -> 10.66666667 | N120: ='UET11'!H120 -> 2 | O120: ='UET11'!I120 -> 1 | P120: 9.775555556 | Q120: 17 | R120: 2
A121: 112 | B121: BENKEDADRA | C121: KHADIDJA | D121: ='UEF11'!M121 -> 12.72666667 | E121: ='UEF11'!N121 -> 17 | F121: ='UEF11'!O121 -> 2 | G121: ='UEM11'!J121 -> 17.45 | H121: ='UEM11'!K121 -> 7 | I121: ='UEM11'!L121 -> 1 | J121: ='UED11'!J121 -> 16.46666667 | K121: ='UED11'!K121 -> 4 | L121: ='UED11'!L121 -> 1 | M121: ='UET11'!G121 -> 16.9 | N121: ='UET11'!H121 -> 2 | O121: ='UET11'!I121 -> 1 | P121: 14.13333333 | Q121: 30 | R121: 2
A122: 113 | B122: BENKEDADRA | C122: MOHAMED | D122: ='UEF11'!M122 -> 13.27 | E122: ='UEF11'!N122 -> 17 | F122: ='UEF11'!O122 -> 2 | G122: ='UEM11'!J122 -> 17 | H122: ='UEM11'!K122 -> 7 | I122: ='UEM11'!L122 -> 1 | J122: ='UED11'!J122 -> 14.26666667 | K122: ='UED11'!K122 -> 4 | L122: ='UED11'!L122 -> 1 | M122: ='UET11'!G122 -> 9.9 | N122: ='UET11'!H122 -> 0 | O122: ='UET11'!I122 -> 1 | P122: 13.67555556 | Q122: 30 | R122: 2
A123: 114 | B123: BENKHELIFA | C123: KAMEL | D123: ='UEF11'!M123 -> 9.006666667 | E123: ='UEF11'!N123 -> 6 | F123: ='UEF11'!O123 -> 2 | G123: ='UEM11'!J123 -> 17.43333333 | H123: ='UEM11'!K123 -> 7 | I123: ='UEM11'!L123 -> 1 | J123: ='UED11'!J123 -> 9.716666667 | K123: ='UED11'!K123 -> 2 | L123: ='UED11'!L123 -> 1 | M123: ='UET11'!G123 -> 2.1 | N123: ='UET11'!H123 -> 0 | O123: ='UET11'!I123 -> 1 | P123: 9.764444444 | Q123: 15 | R123: 2
A124: 115 | B124: BENKHELIFA | C124: SAAD | D124: ='UEF11'!M124 -> 9.893333333 | E124: ='UEF11'!N124 -> 6 | F124: ='UEF11'!O124 -> 2 | G124: ='UEM11'!J124 -> 16.96666667 | H124: ='UEM11'!K124 -> 7 | I124: ='UEM11'!L124 -> 1 | J124: ='UED11'!J124 -> 8.883333333 | K124: ='UED11'!K124 -> 2 | L124: ='UED11'!L124 -> 2 | M124: ='UET11'!G124 -> 7.9 | N124: ='UET11'!H124 -> 0 | O124: ='UET11'!I124 -> 1 | P124: 10.56888889 | Q124: 30 | R124: 2
A125: 116 | B125: BENKORECH | C125: ABEDNNOUR | D125: ='UEF11'!M125 -> 13.07333333 | E125: ='UEF11'!N125 -> 17 | F125: ='UEF11'!O125 -> 2 | G125: ='UEM11'!J125 -> 16.79166667 | H125: ='UEM11'!K125 -> 7 | I125: ='UEM11'!L125 -> 1 | J125: ='UED11'!J125 -> 14.41666667 | K125: ='UED11'!K125 -> 4 | L125: ='UED11'!L125 -> 1 | M125: ='UET11'!G125 -> 12.1 | N125: ='UET11'!H125 -> 2 | O125: ='UET11'!I125 -> 1 | P125: 13.68333333 | Q125: 30 | R125: 2
A126: 117 | B126: BENKORRECHE | C126: MOHAMED EL AMINE | D126: ='UEF11'!M126 -> 11.45333333 | E126: ='UEF11'!N126 -> 17 | F126: ='UEF11'!O126 -> 2 | G126: ='UEM11'!J126 -> 18.6 | H126: ='UEM11'!K126 -> 7 | I126: ='UEM11'!L126 -> 1 | J126: ='UED11'!J126 -> 9.825 | K126: ='UED11'!K126 -> 2 | L126: ='UED11'!L126 -> 1 | M126: ='UET11'!G126 -> 10.26666667 | N126: ='UET11'!H126 -> 2 | O126: ='UET11'!I126 -> 1 | P126: 12.11 | Q126: 30 | R126: 2
A127: 118 | B127: BENLAKEHAL | C127: MOHAMED REDHA | D127: ='UEF11'!M127 -> 11.30666667 | E127: ='UEF11'!N127 -> 17 | F127: ='UEF11'!O127 -> 2 | G127: ='UEM11'!J127 -> 10 | H127: ='UEM11'!K127 -> 7 | I127: ='UEM11'!L127 -> 1 | J127: ='UED11'!J127 -> 11.11666667 | K127: ='UED11'!K127 -> 4 | L127: ='UED11'!L127 -> 1 | M127: ='UET11'!G127 -> 6 | N127: ='UET11'!H127 -> 0 | O127: ='UET11'!I127 -> 1 | P127: 10.75333333 | Q127: 30 | R127: 2
A128: 119 | B128: BENNAMA | C128: HOCINE | D128: ='UEF11'!M128 -> 2.506666667 | E128: ='UEF11'!N128 -> 0 | F128: ='UEF11'!O128 -> 2 | G128: ='UEM11'!J128 -> 0.2666666667 | H128: ='UEM11'!K128 -> 0 | I128: ='UEM11'!L128 -> 1 | J128: ='UED11'!J128 -> 1.466666667 | K128: ='UED11'!K128 -> 0 | L128: ='UED11'!L128 -> 1 | M128: ='UET11'!G128 -> 0 | N128: ='UET11'!H128 -> 0 | O128: ='UET11'!I128 -> 1 | P128: 1.902222222 | Q128: 0 | R128: 2
A129: 120 | B129: BENNECEUR | C129: FATIHA | D129: ='UEF11'!M129 -> 14.78333333 | E129: ='UEF11'!N129 -> 17 | F129: ='UEF11'!O129 -> 2 | G129: ='UEM11'!J129 -> 12.05 | H129: ='UEM11'!K129 -> 7 | I129: ='UEM11'!L129 -> 1 | J129: ='UED11'!J129 -> 15.99166667 | K129: ='UED11'!K129 -> 4 | L129: ='UED11'!L129 -> 1 | M129: ='UET11'!G129 -> 6.6 | N129: ='UET11'!H129 -> 0 | O129: ='UET11'!I129 -> 1 | P129: 14.03444444 | Q129: 30 | R129: 2
A130: 121 | B130: BENOTSMANE | C130: CHAIMAE | D130: ='UEF11'!M130 -> 8.933333333 | E130: ='UEF11'!N130 -> 5 | F130: ='UEF11'!O130 -> 2 | G130: ='UEM11'!J130 -> 14.56666667 | H130: ='UEM11'!K130 -> 7 | I130: ='UEM11'!L130 -> 1 | J130: ='UED11'!J130 -> 14.49166667 | K130: ='UED11'!K130 -> 4 | L130: ='UED11'!L130 -> 1 | M130: ='UET11'!G130 -> 3.6 | N130: ='UET11'!H130 -> 0 | O130: ='UET11'!I130 -> 1 | P130: 10.07 | Q130: 30 | R130: 2
A131: 122 | B131: BENOUALI | C131: MOHAMED BOUASRIA | D131: ='UEF11'!M131 -> 0 | E131: ='UEF11'!N131 -> 0 | F131: ='UEF11'!O131 -> 2 | G131: ='UEM11'!J131 -> 0 | H131: ='UEM11'!K131 -> 0 | I131: ='UEM11'!L131 -> 1 | J131: ='UED11'!J131 -> 0 | K131: ='UED11'!K131 -> 0 | L131: ='UED11'!L131 -> 1 | M131: ='UET11'!G131 -> 0 | N131: ='UET11'!H131 -> 0 | O131: ='UET11'!I131 -> 1 | P131: 0 | Q131: 0 | R131: 2
A132: 123 | B132: BENOUALI | C132: ZOHRA | D132: ='UEF11'!M132 -> 6.413333333 | E132: ='UEF11'!N132 -> 0 | F132: ='UEF11'!O132 -> 2 | G132: ='UEM11'!J132 -> 14.25 | H132: ='UEM11'!K132 -> 7 | I132: ='UEM11'!L132 -> 1 | J132: ='UED11'!J132 -> 7.305666667 | K132: ='UED11'!K132 -> 0 | L132: ='UED11'!L132 -> 2 | M132: ='UET11'!G132 -> 6 | N132: ='UET11'!H132 -> 0 | O132: ='UET11'!I132 -> 1 | P132: 7.549644444 | Q132: 7 | R132: 2
A133: 124 | B133: BENSAADIA | C133: NABIL | D133: ='UEF11'!M133 -> 0.1866666667 | E133: ='UEF11'!N133 -> 0 | F133: ='UEF11'!O133 -> 2 | G133: ='UEM11'!J133 -> 0 | H133: ='UEM11'!K133 -> 0 | I133: ='UEM11'!L133 -> 1 | J133: ='UED11'!J133 -> 0 | K133: ='UED11'!K133 -> 0 | L133: ='UED11'!L133 -> 1 | M133: ='UET11'!G133 -> 0 | N133: ='UET11'!H133 -> 0 | O133: ='UET11'!I133 -> 1 | P133: 0.1244444444 | Q133: 0 | R133: 2
A134: 125 | B134: BENSALAH | C134: ATIKA MANSOURIA | D134: ='UEF11'!M134 -> 10.47 | E134: ='UEF11'!N134 -> 17 | F134: ='UEF11'!O134 -> 2 | G134: ='UEM11'!J134 -> 17.71666667 | H134: ='UEM11'!K134 -> 7 | I134: ='UEM11'!L134 -> 1 | J134: ='UED11'!J134 -> 16.125 | K134: ='UED11'!K134 -> 4 | L134: ='UED11'!L134 -> 1 | M134: ='UET11'!G134 -> 10.53333333 | N134: ='UET11'!H134 -> 2 | O134: ='UET11'!I134 -> 1 | P134: 12.19444444 | Q134: 30 | R134: 2
A135: 126 | B135: BENSALEM | C135: ABDELKADER | D135: ='UEF11'!M135 -> 4.396666667 | E135: ='UEF11'!N135 -> 0 | F135: ='UEF11'!O135 -> 2 | G135: ='UEM11'!J135 -> 11.03333333 | H135: ='UEM11'!K135 -> 7 | I135: ='UEM11'!L135 -> 1 | J135: ='UED11'!J135 -> 6.566666667 | K135: ='UED11'!K135 -> 0 | L135: ='UED11'!L135 -> 1 | M135: ='UET11'!G135 -> 9.633333333 | N135: ='UET11'!H135 -> 0 | O135: ='UET11'!I135 -> 1 | P135: 5.92 | Q135: 7 | R135: 2
A136: 127 | B136: BENTAMRA | C136: HADJIRA | D136: ='UEF11'!M136 -> 9.37 | E136: ='UEF11'!N136 -> 11 | F136: ='UEF11'!O136 -> 2 | G136: ='UEM11'!J136 -> 11.08333333 | H136: ='UEM11'!K136 -> 7 | I136: ='UEM11'!L136 -> 1 | J136: ='UED11'!J136 -> 13.09166667 | K136: ='UED11'!K136 -> 4 | L136: ='UED11'!L136 -> 1 | M136: ='UET11'!G136 -> 12.9 | N136: ='UET11'!H136 -> 2 | O136: ='UET11'!I136 -> 1 | P136: 10.33 | Q136: 30 | R136: 2
A137: 128 | B137: BENTAMRA | C137: KARIMA | D137: ='UEF11'!M137 -> 9.903333333 | E137: ='UEF11'!N137 -> 6 | F137: ='UEF11'!O137 -> 2 | G137: ='UEM11'!J137 -> 14.65 | H137: ='UEM11'!K137 -> 7 | I137: ='UEM11'!L137 -> 1 | J137: ='UED11'!J137 -> 12.31666667 | K137: ='UED11'!K137 -> 4 | L137: ='UED11'!L137 -> 1 | M137: ='UET11'!G137 -> 16.76666667 | N137: ='UET11'!H137 -> 2 | O137: ='UET11'!I137 -> 1 | P137: 11.31555556 | Q137: 30 | R137: 2
A138: 129 | B138: BENYOUCEF | C138: KAWTHAR | D138: ='UEF11'!M138 -> 8.450666667 | E138: ='UEF11'!N138 -> 0 | F138: ='UEF11'!O138 -> 2 | G138: ='UEM11'!J138 -> 10.3 | H138: ='UEM11'!K138 -> 7 | I138: ='UEM11'!L138 -> 1 | J138: ='UED11'!J138 -> 6.435 | K138: ='UED11'!K138 -> 0 | L138: ='UED11'!L138 -> 1 | M138: ='UET11'!G138 -> 13.86666667 | N138: ='UET11'!H138 -> 2 | O138: ='UET11'!I138 -> 1 | P138: 8.789555556 | Q138: 7 | R138: 2
A139: 130 | B139: BENZIADI | C139: AMINE | D139: ='UEF11'!M139 -> 6.42 | E139: ='UEF11'!N139 -> 0 | F139: ='UEF11'!O139 -> 2 | G139: ='UEM11'!J139 -> 13.425 | H139: ='UEM11'!K139 -> 7 | I139: ='UEM11'!L139 -> 1 | J139: ='UED11'!J139 -> 7.075 | K139: ='UED11'!K139 -> 0 | L139: ='UED11'!L139 -> 2 | M139: ='UET11'!G139 -> 10.4 | N139: ='UET11'!H139 -> 2 | O139: ='UET11'!I139 -> 1 | P139: =(D139*10+G139*2+J139*2+M139*1)/15 -> 7.706666667 | Q139: =IF(P139>=10,30,E139+H139+K139) -> 7 | R139: =IF(AND(F139="1",I139="1",L139="1",O139="1"),"1","2") -> 2
A140: 131 | B140: BERRAS | C140: FATIMA ZOHRA | D140: ='UEF11'!M140 -> 10.91666667 | E140: ='UEF11'!N140 -> 17 | F140: ='UEF11'!O140 -> 2 | G140: ='UEM11'!J140 -> 17.35 | H140: ='UEM11'!K140 -> 7 | I140: ='UEM11'!L140 -> 1 | J140: ='UED11'!J140 -> 15.21666667 | K140: ='UED11'!K140 -> 4 | L140: ='UED11'!L140 -> 1 | M140: ='UET11'!G140 -> 14.33333333 | N140: ='UET11'!H140 -> 2 | O140: ='UET11'!I140 -> 1 | P140: 12.57555556 | Q140: 30 | R140: 2
A141: 132 | B141: BERROUACHEDI | C141: ABDELHAK | D141: ='UEF11'!M141 -> 10.83666667 | E141: ='UEF11'!N141 -> 17 | F141: ='UEF11'!O141 -> 2 | G141: ='UEM11'!J141 -> 8.6 | H141: ='UEM11'!K141 -> 4 | I141: ='UEM11'!L141 -> 1 | J141: ='UED11'!J141 -> 9.016666667 | K141: ='UED11'!K141 -> 2 | L141: ='UED11'!L141 -> 1 | M141: ='UET11'!G141 -> 2.4 | N141: ='UET11'!H141 -> 0 | O141: ='UET11'!I141 -> 1 | P141: 9.733333333 | Q141: 23 | R141: 2
A142: 133 | B142: BESSAAD | C142: MOULAI | D142: ='UEF11'!M142 -> 9.7 | E142: ='UEF11'!N142 -> 5 | F142: ='UEF11'!O142 -> 2 | G142: ='UEM11'!J142 -> 13.55 | H142: ='UEM11'!K142 -> 7 | I142: ='UEM11'!L142 -> 1 | J142: ='UED11'!J142 -> 12.53333333 | K142: ='UED11'!K142 -> 4 | L142: ='UED11'!L142 -> 1 | M142: ='UET11'!G142 -> 9.333333333 | N142: ='UET11'!H142 -> 0 | O142: ='UET11'!I142 -> 1 | P142: 10.56666667 | Q142: 30 | R142: 2
A143: 134 | B143: BESSAFI | C143: FATIMA ZOHRA | D143: ='UEF11'!M143 -> 0 | E143: ='UEF11'!N143 -> 0 | F143: ='UEF11'!O143 -> 2 | G143: ='UEM11'!J143 -> 0 | H143: ='UEM11'!K143 -> 0 | I143: ='UEM11'!L143 -> 1 | J143: ='UED11'!J143 -> 0 | K143: ='UED11'!K143 -> 0 | L143: ='UED11'!L143 -> 1 | M143: ='UET11'!G143 -> 0 | N143: ='UET11'!H143 -> 0 | O143: ='UET11'!I143 -> 1 | P143: 0 | Q143: 0 | R143: 2
A144: 135 | B144: BESSAYEH | C144: IMEN | D144: ='UEF11'!M144 -> 0 | E144: ='UEF11'!N144 -> 0 | F144: ='UEF11'!O144 -> 2 | G144: ='UEM11'!J144 -> 0 | H144: ='UEM11'!K144 -> 0 | I144: ='UEM11'!L144 -> 1 | J144: ='UED11'!J144 -> 0 | K144: ='UED11'!K144 -> 0 | L144: ='UED11'!L144 -> 1 | M144: ='UET11'!G144 -> 0 | N144: ='UET11'!H144 -> 0 | O144: ='UET11'!I144 -> 1 | P144: 0 | Q144: 0 | R144: 2
A145: 136 | B145: BESSEDIK | C145: IBTISSEM NAIMA | D145: ='UEF11'!M145 -> 8.806666667 | E145: ='UEF11'!N145 -> 6 | F145: ='UEF11'!O145 -> 2 | G145: ='UEM11'!J145 -> 17.28333333 | H145: ='UEM11'!K145 -> 7 | I145: ='UEM11'!L145 -> 1 | J145: ='UED11'!J145 -> 11.5 | K145: ='UED11'!K145 -> 4 | L145: ='UED11'!L145 -> 1 | M145: ='UET11'!G145 -> 14.26666667 | N145: ='UET11'!H145 -> 2 | O145: ='UET11'!I145 -> 1 | P145: 10.66 | Q145: 30 | R145: 2
A146: 137 | B146: BESSEDIK | C146: ZAKARIA ABDERRAHMANE | D146: ='UEF11'!M146 -> 9.773333333 | E146: ='UEF11'!N146 -> 11 | F146: ='UEF11'!O146 -> 2 | G146: ='UEM11'!J146 -> 16.71666667 | H146: ='UEM11'!K146 -> 7 | I146: ='UEM11'!L146 -> 1 | J146: ='UED11'!J146 -> 10.875 | K146: ='UED11'!K146 -> 4 | L146: ='UED11'!L146 -> 1 | M146: ='UET11'!G146 -> 14.53333333 | N146: ='UET11'!H146 -> 2 | O146: ='UET11'!I146 -> 1 | P146: 11.16333333 | Q146: 30 | R146: 2
A147: 138 | B147: BESSEGHIR | C147: FERIEL | D147: ='UEF11'!M147 -> 10.26333333 | E147: ='UEF11'!N147 -> 17 | F147: ='UEF11'!O147 -> 2 | G147: ='UEM11'!J147 -> 16.68333333 | H147: ='UEM11'!K147 -> 7 | I147: ='UEM11'!L147 -> 1 | J147: ='UED11'!J147 -> 11.85833333 | K147: ='UED11'!K147 -> 4 | L147: ='UED11'!L147 -> 1 | M147: ='UET11'!G147 -> 13.36666667 | N147: ='UET11'!H147 -> 2 | O147: ='UET11'!I147 -> 1 | P147: 11.53888889 | Q147: 30 | R147: 2
A148: 139 | B148: BETTAHAR | C148: TALHA | D148: ='UEF11'!M148 -> 8.066666667 | E148: ='UEF11'!N148 -> 0 | F148: ='UEF11'!O148 -> 2 | G148: ='UEM11'!J148 -> 14.4 | H148: ='UEM11'!K148 -> 7 | I148: ='UEM11'!L148 -> 1 | J148: ='UED11'!J148 -> 8.616666667 | K148: ='UED11'!K148 -> 0 | L148: ='UED11'!L148 -> 2 | M148: ='UET11'!G148 -> 3.6 | N148: ='UET11'!H148 -> 0 | O148: ='UET11'!I148 -> 1 | P148: 8.686666667 | Q148: 7 | R148: 2
A149: 140 | B149: BEZZAIM | C149: HOURIA | D149: ='UEF11'!M149 -> 8.826666667 | E149: ='UEF11'!N149 -> 5 | F149: ='UEF11'!O149 -> 2 | G149: ='UEM11'!J149 -> 13.9 | H149: ='UEM11'!K149 -> 7 | I149: ='UEM11'!L149 -> 1 | J149: ='UED11'!J149 -> 11.06666667 | K149: ='UED11'!K149 -> 4 | L149: ='UED11'!L149 -> 1 | M149: ='UET11'!G149 -> 12.4 | N149: ='UET11'!H149 -> 2 | O149: ='UET11'!I149 -> 1 | P149: 10.04 | Q149: 30 | R149: 2
A150: 141 | B150: BOKHARI | C150: CHEMS EDDINE ISMAIL | D150: ='UEF11'!M150 -> 10.03 | E150: ='UEF11'!N150 -> 17 | F150: ='UEF11'!O150 -> 2 | G150: ='UEM11'!J150 -> 18.5 | H150: ='UEM11'!K150 -> 7 | I150: ='UEM11'!L150 -> 1 | J150: ='UED11'!J150 -> 10.55833333 | K150: ='UED11'!K150 -> 4 | L150: ='UED11'!L150 -> 1 | M150: ='UET11'!G150 -> 15.9 | N150: ='UET11'!H150 -> 2 | O150: ='UET11'!I150 -> 1 | P150: 11.62111111 | Q150: 30 | R150: 2
A151: 142 | B151: BORANE | C151: MOHAMED | D151: ='UEF11'!M151 -> 0 | E151: ='UEF11'!N151 -> 0 | F151: ='UEF11'!O151 -> 2 | G151: ='UEM11'!J151 -> 0 | H151: ='UEM11'!K151 -> 0 | I151: ='UEM11'!L151 -> 1 | J151: ='UED11'!J151 -> 0 | K151: ='UED11'!K151 -> 0 | L151: ='UED11'!L151 -> 1 | M151: ='UET11'!G151 -> 6 | N151: ='UET11'!H151 -> 0 | O151: ='UET11'!I151 -> 1 | P151: 0.4 | Q151: 0 | R151: 2
A152: 143 | B152: BOUADJMI | C152: AICHA | D152: ='UEF11'!M152 -> 0 | E152: ='UEF11'!N152 -> 0 | F152: ='UEF11'!O152 -> 2 | G152: ='UEM11'!J152 -> 0 | H152: ='UEM11'!K152 -> 0 | I152: ='UEM11'!L152 -> 1 | J152: ='UED11'!J152 -> 0 | K152: ='UED11'!K152 -> 0 | L152: ='UED11'!L152 -> 1 | M152: ='UET11'!G152 -> 0 | N152: ='UET11'!H152 -> 0 | O152: ='UET11'!I152 -> 1 | P152: 0 | Q152: 0 | R152: 2
A153: 144 | B153: BOUAFIA | C153: HOUSSINE | D153: ='UEF11'!M153 -> 0 | E153: ='UEF11'!N153 -> 0 | F153: ='UEF11'!O153 -> 2 | G153: ='UEM11'!J153 -> 0 | H153: ='UEM11'!K153 -> 0 | I153: ='UEM11'!L153 -> 1 | J153: ='UED11'!J153 -> 0 | K153: ='UED11'!K153 -> 0 | L153: ='UED11'!L153 -> 1 | M153: ='UET11'!G153 -> 0 | N153: ='UET11'!H153 -> 0 | O153: ='UET11'!I153 -> 1 | P153: 0 | Q153: 0 | R153: 2
A154: 145 | B154: BOUALEM | C154: AMIRA | D154: ='UEF11'!M154 -> 0 | E154: ='UEF11'!N154 -> 0 | F154: ='UEF11'!O154 -> 2 | G154: ='UEM11'!J154 -> 0 | H154: ='UEM11'!K154 -> 0 | I154: ='UEM11'!L154 -> 1 | J154: ='UED11'!J154 -> 0 | K154: ='UED11'!K154 -> 0 | L154: ='UED11'!L154 -> 1 | M154: ='UET11'!G154 -> 0 | N154: ='UET11'!H154 -> 0 | O154: ='UET11'!I154 -> 1 | P154: 0 | Q154: 0 | R154: 2
A155: 146 | B155: BOUATTOU | C155: YEMNA | D155: ='UEF11'!M155 -> 9.286666667 | E155: ='UEF11'!N155 -> 6 | F155: ='UEF11'!O155 -> 2 | G155: ='UEM11'!J155 -> 12.63333333 | H155: ='UEM11'!K155 -> 7 | I155: ='UEM11'!L155 -> 2 | J155: ='UED11'!J155 -> 12.99166667 | K155: ='UED11'!K155 -> 4 | L155: ='UED11'!L155 -> 1 | M155: ='UET11'!G155 -> 11.53333333 | N155: ='UET11'!H155 -> 2 | O155: ='UET11'!I155 -> 1 | P155: 10.37666667 | Q155: 30 | R155: 2
A156: 147 | B156: BOUBEKEUR | C156: MAROUA AMEL | D156: ='UEF11'!M156 -> 11.74666667 | E156: ='UEF11'!N156 -> 17 | F156: ='UEF11'!O156 -> 2 | G156: ='UEM11'!J156 -> 11.65 | H156: ='UEM11'!K156 -> 7 | I156: ='UEM11'!L156 -> 1 | J156: ='UED11'!J156 -> 15.9 | K156: ='UED11'!K156 -> 4 | L156: ='UED11'!L156 -> 1 | M156: ='UET11'!G156 -> 12.53333333 | N156: ='UET11'!H156 -> 2 | O156: ='UET11'!I156 -> 1 | P156: 12.34 | Q156: 30 | R156: 2
A157: 148 | B157: BOUCEDRA | C157: NADA | D157: ='UEF11'!M157 -> 8.453333333 | E157: ='UEF11'!N157 -> 5 | F157: ='UEF11'!O157 -> 2 | G157: ='UEM11'!J157 -> 15.38333333 | H157: ='UEM11'!K157 -> 7 | I157: ='UEM11'!L157 -> 1 | J157: ='UED11'!J157 -> 10.65 | K157: ='UED11'!K157 -> 4 | L157: ='UED11'!L157 -> 1 | M157: ='UET11'!G157 -> 11.73333333 | N157: ='UET11'!H157 -> 2 | O157: ='UET11'!I157 -> 1 | P157: 9.888888889 | Q157: 16 | R157: 2
A158: 149 | B158: BOUCHAMA | C158: HEITHEM | D158: ='UEF11'!M158 -> 0 | E158: ='UEF11'!N158 -> 0 | F158: ='UEF11'!O158 -> 2 | G158: ='UEM11'!J158 -> 0 | H158: ='UEM11'!K158 -> 0 | I158: ='UEM11'!L158 -> 1 | J158: ='UED11'!J158 -> 0 | K158: ='UED11'!K158 -> 0 | L158: ='UED11'!L158 -> 1 | M158: ='UET11'!G158 -> 0 | N158: ='UET11'!H158 -> 0 | O158: ='UET11'!I158 -> 1 | P158: 0 | Q158: 0 | R158: 2
A159: 150 | B159: BOUDIA | C159: NADIA | D159: ='UEF11'!M159 -> 12.80333333 | E159: ='UEF11'!N159 -> 17 | F159: ='UEF11'!O159 -> 2 | G159: ='UEM11'!J159 -> 14.48333333 | H159: ='UEM11'!K159 -> 7 | I159: ='UEM11'!L159 -> 1 | J159: ='UED11'!J159 -> 14.05833333 | K159: ='UED11'!K159 -> 4 | L159: ='UED11'!L159 -> 1 | M159: ='UET11'!G159 -> 15.36666667 | N159: ='UET11'!H159 -> 2 | O159: ='UET11'!I159 -> 1 | P159: 13.36555556 | Q159: 30 | R159: 2
A160: 151 | B160: BOUDRAF | C160: MOHAMED | D160: ='UEF11'!M160 -> 0 | E160: ='UEF11'!N160 -> 0 | F160: ='UEF11'!O160 -> 2 | G160: ='UEM11'!J160 -> 0 | H160: ='UEM11'!K160 -> 0 | I160: ='UEM11'!L160 -> 1 | J160: ='UED11'!J160 -> 0 | K160: ='UED11'!K160 -> 0 | L160: ='UED11'!L160 -> 1 | M160: ='UET11'!G160 -> 0 | N160: ='UET11'!H160 -> 0 | O160: ='UET11'!I160 -> 1 | P160: 0 | Q160: 0 | R160: 2
A161: 152 | B161: BOUHADEF | C161: ASMAA | D161: ='UEF11'!M161 -> 7.606666667 | E161: ='UEF11'!N161 -> 0 | F161: ='UEF11'!O161 -> 2 | G161: ='UEM11'!J161 -> 12.93333333 | H161: ='UEM11'!K161 -> 7 | I161: ='UEM11'!L161 -> 1 | J161: ='UED11'!J161 -> 11.46666667 | K161: ='UED11'!K161 -> 4 | L161: ='UED11'!L161 -> 1 | M161: ='UET11'!G161 -> 12.36666667 | N161: ='UET11'!H161 -> 2 | O161: ='UET11'!I161 -> 1 | P161: 9.148888889 | Q161: 11 | R161: 2
A162: 153 | B162: BOUHALI | C162: NACER | D162: ='UEF11'!M162 -> 6.086666667 | E162: ='UEF11'!N162 -> 0 | F162: ='UEF11'!O162 -> 2 | G162: ='UEM11'!J162 -> 8.9 | H162: ='UEM11'!K162 -> 4 | I162: ='UEM11'!L162 -> 1 | J162: ='UED11'!J162 -> 5.9 | K162: ='UED11'!K162 -> 0 | L162: ='UED11'!L162 -> 1 | M162: ='UET11'!G162 -> 1.8 | N162: ='UET11'!H162 -> 0 | O162: ='UET11'!I162 -> 1 | P162: 6.151111111 | Q162: 4 | R162: 2
A163: 154 | B163: BOUHALLALENE | C163: MOHAMED ABDEL HAFID | D163: ='UEF11'!M163 -> 9.843333333 | E163: ='UEF11'!N163 -> 11 | F163: ='UEF11'!O163 -> 2 | G163: ='UEM11'!J163 -> 17.9 | H163: ='UEM11'!K163 -> 7 | I163: ='UEM11'!L163 -> 1 | J163: ='UED11'!J163 -> 9.533333333 | K163: ='UED11'!K163 -> 0 | L163: ='UED11'!L163 -> 1 | M163: ='UET11'!G163 -> 12.06666667 | N163: ='UET11'!H163 -> 2 | O163: ='UET11'!I163 -> 1 | P163: 11.02444444 | Q163: 30 | R163: 2
A164: 155 | B164: BOUHALOUFA | C164: MOHAMED AMINE | D164: ='UEF11'!M164 -> 5.666666667 | E164: ='UEF11'!N164 -> 0 | F164: ='UEF11'!O164 -> 2 | G164: ='UEM11'!J164 -> 14.01666667 | H164: ='UEM11'!K164 -> 7 | I164: ='UEM11'!L164 -> 1 | J164: ='UED11'!J164 -> 7.133333333 | K164: ='UED11'!K164 -> 0 | L164: ='UED11'!L164 -> 2 | M164: ='UET11'!G164 -> 6 | N164: ='UET11'!H164 -> 0 | O164: ='UET11'!I164 -> 1 | P164: 6.997777778 | Q164: 7 | R164: 2
A165: 156 | B165: BOUICH | C165: MOHAMED | D165: ='UEF11'!M165 -> 0 | E165: ='UEF11'!N165 -> 0 | F165: ='UEF11'!O165 -> 2 | G165: ='UEM11'!J165 -> 0 | H165: ='UEM11'!K165 -> 0 | I165: ='UEM11'!L165 -> 1 | J165: ='UED11'!J165 -> 0 | K165: ='UED11'!K165 -> 0 | L165: ='UED11'!L165 -> 1 | M165: ='UET11'!G165 -> 0 | N165: ='UET11'!H165 -> 0 | O165: ='UET11'!I165 -> 1 | P165: 0 | Q165: 0 | R165: 2
A166: 157 | B166: BOUKEFFA | C166: ABDELHAMID | D166: ='UEF11'!M166 -> 0 | E166: ='UEF11'!N166 -> 0 | F166: ='UEF11'!O166 -> 2 | G166: ='UEM11'!J166 -> 0 | H166: ='UEM11'!K166 -> 0 | I166: ='UEM11'!L166 -> 1 | J166: ='UED11'!J166 -> 0 | K166: ='UED11'!K166 -> 0 | L166: ='UED11'!L166 -> 1 | M166: ='UET11'!G166 -> 0 | N166: ='UET11'!H166 -> 0 | O166: ='UET11'!I166 -> 1 | P166: 0 | Q166: 0 | R166: 2
A167: 158 | B167: BOUKHARI | C167: MADIHA | D167: ='UEF11'!M167 -> 7.826666667 | E167: ='UEF11'!N167 -> 5 | F167: ='UEF11'!O167 -> 2 | G167: ='UEM11'!J167 -> 12.9 | H167: ='UEM11'!K167 -> 7 | I167: ='UEM11'!L167 -> 1 | J167: ='UED11'!J167 -> 14.84166667 | K167: ='UED11'!K167 -> 4 | L167: ='UED11'!L167 -> 1 | M167: ='UET11'!G167 -> 11.93333333 | N167: ='UET11'!H167 -> 2 | O167: ='UET11'!I167 -> 1 | P167: 9.712222222 | Q167: 16 | R167: 2
A168: 159 | B168: BOUKHELIF | C168: MHAMED | D168: ='UEF11'!M168 -> 9.793333333 | E168: ='UEF11'!N168 -> 11 | F168: ='UEF11'!O168 -> 2 | G168: ='UEM11'!J168 -> 13.35833333 | H168: ='UEM11'!K168 -> 7 | I168: ='UEM11'!L168 -> 1 | J168: ='UED11'!J168 -> 11.85833333 | K168: ='UED11'!K168 -> 4 | L168: ='UED11'!L168 -> 1 | M168: ='UET11'!G168 -> 10.4 | N168: ='UET11'!H168 -> 2 | O168: ='UET11'!I168 -> 1 | P168: 10.58444444 | Q168: 30 | R168: 2
A169: 160 | B169: BOUKHLIF | C169: MOHAMED | D169: ='UEF11'!M169 -> 4.193333333 | E169: ='UEF11'!N169 -> 0 | F169: ='UEF11'!O169 -> 2 | G169: ='UEM11'!J169 -> 14.75 | H169: ='UEM11'!K169 -> 7 | I169: ='UEM11'!L169 -> 1 | J169: ='UED11'!J169 -> 3.225 | K169: ='UED11'!K169 -> 0 | L169: ='UED11'!L169 -> 1 | M169: ='UET11'!G169 -> 0 | N169: ='UET11'!H169 -> 0 | O169: ='UET11'!I169 -> 1 | P169: 5.192222222 | Q169: 7 | R169: 2
A170: 161 | B170: BOUKOULA | C170: HAFID | D170: ='UEF11'!M170 -> 6.46 | E170: ='UEF11'!N170 -> 0 | F170: ='UEF11'!O170 -> 2 | G170: ='UEM11'!J170 -> 8.05 | H170: ='UEM11'!K170 -> 3 | I170: ='UEM11'!L170 -> 1 | J170: ='UED11'!J170 -> 5.058333333 | K170: ='UED11'!K170 -> 0 | L170: ='UED11'!L170 -> 1 | M170: ='UET11'!G170 -> 0 | N170: ='UET11'!H170 -> 0 | O170: ='UET11'!I170 -> 1 | P170: 6.054444444 | Q170: 3 | R170: 2
A171: 162 | B171: BOUMAZA | C171: FATIMA ZOHRA | D171: ='UEF11'!M171 -> 10.39 | E171: ='UEF11'!N171 -> 17 | F171: ='UEF11'!O171 -> 2 | G171: ='UEM11'!J171 -> 9.28 | H171: ='UEM11'!K171 -> 4 | I171: ='UEM11'!L171 -> 1 | J171: ='UED11'!J171 -> 11.094 | K171: ='UED11'!K171 -> 4 | L171: ='UED11'!L171 -> 1 | M171: ='UET11'!G171 -> 7.5 | N171: ='UET11'!H171 -> 0 | O171: ='UET11'!I171 -> 1 | P171: 10.1432 | Q171: 30 | R171: 2
A172: 163 | B172: BOUMESSAOUD | C172: SARA | D172: ='UEF11'!M172 -> 9.66 | E172: ='UEF11'!N172 -> 5 | F172: ='UEF11'!O172 -> 2 | G172: ='UEM11'!J172 -> 11.41666667 | H172: ='UEM11'!K172 -> 7 | I172: ='UEM11'!L172 -> 1 | J172: ='UED11'!J172 -> 14.93333333 | K172: ='UED11'!K172 -> 4 | L172: ='UED11'!L172 -> 1 | M172: ='UET11'!G172 -> 16.16666667 | N172: ='UET11'!H172 -> 2 | O172: ='UET11'!I172 -> 1 | P172: 11.03111111 | Q172: 30 | R172: 2
A173: 164 | B173: BOUNEDJAR | C173: DJALLEL | D173: ='UEF11'!M173 -> 0 | E173: ='UEF11'!N173 -> 0 | F173: ='UEF11'!O173 -> 2 | G173: ='UEM11'!J173 -> 0 | H173: ='UEM11'!K173 -> 0 | I173: ='UEM11'!L173 -> 1 | J173: ='UED11'!J173 -> 0 | K173: ='UED11'!K173 -> 0 | L173: ='UED11'!L173 -> 1 | M173: ='UET11'!G173 -> 0 | N173: ='UET11'!H173 -> 0 | O173: ='UET11'!I173 -> 1 | P173: 0 | Q173: 0 | R173: 2
A174: 165 | B174: BOURANE | C174: MOKHTAR | D174: ='UEF11'!M174 -> 9.493333333 | E174: ='UEF11'!N174 -> 6 | F174: ='UEF11'!O174 -> 2 | G174: ='UEM11'!J174 -> 15.4 | H174: ='UEM11'!K174 -> 7 | I174: ='UEM11'!L174 -> 1 | J174: ='UED11'!J174 -> 11.65833333 | K174: ='UED11'!K174 -> 4 | L174: ='UED11'!L174 -> 1 | M174: ='UET11'!G174 -> 15.2 | N174: ='UET11'!H174 -> 2 | O174: ='UET11'!I174 -> 2 | P174: 10.95 | Q174: 30 | R174: 2
A175: 166 | B175: BOURASS | C175: AHMED | D175: ='UEF11'!M175 -> 9.86 | E175: ='UEF11'!N175 -> 6 | F175: ='UEF11'!O175 -> 2 | G175: ='UEM11'!J175 -> 19.25 | H175: ='UEM11'!K175 -> 7 | I175: ='UEM11'!L175 -> 1 | J175: ='UED11'!J175 -> 13.45566667 | K175: ='UED11'!K175 -> 4 | L175: ='UED11'!L175 -> 1 | M175: ='UET11'!G175 -> 12 | N175: ='UET11'!H175 -> 2 | O175: ='UET11'!I175 -> 1 | P175: 11.73408889 | Q175: 30 | R175: 2
A176: 167 | B176: BOUROUIS | C176: ANSSAR | D176: ='UEF11'!M176 -> 0 | E176: ='UEF11'!N176 -> 0 | F176: ='UEF11'!O176 -> 2 | G176: ='UEM11'!J176 -> 0 | H176: ='UEM11'!K176 -> 0 | I176: ='UEM11'!L176 -> 1 | J176: ='UED11'!J176 -> 0 | K176: ='UED11'!K176 -> 0 | L176: ='UED11'!L176 -> 1 | M176: ='UET11'!G176 -> 0 | N176: ='UET11'!H176 -> 0 | O176: ='UET11'!I176 -> 1 | P176: 0 | Q176: 0 | R176: 2
A177: 168 | B177: BOUTIBA | C177: HOUARI | D177: ='UEF11'!M177 -> 7.966666667 | E177: ='UEF11'!N177 -> 0 | F177: ='UEF11'!O177 -> 2 | G177: ='UEM11'!J177 -> 13.99166667 | H177: ='UEM11'!K177 -> 7 | I177: ='UEM11'!L177 -> 1 | J177: ='UED11'!J177 -> 9.697333333 | K177: ='UED11'!K177 -> 0 | L177: ='UED11'!L177 -> 2 | M177: ='UET11'!G177 -> 11.66666667 | N177: ='UET11'!H177 -> 2 | O177: ='UET11'!I177 -> 1 | P177: 9.247422222 | Q177: 7 | R177: 2
A178: 169 | B178: BOUTOUIL | C178: ABDELMELEK | D178: ='UEF11'!M178 -> 7.68 | E178: ='UEF11'!N178 -> 6 | F178: ='UEF11'!O178 -> 2 | G178: ='UEM11'!J178 -> 17.775 | H178: ='UEM11'!K178 -> 7 | I178: ='UEM11'!L178 -> 1 | J178: ='UED11'!J178 -> 11.90833333 | K178: ='UED11'!K178 -> 4 | L178: ='UED11'!L178 -> 1 | M178: ='UET11'!G178 -> 12.06666667 | N178: ='UET11'!H178 -> 2 | O178: ='UET11'!I178 -> 1 | P178: 9.882222222 | Q178: 17 | R178: 2
A179: 170 | B179: BOUYAKOUB | C179: MOKHTAR | D179: ='UEF11'!M179 -> 8.766666667 | E179: ='UEF11'!N179 -> 6 | F179: ='UEF11'!O179 -> 2 | G179: ='UEM11'!J179 -> 10.03333333 | H179: ='UEM11'!K179 -> 7 | I179: ='UEM11'!L179 -> 1 | J179: ='UED11'!J179 -> 15.06666667 | K179: ='UED11'!K179 -> 4 | L179: ='UED11'!L179 -> 1 | M179: ='UET11'!G179 -> 6.233333333 | N179: ='UET11'!H179 -> 0 | O179: ='UET11'!I179 -> 1 | P179: 9.606666667 | Q179: 17 | R179: 2
A180: 171 | B180: BOUZID | C180: DJOHAR | D180: ='UEF11'!M180 -> 8.006666667 | E180: ='UEF11'!N180 -> 0 | F180: ='UEF11'!O180 -> 2 | G180: ='UEM11'!J180 -> 17.2 | H180: ='UEM11'!K180 -> 7 | I180: ='UEM11'!L180 -> 1 | J180: ='UED11'!J180 -> 10.58333333 | K180: ='UED11'!K180 -> 4 | L180: ='UED11'!L180 -> 2 | M180: ='UET11'!G180 -> 14.33333333 | N180: ='UET11'!H180 -> 2 | O180: ='UET11'!I180 -> 2 | P180: 9.997777778 | Q180: 11 | R180: 2
A181: 172 | B181: BOUZID | C181: HADJA YAMINA | D181: ='UEF11'!M181 -> 8.4 | E181: ='UEF11'!N181 -> 5 | F181: ='UEF11'!O181 -> 2 | G181: ='UEM11'!J181 -> 16.6 | H181: ='UEM11'!K181 -> 7 | I181: ='UEM11'!L181 -> 1 | J181: ='UED11'!J181 -> 13.06666667 | K181: ='UED11'!K181 -> 4 | L181: ='UED11'!L181 -> 1 | M181: ='UET11'!G181 -> 11.86666667 | N181: ='UET11'!H181 -> 2 | O181: ='UET11'!I181 -> 1 | P181: 10.34666667 | Q181: 30 | R181: 2
A182: 173 | B182: BRAHIMI | C182: NAIMA | D182: ='UEF11'!M182 -> 13.28 | E182: ='UEF11'!N182 -> 17 | F182: ='UEF11'!O182 -> 2 | G182: ='UEM11'!J182 -> 15.96666667 | H182: ='UEM11'!K182 -> 7 | I182: ='UEM11'!L182 -> 1 | J182: ='UED11'!J182 -> 16.55833333 | K182: ='UED11'!K182 -> 4 | L182: ='UED11'!L182 -> 1 | M182: ='UET11'!G182 -> 5.333333333 | N182: ='UET11'!H182 -> 0 | O182: ='UET11'!I182 -> 1 | P182: 13.54555556 | Q182: 30 | R182: 2
A183: 174 | B183: BRAHIMI | C183: SID AHMED | D183: ='UEF11'!M183 -> 8.403333333 | E183: ='UEF11'!N183 -> 0 | F183: ='UEF11'!O183 -> 2 | G183: ='UEM11'!J183 -> 17.48333333 | H183: ='UEM11'!K183 -> 7 | I183: ='UEM11'!L183 -> 1 | J183: ='UED11'!J183 -> 5.741666667 | K183: ='UED11'!K183 -> 0 | L183: ='UED11'!L183 -> 2 | M183: ='UET11'!G183 -> 11.26666667 | N183: ='UET11'!H183 -> 2 | O183: ='UET11'!I183 -> 1 | P183: 9.45 | Q183: 7 | R183: 2
A184: 175 | B184: BRAIK | C184: AHMED TAHAR ILYAS | D184: ='UEF11'!M184 -> 9.74 | E184: ='UEF11'!N184 -> 11 | F184: ='UEF11'!O184 -> 2 | G184: ='UEM11'!J184 -> 15.23333333 | H184: ='UEM11'!K184 -> 7 | I184: ='UEM11'!L184 -> 1 | J184: ='UED11'!J184 -> 7.508333333 | K184: ='UED11'!K184 -> 0 | L184: ='UED11'!L184 -> 1 | M184: ='UET11'!G184 -> 10.7 | N184: ='UET11'!H184 -> 2 | O184: ='UET11'!I184 -> 1 | P184: 10.23888889 | Q184: 30 | R184: 2
A185: 176 | B185: BRIKI | C185: NOUR ELHOUDA | D185: ='UEF11'!M185 -> 9.696666667 | E185: ='UEF11'!N185 -> 11 | F185: ='UEF11'!O185 -> 2 | G185: ='UEM11'!J185 -> 17.89166667 | H185: ='UEM11'!K185 -> 7 | I185: ='UEM11'!L185 -> 1 | J185: ='UED11'!J185 -> 16.23333333 | K185: ='UED11'!K185 -> 4 | L185: ='UED11'!L185 -> 1 | M185: ='UET11'!G185 -> 12.7 | N185: ='UET11'!H185 -> 2 | O185: ='UET11'!I185 -> 1 | P185: 11.86111111 | Q185: 30 | R185: 2
A186: 177 | B186: CHACHOU | C186: MOHAMED EL AMINE | D186: ='UEF11'!M186 -> 0 | E186: ='UEF11'!N186 -> 0 | F186: ='UEF11'!O186 -> 2 | G186: ='UEM11'!J186 -> 0 | H186: ='UEM11'!K186 -> 0 | I186: ='UEM11'!L186 -> 1 | J186: ='UED11'!J186 -> 0 | K186: ='UED11'!K186 -> 0 | L186: ='UED11'!L186 -> 1 | M186: ='UET11'!G186 -> 0 | N186: ='UET11'!H186 -> 0 | O186: ='UET11'!I186 -> 1 | P186: 0 | Q186: 0 | R186: 2
A187: 178 | B187: CHAIB | C187: FATIMA ZOHRA | D187: ='UEF11'!M187 -> 7.86 | E187: ='UEF11'!N187 -> 0 | F187: ='UEF11'!O187 -> 2 | G187: ='UEM11'!J187 -> 12.55 | H187: ='UEM11'!K187 -> 7 | I187: ='UEM11'!L187 -> 1 | J187: ='UED11'!J187 -> 12.48333333 | K187: ='UED11'!K187 -> 4 | L187: ='UED11'!L187 -> 1 | M187: ='UET11'!G187 -> 11.93333333 | N187: ='UET11'!H187 -> 2 | O187: ='UET11'!I187 -> 1 | P187: 9.373333333 | Q187: 11 | R187: 2
A188: 179 | B188: CHAKI | C188: ABDELMADJID | D188: ='UEF11'!M188 -> 9.416666667 | E188: ='UEF11'!N188 -> 5 | F188: ='UEF11'!O188 -> 2 | G188: ='UEM11'!J188 -> 18.2 | H188: ='UEM11'!K188 -> 7 | I188: ='UEM11'!L188 -> 1 | J188: ='UED11'!J188 -> 14.26666667 | K188: ='UED11'!K188 -> 4 | L188: ='UED11'!L188 -> 1 | M188: ='UET11'!G188 -> 15.26666667 | N188: ='UET11'!H188 -> 2 | O188: ='UET11'!I188 -> 1 | P188: 11.62444444 | Q188: 30 | R188: 2
A189: 180 | B189: CHAKOR | C189: KAOUTER NESRINE | D189: ='UEF11'!M189 -> 0 | E189: ='UEF11'!N189 -> 0 | F189: ='UEF11'!O189 -> 2 | G189: ='UEM11'!J189 -> 0 | H189: ='UEM11'!K189 -> 0 | I189: ='UEM11'!L189 -> 1 | J189: ='UED11'!J189 -> 0 | K189: ='UED11'!K189 -> 0 | L189: ='UED11'!L189 -> 1 | M189: ='UET11'!G189 -> 0 | N189: ='UET11'!H189 -> 0 | O189: ='UET11'!I189 -> 1 | P189: 0 | Q189: 0 | R189: 2
A190: 181 | B190: CHEBOUB | C190: AMARIA | D190: ='UEF11'!M190 -> 0 | E190: ='UEF11'!N190 -> 0 | F190: ='UEF11'!O190 -> 2 | G190: ='UEM11'!J190 -> 0 | H190: ='UEM11'!K190 -> 0 | I190: ='UEM11'!L190 -> 1 | J190: ='UED11'!J190 -> 3.4 | K190: ='UED11'!K190 -> 0 | L190: ='UED11'!L190 -> 1 | M190: ='UET11'!G190 -> 0 | N190: ='UET11'!H190 -> 0 | O190: ='UET11'!I190 -> 1 | P190: 0.4533333333 | Q190: 0 | R190: 2
A191: 182 | B191: CHEMRAK | C191: SIHEM | D191: ='UEF11'!M191 -> 0.05333333333 | E191: ='UEF11'!N191 -> 0 | F191: ='UEF11'!O191 -> 2 | G191: ='UEM11'!J191 -> 5.2 | H191: ='UEM11'!K191 -> 4 | I191: ='UEM11'!L191 -> 1 | J191: ='UED11'!J191 -> 0.7333333333 | K191: ='UED11'!K191 -> 0 | L191: ='UED11'!L191 -> 1 | M191: ='UET11'!G191 -> 0 | N191: ='UET11'!H191 -> 0 | O191: ='UET11'!I191 -> 1 | P191: 0.8266666667 | Q191: 4 | R191: 2
A192: 183 | B192: CHENAFA | C192: YASSAMINE | D192: ='UEF11'!M192 -> 13.72666667 | E192: ='UEF11'!N192 -> 17 | F192: ='UEF11'!O192 -> 2 | G192: ='UEM11'!J192 -> 18.40833333 | H192: ='UEM11'!K192 -> 7 | I192: ='UEM11'!L192 -> 1 | J192: ='UED11'!J192 -> 14.04733333 | K192: ='UED11'!K192 -> 4 | L192: ='UED11'!L192 -> 1 | M192: ='UET11'!G192 -> 15.03333333 | N192: ='UET11'!H192 -> 2 | O192: ='UET11'!I192 -> 1 | P192: 14.48075556 | Q192: 30 | R192: 2
A193: 184 | B193: CHERFI | C193: MOHAMED EL AMINE | D193: ='UEF11'!M193 -> 6.226666667 | E193: ='UEF11'!N193 -> 0 | F193: ='UEF11'!O193 -> 2 | G193: ='UEM11'!J193 -> 12.58333333 | H193: ='UEM11'!K193 -> 7 | I193: ='UEM11'!L193 -> 1 | J193: ='UED11'!J193 -> 9.55 | K193: ='UED11'!K193 -> 2 | L193: ='UED11'!L193 -> 2 | M193: ='UET11'!G193 -> 9 | N193: ='UET11'!H193 -> 0 | O193: ='UET11'!I193 -> 2 | P193: 7.702222222 | Q193: 9 | R193: 2
A194: 185 | B194: CHERGUI | C194: AMIRA | D194: ='UEF11'!M194 -> 7.626666667 | E194: ='UEF11'!N194 -> 0 | F194: ='UEF11'!O194 -> 2 | G194: ='UEM11'!J194 -> 14.01666667 | H194: ='UEM11'!K194 -> 7 | I194: ='UEM11'!L194 -> 2 | J194: ='UED11'!J194 -> 11.90833333 | K194: ='UED11'!K194 -> 4 | L194: ='UED11'!L194 -> 1 | M194: ='UET11'!G194 -> 11.7 | N194: ='UET11'!H194 -> 2 | O194: ='UET11'!I194 -> 1 | P194: 9.321111111 | Q194: 11 | R194: 2
A195: 186 | B195: CHEURFAOUI | C195: NAWEL | D195: ='UEF11'!M195 -> 7.76 | E195: ='UEF11'!N195 -> 5 | F195: ='UEF11'!O195 -> 2 | G195: ='UEM11'!J195 -> 17.43333333 | H195: ='UEM11'!K195 -> 7 | I195: ='UEM11'!L195 -> 1 | J195: ='UED11'!J195 -> 8.933333333 | K195: ='UED11'!K195 -> 2 | L195: ='UED11'!L195 -> 1 | M195: ='UET11'!G195 -> 15.36666667 | N195: ='UET11'!H195 -> 2 | O195: ='UET11'!I195 -> 1 | P195: 9.713333333 | Q195: 14 | R195: 2
A196: 187 | B196: CHIBANI | C196: ABDELKADER | D196: ='UEF11'!M196 -> 13.1 | E196: ='UEF11'!N196 -> 17 | F196: ='UEF11'!O196 -> 2 | G196: ='UEM11'!J196 -> 16.58333333 | H196: ='UEM11'!K196 -> 7 | I196: ='UEM11'!L196 -> 1 | J196: ='UED11'!J196 -> 14.125 | K196: ='UED11'!K196 -> 4 | L196: ='UED11'!L196 -> 1 | M196: ='UET11'!G196 -> 10.13333333 | N196: ='UET11'!H196 -> 2 | O196: ='UET11'!I196 -> 1 | P196: 13.50333333 | Q196: 30 | R196: 2
A197: 188 | B197: CHIKHAOUI | C197: NOUREDDINE | D197: ='UEF11'!M197 -> 3.393333333 | E197: ='UEF11'!N197 -> 0 | F197: ='UEF11'!O197 -> 2 | G197: ='UEM11'!J197 -> 2.8 | H197: ='UEM11'!K197 -> 0 | I197: ='UEM11'!L197 -> 1 | J197: ='UED11'!J197 -> 5.958333333 | K197: ='UED11'!K197 -> 0 | L197: ='UED11'!L197 -> 1 | M197: ='UET11'!G197 -> 0 | N197: ='UET11'!H197 -> 0 | O197: ='UET11'!I197 -> 1 | P197: 3.43 | Q197: 0 | R197: 2
A198: 189 | B198: DAHMANE | C198: OUSSAMA | D198: ='UEF11'!M198 -> 9.883333333 | E198: ='UEF11'!N198 -> 11 | F198: ='UEF11'!O198 -> 2 | G198: ='UEM11'!J198 -> 17.95 | H198: ='UEM11'!K198 -> 7 | I198: ='UEM11'!L198 -> 1 | J198: ='UED11'!J198 -> 14.01666667 | K198: ='UED11'!K198 -> 4 | L198: ='UED11'!L198 -> 1 | M198: ='UET11'!G198 -> 11.86666667 | N198: ='UET11'!H198 -> 2 | O198: ='UET11'!I198 -> 1 | P198: 11.64222222 | Q198: 30 | R198: 2
A199: 190 | B199: DAHMANI | C199: AICHA | D199: ='UEF11'!M199 -> 10.85333333 | E199: ='UEF11'!N199 -> 17 | F199: ='UEF11'!O199 -> 2 | G199: ='UEM11'!J199 -> 16.7 | H199: ='UEM11'!K199 -> 7 | I199: ='UEM11'!L199 -> 1 | J199: ='UED11'!J199 -> 14.23333333 | K199: ='UED11'!K199 -> 4 | L199: ='UED11'!L199 -> 1 | M199: ='UET11'!G199 -> 17.96666667 | N199: ='UET11'!H199 -> 2 | O199: ='UET11'!I199 -> 1 | P199: 12.55777778 | Q199: 30 | R199: 2
A200: 191 | B200: DAHMECHE | C200: HADJER | D200: ='UEF11'!M200 -> 8.54 | E200: ='UEF11'!N200 -> 0 | F200: ='UEF11'!O200 -> 2 | G200: ='UEM11'!J200 -> 15.33333333 | H200: ='UEM11'!K200 -> 7 | I200: ='UEM11'!L200 -> 1 | J200: ='UED11'!J200 -> 10.28333333 | K200: ='UED11'!K200 -> 4 | L200: ='UED11'!L200 -> 1 | M200: ='UET11'!G200 -> 13 | N200: ='UET11'!H200 -> 2 | O200: ='UET11'!I200 -> 1 | P200: 9.975555556 | Q200: 11 | R200: 2
A201: 192 | B201: DAMENE | C201: ABD EL WAHAD MOHAMED | D201: ='UEF11'!M201 -> 10.28666667 | E201: ='UEF11'!N201 -> 17 | F201: ='UEF11'!O201 -> 2 | G201: ='UEM11'!J201 -> 16.46666667 | H201: ='UEM11'!K201 -> 7 | I201: ='UEM11'!L201 -> 1 | J201: ='UED11'!J201 -> 13.51666667 | K201: ='UED11'!K201 -> 4 | L201: ='UED11'!L201 -> 1 | M201: ='UET11'!G201 -> 11.86666667 | N201: ='UET11'!H201 -> 2 | O201: ='UET11'!I201 -> 1 | P201: 11.64666667 | Q201: 30 | R201: 2
... 203 more rows

Sheet UEF21
A1: MINISTERE DE L’ENSEIGNEMENT SUPERIEUR ET DE LA RECHERCHE SCIENTIFIQUE
A2: UNIVERSITE ABDELHAMID IBN BADIS MOSTAGANEM | D2: جامعــة عبد الحميد ابن باديس مستغانم
A3: FACULTE DES SCIENCES EXACTES ET DE L’INFORMATIQUE | D3: كلية العلوم الدقيقة و الأعلام الألي
A4: DEPARTEMENT DE MATHEMATIQUES ET INFORMATIQUE | D4: قسم الرياضيات و الأعلام الألي
A5: Première Année - Mathématiques et Informatique
A6: PV du 2ème Semestre-2015/2016
A7: UEF21
D8: Analyse2 | G8: ALgebre2 | J8: Intro-pro | M8: UEF21 | N8: Crédit | O8: Session
D9: Analyse2 | E9: Crédit | F9: Sess | G9: ALgebre2 | H9: Crédit | I9: Sess | J9: Intro-prob | K9: Crédit | L9: Sess
A10: 1 | B10: ABBABSA | C10: RAHMA | D10: =[9]Feuil1!K10 -> 14.8 | E10: =[9]Feuil1!L10 -> 4 | F10: =[9]Feuil1!M10 -> 2 | G10: =[10]Feuil1!K10 -> 10 | H10: =[10]Feuil1!L10 -> 4 | I10: =[10]Feuil1!M10 -> 2 | J10: =[11]Feuil1!K10 -> 11.2 | K10: =[11]Feuil1!L10 -> 3 | L10: =[11]Feuil1!M10 -> 1 | M10: =(D10*2+G10*2+J10*1)/5 -> 12.16 | N10: =IF(M10>=10,11,E10+H10+K10) -> 11 | O10: =IF(AND(F10="1", I10="1", L10="1"),"1","2") -> 2
A11: 2 | B11: ABBAS | C11: AHMED | D11: =[9]Feuil1!K11 -> 9.933333333 | E11: =[9]Feuil1!L11 -> 0 | F11: =[9]Feuil1!M11 -> 2 | G11: =[10]Feuil1!K11 -> 10 | H11: =[10]Feuil1!L11 -> 4 | I11: =[10]Feuil1!M11 -> 1 | J11: =[11]Feuil1!K11 -> 12.73333333 | K11: =[11]Feuil1!L11 -> 3 | L11: =[11]Feuil1!M11 -> 1 | M11: =(D11*2+G11*2+J11*1)/5 -> 10.52 | N11: =IF(M11>=10,11,E11+H11+K11) -> 11 | O11: 2
A12: 3 | B12: ABBES | C12: GHOZLENE | D12: =[9]Feuil1!K12 -> 13.78333333 | E12: =[9]Feuil1!L12 -> 4 | F12: =[9]Feuil1!M12 -> 2 | G12: =[10]Feuil1!K12 -> 11.53333333 | H12: =[10]Feuil1!L12 -> 4 | I12: =[10]Feuil1!M12 -> 2 | J12: =[11]Feuil1!K12 -> 12.88333333 | K12: =[11]Feuil1!L12 -> 3 | L12: =[11]Feuil1!M12 -> 2 | M12: 12.70333333 | N12: =IF(M12>=10,11,E12+H12+K12) -> 11 | O12: 2
A13: 4 | B13: ABBES | C13: MOHAMED EL AMINE | D13: =[9]Feuil1!K13 -> 13.45 | E13: =[9]Feuil1!L13 -> 4 | F13: =[9]Feuil1!M13 -> 1 | G13: =[10]Feuil1!K13 -> 13.25 | H13: =[10]Feuil1!L13 -> 4 | I13: =[10]Feuil1!M13 -> 1 | J13: =[11]Feuil1!K13 -> 12.58333333 | K13: =[11]Feuil1!L13 -> 3 | L13: =[11]Feuil1!M13 -> 1 | M13: 13.19666667 | N13: 11 | O13: 1
A14: 5 | B14: ABBOU | C14: FATIHA | D14: =[9]Feuil1!K14 -> 13.85 | E14: =[9]Feuil1!L14 -> 4 | F14: =[9]Feuil1!M14 -> 1 | G14: =[10]Feuil1!K14 -> 12.08333333 | H14: =[10]Feuil1!L14 -> 4 | I14: =[10]Feuil1!M14 -> 2 | J14: =[11]Feuil1!K14 -> 15.25 | K14: =[11]Feuil1!L14 -> 3 | L14: =[11]Feuil1!M14 -> 1 | M14: 13.42333333 | N14: 11 | O14: 2
A15: 6 | B15: ABBOUD | C15: SALIHA | D15: =[9]Feuil1!K15 -> 13.93333333 | E15: =[9]Feuil1!L15 -> 4 | F15: =[9]Feuil1!M15 -> 1 | G15: =[10]Feuil1!K15 -> 13.66666667 | H15: =[10]Feuil1!L15 -> 4 | I15: =[10]Feuil1!M15 -> 1 | J15: =[11]Feuil1!K15 -> 12.6 | K15: =[11]Feuil1!L15 -> 3 | L15: =[11]Feuil1!M15 -> 1 | M15: 13.56 | N15: 11 | O15: 1
A16: 7 | B16: ABDELLAOUI | C16: NADIA | D16: =[9]Feuil1!K16 -> 9.666666667 | E16: =[9]Feuil1!L16 -> 0 | F16: =[9]Feuil1!M16 -> 1 | G16: =[10]Feuil1!K16 -> 9.666666667 | H16: =[10]Feuil1!L16 -> 0 | I16: =[10]Feuil1!M16 -> 1 | J16: =[11]Feuil1!K16 -> 9.666666667 | K16: =[11]Feuil1!L16 -> 0 | L16: =[11]Feuil1!M16 -> 1 | M16: 9.666666667 | N16: 0 | O16: 1
A17: 8 | B17: ABDELNEBI | C17: AMIRA | D17: =[9]Feuil1!K17 -> 13.16666667 | E17: =[9]Feuil1!L17 -> 4 | F17: =[9]Feuil1!M17 -> 1 | G17: =[10]Feuil1!K17 -> 13.16666667 | H17: =[10]Feuil1!L17 -> 4 | I17: =[10]Feuil1!M17 -> 1 | J17: =[11]Feuil1!K17 -> 13.16666667 | K17: =[11]Feuil1!L17 -> 3 | L17: =[11]Feuil1!M17 -> 1 | M17: 13.16666667 | N17: 11 | O17: 1
A18: 9 | B18: ABDELOUHAB | C18: NEDJWA ZAHRA | D18: =[9]Feuil1!K18 -> 10.05 | E18: =[9]Feuil1!L18 -> 4 | F18: =[9]Feuil1!M18 -> 1 | G18: =[10]Feuil1!K18 -> 10.76666667 | H18: =[10]Feuil1!L18 -> 4 | I18: =[10]Feuil1!M18 -> 2 | J18: =[11]Feuil1!K18 -> 10.05 | K18: =[11]Feuil1!L18 -> 3 | L18: =[11]Feuil1!M18 -> 1 | M18: 10.33666667 | N18: 11 | O18: 2
A19: 10 | B19: ABDOUNI | C19: AMIN | D19: =[9]Feuil1!K19 -> 12.96666667 | E19: =[9]Feuil1!L19 -> 4 | F19: =[9]Feuil1!M19 -> 1 | G19: =[10]Feuil1!K19 -> 12.96666667 | H19: =[10]Feuil1!L19 -> 4 | I19: =[10]Feuil1!M19 -> 1 | J19: =[11]Feuil1!K19 -> 12.96666667 | K19: =[11]Feuil1!L19 -> 3 | L19: =[11]Feuil1!M19 -> 1 | M19: 12.96666667 | N19: 11 | O19: 1
A20: 11 | B20: ABEID | C20: ZOHRA | D20: =[9]Feuil1!K20 -> 12.71666667 | E20: =[9]Feuil1!L20 -> 4 | F20: =[9]Feuil1!M20 -> 1 | G20: =[10]Feuil1!K20 -> 12.71666667 | H20: =[10]Feuil1!L20 -> 4 | I20: =[10]Feuil1!M20 -> 1 | J20: =[11]Feuil1!K20 -> 12.71666667 | K20: =[11]Feuil1!L20 -> 3 | L20: =[11]Feuil1!M20 -> 1 | M20: 12.71666667 | N20: 11 | O20: 1
A21: 12 | B21: ACHOUR | C21: ABDENOUR | D21: =[9]Feuil1!K21 -> 10.9 | E21: =[9]Feuil1!L21 -> 4 | F21: =[9]Feuil1!M21 -> 1 | G21: =[10]Feuil1!K21 -> 10.9 | H21: =[10]Feuil1!L21 -> 4 | I21: =[10]Feuil1!M21 -> 1 | J21: =[11]Feuil1!K21 -> 10.9 | K21: =[11]Feuil1!L21 -> 3 | L21: =[11]Feuil1!M21 -> 1 | M21: 10.9 | N21: 11 | O21: 1
A22: 13 | B22: ADDA | C22: ABDERRAHIM | D22: =[9]Feuil1!K22 -> 11.9 | E22: =[9]Feuil1!L22 -> 4 | F22: =[9]Feuil1!M22 -> 1 | G22: =[10]Feuil1!K22 -> 11.9 | H22: =[10]Feuil1!L22 -> 4 | I22: =[10]Feuil1!M22 -> 1 | J22: =[11]Feuil1!K22 -> 11.9 | K22: =[11]Feuil1!L22 -> 3 | L22: =[11]Feuil1!M22 -> 1 | M22: 11.9 | N22: 11 | O22: 1
A23: 14 | B23: ADDA | C23: HOUSSAM | D23: =[9]Feuil1!K23 -> 7.1 | E23: =[9]Feuil1!L23 -> 0 | F23: =[9]Feuil1!M23 -> 2 | G23: =[10]Feuil1!K23 -> 7.1 | H23: =[10]Feuil1!L23 -> 0 | I23: =[10]Feuil1!M23 -> 2 | J23: =[11]Feuil1!K23 -> 7.1 | K23: =[11]Feuil1!L23 -> 0 | L23: =[11]Feuil1!M23 -> 2 | M23: 7.1 | N23: 0 | O23: 2
A24: 15 | B24: ADDA | C24: SAID | D24: =[9]Feuil1!K24 -> 10.63333333 | E24: =[9]Feuil1!L24 -> 4 | F24: =[9]Feuil1!M24 -> 1 | G24: =[10]Feuil1!K24 -> 10.63333333 | H24: =[10]Feuil1!L24 -> 4 | I24: =[10]Feuil1!M24 -> 1 | J24: =[11]Feuil1!K24 -> 10.63333333 | K24: =[11]Feuil1!L24 -> 3 | L24: =[11]Feuil1!M24 -> 1 | M24: 10.63333333 | N24: 11 | O24: 1
A25: 16 | B25: AGBOUBI | C25: M'HAMED YASSINE | D25: =[9]Feuil1!K25 -> 11.36666667 | E25: =[9]Feuil1!L25 -> 4 | F25: =[9]Feuil1!M25 -> 2 | G25: =[10]Feuil1!K25 -> 11.36666667 | H25: =[10]Feuil1!L25 -> 4 | I25: =[10]Feuil1!M25 -> 2 | J25: =[11]Feuil1!K25 -> 11.36666667 | K25: =[11]Feuil1!L25 -> 3 | L25: =[11]Feuil1!M25 -> 2 | M25: 11.36666667 | N25: 11 | O25: 2
A26: 17 | B26: AHMED BACHA | C26: BILAL | D26: =[9]Feuil1!K26 -> 11.5 | E26: =[9]Feuil1!L26 -> 4 | F26: =[9]Feuil1!M26 -> 1 | G26: =[10]Feuil1!K26 -> 11.5 | H26: =[10]Feuil1!L26 -> 4 | I26: =[10]Feuil1!M26 -> 1 | J26: =[11]Feuil1!K26 -> 11.5 | K26: =[11]Feuil1!L26 -> 3 | L26: =[11]Feuil1!M26 -> 1 | M26: 11.5 | N26: 11 | O26: 1
A27: 18 | B27: AHMED KHODJA | C27: SOUMIA | D27: =[9]Feuil1!K27 -> 12.86666667 | E27: =[9]Feuil1!L27 -> 4 | F27: =[9]Feuil1!M27 -> 2 | G27: =[10]Feuil1!K27 -> 12.86666667 | H27: =[10]Feuil1!L27 -> 4 | I27: =[10]Feuil1!M27 -> 2 | J27: =[11]Feuil1!K27 -> 12.86666667 | K27: =[11]Feuil1!L27 -> 3 | L27: =[11]Feuil1!M27 -> 2 | M27: 12.86666667 | N27: 11 | O27: 2
A28: 19 | B28: AIMOUCH | C28: ABDESSAMED | D28: =[9]Feuil1!K28 -> 8.366666667 | E28: =[9]Feuil1!L28 -> 0 | F28: =[9]Feuil1!M28 -> 2 | G28: =[10]Feuil1!K28 -> 8.366666667 | H28: =[10]Feuil1!L28 -> 0 | I28: =[10]Feuil1!M28 -> 2 | J28: =[11]Feuil1!K28 -> 8.366666667 | K28: =[11]Feuil1!L28 -> 0 | L28: =[11]Feuil1!M28 -> 2 | M28: 8.366666667 | N28: 0 | O28: 2
A29: 20 | B29: AIMOUCH | C29: BADRA | D29: =[9]Feuil1!K29 -> 11.53333333 | E29: =[9]Feuil1!L29 -> 4 | F29: =[9]Feuil1!M29 -> 1 | G29: =[10]Feuil1!K29 -> 11.53333333 | H29: =[10]Feuil1!L29 -> 4 | I29: =[10]Feuil1!M29 -> 1 | J29: =[11]Feuil1!K29 -> 11.53333333 | K29: =[11]Feuil1!L29 -> 3 | L29: =[11]Feuil1!M29 -> 1 | M29: 11.53333333 | N29: 11 | O29: 1
A30: 21 | B30: AISSA | C30: SIHEM | D30: =[9]Feuil1!K30 -> 12.06666667 | E30: =[9]Feuil1!L30 -> 4 | F30: =[9]Feuil1!M30 -> 1 | G30: =[10]Feuil1!K30 -> 12.06666667 | H30: =[10]Feuil1!L30 -> 4 | I30: =[10]Feuil1!M30 -> 1 | J30: =[11]Feuil1!K30 -> 12.06666667 | K30: =[11]Feuil1!L30 -> 3 | L30: =[11]Feuil1!M30 -> 1 | M30: 12.06666667 | N30: 11 | O30: 1
A31: 22 | B31: AISSAT | C31: ABDERRAHMANE KADDOUR | D31: =[9]Feuil1!K31 -> 10.8 | E31: =[9]Feuil1!L31 -> 4 | F31: =[9]Feuil1!M31 -> 1 | G31: =[10]Feuil1!K31 -> 10.8 | H31: =[10]Feuil1!L31 -> 4 | I31: =[10]Feuil1!M31 -> 1 | J31: =[11]Feuil1!K31 -> 10.8 | K31: =[11]Feuil1!L31 -> 3 | L31: =[11]Feuil1!M31 -> 1 | M31: 10.8 | N31: 11 | O31: 1
A32: 23 | B32: AIT OUALI | C32: LINDA | D32: =[9]Feuil1!K32 -> 9.116666667 | E32: =[9]Feuil1!L32 -> 0 | F32: =[9]Feuil1!M32 -> 2 | G32: =[10]Feuil1!K32 -> 9.116666667 | H32: =[10]Feuil1!L32 -> 0 | I32: =[10]Feuil1!M32 -> 2 | J32: =[11]Feuil1!K32 -> 9.116666667 | K32: =[11]Feuil1!L32 -> 0 | L32: =[11]Feuil1!M32 -> 2 | M32: 9.116666667 | N32: 0 | O32: 2
A33: 24 | B33: AKROUM | C33: YOUCEF | D33: =[9]Feuil1!K33 -> 10.6 | E33: =[9]Feuil1!L33 -> 4 | F33: =[9]Feuil1!M33 -> 1 | G33: =[10]Feuil1!K33 -> 10.6 | H33: =[10]Feuil1!L33 -> 4 | I33: =[10]Feuil1!M33 -> 1 | J33: =[11]Feuil1!K33 -> 10.6 | K33: =[11]Feuil1!L33 -> 3 | L33: =[11]Feuil1!M33 -> 1 | M33: 10.6 | N33: 11 | O33: 1
A34: 25 | B34: ALLOUCH | C34: NADIA | D34: =[9]Feuil1!K34 -> 11.96666667 | E34: =[9]Feuil1!L34 -> 4 | F34: =[9]Feuil1!M34 -> 1 | G34: =[10]Feuil1!K34 -> 11.96666667 | H34: =[10]Feuil1!L34 -> 4 | I34: =[10]Feuil1!M34 -> 1 | J34: =[11]Feuil1!K34 -> 11.96666667 | K34: =[11]Feuil1!L34 -> 3 | L34: =[11]Feuil1!M34 -> 1 | M34: 11.96666667 | N34: 11 | O34: 1
A35: 26 | B35: AMAIRI | C35: CHAIMAA | D35: =[9]Feuil1!K35 -> 6.533333333 | E35: =[9]Feuil1!L35 -> 0 | F35: =[9]Feuil1!M35 -> 1 | G35: =[10]Feuil1!K35 -> 6.533333333 | H35: =[10]Feuil1!L35 -> 0 | I35: =[10]Feuil1!M35 -> 1 | J35: =[11]Feuil1!K35 -> 6.533333333 | K35: =[11]Feuil1!L35 -> 0 | L35: =[11]Feuil1!M35 -> 1 | M35: 6.533333333 | N35: 0 | O35: 1
A36: 27 | B36: AMMAR | C36: DJAMEL EDDINE | D36: =[9]Feuil1!K36 -> 13.85 | E36: =[9]Feuil1!L36 -> 4 | F36: =[9]Feuil1!M36 -> 1 | G36: =[10]Feuil1!K36 -> 13.85 | H36: =[10]Feuil1!L36 -> 4 | I36: =[10]Feuil1!M36 -> 1 | J36: =[11]Feuil1!K36 -> 13.85 | K36: =[11]Feuil1!L36 -> 3 | L36: =[11]Feuil1!M36 -> 1 | M36: 13.85 | N36: 11 | O36: 1
A37: 28 | B37: AMMAR | C37: MANAL | D37: =[9]Feuil1!K37 -> 9.966666667 | E37: =[9]Feuil1!L37 -> 0 | F37: =[9]Feuil1!M37 -> 1 | G37: =[10]Feuil1!K37 -> 9.966666667 | H37: =[10]Feuil1!L37 -> 0 | I37: =[10]Feuil1!M37 -> 1 | J37: =[11]Feuil1!K37 -> 9.966666667 | K37: =[11]Feuil1!L37 -> 0 | L37: =[11]Feuil1!M37 -> 1 | M37: 9.966666667 | N37: 0 | O37: 1
A38: 29 | B38: AMRANE | C38: AHMED | D38: =[9]Feuil1!K38 -> 12.51666667 | E38: =[9]Feuil1!L38 -> 4 | F38: =[9]Feuil1!M38 -> 1 | G38: =[10]Feuil1!K38 -> 12.51666667 | H38: =[10]Feuil1!L38 -> 4 | I38: =[10]Feuil1!M38 -> 1 | J38: =[11]Feuil1!K38 -> 12.51666667 | K38: =[11]Feuil1!L38 -> 3 | L38: =[11]Feuil1!M38 -> 1 | M38: 12.51666667 | N38: 11 | O38: 1
A39: 30 | B39: AMRANE | C39: HAFIDHA | D39: =[9]Feuil1!K39 -> 7.75 | E39: =[9]Feuil1!L39 -> 0 | F39: =[9]Feuil1!M39 -> 2 | G39: =[10]Feuil1!K39 -> 7.75 | H39: =[10]Feuil1!L39 -> 0 | I39: =[10]Feuil1!M39 -> 2 | J39: =[11]Feuil1!K39 -> 7.75 | K39: =[11]Feuil1!L39 -> 0 | L39: =[11]Feuil1!M39 -> 2 | M39: 7.75 | N39: 0 | O39: 2
A40: 31 | B40: AMRAOUI | C40: SOUFYANE | D40: =[9]Feuil1!K40 -> 11.46666667 | E40: =[9]Feuil1!L40 -> 4 | F40: =[9]Feuil1!M40 -> 2 | G40: =[10]Feuil1!K40 -> 11.46666667 | H40: =[10]Feuil1!L40 -> 4 | I40: =[10]Feuil1!M40 -> 2 | J40: =[11]Feuil1!K40 -> 11.46666667 | K40: =[11]Feuil1!L40 -> 3 | L40: =[11]Feuil1!M40 -> 2 | M40: 11.46666667 | N40: 11 | O40: 2
A41: 32 | B41: AMROUCHE | C41: NOURA | D41: =[9]Feuil1!K41 -> 8.766666667 | E41: =[9]Feuil1!L41 -> 0 | F41: =[9]Feuil1!M41 -> 2 | G41: =[10]Feuil1!K41 -> 8.766666667 | H41: =[10]Feuil1!L41 -> 0 | I41: =[10]Feuil1!M41 -> 2 | J41: =[11]Feuil1!K41 -> 8.766666667 | K41: =[11]Feuil1!L41 -> 0 | L41: =[11]Feuil1!M41 -> 2 | M41: 8.766666667 | N41: 0 | O41: 2
A42: 33 | B42: AOUAICHIA | C42: HANANE | D42: =[9]Feuil1!K42 -> 12.9 | E42: =[9]Feuil1!L42 -> 4 | F42: =[9]Feuil1!M42 -> 1 | G42: =[10]Feuil1!K42 -> 12.9 | H42: =[10]Feuil1!L42 -> 4 | I42: =[10]Feuil1!M42 -> 1 | J42: =[11]Feuil1!K42 -> 12.9 | K42: =[11]Feuil1!L42 -> 3 | L42: =[11]Feuil1!M42 -> 1 | M42: 12.9 | N42: 11 | O42: 1
A43: 34 | B43: ARAB | C43: NOUREDDINE | D43: =[9]Feuil1!K43 -> 11.8 | E43: =[9]Feuil1!L43 -> 4 | F43: =[9]Feuil1!M43 -> 1 | G43: =[10]Feuil1!K43 -> 11.8 | H43: =[10]Feuil1!L43 -> 4 | I43: =[10]Feuil1!M43 -> 1 | J43: =[11]Feuil1!K43 -> 11.8 | K43: =[11]Feuil1!L43 -> 3 | L43: =[11]Feuil1!M43 -> 1 | M43: 11.8 | N43: 11 | O43: 1
A44: 35 | B44: ATMANI | C44: FATIHA | D44: =[9]Feuil1!K44 -> 12.03333333 | E44: =[9]Feuil1!L44 -> 4 | F44: =[9]Feuil1!M44 -> 1 | G44: =[10]Feuil1!K44 -> 12.03333333 | H44: =[10]Feuil1!L44 -> 4 | I44: =[10]Feuil1!M44 -> 1 | J44: =[11]Feuil1!K44 -> 12.03333333 | K44: =[11]Feuil1!L44 -> 3 | L44: =[11]Feuil1!M44 -> 1 | M44: 12.03333333 | N44: 11 | O44: 1
A45: 36 | B45: AUODJ | C45: LARBI | D45: =[9]Feuil1!K45 -> 10.83333333 | E45: =[9]Feuil1!L45 -> 4 | F45: =[9]Feuil1!M45 -> 1 | G45: =[10]Feuil1!K45 -> 10.83333333 | H45: =[10]Feuil1!L45 -> 4 | I45: =[10]Feuil1!M45 -> 1 | J45: =[11]Feuil1!K45 -> 10.83333333 | K45: =[11]Feuil1!L45 -> 3 | L45: =[11]Feuil1!M45 -> 1 | M45: 10.83333333 | N45: 11 | O45: 1
A46: 37 | B46: AYAD | C46: NADJET | D46: =[9]Feuil1!K46 -> 11.86666667 | E46: =[9]Feuil1!L46 -> 4 | F46: =[9]Feuil1!M46 -> 1 | G46: =[10]Feuil1!K46 -> 11.86666667 | H46: =[10]Feuil1!L46 -> 4 | I46: =[10]Feuil1!M46 -> 1 | J46: =[11]Feuil1!K46 -> 11.86666667 | K46: =[11]Feuil1!L46 -> 3 | L46: =[11]Feuil1!M46 -> 1 | M46: 11.86666667 | N46: 11 | O46: 1
A47: 38 | B47: AZIL | C47: HALIMA | D47: =[9]Feuil1!K47 -> 13.05 | E47: =[9]Feuil1!L47 -> 4 | F47: =[9]Feuil1!M47 -> 1 | G47: =[10]Feuil1!K47 -> 13.05 | H47: =[10]Feuil1!L47 -> 4 | I47: =[10]Feuil1!M47 -> 1 | J47: =[11]Feuil1!K47 -> 13.05 | K47: =[11]Feuil1!L47 -> 3 | L47: =[11]Feuil1!M47 -> 1 | M47: 13.05 | N47: 11 | O47: 1
A48: 39 | B48: AZIRIA | C48: BILAL | D48: =[9]Feuil1!K48 -> 6.933333333 | E48: =[9]Feuil1!L48 -> 0 | F48: =[9]Feuil1!M48 -> 2 | G48: =[10]Feuil1!K48 -> 6.933333333 | H48: =[10]Feuil1!L48 -> 0 | I48: =[10]Feuil1!M48 -> 2 | J48: =[11]Feuil1!K48 -> 6.933333333 | K48: =[11]Feuil1!L48 -> 0 | L48: =[11]Feuil1!M48 -> 2 | M48: 6.933333333 | N48: 0 | O48: 2
A49: 40 | B49: BAALI | C49: NOR ELHOUDA | D49: =[9]Feuil1!K49 -> 11.6 | E49: =[9]Feuil1!L49 -> 4 | F49: =[9]Feuil1!M49 -> 1 | G49: =[10]Feuil1!K49 -> 11.6 | H49: =[10]Feuil1!L49 -> 4 | I49: =[10]Feuil1!M49 -> 1 | J49: =[11]Feuil1!K49 -> 11.6 | K49: =[11]Feuil1!L49 -> 3 | L49: =[11]Feuil1!M49 -> 1 | M49: 11.6 | N49: 11 | O49: 1
A50: 41 | B50: BAALI | C50: ZOULIKHA | D50: =[9]Feuil1!K50 -> 11.81666667 | E50: =[9]Feuil1!L50 -> 4 | F50: =[9]Feuil1!M50 -> 2 | G50: =[10]Feuil1!K50 -> 11.81666667 | H50: =[10]Feuil1!L50 -> 4 | I50: =[10]Feuil1!M50 -> 2 | J50: =[11]Feuil1!K50 -> 11.81666667 | K50: =[11]Feuil1!L50 -> 3 | L50: =[11]Feuil1!M50 -> 2 | M50: 11.81666667 | N50: 11 | O50: 2
A51: 42 | B51: BACHIR BEY | C51: ABDELHAMID | D51: =[9]Feuil1!K51 -> 13.41666667 | E51: =[9]Feuil1!L51 -> 4 | F51: =[9]Feuil1!M51 -> 2 | G51: =[10]Feuil1!K51 -> 13.41666667 | H51: =[10]Feuil1!L51 -> 4 | I51: =[10]Feuil1!M51 -> 2 | J51: =[11]Feuil1!K51 -> 13.41666667 | K51: =[11]Feuil1!L51 -> 3 | L51: =[11]Feuil1!M51 -> 2 | M51: 13.41666667 | N51: 11 | O51: 2
A52: 43 | B52: BAGHDOUD | C52: ASMAE | D52: =[9]Feuil1!K52 -> 10.05 | E52: =[9]Feuil1!L52 -> 4 | F52: =[9]Feuil1!M52 -> 1 | G52: =[10]Feuil1!K52 -> 10.05 | H52: =[10]Feuil1!L52 -> 4 | I52: =[10]Feuil1!M52 -> 1 | J52: =[11]Feuil1!K52 -> 10.05 | K52: =[11]Feuil1!L52 -> 3 | L52: =[11]Feuil1!M52 -> 1 | M52: 10.05 | N52: 11 | O52: 1
A53: 44 | B53: BAHLOUL | C53: MOHAMED AMINE | D53: =[9]Feuil1!K53 -> 7.3 | E53: =[9]Feuil1!L53 -> 0 | F53: =[9]Feuil1!M53 -> 1 | G53: =[10]Feuil1!K53 -> 7.3 | H53: =[10]Feuil1!L53 -> 0 | I53: =[10]Feuil1!M53 -> 1 | J53: =[11]Feuil1!K53 -> 7.3 | K53: =[11]Feuil1!L53 -> 0 | L53: =[11]Feuil1!M53 -> 1 | M53: 7.3 | N53: 0 | O53: 1
A54: 45 | B54: BAININE | C54: SID AHMED | D54: =[9]Feuil1!K54 -> 14.38333333 | E54: =[9]Feuil1!L54 -> 4 | F54: =[9]Feuil1!M54 -> 1 | G54: =[10]Feuil1!K54 -> 14.38333333 | H54: =[10]Feuil1!L54 -> 4 | I54: =[10]Feuil1!M54 -> 1 | J54: =[11]Feuil1!K54 -> 14.38333333 | K54: =[11]Feuil1!L54 -> 3 | L54: =[11]Feuil1!M54 -> 1 | M54: 14.38333333 | N54: 11 | O54: 1
A55: 46 | B55: BAKIR | C55: MOHAMMED | D55: =[9]Feuil1!K55 -> 12.91666667 | E55: =[9]Feuil1!L55 -> 4 | F55: =[9]Feuil1!M55 -> 1 | G55: =[10]Feuil1!K55 -> 12.91666667 | H55: =[10]Feuil1!L55 -> 4 | I55: =[10]Feuil1!M55 -> 1 | J55: =[11]Feuil1!K55 -> 12.91666667 | K55: =[11]Feuil1!L55 -> 3 | L55: =[11]Feuil1!M55 -> 1 | M55: 12.91666667 | N55: 11 | O55: 1
A56: 47 | B56: BARDAD | C56: NASSIBA | D56: =[9]Feuil1!K56 -> 11.76666667 | E56: =[9]Feuil1!L56 -> 4 | F56: =[9]Feuil1!M56 -> 1 | G56: =[10]Feuil1!K56 -> 11.76666667 | H56: =[10]Feuil1!L56 -> 4 | I56: =[10]Feuil1!M56 -> 1 | J56: =[11]Feuil1!K56 -> 11.76666667 | K56: =[11]Feuil1!L56 -> 3 | L56: =[11]Feuil1!M56 -> 1 | M56: 11.76666667 | N56: 11 | O56: 1
A57: 48 | B57: BARDAD | C57: NAZHA | D57: =[9]Feuil1!K57 -> 9.3 | E57: =[9]Feuil1!L57 -> 0 | F57: =[9]Feuil1!M57 -> 2 | G57: =[10]Feuil1!K57 -> 9.3 | H57: =[10]Feuil1!L57 -> 0 | I57: =[10]Feuil1!M57 -> 2 | J57: =[11]Feuil1!K57 -> 9.3 | K57: =[11]Feuil1!L57 -> 0 | L57: =[11]Feuil1!M57 -> 2 | M57: 9.3 | N57: 0 | O57: 2
A58: 49 | B58: BARKAT | C58: NASSIMA | D58: =[9]Feuil1!K58 -> 11.51666667 | E58: =[9]Feuil1!L58 -> 4 | F58: =[9]Feuil1!M58 -> 1 | G58: =[10]Feuil1!K58 -> 11.51666667 | H58: =[10]Feuil1!L58 -> 4 | I58: =[10]Feuil1!M58 -> 1 | J58: =[11]Feuil1!K58 -> 11.51666667 | K58: =[11]Feuil1!L58 -> 3 | L58: =[11]Feuil1!M58 -> 1 | M58: 11.51666667 | N58: 11 | O58: 1
A59: 50 | B59: BEGUELOUL | C59: AZZEDINE | D59: =[9]Feuil1!K59 -> 13.1 | E59: =[9]Feuil1!L59 -> 4 | F59: =[9]Feuil1!M59 -> 1 | G59: =[10]Feuil1!K59 -> 13.1 | H59: =[10]Feuil1!L59 -> 4 | I59: =[10]Feuil1!M59 -> 1 | J59: =[11]Feuil1!K59 -> 13.1 | K59: =[11]Feuil1!L59 -> 3 | L59: =[11]Feuil1!M59 -> 1 | M59: 13.1 | N59: 11 | O59: 1
A60: 51 | B60: BEHLOUL | C60: ARBIA | D60: =[9]Feuil1!K60 -> 8.633333333 | E60: =[9]Feuil1!L60 -> 0 | F60: =[9]Feuil1!M60 -> 2 | G60: =[10]Feuil1!K60 -> 8.633333333 | H60: =[10]Feuil1!L60 -> 0 | I60: =[10]Feuil1!M60 -> 2 | J60: =[11]Feuil1!K60 -> 8.633333333 | K60: =[11]Feuil1!L60 -> 0 | L60: =[11]Feuil1!M60 -> 2 | M60: 8.633333333 | N60: 0 | O60: 2
A61: 52 | B61: BEKADDOR BENATIA | C61: ABDALLAH | D61: =[9]Feuil1!K61 -> 15.81666667 | E61: =[9]Feuil1!L61 -> 4 | F61: =[9]Feuil1!M61 -> 2 | G61: =[10]Feuil1!K61 -> 15.81666667 | H61: =[10]Feuil1!L61 -> 4 | I61: =[10]Feuil1!M61 -> 2 | J61: =[11]Feuil1!K61 -> 15.81666667 | K61: =[11]Feuil1!L61 -> 3 | L61: =[11]Feuil1!M61 -> 2 | M61: 15.81666667 | N61: 11 | O61: 2
A62: 53 | B62: BEKADDOUR | C62: FATIMA | D62: =[9]Feuil1!K62 -> 12.5 | E62: =[9]Feuil1!L62 -> 4 | F62: =[9]Feuil1!M62 -> 1 | G62: =[10]Feuil1!K62 -> 12.5 | H62: =[10]Feuil1!L62 -> 4 | I62: =[10]Feuil1!M62 -> 1 | J62: =[11]Feuil1!K62 -> 12.5 | K62: =[11]Feuil1!L62 -> 3 | L62: =[11]Feuil1!M62 -> 1 | M62: 12.5 | N62: 11 | O62: 1
A63: 54 | B63: BEKKA | C63: HOUCINE | D63: =[9]Feuil1!K63 -> 8.383333333 | E63: =[9]Feuil1!L63 -> 0 | F63: =[9]Feuil1!M63 -> 2 | G63: =[10]Feuil1!K63 -> 8.383333333 | H63: =[10]Feuil1!L63 -> 0 | I63: =[10]Feuil1!M63 -> 2 | J63: =[11]Feuil1!K63 -> 8.383333333 | K63: =[11]Feuil1!L63 -> 0 | L63: =[11]Feuil1!M63 -> 2 | M63: 8.383333333 | N63: 0 | O63: 2
A64: 55 | B64: BELABBES | C64: FAISAL | D64: =[9]Feuil1!K64 -> 14.26666667 | E64: =[9]Feuil1!L64 -> 4 | F64: =[9]Feuil1!M64 -> 2 | G64: =[10]Feuil1!K64 -> 14.26666667 | H64: =[10]Feuil1!L64 -> 4 | I64: =[10]Feuil1!M64 -> 2 | J64: =[11]Feuil1!K64 -> 14.26666667 | K64: =[11]Feuil1!L64 -> 3 | L64: =[11]Feuil1!M64 -> 2 | M64: 14.26666667 | N64: 11 | O64: 2
A65: 56 | B65: BELACEL | C65: M'HAMMED | D65: =[9]Feuil1!K65 -> 1.2 | E65: =[9]Feuil1!L65 -> 0 | F65: =[9]Feuil1!M65 -> 2 | G65: =[10]Feuil1!K65 -> 1.2 | H65: =[10]Feuil1!L65 -> 0 | I65: =[10]Feuil1!M65 -> 2 | J65: =[11]Feuil1!K65 -> 1.2 | K65: =[11]Feuil1!L65 -> 0 | L65: =[11]Feuil1!M65 -> 2 | M65: 1.2 | N65: 0 | O65: 2
A66: 57 | B66: BELACEL | C66: MOHAMED ELAMINE | D66: =[9]Feuil1!K66 -> 11.06666667 | E66: =[9]Feuil1!L66 -> 4 | F66: =[9]Feuil1!M66 -> 2 | G66: =[10]Feuil1!K66 -> 11.06666667 | H66: =[10]Feuil1!L66 -> 4 | I66: =[10]Feuil1!M66 -> 2 | J66: =[11]Feuil1!K66 -> 11.06666667 | K66: =[11]Feuil1!L66 -> 3 | L66: =[11]Feuil1!M66 -> 2 | M66: 11.06666667 | N66: 11 | O66: 2
